Workbook

Sheet Logo
I9: Veuillez insérer ou modifier le logo dans le cadre.

Sheet Notice
J6: =+CONCATENATE("Notice d'utilisation de l'outil photovoltaïque - ",Données!B$14) -> Notice d'utilisation de l'outil photovoltaïque - Version 10/2020_v01
C9: Nous contacter
D10: Si vous avez besoin d'un renseignement supplémentaire, si vous avez une proposition d'amélioration à nous faire parvenir contactez nous à l'adresse Tools@bdrthermea.fr
D11: En cas de problème d'utilisation de l'outil, contactez-nous à l'adresse Tools@bdrthermea.fr en joignant à votre mail le fichier excel avec la configuration qui fait défaut.
C14: Le fonctionnement de l'outil | H14: Dernière mise à jour : | I14: =Données!$B$14 -> Version 10/2020_v01
D16: 1 - | E16: Définition de la localisation du projet
F17: Afin de déterminer le potentiel de votre projet.
D19: 2 - | E19: Définition des besoins ECS
F20: Pour une meilleure estimation des consommations journalières et optimiser l'autoconsommation.
D22: 3 - | E22: Sélection des postes consommateurs
F23: Définition de la présence de l'appareil et de la puissance de ce dernier.
F24: Définition du fonctionnement de chaque appareil sur l'année.
F25: Des fonctionnements standards sont disponibles. (Optimisé pour l'autoconsommation OU Fonctionnement HP/HC)
D27: 4 - | E27: Indication de la consommation électrique annuelle si connue (facture)
F28: Pour une comparaison facilitée avec les résultats estimés.
F29: Au-delà de 20% d'écart entre la consommation réelle et celle estimée, il est demandé de vérifier les paramètres.
D31: 5 - | E31: Sélection du système photovoltaïque
F32: Indication du nombre de panneaux, de l'orientation et de l'inclinaison.
F33: Prise en compte des paramètres orientation et inclinaison dans le calcul de la production.
F34: Information sur la prime à l'investissement, la surface et la puissance installée.
D36: 6 - | E36: Résultats
F37: Estimation des consommations (par poste consommateur, annuelle et mensuelles)
F38: Estimation de la production photovoltaïque (annuelle et mensuelles)
F39: Calcul du taux d'autoconsommation. (utilisation locale de la production)
F40: Calcul du taux indépendance énergétique.
F41: Affichage de l'apport du ballon électrique intelligent.
D43: 7 - | E43: Pistes d'améliorations - Pour de l'autoformation
F44: Explications sur ce qu'est une installation PV optimisée.
F45: Formation sur les leviers évidents pour optimiser son installation.
F46: Alerte sur les erreurs à ne pas commettre.
C49: Indication sur les puissances communes des appareillages :
D52: Les postes consommateurs : | I52: Observations | M52: Plage de puissance communes
E53: Générateur chauffage | I53: Indiquez la puissance utile dans le cas de radiateurs/convecteurs électriques. Indiquez la puissance absorbée dans le cas de systèmes thermodynamiques Puissance absorbée = Puissance utile / COP | M53: Voir plaquette signalétique COP moyen (+7°C/+35°C) = 4,0 à 5,0
E59: Générateur froid | I59: Indiquez la puissance absorbée dans le cas de systèmes thermodynamiques Puissance absorbée = Puissance utile / COP | M59: Voir plaquette signalétique EER moyen (+35°C/+18°C) = 3,5 à 4,5
E64: Chauffe-eau électrique intelligent PV-O | I64: Puissance de la résistance électrique. | M64: 2000 W
E66: Production ECS | I66: Puissance de la résistance électrique. Indiquez la puissance absorbée dans le cas de systèmes thermodynamiques Puissance absorbée = Puissance utile / COP | M66: Voir plaquette signalétique COP moyen (+7°C/+55°C) = 2,5 à 3,5
D72: Les postes consommateurs électroménagers :
E73: Réfrigérateur | I73: Réfrigérateur 50 L | M73: 50 à 200 W
I75: Réfrigérateur 200 L + Freezer | M75: 100 à 400 W
E77: Congélateur | I77: Puissance utile | M77: 50 à 400 W
E79: Lave linge | I79: Puissance utile | M79: 1200 à 2500 W
E81: Sèche linge | I81: Puissance utile | M81: 2000 à 4000 W
E83: Fer à repasser | I83: Puissance utile | M83: 700 à 1500 W
E85: Four / Plaques de cuisson | I85: Four seul | M85: 2000 à 3000 W
I87: Plaque électrique seule | M87: 1500 à 2500 W
E89: Lave vaisselle | I89: Puissance utile | M89: 700 à 1500 W
E91: Téléviseur / Ordinateur | I91: En fonctionnement | M91: 100 à 500 W
I93: En veille | M93: - de 10 W
E95: Autre équipement | I95: - | M95: -
D98: Les autres postes consommateurs :
E99: Piscine | I99: Puissance des pompes de filtration
I101: Piscine de 20m3 (diamètre = 4m) | M101: 200 à 300 W
I102: Piscine de 40m3 (L=8m ; l=4m) | M102: 350 à 450 W
I103: Piscine de 60m3 (L=10m ; l=5m) | M103: 500 à 600 W
E104: Ventilation | I104: Puissance du/des ventilateurs | M104: 50 à 200 W
B108: Les pistes d'améliorations
B110: Qu'est-ce qu'une installation photovoltaïque optimisée ?
C111: La part d'autoconsommation annuelle doit être proche de 100%.
D112: Plus cette valeur est élevée, moins d'électricité sera injectée sur le réseau.
C114: La part d'indépendance énergétique doit être la plus élevée possible.
D115: Plus cette valeur est élevée, moins la quantité d'électricité à acheter sera élevée.
D116: Ce pourcentage correspond à la réduction de votre facture d'électricité
D117: Exemple : | E117: Si Part d'indépendance énegétique = 20% alors vous achèterez 20% d'électricité en moins à votre fournisseur d'énergie.
B119: Les erreurs à ne pas commettre :
C121: Utiliser vos appareils électriques pendant la nuit.
D122: Vous aurez besoin d'électricité lorsque les panneaux n'en produisent pas !
D123: Vous devrez acheter de l'électrcité la nuit.
D124: Vous devrez injecter de l'électricité sur le réseau pendant la journée. (Consommations trop faibles en journée)
D126: Vos taux d'autoconsommation et d'indépendance énergétique seront dégradés.
C129: Augmenter le nombre de panneaux alors que la consommation est trop faible.
D130: L'investissement initial (achat et pose des panneaux) sera plus important.
D132: La part d'électricité injectée sur le réseau augmentera significativement. Vous ne profiterez pas de la production de vos panneaux.
B136: Comment optimiser son installation ?
C137: L'objectif est d'utiliser de l'électricité produite par les panneaux photovoltaïque pour tous vos appareils.
D139: L'inclinaison optimale des panneaux est 30°
D140: L'orientation optimale des panneaux est SUD
D142: Privilégier l'utilisation de vos appareils pendant la journée (machine à laver, sèche-linge, lave vaisselle,...)
D143: Si vous disposez d'un chauffage électrique ou d'une pompe à chaleur (chaud et/ou froid), programmez-les pour qu'ils fonctionnent la journée.
D145: Installez le chauffe eau intelligent Œtro PV. Sa régulation optimisée permet d'utiliser le surplus de production d'électrcité pour chauffer de l'ECS.
D146: Ainsi, toute l'électricité produite est utilisée sur site (% autoconsommation proche de 100%).
C149: Modifiez les plages de fonctionnement et testez plusieurs combinaisons d'appareils pour déterminer les meilleures configurations !

Sheet Données
H7: Dimensionnement de solutions photovoltaïques
D11: Références du projet
B14: Version 10/2020_v01 | M14: Date de l'étude : | N14: =TODAY() -> 2020-10-07
B15: Données géographiques
C17: Département de l'installation : | J17: Station correspondante :
C18: 1 - Ain | J18: =IFERROR(VLOOKUP($C$18,calc_données!$B$4:$C$99,2,FALSE),"") -> AMBERIEU
C20: Altitude :
C21: Entre 0 et 200 m
B22: Sélection des données ECS - Nécessaire pour l'optimisation de l'autoconsommation
C24: Production d'ECS électrique sur le site ? | J24: Nombre de personnes consommant de l'ECS :
C25: OUI | J25: 4
B27: Détermination des consommations du bâtiment
B29: 1. Indication des postes consommateurs :
C30: Renseignez les appareillages dont vous disposez et indiquez la puissance. Une indication des puissances disponibles sur le marché se trouve en notice.
C32: Machine | F32: Utilisé Non utilisé | G32: Puissance [W] | H32: Nombre d'heures de fonctionnement par jour | J32: Nombre de jours de fonctionnement par semaine | L32: Nombre de mois de fonctionnement sur l'année
C33: Les postes consommateurs : | H33: ?
C34: Générateur chauffage électrique | F34: OUI | G34: 3000 | H34: ='Conso-bat'!$AM$20 -> 8 | J34: =calc_conso!H24 -> 7 | L34: =calc_conso!H37 -> 7
C35: Générateur froid | F35: OUI | G35: 2000 | H35: ='Conso-bat'!$AN$20 -> 8 | J35: =calc_conso!I24 -> 7 | L35: =calc_conso!I37 -> 3
B36: Nouveauté | C36: Chauffe-eau électrique intelligent Oetro-PV | F36: OUI | G36: 2000 | H36: ='Conso-bat'!$AO$20 -> 12 | J36: =calc_conso!J24 -> 7 | L36: =calc_conso!J37 -> 12
C37: Production ECS électrique | F37: NON | G37: 2400 | H37: ='Conso-bat'!$AP$20 -> 24 | J37: =calc_conso!K24 -> 7 | L37: =calc_conso!K37 -> 12
C38: Les postes consommateurs électroménagers : | H38: ?
C39: Réfrigérateur | F39: OUI | G39: 150 | H39: ='Conso-bat'!$AS$20 -> 24 | J39: =calc_conso!N24 -> 7 | L39: =calc_conso!N37 -> 12
C40: Congélateur | F40: NON | G40: 100 | H40: ='Conso-bat'!$AT$20 -> 24 | J40: =calc_conso!O24 -> 7 | L40: =calc_conso!O37 -> 12
C41: Lave linge | F41: OUI | G41: 1500 | H41: ='Conso-bat'!$AU$20 -> 2 | J41: =calc_conso!P24 -> 1 | L41: =calc_conso!P37 -> 12
C42: Sèche linge | F42: NON | G42: 2000 | H42: ='Conso-bat'!$AV$20 -> 2 | J42: =calc_conso!Q24 -> 1 | L42: =calc_conso!Q37 -> 12
C43: Fer à repasser | F43: OUI | G43: 1000 | H43: ='Conso-bat'!$AW$20 -> 2 | J43: =calc_conso!R24 -> 1 | L43: =calc_conso!R37 -> 12
C44: Four / Plaques de cuisson | F44: OUI | G44: 1500 | H44: ='Conso-bat'!$AX$20 -> 2 | J44: =calc_conso!S24 -> 7 | L44: =calc_conso!S37 -> 12
C45: Lave vaisselle | F45: OUI | G45: 850 | H45: ='Conso-bat'!$AY$20 -> 2 | J45: =calc_conso!T24 -> 4 | L45: =calc_conso!T37 -> 12
C46: Téléviseur / Ordinateur | F46: OUI | G46: 100 | H46: ='Conso-bat'!$AZ$20 -> 4 | J46: =calc_conso!U24 -> 7 | L46: =calc_conso!U37 -> 12
C47: Voiture électrique / Autre équipement | F47: NON | H47: ='Conso-bat'!$BA$20 -> - | J47: =calc_conso!V24 -> 0 | L47: =calc_conso!V37 -> 0
C48: Les autres postes consommateurs :
C49: Piscine | F49: NON | G49: 200 | H49: ='Conso-bat'!$AQ$20 -> 24 | J49: =calc_conso!L24 -> 7 | L49: =calc_conso!L37 -> 3
C50: Ventilation | F50: NON | G50: 50 | H50: ='Conso-bat'!$AR$20 -> 24 | J50: =calc_conso!M24 -> 7 | L50: =calc_conso!M37 -> 12
C53: =IF(AND($C$25=calc_données!$N$5,OR(Données!$F$36=calc_données!$L$4,Données!$F$37=calc_données!$L$4)),"Attention! Vous avez sélectionné une production d'ECS alors que vous n'avez aucun besoin ECS ! Veuillez corriger !",IF(AND(Données!$F$36=calc_données!$L$4,Données!$F$37=calc_données!$L$4),"Attention! Vous avez sélectionné 2 méthodes de production ECS ! Veuillez n'en sélectionnez qu'une seule.",IF(AND($C$25=calc_données!$N$4,AND(Données!$F$36=calc_données!$L$5,Données!$F$37=calc_données!$L$5)),"Attention ! Vous n'avez pas sélectionné de production d'ECS ! Veuillez choisir une des 2 méthodes proposées.",""))) -> 
B57: 2. Indication de la consommation annuelle réelle - Si vous sélectionnez OUI, la valeur indiquée sera retenue comme étant la consommation électrique annuelle :
C59: Connaissez vous la consommation électrique annuelle réelle? | J59: Entrez la consommation électrique annuelle [kWh]
C60: NON | J60: 8000
J61: =IF($C$60=calc_données!$N$4,IF($J$60="","Entrez une consommation !",""),"") -> 
B63: 3. Indication des plages et des durées de fonctionnement :
C64: Cliquez sur le bouton pour renseigner les plages et durées de fonctionnement de vos équipements.
B69: Sélection du système photovoltaïque
C72: Informations sur les panneaux disponibles
E75: Nom : | G75: CAPTEUR PV-SYS 300 FB
F77: Unité : | G77: STC (1) | I77: NOCT (2)
E78: Puissance crête max : | F78: Wc | G78: 300 | I78: 214
E79: Tension à puissance max VMP : | F79: V | G79: 32.24 | I79: 30.88
E80: Intensité à puissance max IMPP : | F80: A | G80: 8.66 | I80: 7.07
E81: Tension de circuit ouvert VOC : | F81: V | G81: 39.48 | I81: 36.68
E82: Intensité de court-circuit ISC : | F82: A | G82: 9.18 | I82: 7.34
E83: Rendement du module : | F83: % | G83: 0.184 | I83: -
E84: Température nominale cellule : | F84: °C | G84: 47
E85: Surface d'un module : | F85: m² | G85: 1.69
E86: Poids : | F86: kg | G86: 17.8
E87: (1) STC : irradiation 1000 W/m², température cellule = 25°C, AM = 1,5 (masse d'air selon norme EN 60904-3)
E88: (2) NOCT : irradiation 800 W/m², température extérieure = 20°C, vitesse du vent = 1 m/s
G92: Nombre de panneaux PV-SYS 300 FB :
G93: 10
C95: Prime à l'investissement : | G95: Surface équivalente : | K95: Puissance crête équivalente :
C96: =IF($G$93*$G$78<=3000,0.39*$G$93*$G$78,0.29*$G$93*$G$78) -> 1170 | G96: =CONCATENATE($G$93*$G$85," m²") -> 16,9 m² | K96: =CONCATENATE($G$93*$G$78," Wc") -> 3000 Wc
G98: Inclinaison [°] :
G99: 35
G101: Orientation : | L101: =IF($G$93*$G$78>3000,"Vous sortez des déclarations simplifiées !","") -> 
G102: Sud - Ouest
D105: Taux annuel d'autoconsommation : | J105: Taux annuel d'indépendance énergétique :
D106: =$J$224 -> 0.8245822845 | J106: =$J$244 -> 0.3720290923
B108: Résultats de l'étude
B110: 1 - Bilan des consommations d'électricité
C112: Postes consommateurs | G112: Consommation annuelle [kWh] | K112: Part annuelle [%]
C113: Générateur chauffage électrique | G113: =calc_conso!BZ13 -> 1526.4 | K113: =calc_conso!CA13 -> 0.2173832548
C114: Générateur froid | G114: =calc_conso!BZ14 -> 441.6 | K114: =calc_conso!CA14 -> 0.06289075295
C115: Chauffe-eau électrique intelligent Oetro-PV | G115: =calc_conso!BZ15 -> 2540.4 | K115: =calc_conso!CA15 -> 0.3617927283
C116: Production ECS électrique | G116: =calc_conso!BZ16 -> 0 | K116: =calc_conso!CA16 -> 0
C118: Réfrigérateur | G118: =calc_conso!BZ21 -> 657 | K118: =calc_conso!CA21 -> 0.09356708489
C119: Congélateur | G119: =calc_conso!BZ22 -> 0 | K119: =calc_conso!CA22 -> 0
C120: Lave linge | G120: =calc_conso!BZ23 -> 156 | K120: =calc_conso!CA23 -> 0.02221684208
C121: Sèche linge | G121: =calc_conso!BZ24 -> 0 | K121: =calc_conso!CA24 -> 0
C122: Fer à repasser | G122: =calc_conso!BZ25 -> 104 | K122: =calc_conso!CA25 -> 0.01481122805
C123: Four / Plaques de cuisson | G123: =calc_conso!BZ26 -> 1095 | K123: =calc_conso!CA26 -> 0.1559451415
C124: Lave vaisselle | G124: =calc_conso!BZ27 -> 355.3 | K124: =calc_conso!CA27 -> 0.05060028198
C125: Téléviseur / Ordinateur | G125: =calc_conso!BZ28 -> 146 | K125: =calc_conso!CA28 -> 0.02079268553
C126: Autre équipement | G126: =calc_conso!BZ29 -> 0 | K126: =calc_conso!CA29 -> 0
C128: Piscine | G128: =calc_conso!BZ18 -> 0 | K128: =calc_conso!CA18 -> 0
C129: Ventilation | G129: =calc_conso!BZ19 -> 0 | K129: =calc_conso!CA19 -> 0
C130: Total | G130: =CONCATENATE(ROUND(SUM($G$113:$J$129),0)," kWh") -> 7022 kWh | K130: =SUM($K$113:$M$129) -> 1
H153: Consommation annuelle calculée : | I153: =calc_conso!$BF$25 -> 7021.7 | J153: kWh
F155: =IF($C$60=calc_données!$N$4,"Ecart avec la consommation réelle :","") ->  | I155: =IF($C$60=calc_données!$N$4,ABS(I153-J60),"") ->  | J155: =IF($C$60=calc_données!$N$4,"kWh","") ->  | K155: =IF($C$60=calc_données!$N$4,CONCATENATE("soit : ",ROUND($I$155/$I$153*100,1)," %"),"") -> 
B156: =IF($C$60=calc_données!$N$4,IF(ROUND($I$155/$I$153*100,1)>20,"Attention, l'écart entre la consommation électrique calculée et réelle est grand ! Vérifiez à nouveau les puissances et les plages de fonctionnement de vos appareils !",""),"") -> 
B159: 2 - Production de l'installation photovoltaïque
H180: Production annuelle : | I180: =calc_conso!$BG$25 -> 3168 | J180: kWh
B183: 3 - Bilan annuel
I224: Part d'autoconsommation annuelle : | J224: =calc_conso!$BJ$25 -> 0.8245822845 | M224: ?
I244: Part d'indépendance énergétique annuelle : | J244: =calc_conso!$BK$25 -> 0.3720290923 | M244: ?
B249: Ce qu'apporte le Oetro-PV
G250: Hypothèses de calcul :
J251: Nombre de personnes : | K251: =$J$25 -> 4
J252: Volume d'eau à 60°C par personne : | K252: 30L / jour
J253: Température eau froide : | K253: 10°C
J254: Température stockage : | K254: 60°C
J255: Energie nécessaire (annuelle) : | K255: =CONCATENATE(ROUND(calc_conso!$AG$37,0)," kWh") -> 2542 kWh
K256: =ROUND(calc_conso!$AG$37,0) -> 2542
G257: Bilan du Oetro-PV
J258: Surplus de production injecté dans le Œtro PV : | K258: =CONCATENATE(ROUND(SUM(calc_conso!$BZ$41:$BZ$8800),0)," kWh") -> 1280 kWh
K259: =ROUND(SUM(calc_conso!$BZ$41:$BZ$8800),0) -> 1280
F260: ECS produit grâce au surplus photovoltaïque
F262: =K259/K256 -> 0.5035405193 | G262: Part d'ECS produit par le surplus photovoltaïque injecté dans le ballon.
G263: =CONCATENATE(ROUND($F$262*100,0),"% de votre ECS annuelle est couverte gratuitement par une énergie renouvelable PV.") -> 50% de votre ECS annuelle est couverte gratuitement par une énergie renouvelable PV.
F265: Optimisation du taux d'autoconsommation
F267: =$K$259/$I$180 -> 0.404040404 | G267: =CONCATENATE("Votre taux d'autoconsommation est boosté de ",ROUND($F$267,3)*100," % grâce au Oetro-PV.") -> Votre taux d'autoconsommation est boosté de 40,4 % grâce au Oetro-PV.
G268: =CONCATENATE("Sans le Oetro-PV, votre taux d'autoconsommation serait de ",ROUND(D106-F267,3)*100,"% au lieu de ",ROUND(D106,3)*100," %.") -> Sans le Oetro-PV, votre taux d'autoconsommation serait de 42,1% au lieu de 82,5 %.
B272: Les résultats de cette feuille de calcul sont donnés à titre indicatif. La responsabilité de OERTLI ne peut en aucun cas être engagée.
B273: Les consommations sont estimées en tenant compte des choix pris par l'utilisateur et des données climatiques de la station de référence prise en compte.
B274: Dans tous les cas, cette simulation n'est qu'une estimation sommaire.

Sheet Conso-bat
D2: Détermination des plages de fonctionnement des appareils | K2: Renseignez les cellules concernées avec un caractère quelconque pour valider vos plages de fonctionnement. Ex: x
W3: TEST POUR MFC
K4: ATTENTION ! Action irréversible
E5: Fonctionnement non modifiable! | J5: Utilisez les fonctionnements standards : | W5: =IF(Données!$F34="OUI",1,0) -> 1 | X5: =IF(Données!$F35="OUI",1,0) -> 1 | Y5: =IF(Données!$F36="OUI",1,0) -> 1 | Z5: =IF(Données!$F37="OUI",1,0) -> 0 | AA5: =IF(Données!$F49="OUI",1,0) -> 0 | AB5: =IF(Données!$F50="OUI",1,0) -> 0 | AC5: =IF(Données!$F39="OUI",1,0) -> 1 | AD5: =IF(Données!$F40="OUI",1,0) -> 0 | AE5: =IF(Données!$F41="OUI",1,0) -> 1 | AF5: =IF(Données!$F42="OUI",1,0) -> 0 | AG5: =IF(Données!$F43="OUI",1,0) -> 1 | AH5: =IF(Données!$F44="OUI",1,0) -> 1 | AI5: =IF(Données!$F45="OUI",1,0) -> 1 | AJ5: =IF(Données!$F46="OUI",1,0) -> 1 | AK5: =IF(Données!$F47="OUI",1,0) -> 0 | AM5: Fonctionnement équipements
E6: Régulation intégrée dans le ŒTRO-PV
D7: Générateur chauffage | E7: Générateur froid | F7: Chauffe-eau électrique intelligent : ŒTRO-PV | G7: Production ECS | I7: Réfrigérateur | J7: Congélateur | K7: Lave linge | L7: Sèche linge | M7: Fer à repasser | N7: Four / Plaques de cuisson | O7: Lave vaisselle | P7: Téléviseur / Ordinateur | Q7: Autre équipement | S7: Piscine | T7: Ventilation | W7: 1 | X7: 2 | Y7: 3 | Z7: 4 | AA7: 5 | AB7: 6 | AC7: 7 | AD7: 8 | AE7: 9 | AF7: 10 | AG7: 11 | AH7: 12 | AI7: 13 | AJ7: 14 | AK7: 15 | AM7: Générateur chauffage | AN7: Générateur froid | AO7: Chauffe-eau électrique intelligent : PV-O | AP7: CEE / CETD | AQ7: Piscine | AR7: Ventilation | AS7: Réfrigérateur | AT7: Congélateur | AU7: Lave linge | AV7: Sèche linge | AW7: Fer à repasser | AX7: Four / Plaques de cuisson | AY7: Lave vaisselle | AZ7: Téléviseur / Ordinateur | BA7: Autre équipement
B8: Horaires | C8: 6h-8h | D8: x | G8: x | I8: x | J8: x | S8: x | T8: x | W8: =IF(D8<>"",1,0) -> 1 | X8: =IF(E8<>"",1,0) -> 0 | Y8: =IF(F8<>"",1,0) -> 0 | Z8: =IF(G8<>"",1,0) -> 1 | AA8: =IF(S8<>"",1,0) -> 1 | AB8: =IF(T8<>"",1,0) -> 1 | AC8: =IF(I8<>"",1,0) -> 1 | AD8: =IF(J8<>"",1,0) -> 1 | AE8: =IF(K8<>"",1,0) -> 0 | AF8: =IF(L8<>"",1,0) -> 0 | AG8: =IF(M8<>"",1,0) -> 0 | AH8: =IF(N8<>"",1,0) -> 0 | AI8: =IF(O8<>"",1,0) -> 0 | AJ8: =IF(P8<>"",1,0) -> 0 | AK8: =IF(Q8<>"",1,0) -> 0 | AM8: =IF(D8="",0,2) -> 2 | AN8: =IF(E8="",0,2) -> 0 | AO8: =IF(F8="",0,2) -> 0 | AP8: =IF(G8="",0,2) -> 2 | AQ8: =IF(S8="",0,2) -> 2 | AR8: =IF(T8="",0,2) -> 2 | AS8: =IF(I8="",0,2) -> 2 | AT8: =IF(J8="",0,2) -> 2 | AU8: =IF(K8="",0,2) -> 0 | AV8: =IF(L8="",0,2) -> 0 | AW8: =IF(M8="",0,2) -> 0 | AX8: =IF(N8="",0,2) -> 0 | AY8: =IF(O8="",0,2) -> 0 | AZ8: =IF(P8="",0,2) -> 0 | BA8: =IF(Q8="",0,2) -> 0
C9: 8h-10h | F9: x | G9: x | I9: x | J9: x | S9: x | T9: x | W9: 0 | X9: 0 | Y9: 1 | Z9: 1 | AA9: 1 | AB9: 1 | AC9: 1 | AD9: 1 | AE9: 0 | AF9: 0 | AG9: 0 | AH9: 0 | AI9: 0 | AJ9: 0 | AK9: 0 | AM9: 0 | AN9: 0 | AO9: 2 | AP9: 2 | AQ9: 2 | AR9: 2 | AS9: 2 | AT9: 2 | AU9: 0 | AV9: 0 | AW9: 0 | AX9: 0 | AY9: 0 | AZ9: 0 | BA9: 0
C10: 10h-12h | F10: x | G10: x | I10: x | J10: x | S10: x | T10: x | W10: 0 | X10: 0 | Y10: 1 | Z10: 1 | AA10: 1 | AB10: 1 | AC10: 1 | AD10: 1 | AE10: 0 | AF10: 0 | AG10: 0 | AH10: 0 | AI10: 0 | AJ10: 0 | AK10: 0 | AM10: 0 | AN10: 0 | AO10: 2 | AP10: 2 | AQ10: 2 | AR10: 2 | AS10: 2 | AT10: 2 | AU10: 0 | AV10: 0 | AW10: 0 | AX10: 0 | AY10: 0 | AZ10: 0 | BA10: 0
C11: 12h-14h | F11: x | G11: x | I11: x | J11: x | O11: x | S11: x | T11: x | W11: 0 | X11: 0 | Y11: 1 | Z11: 1 | AA11: 1 | AB11: 1 | AC11: 1 | AD11: 1 | AE11: 0 | AF11: 0 | AG11: 0 | AH11: 0 | AI11: 1 | AJ11: 0 | AK11: 0 | AM11: 0 | AN11: 0 | AO11: 2 | AP11: 2 | AQ11: 2 | AR11: 2 | AS11: 2 | AT11: 2 | AU11: 0 | AV11: 0 | AW11: 0 | AX11: 0 | AY11: 2 | AZ11: 0 | BA11: 0
C12: 14h-16h | E12: x | F12: x | G12: x | I12: x | J12: x | K12: x | S12: x | T12: x | W12: 0 | X12: 1 | Y12: 1 | Z12: 1 | AA12: 1 | AB12: 1 | AC12: 1 | AD12: 1 | AE12: 1 | AF12: 0 | AG12: 0 | AH12: 0 | AI12: 0 | AJ12: 0 | AK12: 0 | AM12: 0 | AN12: 2 | AO12: 2 | AP12: 2 | AQ12: 2 | AR12: 2 | AS12: 2 | AT12: 2 | AU12: 2 | AV12: 0 | AW12: 0 | AX12: 0 | AY12: 0 | AZ12: 0 | BA12: 0
C13: 16h-18h | D13: x | E13: x | F13: x | G13: x | I13: x | J13: x | L13: x | M13: x | S13: x | T13: x | W13: 1 | X13: 1 | Y13: 1 | Z13: 1 | AA13: 1 | AB13: 1 | AC13: 1 | AD13: 1 | AE13: 0 | AF13: 1 | AG13: 1 | AH13: 0 | AI13: 0 | AJ13: 0 | AK13: 0 | AM13: 2 | AN13: 2 | AO13: 2 | AP13: 2 | AQ13: 2 | AR13: 2 | AS13: 2 | AT13: 2 | AU13: 0 | AV13: 2 | AW13: 2 | AX13: 0 | AY13: 0 | AZ13: 0 | BA13: 0
C14: 18h-20h | D14: x | E14: x | F14: x | G14: x | I14: x | J14: x | N14: x | S14: x | T14: x | W14: 1 | X14: 1 | Y14: 1 | Z14: 1 | AA14: 1 | AB14: 1 | AC14: 1 | AD14: 1 | AE14: 0 | AF14: 0 | AG14: 0 | AH14: 1 | AI14: 0 | AJ14: 0 | AK14: 0 | AM14: 2 | AN14: 2 | AO14: 2 | AP14: 2 | AQ14: 2 | AR14: 2 | AS14: 2 | AT14: 2 | AU14: 0 | AV14: 0 | AW14: 0 | AX14: 2 | AY14: 0 | AZ14: 0 | BA14: 0
C15: 20h-22h | D15: x | E15: x | G15: x | I15: x | J15: x | P15: x | S15: x | T15: x | W15: 1 | X15: 1 | Y15: 0 | Z15: 1 | AA15: 1 | AB15: 1 | AC15: 1 | AD15: 1 | AE15: 0 | AF15: 0 | AG15: 0 | AH15: 0 | AI15: 0 | AJ15: 1 | AK15: 0 | AM15: 2 | AN15: 2 | AO15: 0 | AP15: 2 | AQ15: 2 | AR15: 2 | AS15: 2 | AT15: 2 | AU15: 0 | AV15: 0 | AW15: 0 | AX15: 0 | AY15: 0 | AZ15: 2 | BA15: 0
C16: Nuit (22h-0h) | G16: x | I16: x | J16: x | P16: x | S16: x | T16: x | W16: 0 | X16: 0 | Y16: 0 | Z16: 1 | AA16: 1 | AB16: 1 | AC16: 1 | AD16: 1 | AE16: 0 | AF16: 0 | AG16: 0 | AH16: 0 | AI16: 0 | AJ16: 1 | AK16: 0 | AM16: 0 | AN16: 0 | AO16: 0 | AP16: 2 | AQ16: 2 | AR16: 2 | AS16: 2 | AT16: 2 | AU16: 0 | AV16: 0 | AW16: 0 | AX16: 0 | AY16: 0 | AZ16: 2 | BA16: 0
C17: Nuit (0h-2h) | G17: x | I17: x | J17: x | S17: x | T17: x | W17: 0 | X17: 0 | Y17: 0 | Z17: 1 | AA17: 1 | AB17: 1 | AC17: 1 | AD17: 1 | AE17: 0 | AF17: 0 | AG17: 0 | AH17: 0 | AI17: 0 | AJ17: 0 | AK17: 0 | AM17: 0 | AN17: 0 | AO17: 0 | AP17: 2 | AQ17: 2 | AR17: 2 | AS17: 2 | AT17: 2 | AU17: 0 | AV17: 0 | AW17: 0 | AX17: 0 | AY17: 0 | AZ17: 0 | BA17: 0
C18: Nuit (2h-4h) | G18: x | I18: x | J18: x | S18: x | T18: x | W18: 0 | X18: 0 | Y18: 0 | Z18: 1 | AA18: 1 | AB18: 1 | AC18: 1 | AD18: 1 | AE18: 0 | AF18: 0 | AG18: 0 | AH18: 0 | AI18: 0 | AJ18: 0 | AK18: 0 | AM18: 0 | AN18: 0 | AO18: 0 | AP18: 2 | AQ18: 2 | AR18: 2 | AS18: 2 | AT18: 2 | AU18: 0 | AV18: 0 | AW18: 0 | AX18: 0 | AY18: 0 | AZ18: 0 | BA18: 0
C19: Nuit (4h-6h) | G19: x | I19: x | J19: x | S19: x | T19: x | W19: 0 | X19: 0 | Y19: 0 | Z19: 1 | AA19: 1 | AB19: 1 | AC19: 1 | AD19: 1 | AE19: 0 | AF19: 0 | AG19: 0 | AH19: 0 | AI19: 0 | AJ19: 0 | AK19: 0 | AM19: 0 | AN19: 0 | AO19: 0 | AP19: 2 | AQ19: 2 | AR19: 2 | AS19: 2 | AT19: 2 | AU19: 0 | AV19: 0 | AW19: 0 | AX19: 0 | AY19: 0 | AZ19: 0 | BA19: 0
AH20: =IF(N20<>"",1,0) -> 0 | AM20: =IF(SUM(AM8:AM19)=0,"-",SUM(AM8:AM19)) -> 8 | AN20: 8 | AO20: 12 | AP20: 24 | AQ20: 24 | AR20: 24 | AS20: 24 | AT20: 24 | AU20: 2 | AV20: 2 | AW20: 2 | AX20: 2 | AY20: 2 | AZ20: 4 | BA20: -
B22: Jours | C22: Lundi | D22: x | E22: x | F22: x | G22: x | I22: x | J22: x | N22: x | O22: x | P22: x | S22: x | T22: x | W22: =IF(D22<>"",1,0) -> 1 | X22: 1 | Y22: 1 | Z22: 1 | AA22: =IF(S22<>"",1,0) -> 1 | AB22: 1 | AC22: =IF(I22<>"",1,0) -> 1 | AD22: 1 | AE22: 0 | AF22: 0 | AG22: 0 | AH22: 1 | AI22: 1 | AJ22: 1 | AK22: 0
C23: Mardi | D23: x | E23: x | F23: x | G23: x | I23: x | J23: x | N23: x | P23: x | S23: x | T23: x | W23: 1 | X23: 1 | Y23: 1 | Z23: 1 | AA23: 1 | AB23: 1 | AC23: 1 | AD23: 1 | AE23: 0 | AF23: 0 | AG23: 0 | AH23: 1 | AI23: 0 | AJ23: 1 | AK23: 0
C24: Mercredi | D24: x | E24: x | F24: x | G24: x | I24: x | J24: x | N24: x | O24: x | P24: x | S24: x | T24: x | W24: 1 | X24: 1 | Y24: 1 | Z24: 1 | AA24: 1 | AB24: 1 | AC24: 1 | AD24: 1 | AE24: 0 | AF24: 0 | AG24: 0 | AH24: 1 | AI24: 1 | AJ24: 1 | AK24: 0
C25: Jeudi | D25: x | E25: x | F25: x | G25: x | I25: x | J25: x | N25: x | P25: x | S25: x | T25: x | W25: 1 | X25: 1 | Y25: 1 | Z25: 1 | AA25: 1 | AB25: 1 | AC25: 1 | AD25: 1 | AE25: 0 | AF25: 0 | AG25: 0 | AH25: 1 | AI25: 0 | AJ25: 1 | AK25: 0
C26: Vendredi | D26: x | E26: x | F26: x | G26: x | I26: x | J26: x | N26: x | O26: x | P26: x | S26: x | T26: x | W26: 1 | X26: 1 | Y26: 1 | Z26: 1 | AA26: 1 | AB26: 1 | AC26: 1 | AD26: 1 | AE26: 0 | AF26: 0 | AG26: 0 | AH26: 1 | AI26: 1 | AJ26: 1 | AK26: 0
C27: Samedi | D27: x | E27: x | F27: x | G27: x | I27: x | J27: x | N27: x | P27: x | S27: x | T27: x | W27: 1 | X27: 1 | Y27: 1 | Z27: 1 | AA27: 1 | AB27: 1 | AC27: 1 | AD27: 1 | AE27: 0 | AF27: 0 | AG27: 0 | AH27: 1 | AI27: 0 | AJ27: 1 | AK27: 0
C28: Dimanche | D28: x | E28: x | F28: x | G28: x | I28: x | J28: x | K28: x | L28: x | M28: x | N28: x | O28: x | P28: x | S28: x | T28: x | W28: 1 | X28: 1 | Y28: 1 | Z28: 1 | AA28: 1 | AB28: 1 | AC28: 1 | AD28: 1 | AE28: 1 | AF28: 1 | AG28: 1 | AH28: 1 | AI28: 1 | AJ28: 1 | AK28: 0
AH29: =IF(N29<>"",1,0) -> 0
AH30: 0
B31: Mois | C31: Janvier | D31: x | F31: x | G31: x | I31: x | J31: x | K31: x | L31: x | M31: x | N31: x | O31: x | P31: x | T31: x | W31: =IF(D31<>"",1,0) -> 1 | X31: =IF(E31<>"",1,0) -> 0 | Y31: =IF(F31<>"",1,0) -> 1 | Z31: =IF(G31<>"",1,0) -> 1 | AA31: =IF(S31<>"",1,0) -> 0 | AB31: =IF(T31<>"",1,0) -> 1 | AC31: =IF(I31<>"",1,0) -> 1 | AD31: =IF(J31<>"",1,0) -> 1 | AE31: =IF(K31<>"",1,0) -> 1 | AF31: =IF(L31<>"",1,0) -> 1 | AG31: =IF(M31<>"",1,0) -> 1 | AH31: 1 | AI31: =IF(O31<>"",1,0) -> 1 | AJ31: =IF(P31<>"",1,0) -> 1 | AK31: =IF(Q31<>"",1,0) -> 0
C32: Février | D32: x | F32: x | G32: x | I32: x | J32: x | K32: x | L32: x | M32: x | N32: x | O32: x | P32: x | T32: x | W32: 1 | X32: 0 | Y32: 1 | Z32: 1 | AA32: 0 | AB32: 1 | AC32: 1 | AD32: 1 | AE32: 1 | AF32: 1 | AG32: 1 | AH32: 1 | AI32: 1 | AJ32: 1 | AK32: 0
C33: Mars | D33: x | F33: x | G33: x | I33: x | J33: x | K33: x | L33: x | M33: x | N33: x | O33: x | P33: x | T33: x | W33: 1 | X33: 0 | Y33: 1 | Z33: 1 | AA33: 0 | AB33: 1 | AC33: 1 | AD33: 1 | AE33: 1 | AF33: 1 | AG33: 1 | AH33: 1 | AI33: 1 | AJ33: 1 | AK33: 0
C34: Avril | D34: x | F34: x | G34: x | I34: x | J34: x | K34: x | L34: x | M34: x | N34: x | O34: x | P34: x | T34: x | W34: 1 | X34: 0 | Y34: 1 | Z34: 1 | AA34: 0 | AB34: 1 | AC34: 1 | AD34: 1 | AE34: 1 | AF34: 1 | AG34: 1 | AH34: 1 | AI34: 1 | AJ34: 1 | AK34: 0
C35: Mai | F35: x | G35: x | I35: x | J35: x | K35: x | L35: x | M35: x | N35: x | O35: x | P35: x | T35: x | W35: 0 | X35: 0 | Y35: 1 | Z35: 1 | AA35: 0 | AB35: 1 | AC35: 1 | AD35: 1 | AE35: 1 | AF35: 1 | AG35: 1 | AH35: 1 | AI35: 1 | AJ35: 1 | AK35: 0
C36: Juin | E36: x | F36: x | G36: x | I36: x | J36: x | K36: x | L36: x | M36: x | N36: x | O36: x | P36: x | S36: x | T36: x | W36: 0 | X36: 1 | Y36: 1 | Z36: 1 | AA36: 1 | AB36: 1 | AC36: 1 | AD36: 1 | AE36: 1 | AF36: 1 | AG36: 1 | AH36: 1 | AI36: 1 | AJ36: 1 | AK36: 0
C37: Juillet | E37: x | F37: x | G37: x | I37: x | J37: x | K37: x | L37: x | M37: x | N37: x | O37: x | P37: x | S37: x | T37: x | W37: 0 | X37: 1 | Y37: 1 | Z37: 1 | AA37: 1 | AB37: 1 | AC37: 1 | AD37: 1 | AE37: 1 | AF37: 1 | AG37: 1 | AH37: 1 | AI37: 1 | AJ37: 1 | AK37: 0
C38: Août | E38: x | F38: x | G38: x | I38: x | J38: x | K38: x | L38: x | M38: x | N38: x | O38: x | P38: x | S38: x | T38: x | W38: 0 | X38: 1 | Y38: 1 | Z38: 1 | AA38: 1 | AB38: 1 | AC38: 1 | AD38: 1 | AE38: 1 | AF38: 1 | AG38: 1 | AH38: 1 | AI38: 1 | AJ38: 1 | AK38: 0
C39: Septembre | F39: x | G39: x | I39: x | J39: x | K39: x | L39: x | M39: x | N39: x | O39: x | P39: x | T39: x | W39: 0 | X39: 0 | Y39: 1 | Z39: 1 | AA39: 0 | AB39: 1 | AC39: 1 | AD39: 1 | AE39: 1 | AF39: 1 | AG39: 1 | AH39: 1 | AI39: 1 | AJ39: 1 | AK39: 0
C40: Octobre | D40: x | F40: x | G40: x | I40: x | J40: x | K40: x | L40: x | M40: x | N40: x | O40: x | P40: x | T40: x | W40: 1 | X40: 0 | Y40: 1 | Z40: 1 | AA40: 0 | AB40: 1 | AC40: 1 | AD40: 1 | AE40: 1 | AF40: 1 | AG40: 1 | AH40: 1 | AI40: 1 | AJ40: 1 | AK40: 0
C41: Novembre | D41: x | F41: x | G41: x | I41: x | J41: x | K41: x | L41: x | M41: x | N41: x | O41: x | P41: x | T41: x | W41: 1 | X41: 0 | Y41: 1 | Z41: 1 | AA41: 0 | AB41: 1 | AC41: 1 | AD41: 1 | AE41: 1 | AF41: 1 | AG41: 1 | AH41: 1 | AI41: 1 | AJ41: 1 | AK41: 0
C42: Décembre | D42: x | F42: x | G42: x | I42: x | J42: x | K42: x | L42: x | M42: x | N42: x | O42: x | P42: x | T42: x | W42: 1 | X42: 0 | Y42: 1 | Z42: 1 | AA42: 0 | AB42: 1 | AC42: 1 | AD42: 1 | AE42: 1 | AF42: 1 | AG42: 1 | AH42: 1 | AI42: 1 | AJ42: 1 | AK42: 0

Sheet calc_conso (hidden)
H2: Générateur chauffage | I2: Générateur froid | J2: Chauffe-eau électrique intelligent : PV-O | K2: CEE / CETD | L2: Piscine | M2: Ventilation | N2: Réfrigérateur | O2: Congélateur | P2: Lave linge | Q2: Sèche linge | R2: Fer à repasser | S2: Four / Plaques de cuisson | T2: Lave vaisselle | U2: Téléviseur / Ordinateur | V2: Autre équipement | AA2: Générateur chauffage | AB2: Générateur froid | AC2: Chauffe-eau électrique intelligent : PV-O | AD2: CEE / CETD | AE2: Piscine | AF2: Ventilation | AG2: Réfrigérateur | AH2: Congélateur | AI2: Lave linge | AJ2: Sèche linge | AK2: Fer à repasser | AL2: Four / Plaques de cuisson | AM2: Lave vaisselle | AN2: Téléviseur / Ordinateur | AO2: Autre équipement
H3: On/off sur la plage horaire | Z3: 6 | AA3: =H4 -> 1 | AB3: 0 | AC3: 0 | AD3: 1 | AE3: 1 | AF3: 1 | AG3: 1 | AH3: 1 | AI3: 0 | AJ3: 0 | AK3: 0 | AL3: 0 | AM3: 0 | AN3: 0 | AO3: 0 | AY3: position à éviter si elle n'est pas imposée par une intégration architecturale
F4: 6h-8h | H4: =IF('Conso-bat'!AM8=0,0,1) -> 1 | I4: =IF('Conso-bat'!AN8=0,0,1) -> 0 | J4: =IF('Conso-bat'!AO8=0,0,1) -> 0 | K4: =IF('Conso-bat'!AP8=0,0,1) -> 1 | L4: =IF('Conso-bat'!AQ8=0,0,1) -> 1 | M4: =IF('Conso-bat'!AR8=0,0,1) -> 1 | N4: =IF('Conso-bat'!AS8=0,0,1) -> 1 | O4: =IF('Conso-bat'!AT8=0,0,1) -> 1 | P4: =IF('Conso-bat'!AU8=0,0,1) -> 0 | Q4: =IF('Conso-bat'!AV8=0,0,1) -> 0 | R4: =IF('Conso-bat'!AW8=0,0,1) -> 0 | S4: =IF('Conso-bat'!AX8=0,0,1) -> 0 | T4: =IF('Conso-bat'!AY8=0,0,1) -> 0 | U4: =IF('Conso-bat'!AZ8=0,0,1) -> 0 | V4: =IF('Conso-bat'!BA8=0,0,1) -> 0 | Y4: Pareil | Z4: 7 | AA4: =AA3 -> 1 | AB4: =AB3 -> 0 | AC4: 0 | AD4: 1 | AE4: 1 | AF4: 1 | AG4: 1 | AH4: 1 | AI4: 0 | AJ4: 0 | AK4: 0 | AL4: 0 | AM4: 0 | AN4: 0 | AO4: 0
F5: 8h-10h | H5: =IF('Conso-bat'!AM9=0,0,1) -> 0 | I5: =IF('Conso-bat'!AN9=0,0,1) -> 0 | J5: =IF('Conso-bat'!AO9=0,0,1) -> 1 | K5: =IF('Conso-bat'!AP9=0,0,1) -> 1 | L5: =IF('Conso-bat'!AQ9=0,0,1) -> 1 | M5: =IF('Conso-bat'!AR9=0,0,1) -> 1 | N5: =IF('Conso-bat'!AS9=0,0,1) -> 1 | O5: =IF('Conso-bat'!AT9=0,0,1) -> 1 | P5: =IF('Conso-bat'!AU9=0,0,1) -> 0 | Q5: =IF('Conso-bat'!AV9=0,0,1) -> 0 | R5: =IF('Conso-bat'!AW9=0,0,1) -> 0 | S5: =IF('Conso-bat'!AX9=0,0,1) -> 0 | T5: =IF('Conso-bat'!AY9=0,0,1) -> 0 | U5: =IF('Conso-bat'!AZ9=0,0,1) -> 0 | V5: =IF('Conso-bat'!BA9=0,0,1) -> 0 | Y5: = | Z5: 8 | AA5: =H5 -> 0 | AB5: 0 | AC5: 1 | AD5: 1 | AE5: 1 | AF5: 1 | AG5: 1 | AH5: 1 | AI5: 0 | AJ5: 0 | AK5: 0 | AL5: 0 | AM5: 0 | AN5: 0 | AO5: 0 | AU5: Facteur de correction pour une inclinaison et une orientation données
F6: 10h-12h | H6: =IF('Conso-bat'!AM10=0,0,1) -> 0 | I6: =IF('Conso-bat'!AN10=0,0,1) -> 0 | J6: =IF('Conso-bat'!AO10=0,0,1) -> 1 | K6: =IF('Conso-bat'!AP10=0,0,1) -> 1 | L6: =IF('Conso-bat'!AQ10=0,0,1) -> 1 | M6: =IF('Conso-bat'!AR10=0,0,1) -> 1 | N6: =IF('Conso-bat'!AS10=0,0,1) -> 1 | O6: =IF('Conso-bat'!AT10=0,0,1) -> 1 | P6: =IF('Conso-bat'!AU10=0,0,1) -> 0 | Q6: =IF('Conso-bat'!AV10=0,0,1) -> 0 | R6: =IF('Conso-bat'!AW10=0,0,1) -> 0 | S6: =IF('Conso-bat'!AX10=0,0,1) -> 0 | T6: =IF('Conso-bat'!AY10=0,0,1) -> 0 | U6: =IF('Conso-bat'!AZ10=0,0,1) -> 0 | V6: =IF('Conso-bat'!BA10=0,0,1) -> 0 | Z6: 9 | AA6: =AA5 -> 0 | AB6: =AB5 -> 0 | AC6: 1 | AD6: 1 | AE6: 1 | AF6: 1 | AG6: 1 | AH6: 1 | AI6: 0 | AJ6: 0 | AK6: 0 | AL6: 0 | AM6: 0 | AN6: 0 | AO6: 0 | AU6: Orient. / Inclin. | AV6: 0 | AW6: 30 | AX6: 60 | AY6: 90 | BA6: =AW20 -> 30 | BB6: =BA6+1 -> 31 | BC6: 32 | BD6: 33 | BE6: 34 | BF6: 35 | BG6: 36 | BH6: 37 | BI6: 38 | BJ6: 39 | BK6: 40 | BL6: 41 | BM6: 42 | BN6: 43 | BO6: 44 | BP6: 45 | BQ6: 46 | BR6: 47 | BS6: 48 | BT6: 49 | BU6: 50 | BV6: 51 | BW6: 52 | BX6: 53 | BY6: 54 | BZ6: 55 | CA6: 56 | CB6: 57 | CC6: 58 | CD6: 59 | CE6: 60
F7: 12h-14h | H7: =IF('Conso-bat'!AM11=0,0,1) -> 0 | I7: =IF('Conso-bat'!AN11=0,0,1) -> 0 | J7: =IF('Conso-bat'!AO11=0,0,1) -> 1 | K7: =IF('Conso-bat'!AP11=0,0,1) -> 1 | L7: =IF('Conso-bat'!AQ11=0,0,1) -> 1 | M7: =IF('Conso-bat'!AR11=0,0,1) -> 1 | N7: =IF('Conso-bat'!AS11=0,0,1) -> 1 | O7: =IF('Conso-bat'!AT11=0,0,1) -> 1 | P7: =IF('Conso-bat'!AU11=0,0,1) -> 0 | Q7: =IF('Conso-bat'!AV11=0,0,1) -> 0 | R7: =IF('Conso-bat'!AW11=0,0,1) -> 0 | S7: =IF('Conso-bat'!AX11=0,0,1) -> 0 | T7: =IF('Conso-bat'!AY11=0,0,1) -> 1 | U7: =IF('Conso-bat'!AZ11=0,0,1) -> 0 | V7: =IF('Conso-bat'!BA11=0,0,1) -> 0 | Z7: 10 | AA7: =H6 -> 0 | AB7: 0 | AC7: 1 | AD7: 1 | AE7: 1 | AF7: 1 | AG7: 1 | AH7: 1 | AI7: 0 | AJ7: 0 | AK7: 0 | AL7: 0 | AM7: 0 | AN7: 0 | AO7: 0 | AU7: Est | AV7: 0.93 | AW7: 0.9 | AX7: 0.78 | AY7: 0.55 | BA7: =AW21 -> 0.96 | BB7: =BA7+$BA$8 -> 0.9573333333 | BC7: 0.9546666667 | BD7: 0.952 | BE7: 0.9493333333 | BF7: 0.9466666667 | BG7: 0.944 | BH7: 0.9413333333 | BI7: 0.9386666667 | BJ7: 0.936 | BK7: 0.9333333333 | BL7: 0.9306666667 | BM7: 0.928 | BN7: 0.9253333333 | BO7: 0.9226666667 | BP7: 0.92 | BQ7: 0.9173333333 | BR7: 0.9146666667 | BS7: 0.912 | BT7: 0.9093333333 | BU7: 0.9066666667 | BV7: 0.904 | BW7: 0.9013333333 | BX7: 0.8986666667 | BY7: 0.896 | BZ7: 0.8933333333 | CA7: 0.8906666667 | CB7: 0.888 | CC7: 0.8853333333 | CD7: 0.8826666667 | CE7: =AY21 -> 0.88
F8: 14h-16h | H8: =IF('Conso-bat'!AM12=0,0,1) -> 0 | I8: =IF('Conso-bat'!AN12=0,0,1) -> 1 | J8: =IF('Conso-bat'!AO12=0,0,1) -> 1 | K8: =IF('Conso-bat'!AP12=0,0,1) -> 1 | L8: =IF('Conso-bat'!AQ12=0,0,1) -> 1 | M8: =IF('Conso-bat'!AR12=0,0,1) -> 1 | N8: =IF('Conso-bat'!AS12=0,0,1) -> 1 | O8: =IF('Conso-bat'!AT12=0,0,1) -> 1 | P8: =IF('Conso-bat'!AU12=0,0,1) -> 1 | Q8: =IF('Conso-bat'!AV12=0,0,1) -> 0 | R8: =IF('Conso-bat'!AW12=0,0,1) -> 0 | S8: =IF('Conso-bat'!AX12=0,0,1) -> 0 | T8: =IF('Conso-bat'!AY12=0,0,1) -> 0 | U8: =IF('Conso-bat'!AZ12=0,0,1) -> 0 | V8: =IF('Conso-bat'!BA12=0,0,1) -> 0 | Z8: 11 | AA8: =AA7 -> 0 | AB8: =AB7 -> 0 | AC8: 1 | AD8: 1 | AE8: 1 | AF8: 1 | AG8: 1 | AH8: 1 | AI8: 0 | AJ8: 0 | AK8: 0 | AL8: 0 | AM8: 0 | AN8: 0 | AO8: 0 | AU8: Sud - Est | AV8: 0.93 | AW8: 0.96 | AX8: 0.88 | AY8: 0.66 | BA8: =(CE7-BA7)/(COLUMN(CE7)-COLUMN(BA7)) -> -0.002666666667 | BB8: coef. Interpolation
F9: 16h-18h | H9: =IF('Conso-bat'!AM13=0,0,1) -> 1 | I9: =IF('Conso-bat'!AN13=0,0,1) -> 1 | J9: =IF('Conso-bat'!AO13=0,0,1) -> 1 | K9: =IF('Conso-bat'!AP13=0,0,1) -> 1 | L9: =IF('Conso-bat'!AQ13=0,0,1) -> 1 | M9: =IF('Conso-bat'!AR13=0,0,1) -> 1 | N9: =IF('Conso-bat'!AS13=0,0,1) -> 1 | O9: =IF('Conso-bat'!AT13=0,0,1) -> 1 | P9: =IF('Conso-bat'!AU13=0,0,1) -> 0 | Q9: =IF('Conso-bat'!AV13=0,0,1) -> 1 | R9: =IF('Conso-bat'!AW13=0,0,1) -> 1 | S9: =IF('Conso-bat'!AX13=0,0,1) -> 0 | T9: =IF('Conso-bat'!AY13=0,0,1) -> 0 | U9: =IF('Conso-bat'!AZ13=0,0,1) -> 0 | V9: =IF('Conso-bat'!BA13=0,0,1) -> 0 | Z9: 12 | AA9: =H7 -> 0 | AB9: 0 | AC9: 1 | AD9: 1 | AE9: 1 | AF9: 1 | AG9: 1 | AH9: 1 | AI9: 0 | AJ9: 0 | AK9: 0 | AL9: 0 | AM9: 1 | AN9: 0 | AO9: 0 | AU9: Sud | AV9: 0.93 | AW9: 1 | AX9: 0.91 | AY9: 0.68
F10: 18h-20h | H10: =IF('Conso-bat'!AM14=0,0,1) -> 1 | I10: =IF('Conso-bat'!AN14=0,0,1) -> 1 | J10: =IF('Conso-bat'!AO14=0,0,1) -> 1 | K10: =IF('Conso-bat'!AP14=0,0,1) -> 1 | L10: =IF('Conso-bat'!AQ14=0,0,1) -> 1 | M10: =IF('Conso-bat'!AR14=0,0,1) -> 1 | N10: =IF('Conso-bat'!AS14=0,0,1) -> 1 | O10: =IF('Conso-bat'!AT14=0,0,1) -> 1 | P10: =IF('Conso-bat'!AU14=0,0,1) -> 0 | Q10: =IF('Conso-bat'!AV14=0,0,1) -> 0 | R10: =IF('Conso-bat'!AW14=0,0,1) -> 0 | S10: =IF('Conso-bat'!AX14=0,0,1) -> 1 | T10: =IF('Conso-bat'!AY14=0,0,1) -> 0 | U10: =IF('Conso-bat'!AZ14=0,0,1) -> 0 | V10: =IF('Conso-bat'!BA14=0,0,1) -> 0 | Z10: 13 | AA10: =AA9 -> 0 | AB10: =AB9 -> 0 | AC10: 1 | AD10: 1 | AE10: 1 | AF10: 1 | AG10: 1 | AH10: 1 | AI10: 0 | AJ10: 0 | AK10: 0 | AL10: 0 | AM10: 1 | AN10: 0 | AO10: 0 | AU10: Sud - Ouest | AV10: 0.93 | AW10: 0.96 | AX10: 0.88 | AY10: 0.66
F11: 20h-22h | H11: =IF('Conso-bat'!AM15=0,0,1) -> 1 | I11: =IF('Conso-bat'!AN15=0,0,1) -> 1 | J11: =IF('Conso-bat'!AO15=0,0,1) -> 0 | K11: =IF('Conso-bat'!AP15=0,0,1) -> 1 | L11: =IF('Conso-bat'!AQ15=0,0,1) -> 1 | M11: =IF('Conso-bat'!AR15=0,0,1) -> 1 | N11: =IF('Conso-bat'!AS15=0,0,1) -> 1 | O11: =IF('Conso-bat'!AT15=0,0,1) -> 1 | P11: =IF('Conso-bat'!AU15=0,0,1) -> 0 | Q11: =IF('Conso-bat'!AV15=0,0,1) -> 0 | R11: =IF('Conso-bat'!AW15=0,0,1) -> 0 | S11: =IF('Conso-bat'!AX15=0,0,1) -> 0 | T11: =IF('Conso-bat'!AY15=0,0,1) -> 0 | U11: =IF('Conso-bat'!AZ15=0,0,1) -> 1 | V11: =IF('Conso-bat'!BA15=0,0,1) -> 0 | Z11: 14 | AA11: =H8 -> 0 | AB11: 1 | AC11: 1 | AD11: 1 | AE11: 1 | AF11: 1 | AG11: 1 | AH11: 1 | AI11: 1 | AJ11: 0 | AK11: 0 | AL11: 0 | AM11: 0 | AN11: 0 | AO11: 0 | AU11: Ouest | AV11: 0.93 | AW11: 0.9 | AX11: 0.78 | AY11: 0.55 | BE11: Consommation annuelle | BG11: Elec produite | BH11: Prod. Elec. autoconsommée | BI11: Prod. Elec. injectée | BJ11: Autoconso % | BK11: Autosuffi. %
F12: Nuit (22h-0h) | H12: =IF('Conso-bat'!AM16=0,0,1) -> 0 | I12: =IF('Conso-bat'!AN16=0,0,1) -> 0 | J12: =IF('Conso-bat'!AO16=0,0,1) -> 0 | K12: =IF('Conso-bat'!AP16=0,0,1) -> 1 | L12: =IF('Conso-bat'!AQ16=0,0,1) -> 1 | M12: =IF('Conso-bat'!AR16=0,0,1) -> 1 | N12: =IF('Conso-bat'!AS16=0,0,1) -> 1 | O12: =IF('Conso-bat'!AT16=0,0,1) -> 1 | P12: =IF('Conso-bat'!AU16=0,0,1) -> 0 | Q12: =IF('Conso-bat'!AV16=0,0,1) -> 0 | R12: =IF('Conso-bat'!AW16=0,0,1) -> 0 | S12: =IF('Conso-bat'!AX16=0,0,1) -> 0 | T12: =IF('Conso-bat'!AY16=0,0,1) -> 0 | U12: =IF('Conso-bat'!AZ16=0,0,1) -> 1 | V12: =IF('Conso-bat'!BA16=0,0,1) -> 0 | Z12: 15 | AA12: =AA11 -> 0 | AB12: =AB11 -> 1 | AC12: 1 | AD12: 1 | AE12: 1 | AF12: 1 | AG12: 1 | AH12: 1 | AI12: 1 | AJ12: 0 | AK12: 0 | AL12: 0 | AM12: 0 | AN12: 0 | AO12: 0 | BN12: Graphique Autosuffisence annuelle | BW12: Rappel puissances | BY12: Fonctionnement | BZ12: NRJ consommée sur l'année
F13: Nuit (0h-2h) | H13: =IF('Conso-bat'!AM17=0,0,1) -> 0 | I13: =IF('Conso-bat'!AN17=0,0,1) -> 0 | J13: =IF('Conso-bat'!AO17=0,0,1) -> 0 | K13: =IF('Conso-bat'!AP17=0,0,1) -> 1 | L13: =IF('Conso-bat'!AQ17=0,0,1) -> 1 | M13: =IF('Conso-bat'!AR17=0,0,1) -> 1 | N13: =IF('Conso-bat'!AS17=0,0,1) -> 1 | O13: =IF('Conso-bat'!AT17=0,0,1) -> 1 | P13: =IF('Conso-bat'!AU17=0,0,1) -> 0 | Q13: =IF('Conso-bat'!AV17=0,0,1) -> 0 | R13: =IF('Conso-bat'!AW17=0,0,1) -> 0 | S13: =IF('Conso-bat'!AX17=0,0,1) -> 0 | T13: =IF('Conso-bat'!AY17=0,0,1) -> 0 | U13: =IF('Conso-bat'!AZ17=0,0,1) -> 0 | V13: =IF('Conso-bat'!BA17=0,0,1) -> 0 | Z13: 16 | AA13: =H9 -> 1 | AB13: 1 | AC13: 1 | AD13: 1 | AE13: 1 | AF13: 1 | AG13: 1 | AH13: 1 | AI13: 0 | AJ13: 1 | AK13: 1 | AL13: 0 | AM13: 0 | AN13: 0 | AO13: 0 | AV13: Choix utilisateur | AZ13: Si choix 0,30,60,90 | BE13: Janv. | BF13: =SUM(BR41:BR784) -> 650.76 | BG13: =SUM(BT41:BT784) -> 116.6045175 | BH13: =SUM(BU41:BU784) -> 107.6362397 | BI13: =SUM(BV41:BV784) -> 8.968277737 | BJ13: =BH13/BG13 -> 0.9230880764 | BK13: =BH13/BF13 -> 0.1654008232 | BW13: =Données!C34 -> Générateur chauffage électrique | BX13: =Données!G34 -> 3000 | BY13: =Données!F34 -> OUI | BZ13: =SUM($K$41:$K$8800)/1000 -> 1526.4 | CA13: =BZ13/$BZ$30 -> 0.2173832548
F14: Nuit (2h-4h) | H14: =IF('Conso-bat'!AM18=0,0,1) -> 0 | I14: =IF('Conso-bat'!AN18=0,0,1) -> 0 | J14: =IF('Conso-bat'!AO18=0,0,1) -> 0 | K14: =IF('Conso-bat'!AP18=0,0,1) -> 1 | L14: =IF('Conso-bat'!AQ18=0,0,1) -> 1 | M14: =IF('Conso-bat'!AR18=0,0,1) -> 1 | N14: =IF('Conso-bat'!AS18=0,0,1) -> 1 | O14: =IF('Conso-bat'!AT18=0,0,1) -> 1 | P14: =IF('Conso-bat'!AU18=0,0,1) -> 0 | Q14: =IF('Conso-bat'!AV18=0,0,1) -> 0 | R14: =IF('Conso-bat'!AW18=0,0,1) -> 0 | S14: =IF('Conso-bat'!AX18=0,0,1) -> 0 | T14: =IF('Conso-bat'!AY18=0,0,1) -> 0 | U14: =IF('Conso-bat'!AZ18=0,0,1) -> 0 | V14: =IF('Conso-bat'!BA18=0,0,1) -> 0 | Z14: 17 | AA14: =AA13 -> 1 | AB14: =AB13 -> 1 | AC14: 1 | AD14: 1 | AE14: 1 | AF14: 1 | AG14: 1 | AH14: 1 | AI14: 0 | AJ14: 1 | AK14: 1 | AL14: 0 | AM14: 0 | AN14: 0 | AO14: 0 | AV14: =Données!G99 -> 35 | AX14: FACTEUR UTILISÉ | AZ14: =MATCH(AV14,AV6:AY6,1) -> 2 | BA14: n° colonne | BE14: Fév. | BF14: =SUM(BR785:BR1456) -> 589.28 | BG14: =SUM(BT785:BT1456) -> 157.0989733 | BH14: =SUM(BU785:BU1456) -> 137.2964682 | BI14: =SUM(BV785:BV1456) -> 19.80250513 | BJ14: =BH14/BG14 -> 0.8739488571 | BK14: =BH14/BF14 -> 0.2329902053 | BP14: Achat d'Elec | BQ14: =$BF$25-$BH$25 -> 4409.423323 | BR14: kWh | BW14: =Données!C35 -> Générateur froid | BX14: =Données!G35 -> 2000 | BY14: =Données!F35 -> OUI | BZ14: =SUM($O$41:$O$8800)/1000 -> 441.6 | CA14: =BZ14/$BZ$30 -> 0.06289075295
F15: Nuit (4h-6h) | H15: =IF('Conso-bat'!AM19=0,0,1) -> 0 | I15: =IF('Conso-bat'!AN19=0,0,1) -> 0 | J15: =IF('Conso-bat'!AO19=0,0,1) -> 0 | K15: =IF('Conso-bat'!AP19=0,0,1) -> 1 | L15: =IF('Conso-bat'!AQ19=0,0,1) -> 1 | M15: =IF('Conso-bat'!AR19=0,0,1) -> 1 | N15: =IF('Conso-bat'!AS19=0,0,1) -> 1 | O15: =IF('Conso-bat'!AT19=0,0,1) -> 1 | P15: =IF('Conso-bat'!AU19=0,0,1) -> 0 | Q15: =IF('Conso-bat'!AV19=0,0,1) -> 0 | R15: =IF('Conso-bat'!AW19=0,0,1) -> 0 | S15: =IF('Conso-bat'!AX19=0,0,1) -> 0 | T15: =IF('Conso-bat'!AY19=0,0,1) -> 0 | U15: =IF('Conso-bat'!AZ19=0,0,1) -> 0 | V15: =IF('Conso-bat'!BA19=0,0,1) -> 0 | Z15: 18 | AA15: =H10 -> 1 | AB15: 1 | AC15: 1 | AD15: 1 | AE15: 1 | AF15: 1 | AG15: 1 | AH15: 1 | AI15: 0 | AJ15: 0 | AK15: 0 | AL15: 1 | AM15: 0 | AN15: 0 | AO15: 0 | AV15: =Données!G102 -> Sud - Ouest | AX15: =IF(AZ16<>"-",AZ16,AX21) -> 0.96 | AZ15: =MATCH(AV15,AU7:AU11,0) -> 4 | BA15: n° ligne | BE15: Mars | BF15: =SUM(BR1457:BR2200) -> 649.06 | BG15: =SUM(BT1457:BT2200) -> 270.7761807 | BH15: =SUM(BU1457:BU2200) -> 208.0382795 | BI15: =SUM(BV1457:BV2200) -> 62.73790124 | BJ15: 0.7683034709 | BK15: 0.3205224162 | BP15: Prod Elec autoconsommée - Indépendance énergétique | BQ15: =$BH$25 -> 2612.276677 | BR15: kWh | BW15: =Données!C36 -> Chauffe-eau électrique intelligent Oetro-PV | BX15: =Données!G36 -> 2000 | BY15: =Données!F36 -> OUI | BZ15: =SUM($S$41:$S$8800)/1000 -> 2540.4 | CA15: 0.3617927283
Z16: 19 | AA16: =AA15 -> 1 | AB16: =AB15 -> 1 | AC16: 1 | AD16: 1 | AE16: 1 | AF16: 1 | AG16: 1 | AH16: 1 | AI16: 0 | AJ16: 0 | AK16: 0 | AL16: 1 | AM16: 0 | AN16: 0 | AO16: 0 | AZ16: =IFERROR(INDEX(AV7:AY11,AZ15,AZ14),"-") -> 0.96 | BA16: facteur correction | BE16: Avril | BF16: =SUM(BR2201:BR2920) -> 636.4 | BG16: =SUM(BT2201:BT2920) -> 305.2533881 | BH16: =SUM(BU2201:BU2920) -> 234.429609 | BI16: =SUM(BV2201:BV2920) -> 70.82377906 | BJ16: 0.767983643 | BK16: 0.368368336 | BW16: =Données!C37 -> Production ECS électrique | BX16: =Données!G37 -> 2400 | BY16: =Données!F37 -> NON | BZ16: =SUM($Y$41:$Y$8800)/1000 -> 0 | CA16: 0
F17: Lundi | H17: =IF('Conso-bat'!D22="",0,1) -> 1 | I17: =IF('Conso-bat'!E22="",0,1) -> 1 | J17: =IF('Conso-bat'!F22="",0,1) -> 1 | K17: =IF('Conso-bat'!G22="",0,1) -> 1 | L17: =IF('Conso-bat'!S22="",0,1) -> 1 | M17: =IF('Conso-bat'!T22="",0,1) -> 1 | N17: =IF('Conso-bat'!I22="",0,1) -> 1 | O17: =IF('Conso-bat'!J22="",0,1) -> 1 | P17: =IF('Conso-bat'!K22="",0,1) -> 0 | Q17: =IF('Conso-bat'!L22="",0,1) -> 0 | R17: =IF('Conso-bat'!M22="",0,1) -> 0 | S17: =IF('Conso-bat'!N22="",0,1) -> 1 | T17: =IF('Conso-bat'!O22="",0,1) -> 1 | U17: =IF('Conso-bat'!P22="",0,1) -> 1 | V17: =IF('Conso-bat'!Q22="",0,1) -> 0 | Z17: 20 | AA17: =H11 -> 1 | AB17: 1 | AC17: 0 | AD17: 1 | AE17: 1 | AF17: 1 | AG17: 1 | AH17: 1 | AI17: 0 | AJ17: 0 | AK17: 0 | AL17: 0 | AM17: 0 | AN17: 1 | AO17: 0 | BE17: Mai | BF17: =SUM(BR2921:BR3664) -> 425.86 | BG17: =SUM(BT2921:BT3664) -> 350.626694 | BH17: =SUM(BU2921:BU3664) -> 260.1825259 | BI17: =SUM(BV2921:BV3664) -> 90.44416818 | BJ17: 0.7420499645 | BK17: 0.6109578873
F18: Mardi | H18: =IF('Conso-bat'!D23="",0,1) -> 1 | I18: =IF('Conso-bat'!E23="",0,1) -> 1 | J18: =IF('Conso-bat'!F23="",0,1) -> 1 | K18: =IF('Conso-bat'!G23="",0,1) -> 1 | L18: =IF('Conso-bat'!S23="",0,1) -> 1 | M18: =IF('Conso-bat'!T23="",0,1) -> 1 | N18: =IF('Conso-bat'!I23="",0,1) -> 1 | O18: =IF('Conso-bat'!J23="",0,1) -> 1 | P18: =IF('Conso-bat'!K23="",0,1) -> 0 | Q18: =IF('Conso-bat'!L23="",0,1) -> 0 | R18: =IF('Conso-bat'!M23="",0,1) -> 0 | S18: =IF('Conso-bat'!N23="",0,1) -> 1 | T18: =IF('Conso-bat'!O23="",0,1) -> 0 | U18: =IF('Conso-bat'!P23="",0,1) -> 1 | V18: =IF('Conso-bat'!Q23="",0,1) -> 0 | Z18: 21 | AA18: =AA17 -> 1 | AB18: =AB17 -> 1 | AC18: 0 | AD18: 1 | AE18: 1 | AF18: 1 | AG18: 1 | AH18: 1 | AI18: 0 | AJ18: 0 | AK18: 0 | AL18: 0 | AM18: 0 | AN18: 1 | AO18: 0 | AW18: Si choix différent | BE18: Juin | BF18: =SUM(BR3665:BR4384) -> 557.7 | BG18: =SUM(BT3665:BT4384) -> 406.7334702 | BH18: =SUM(BU3665:BU4384) -> 332.396501 | BI18: =SUM(BV3665:BV4384) -> 74.3369692 | BJ18: 0.8172341972 | BK18: 0.5960130913 | BW18: =Données!C49 -> Piscine | BX18: =Données!G49 -> 200 | BY18: =Données!F49 -> NON | BZ18: =SUM($AC$41:$AC$8800)/1000 -> 0 | CA18: 0
F19: Mercredi | H19: =IF('Conso-bat'!D24="",0,1) -> 1 | I19: =IF('Conso-bat'!E24="",0,1) -> 1 | J19: =IF('Conso-bat'!F24="",0,1) -> 1 | K19: =IF('Conso-bat'!G24="",0,1) -> 1 | L19: =IF('Conso-bat'!S24="",0,1) -> 1 | M19: =IF('Conso-bat'!T24="",0,1) -> 1 | N19: =IF('Conso-bat'!I24="",0,1) -> 1 | O19: =IF('Conso-bat'!J24="",0,1) -> 1 | P19: =IF('Conso-bat'!K24="",0,1) -> 0 | Q19: =IF('Conso-bat'!L24="",0,1) -> 0 | R19: =IF('Conso-bat'!M24="",0,1) -> 0 | S19: =IF('Conso-bat'!N24="",0,1) -> 1 | T19: =IF('Conso-bat'!O24="",0,1) -> 1 | U19: =IF('Conso-bat'!P24="",0,1) -> 1 | V19: =IF('Conso-bat'!Q24="",0,1) -> 0 | Z19: 22 | AA19: =H12 -> 0 | AB19: 0 | AC19: 0 | AD19: 1 | AE19: 1 | AF19: 1 | AG19: 1 | AH19: 1 | AI19: 0 | AJ19: 0 | AK19: 0 | AL19: 0 | AM19: 0 | AN19: 1 | AO19: 0 | AV19: n° colonne | AW19: =IF(AW20=0,1,IF(AW20=30,2,IF(AW20=60,3,4))) -> 2 | AY19: =IF(AY20=0,1,IF(AY20=30,2,IF(AY20=60,3,4))) -> 3 | BE19: Juil. | BF19: =SUM(BR4385:BR5128) -> 581.36 | BG19: =SUM(BT4385:BT5128) -> 463.3281314 | BH19: =SUM(BU4385:BU5128) -> 385.8932992 | BI19: =SUM(BV4385:BV5128) -> 77.43483222 | BJ19: 0.8328725865 | BK19: 0.6637768323 | BW19: =Données!C50 -> Ventilation | BX19: =Données!G50 -> 50 | BY19: =Données!F50 -> NON | BZ19: =SUM($AG$41:$AG$8800)/1000 -> 0 | CA19: 0
F20: Jeudi | H20: =IF('Conso-bat'!D25="",0,1) -> 1 | I20: =IF('Conso-bat'!E25="",0,1) -> 1 | J20: =IF('Conso-bat'!F25="",0,1) -> 1 | K20: =IF('Conso-bat'!G25="",0,1) -> 1 | L20: =IF('Conso-bat'!S25="",0,1) -> 1 | M20: =IF('Conso-bat'!T25="",0,1) -> 1 | N20: =IF('Conso-bat'!I25="",0,1) -> 1 | O20: =IF('Conso-bat'!J25="",0,1) -> 1 | P20: =IF('Conso-bat'!K25="",0,1) -> 0 | Q20: =IF('Conso-bat'!L25="",0,1) -> 0 | R20: =IF('Conso-bat'!M25="",0,1) -> 0 | S20: =IF('Conso-bat'!N25="",0,1) -> 1 | T20: =IF('Conso-bat'!O25="",0,1) -> 0 | U20: =IF('Conso-bat'!P25="",0,1) -> 1 | V20: =IF('Conso-bat'!Q25="",0,1) -> 0 | Z20: 23 | AA20: =AA19 -> 0 | AB20: =AB19 -> 0 | AC20: 0 | AD20: 1 | AE20: 1 | AF20: 1 | AG20: 1 | AH20: 1 | AI20: 0 | AJ20: 0 | AK20: 0 | AL20: 0 | AM20: 0 | AN20: 1 | AO20: 0 | AV20: Encadrement Inclin. | AW20: =IF(AND(AV14>=AV6,AV14<AW6),AV6,IF(AND(AV14>=AW6,AV14<AX6),AW6,IF(AND(AV14>=AX6,AV14<AY6),AX6))) -> 30 | AX20: =AV14 -> 35 | AY20: =IF(AND(AV14>=AV6,AV14<AW6),AW6,IF(AND(AV14>=AW6,AV14<AX6),AX6,IF(AND(AV14>=AX6,AV14<AY6),AY6))) -> 60 | BE20: Août | BF20: =SUM(BR5129:BR5872) -> 576.36 | BG20: =SUM(BT5129:BT5872) -> 410.1486653 | BH20: =SUM(BU5129:BU5872) -> 343.0173525 | BI20: =SUM(BV5129:BV5872) -> 67.13131278 | BJ20: 0.8363244393 | BK20: 0.5951442718
F21: Vendredi | H21: =IF('Conso-bat'!D26="",0,1) -> 1 | I21: =IF('Conso-bat'!E26="",0,1) -> 1 | J21: =IF('Conso-bat'!F26="",0,1) -> 1 | K21: =IF('Conso-bat'!G26="",0,1) -> 1 | L21: =IF('Conso-bat'!S26="",0,1) -> 1 | M21: =IF('Conso-bat'!T26="",0,1) -> 1 | N21: =IF('Conso-bat'!I26="",0,1) -> 1 | O21: =IF('Conso-bat'!J26="",0,1) -> 1 | P21: =IF('Conso-bat'!K26="",0,1) -> 0 | Q21: =IF('Conso-bat'!L26="",0,1) -> 0 | R21: =IF('Conso-bat'!M26="",0,1) -> 0 | S21: =IF('Conso-bat'!N26="",0,1) -> 1 | T21: =IF('Conso-bat'!O26="",0,1) -> 1 | U21: =IF('Conso-bat'!P26="",0,1) -> 1 | V21: =IF('Conso-bat'!Q26="",0,1) -> 0 | Z21: 0 | AA21: =H13 -> 0 | AB21: 0 | AC21: 0 | AD21: 1 | AE21: 1 | AF21: 1 | AG21: 1 | AH21: 1 | AI21: 0 | AJ21: 0 | AK21: 0 | AL21: 0 | AM21: 0 | AN21: 0 | AO21: 0 | AV21: Encadrement fact. Corr. | AW21: =INDEX(AV7:AY11,AZ15,AW19) -> 0.96 | AX21: =HLOOKUP(AX20,BA6:CE7,2,FALSE) -> 0.9466666667 | AY21: =INDEX(AV7:AY11,AZ15,AY19) -> 0.88 | BE21: Sept. | BF21: =SUM(BR5873:BR6592) -> 418.7 | BG21: =SUM(BT5873:BT6592) -> 298.5856263 | BH21: =SUM(BU5873:BU6592) -> 240.2520053 | BI21: =SUM(BV5873:BV6592) -> 58.33362094 | BJ21: 0.8046335262 | BK21: 0.5738046461 | BW21: =Données!C39 -> Réfrigérateur | BX21: =Données!G39 -> 150 | BY21: =Données!F39 -> OUI | BZ21: =SUM($AK$41:$AK$8800)/1000 -> 657 | CA21: 0.09356708489
F22: Samedi | H22: =IF('Conso-bat'!D27="",0,1) -> 1 | I22: =IF('Conso-bat'!E27="",0,1) -> 1 | J22: =IF('Conso-bat'!F27="",0,1) -> 1 | K22: =IF('Conso-bat'!G27="",0,1) -> 1 | L22: =IF('Conso-bat'!S27="",0,1) -> 1 | M22: =IF('Conso-bat'!T27="",0,1) -> 1 | N22: =IF('Conso-bat'!I27="",0,1) -> 1 | O22: =IF('Conso-bat'!J27="",0,1) -> 1 | P22: =IF('Conso-bat'!K27="",0,1) -> 0 | Q22: =IF('Conso-bat'!L27="",0,1) -> 0 | R22: =IF('Conso-bat'!M27="",0,1) -> 0 | S22: =IF('Conso-bat'!N27="",0,1) -> 1 | T22: =IF('Conso-bat'!O27="",0,1) -> 0 | U22: =IF('Conso-bat'!P27="",0,1) -> 1 | V22: =IF('Conso-bat'!Q27="",0,1) -> 0 | Z22: 1 | AA22: =AA21 -> 0 | AB22: =AB21 -> 0 | AC22: 0 | AD22: 1 | AE22: 1 | AF22: 1 | AG22: 1 | AH22: 1 | AI22: 0 | AJ22: 0 | AK22: 0 | AL22: 0 | AM22: 0 | AN22: 0 | AO22: 0 | BE22: Oct. | BF22: =SUM(BR6593:BR7336) -> 650.76 | BG22: =SUM(BT6593:BT7336) -> 195.1540041 | BH22: =SUM(BU6593:BU7336) -> 174.3157541 | BI22: =SUM(BV6593:BV7336) -> 20.83824998 | BJ22: 0.8932215094 | BK22: 0.2678648874 | BW22: =Données!C40 -> Congélateur | BX22: =Données!G40 -> 100 | BY22: =Données!F40 -> NON | BZ22: =SUM($AO$41:$AO$8800)/1000 -> 0 | CA22: 0
F23: Dimanche | H23: =IF('Conso-bat'!D28="",0,1) -> 1 | I23: =IF('Conso-bat'!E28="",0,1) -> 1 | J23: =IF('Conso-bat'!F28="",0,1) -> 1 | K23: =IF('Conso-bat'!G28="",0,1) -> 1 | L23: =IF('Conso-bat'!S28="",0,1) -> 1 | M23: =IF('Conso-bat'!T28="",0,1) -> 1 | N23: =IF('Conso-bat'!I28="",0,1) -> 1 | O23: =IF('Conso-bat'!J28="",0,1) -> 1 | P23: =IF('Conso-bat'!K28="",0,1) -> 1 | Q23: =IF('Conso-bat'!L28="",0,1) -> 1 | R23: =IF('Conso-bat'!M28="",0,1) -> 1 | S23: =IF('Conso-bat'!N28="",0,1) -> 1 | T23: =IF('Conso-bat'!O28="",0,1) -> 1 | U23: =IF('Conso-bat'!P28="",0,1) -> 1 | V23: =IF('Conso-bat'!Q28="",0,1) -> 0 | Z23: 2 | AA23: =H14 -> 0 | AB23: 0 | AC23: 0 | AD23: 1 | AE23: 1 | AF23: 1 | AG23: 1 | AH23: 1 | AI23: 0 | AJ23: 0 | AK23: 0 | AL23: 0 | AM23: 0 | AN23: 0 | AO23: 0 | BE23: Nov. | BF23: =SUM(BR7337:BR8056) -> 629.7 | BG23: =SUM(BT7337:BT8056) -> 112.050924 | BH23: =SUM(BU7337:BU8056) -> 107.9079076 | BI23: =SUM(BV7337:BV8056) -> 4.143016427 | BJ23: 0.9630255934 | BK23: 0.1713639949 | BW23: =Données!C41 -> Lave linge | BX23: =Données!G41 -> 1500 | BY23: =Données!F41 -> OUI | BZ23: =SUM($AS$41:$AS$8800)/1000 -> 156 | CA23: 0.02221684208
H24: =SUM(H17:H23) -> 7 | I24: =SUM(I17:I23) -> 7 | J24: 7 | K24: 7 | L24: 7 | M24: 7 | N24: 7 | O24: 7 | P24: 1 | Q24: 1 | R24: 1 | S24: 7 | T24: 4 | U24: 7 | V24: 0 | Z24: 3 | AA24: =AA23 -> 0 | AB24: =AB23 -> 0 | AC24: 0 | AD24: 1 | AE24: 1 | AF24: 1 | AG24: 1 | AH24: 1 | AI24: 0 | AJ24: 0 | AK24: 0 | AL24: 0 | AM24: 0 | AN24: 0 | AO24: 0 | BE24: Déc. | BF24: =SUM(BR8057:BR8800) -> 655.76 | BG24: =SUM(BT8057:BT8800) -> 81.63942505 | BH24: =SUM(BU8057:BU8800) -> 80.91073531 | BI24: =SUM(BV8057:BV8800) -> 0.7286897397 | BJ24: 0.9910742911 | BK24: 0.1233846763 | BW24: =Données!C42 -> Sèche linge | BX24: =Données!G42 -> 2000 | BY24: =Données!F42 -> NON | BZ24: =SUM($AW$41:$AW$8800)/1000 -> 0 | CA24: 0
F25: Janvier | H25: =IF('Conso-bat'!D31="",0,1) -> 1 | I25: =IF('Conso-bat'!E31="",0,1) -> 0 | J25: =IF('Conso-bat'!F31="",0,1) -> 1 | K25: =IF('Conso-bat'!G31="",0,1) -> 1 | L25: =IF('Conso-bat'!S31="",0,1) -> 0 | M25: =IF('Conso-bat'!T31="",0,1) -> 1 | N25: =IF('Conso-bat'!I31="",0,1) -> 1 | O25: =IF('Conso-bat'!J31="",0,1) -> 1 | P25: =IF('Conso-bat'!K31="",0,1) -> 1 | Q25: =IF('Conso-bat'!L31="",0,1) -> 1 | R25: =IF('Conso-bat'!M31="",0,1) -> 1 | S25: =IF('Conso-bat'!N31="",0,1) -> 1 | T25: =IF('Conso-bat'!O31="",0,1) -> 1 | U25: =IF('Conso-bat'!P31="",0,1) -> 1 | V25: =IF('Conso-bat'!Q31="",0,1) -> 0 | Z25: 4 | AA25: =H15 -> 0 | AB25: 0 | AC25: 0 | AD25: 1 | AE25: 1 | AF25: 1 | AG25: 1 | AH25: 1 | AI25: 0 | AJ25: 0 | AK25: 0 | AL25: 0 | AM25: 0 | AN25: 0 | AO25: 0 | BE25: Bilan annuel | BF25: =SUM(BF13:BF24) -> 7021.7 | BG25: =SUM(BG13:BG24) -> 3168 | BH25: =SUM(BH13:BH24) -> 2612.276677 | BI25: 555.7233226 | BJ25: =BH25/BG25 -> 0.8245822845 | BK25: =BH25/BF25 -> 0.3720290923 | BW25: =Données!C43 -> Fer à repasser | BX25: =Données!G43 -> 1000 | BY25: =Données!F43 -> OUI | BZ25: =SUM($BA$41:$BA$8800)/1000 -> 104 | CA25: 0.01481122805
F26: Février | H26: =IF('Conso-bat'!D32="",0,1) -> 1 | I26: =IF('Conso-bat'!E32="",0,1) -> 0 | J26: =IF('Conso-bat'!F32="",0,1) -> 1 | K26: =IF('Conso-bat'!G32="",0,1) -> 1 | L26: =IF('Conso-bat'!S32="",0,1) -> 0 | M26: =IF('Conso-bat'!T32="",0,1) -> 1 | N26: =IF('Conso-bat'!I32="",0,1) -> 1 | O26: =IF('Conso-bat'!J32="",0,1) -> 1 | P26: =IF('Conso-bat'!K32="",0,1) -> 1 | Q26: =IF('Conso-bat'!L32="",0,1) -> 1 | R26: =IF('Conso-bat'!M32="",0,1) -> 1 | S26: =IF('Conso-bat'!N32="",0,1) -> 1 | T26: =IF('Conso-bat'!O32="",0,1) -> 1 | U26: =IF('Conso-bat'!P32="",0,1) -> 1 | V26: =IF('Conso-bat'!Q32="",0,1) -> 0 | Z26: 5 | AA26: =AA25 -> 0 | AB26: =AB25 -> 0 | AC26: 0 | AD26: 1 | AE26: 1 | AF26: 1 | AG26: 1 | AH26: 1 | AI26: 0 | AJ26: 0 | AK26: 0 | AL26: 0 | AM26: 0 | AN26: 0 | AO26: 0 | BW26: =Données!C44 -> Four / Plaques de cuisson | BX26: =Données!G44 -> 1500 | BY26: =Données!F44 -> OUI | BZ26: =SUM($BE$41:$BE$8800)/1000 -> 1095 | CA26: 0.1559451415
F27: Mars | H27: =IF('Conso-bat'!D33="",0,1) -> 1 | I27: =IF('Conso-bat'!E33="",0,1) -> 0 | J27: =IF('Conso-bat'!F33="",0,1) -> 1 | K27: =IF('Conso-bat'!G33="",0,1) -> 1 | L27: =IF('Conso-bat'!S33="",0,1) -> 0 | M27: =IF('Conso-bat'!T33="",0,1) -> 1 | N27: =IF('Conso-bat'!I33="",0,1) -> 1 | O27: =IF('Conso-bat'!J33="",0,1) -> 1 | P27: =IF('Conso-bat'!K33="",0,1) -> 1 | Q27: =IF('Conso-bat'!L33="",0,1) -> 1 | R27: =IF('Conso-bat'!M33="",0,1) -> 1 | S27: =IF('Conso-bat'!N33="",0,1) -> 1 | T27: =IF('Conso-bat'!O33="",0,1) -> 1 | U27: =IF('Conso-bat'!P33="",0,1) -> 1 | V27: =IF('Conso-bat'!Q33="",0,1) -> 0 | BW27: =Données!C45 -> Lave vaisselle | BX27: =Données!G45 -> 850 | BY27: =Données!F45 -> OUI | BZ27: =SUM($BI$41:$BI$8800)/1000 -> 355.3 | CA27: 0.05060028198
F28: Avril | H28: =IF('Conso-bat'!D34="",0,1) -> 1 | I28: =IF('Conso-bat'!E34="",0,1) -> 0 | J28: =IF('Conso-bat'!F34="",0,1) -> 1 | K28: =IF('Conso-bat'!G34="",0,1) -> 1 | L28: =IF('Conso-bat'!S34="",0,1) -> 0 | M28: =IF('Conso-bat'!T34="",0,1) -> 1 | N28: =IF('Conso-bat'!I34="",0,1) -> 1 | O28: =IF('Conso-bat'!J34="",0,1) -> 1 | P28: =IF('Conso-bat'!K34="",0,1) -> 1 | Q28: =IF('Conso-bat'!L34="",0,1) -> 1 | R28: =IF('Conso-bat'!M34="",0,1) -> 1 | S28: =IF('Conso-bat'!N34="",0,1) -> 1 | T28: =IF('Conso-bat'!O34="",0,1) -> 1 | U28: =IF('Conso-bat'!P34="",0,1) -> 1 | V28: =IF('Conso-bat'!Q34="",0,1) -> 0 | AC28: Production ECS | BW28: =Données!C46 -> Téléviseur / Ordinateur | BX28: =Données!G46 -> 100 | BY28: =Données!F46 -> OUI | BZ28: =SUM($BM$41:$BM$8800)/1000 -> 146 | CA28: 0.02079268553
F29: Mai | H29: =IF('Conso-bat'!D35="",0,1) -> 0 | I29: =IF('Conso-bat'!E35="",0,1) -> 0 | J29: =IF('Conso-bat'!F35="",0,1) -> 1 | K29: =IF('Conso-bat'!G35="",0,1) -> 1 | L29: =IF('Conso-bat'!S35="",0,1) -> 0 | M29: =IF('Conso-bat'!T35="",0,1) -> 1 | N29: =IF('Conso-bat'!I35="",0,1) -> 1 | O29: =IF('Conso-bat'!J35="",0,1) -> 1 | P29: =IF('Conso-bat'!K35="",0,1) -> 1 | Q29: =IF('Conso-bat'!L35="",0,1) -> 1 | R29: =IF('Conso-bat'!M35="",0,1) -> 1 | S29: =IF('Conso-bat'!N35="",0,1) -> 1 | T29: =IF('Conso-bat'!O35="",0,1) -> 1 | U29: =IF('Conso-bat'!P35="",0,1) -> 1 | V29: =IF('Conso-bat'!Q35="",0,1) -> 0 | BW29: =Données!C47 -> Voiture électrique / Autre équipement | BX29: =Données!G47 -> 0 | BY29: =Données!F47 -> NON | BZ29: =SUM($BQ$41:$BQ$8800)/1000 -> 0 | CA29: 0
F30: Juin | H30: =IF('Conso-bat'!D36="",0,1) -> 0 | I30: =IF('Conso-bat'!E36="",0,1) -> 1 | J30: =IF('Conso-bat'!F36="",0,1) -> 1 | K30: =IF('Conso-bat'!G36="",0,1) -> 1 | L30: =IF('Conso-bat'!S36="",0,1) -> 1 | M30: =IF('Conso-bat'!T36="",0,1) -> 1 | N30: =IF('Conso-bat'!I36="",0,1) -> 1 | O30: =IF('Conso-bat'!J36="",0,1) -> 1 | P30: =IF('Conso-bat'!K36="",0,1) -> 1 | Q30: =IF('Conso-bat'!L36="",0,1) -> 1 | R30: =IF('Conso-bat'!M36="",0,1) -> 1 | S30: =IF('Conso-bat'!N36="",0,1) -> 1 | T30: =IF('Conso-bat'!O36="",0,1) -> 1 | U30: =IF('Conso-bat'!P36="",0,1) -> 1 | V30: =IF('Conso-bat'!Q36="",0,1) -> 0 | AC30: Prod nécessaire ? | AE30: Nb pers si nécessaire | AG30: Vol ECS 60°C / pers / jour | AJ30: Soit volume total | AM30: Temps de chauffe nécessaire par jour | BY30: TOTAL | BZ30: =SUM($BZ$13:$BZ$29) -> 7021.7
F31: Juillet | H31: =IF('Conso-bat'!D37="",0,1) -> 0 | I31: =IF('Conso-bat'!E37="",0,1) -> 1 | J31: =IF('Conso-bat'!F37="",0,1) -> 1 | K31: =IF('Conso-bat'!G37="",0,1) -> 1 | L31: =IF('Conso-bat'!S37="",0,1) -> 1 | M31: =IF('Conso-bat'!T37="",0,1) -> 1 | N31: =IF('Conso-bat'!I37="",0,1) -> 1 | O31: =IF('Conso-bat'!J37="",0,1) -> 1 | P31: =IF('Conso-bat'!K37="",0,1) -> 1 | Q31: =IF('Conso-bat'!L37="",0,1) -> 1 | R31: =IF('Conso-bat'!M37="",0,1) -> 1 | S31: =IF('Conso-bat'!N37="",0,1) -> 1 | T31: =IF('Conso-bat'!O37="",0,1) -> 1 | U31: =IF('Conso-bat'!P37="",0,1) -> 1 | V31: =IF('Conso-bat'!Q37="",0,1) -> 0 | AC31: =Données!$C$25 -> OUI | AE31: =IF($AC$31=calc_données!$N$5,0,Données!$J$25) -> 4 | AG31: 30 | AJ31: =AE31*AG31 -> 120 | AK31: L | AM31: =IFERROR($AG$34/($AJ$34/1000),0) -> 3.48 | AN31: h | BX31: Rappel choix appareillage
F32: Août | H32: =IF('Conso-bat'!D38="",0,1) -> 0 | I32: =IF('Conso-bat'!E38="",0,1) -> 1 | J32: =IF('Conso-bat'!F38="",0,1) -> 1 | K32: =IF('Conso-bat'!G38="",0,1) -> 1 | L32: =IF('Conso-bat'!S38="",0,1) -> 1 | M32: =IF('Conso-bat'!T38="",0,1) -> 1 | N32: =IF('Conso-bat'!I38="",0,1) -> 1 | O32: =IF('Conso-bat'!J38="",0,1) -> 1 | P32: =IF('Conso-bat'!K38="",0,1) -> 1 | Q32: =IF('Conso-bat'!L38="",0,1) -> 1 | R32: =IF('Conso-bat'!M38="",0,1) -> 1 | S32: =IF('Conso-bat'!N38="",0,1) -> 1 | T32: =IF('Conso-bat'!O38="",0,1) -> 1 | U32: =IF('Conso-bat'!P38="",0,1) -> 1 | V32: =IF('Conso-bat'!Q38="",0,1) -> 0 | AL32: soit | AM32: =ROUNDUP(AM31,0) -> 4 | AN32: h | BX32: =calc_données!L4 -> OUI
F33: Septembre | H33: =IF('Conso-bat'!D39="",0,1) -> 0 | I33: =IF('Conso-bat'!E39="",0,1) -> 0 | J33: =IF('Conso-bat'!F39="",0,1) -> 1 | K33: =IF('Conso-bat'!G39="",0,1) -> 1 | L33: =IF('Conso-bat'!S39="",0,1) -> 0 | M33: =IF('Conso-bat'!T39="",0,1) -> 1 | N33: =IF('Conso-bat'!I39="",0,1) -> 1 | O33: =IF('Conso-bat'!J39="",0,1) -> 1 | P33: =IF('Conso-bat'!K39="",0,1) -> 1 | Q33: =IF('Conso-bat'!L39="",0,1) -> 1 | R33: =IF('Conso-bat'!M39="",0,1) -> 1 | S33: =IF('Conso-bat'!N39="",0,1) -> 1 | T33: =IF('Conso-bat'!O39="",0,1) -> 1 | U33: =IF('Conso-bat'!P39="",0,1) -> 1 | V33: =IF('Conso-bat'!Q39="",0,1) -> 0 | AC33: T° eau froide | AE33: T° stockage | AG33: NRJ nécessaire pour la chauffe du ballon (1 jour) | AJ33: Puissance résistance dispo | BX33: =calc_données!L5 -> NON
F34: Octobre | H34: =IF('Conso-bat'!D40="",0,1) -> 1 | I34: =IF('Conso-bat'!E40="",0,1) -> 0 | J34: =IF('Conso-bat'!F40="",0,1) -> 1 | K34: =IF('Conso-bat'!G40="",0,1) -> 1 | L34: =IF('Conso-bat'!S40="",0,1) -> 0 | M34: =IF('Conso-bat'!T40="",0,1) -> 1 | N34: =IF('Conso-bat'!I40="",0,1) -> 1 | O34: =IF('Conso-bat'!J40="",0,1) -> 1 | P34: =IF('Conso-bat'!K40="",0,1) -> 1 | Q34: =IF('Conso-bat'!L40="",0,1) -> 1 | R34: =IF('Conso-bat'!M40="",0,1) -> 1 | S34: =IF('Conso-bat'!N40="",0,1) -> 1 | T34: =IF('Conso-bat'!O40="",0,1) -> 1 | U34: =IF('Conso-bat'!P40="",0,1) -> 1 | V34: =IF('Conso-bat'!Q40="",0,1) -> 0 | AC34: 10 | AD34: °C | AE34: 60 | AF34: °C | AG34: =$AJ$31/1000*1.16*($AE$34-$AC$34) -> 6.96 | AH34: kWh | AJ34: =IF(Données!$F$36=calc_données!$L$4,Données!$G$36,IF(Données!$F$37=calc_données!$L$4,Données!$G$37,0)) -> 2000 | AK34: W | AM34: Tps de fonctionnement par jour
F35: Novembre | H35: =IF('Conso-bat'!D41="",0,1) -> 1 | I35: =IF('Conso-bat'!E41="",0,1) -> 0 | J35: =IF('Conso-bat'!F41="",0,1) -> 1 | K35: =IF('Conso-bat'!G41="",0,1) -> 1 | L35: =IF('Conso-bat'!S41="",0,1) -> 0 | M35: =IF('Conso-bat'!T41="",0,1) -> 1 | N35: =IF('Conso-bat'!I41="",0,1) -> 1 | O35: =IF('Conso-bat'!J41="",0,1) -> 1 | P35: =IF('Conso-bat'!K41="",0,1) -> 1 | Q35: =IF('Conso-bat'!L41="",0,1) -> 1 | R35: =IF('Conso-bat'!M41="",0,1) -> 1 | S35: =IF('Conso-bat'!N41="",0,1) -> 1 | T35: =IF('Conso-bat'!O41="",0,1) -> 1 | U35: =IF('Conso-bat'!P41="",0,1) -> 1 | V35: =IF('Conso-bat'!Q41="",0,1) -> 0 | AM35: =IF($BY$15=$BX$32,Données!$H$36,IF($BY$16=$BX$32,Données!$H$37,0)) -> 12 | AN35: h
F36: Décembre | H36: =IF('Conso-bat'!D42="",0,1) -> 1 | I36: =IF('Conso-bat'!E42="",0,1) -> 0 | J36: =IF('Conso-bat'!F42="",0,1) -> 1 | K36: =IF('Conso-bat'!G42="",0,1) -> 1 | L36: =IF('Conso-bat'!S42="",0,1) -> 0 | M36: =IF('Conso-bat'!T42="",0,1) -> 1 | N36: =IF('Conso-bat'!I42="",0,1) -> 1 | O36: =IF('Conso-bat'!J42="",0,1) -> 1 | P36: =IF('Conso-bat'!K42="",0,1) -> 1 | Q36: =IF('Conso-bat'!L42="",0,1) -> 1 | R36: =IF('Conso-bat'!M42="",0,1) -> 1 | S36: =IF('Conso-bat'!N42="",0,1) -> 1 | T36: =IF('Conso-bat'!O42="",0,1) -> 1 | U36: =IF('Conso-bat'!P42="",0,1) -> 1 | V36: =IF('Conso-bat'!Q42="",0,1) -> 0 | AD36: =SUM($Y$41:$Y$8800)/1000 -> 0 | AG36: NRJ nécessaire annuelle | AM36: Ratio de puissance à appliquer
H37: =SUM(H25:H36) -> 7 | I37: =SUM(I25:I36) -> 3 | J37: 12 | K37: 12 | L37: 3 | M37: 12 | N37: 12 | O37: 12 | P37: 12 | Q37: 12 | R37: 12 | S37: 12 | T37: 12 | U37: 12 | V37: 0 | AG37: =$AG$34*365.25 -> 2542.14 | AH37: kWh | AM37: =IF($AM$31>$AM$35,1,$AM$31/$AM$35) -> 0.29
P38: * Puissance lissée sur la journée | T38: * Puissance max fournie et coupée si consigne atteinte | BX38: Bilan du PV-O
H39: =Données!$C$34 -> Générateur chauffage électrique | L39: =Données!$C$35 -> Générateur froid | P39: =Données!$C$36 -> Chauffe-eau électrique intelligent Oetro-PV | T39: =Données!$C$37 -> Production ECS électrique | Z39: =Données!$C$49 -> Piscine | AD39: =Données!$C$50 -> Ventilation | AH39: =Données!$C$39 -> Réfrigérateur | AL39: =Données!$C$40 -> Congélateur | AP39: =Données!$C$41 -> Lave linge | AT39: =Données!$C$42 -> Sèche linge | AX39: =Données!$C$43 -> Fer à repasser | BB39: =Données!$C$44 -> Four / Plaques de cuisson | BF39: =Données!$C$45 -> Lave vaisselle | BJ39: =Données!$C$46 -> Téléviseur / Ordinateur | BN39: =Données!$C$47 -> Voiture électrique / Autre équipement | BT39: (attention formule différente par mois)
A40: Jour du mois | B40: Mois | C40: Date | D40: Heure de l'année | E40: Jour de la semaine | F40: Heure du jour | H40: Mois | I40: Jours | J40: Heures | K40: Puissance | L40: Mois | M40: Jours | N40: Heures | O40: Puissance | P40: Mois | Q40: Jours | R40: Heures | S40: Puissance | T40: Mois | U40: Jours | V40: Heures | W40: Chauffe eau fonctionne ? | X40: Durée sur la journée | Y40: Puissance | Z40: Mois | AA40: Jours | AB40: Heures | AC40: Puissance | AD40: Mois | AE40: Jours | AF40: Heures | AG40: Puissance | AH40: Mois | AI40: Jours | AJ40: Heures | AK40: Puissance | AL40: Mois | AM40: Jours | AN40: Heures | AO40: Puissance | AP40: Mois | AQ40: Jours | AR40: Heures | AS40: Puissance | AT40: Mois | AU40: Jours | AV40: Heures | AW40: Puissance | AX40: Mois | AY40: Jours | AZ40: Heures | BA40: Puissance | BB40: Mois | BC40: Jours | BD40: Heures | BE40: Puissance | BF40: Mois | BG40: Jours | BH40: Heures | BI40: Puissance | BJ40: Mois | BK40: Jours | BL40: Heures | BM40: Puissance | BN40: Mois | BO40: Jours | BP40: Heures | BQ40: Puissance | BR40: Consommation (kWh) | BS40: Energie produite par mois | BT40: Energie produite par heure | BU40: Energie autoconsommée | BV40: Energie injectée | BX40: Conso sans PV-0 | BY40: Elec injectée | BZ40: Soit injectée dans PV-O
A41: 1 | B41: Janvier | C41: =CONCATENATE(A41," ", B41) -> 1 Janvier | D41: 0 | E41: Lundi | F41: 0 | H41: =IF($B41=$F$25,$H$25,IF($B41=$F$26,$H$26,IF($B41=$F$27,$H$27,IF($B41=$F$28,$H$28,IF($B41=$F$29,$H$29,IF($B41=$F$30,$H$30,IF($B41=$F$31,$H$31,IF($B41=$F$32,$H$32,IF($B41=$F$33,$H$33,IF($B41=$F$34,$H$34,IF($B41=$F$35,$H$35,IF($B41=$F$36,$H$36,0)))))))))))) -> 1 | I41: =IF($E41=$F$17,$H$17,IF($E41=$F$18,$H$18,IF($E41=$F$19,$H$19,IF($E41=$F$20,$H$20,IF($E41=$F$21,$H$21,IF($E41=$F$22,$H$22,IF($E41=$F$23,$H$23,0))))))) -> 1 | J41: =VLOOKUP(F41,$Z$3:$AO$26,2,FALSE) -> 0 | K41: =IF($BY$13=$BX$33,0,IF(AND(H41=1,I41=1,J41=1),$BX$13*0.3,0)) -> 0 | L41: =IF($B41=$F$25,$I$25,IF($B41=$F$26,$I$26,IF($B41=$F$27,$I$27,IF($B41=$F$28,$I$28,IF($B41=$F$29,$I$29,IF($B41=$F$30,$I$30,IF($B41=$F$31,$I$31,IF($B41=$F$32,$I$32,IF($B41=$F$33,$I$33,IF($B41=$F$34,$I$34,IF($B41=$F$35,$I$35,IF($B41=$F$36,$I$36,0)))))))))))) -> 0 | M41: =IF($E41=$F$17,$I$17,IF($E41=$F$18,$I$18,IF($E41=$F$19,$I$19,IF($E41=$F$20,$I$20,IF($E41=$F$21,$I$21,IF($E41=$F$22,$I$22,IF($E41=$F$23,$I$23,0))))))) -> 1 | N41: =VLOOKUP(F41,$Z$3:$AO$26,3,FALSE) -> 0 | O41: =IF($BY$14=$BX$33,0,IF(AND(L41=1,M41=1,N41=1),$BX$14*0.3,0)) -> 0 | P41: =IF($B41=$F$25,$J$25,IF($B41=$F$26,$J$26,IF($B41=$F$27,$J$27,IF($B41=$F$28,$J$28,IF($B41=$F$29,$J$29,IF($B41=$F$30,$J$30,IF($B41=$F$31,$J$31,IF($B41=$F$32,$J$32,IF($B41=$F$33,$J$33,IF($B41=$F$34,$J$34,IF($B41=$F$35,$J$35,IF($B41=$F$36,$J$36,0)))))))))))) -> 1 | Q41: =IF($E41=$F$17,$J$17,IF($E41=$F$18,$J$18,IF($E41=$F$19,$J$19,IF($E41=$F$20,$J$20,IF($E41=$F$21,$J$21,IF($E41=$F$22,$J$22,IF($E41=$F$23,$J$23,0))))))) -> 1 | R41: =VLOOKUP(F41,$Z$3:$AO$26,4,FALSE) -> 0 | S41: =IF($BY$15=$BX$33,0,IF(AND(P41=1,Q41=1,R41=1),$BX$15*$AM$37,0)) -> 0 | T41: =IF($B41=$F$25,$K$25,IF($B41=$F$26,$K$26,IF($B41=$F$27,$K$27,IF($B41=$F$28,$K$28,IF($B41=$F$29,$K$29,IF($B41=$F$30,$K$30,IF($B41=$F$31,$K$31,IF($B41=$F$32,$K$32,IF($B41=$F$33,$K$33,IF($B41=$F$34,$K$34,IF($B41=$F$35,$K$35,IF($B41=$F$36,$K$36,0)))))))))))) -> 1 | U41: =IF($E41=$F$17,$K$17,IF($E41=$F$18,$K$18,IF($E41=$F$19,$K$19,IF($E41=$F$20,$K$20,IF($E41=$F$21,$K$21,IF($E41=$F$22,$K$22,IF($E41=$F$23,$K$23,0))))))) -> 1 | V41: =VLOOKUP(F41,$Z$3:$AO$26,5,FALSE) -> 1 | W41: =IF($BY$16=$BX$33,0,IF(AND(T41=1,U41=1,V41=1),1,0)) -> 0 | X41: =W41 -> 0 | Y41: =IF(OR(X41="",X41=0),0,IF(X41=$AM$32,$BX$16*(1-($AM$32-$AM$31)),$BX$16)) -> 0 | Z41: =IF($B41=$F$25,$L$25,IF($B41=$F$26,$L$26,IF($B41=$F$27,$L$27,IF($B41=$F$28,$L$28,IF($B41=$F$29,$L$29,IF($B41=$F$30,$L$30,IF($B41=$F$31,$L$31,IF($B41=$F$32,$L$32,IF($B41=$F$33,$L$33,IF($B41=$F$34,$L$34,IF($B41=$F$35,$L$35,IF($B41=$F$36,$L$36,0)))))))))))) -> 0 | AA41: =IF($E41=$F$17,$L$17,IF($E41=$F$18,$L$18,IF($E41=$F$19,$L$19,IF($E41=$F$20,$L$20,IF($E41=$F$21,$L$21,IF($E41=$F$22,$L$22,IF($E41=$F$23,$L$23,0))))))) -> 1 | AB41: =VLOOKUP(F41,$Z$3:$AO$26,6,FALSE) -> 1 | AC41: =IF($BY$18=$BX$33,0,IF(AND(Z41=1,AA41=1,AB41=1),$BX$18,0)) -> 0 | AD41: =IF($B41=$F$25,$M$25,IF($B41=$F$26,$M$26,IF($B41=$F$27,$M$27,IF($B41=$F$28,$M$28,IF($B41=$F$29,$M$29,IF($B41=$F$30,$M$30,IF($B41=$F$31,$M$31,IF($B41=$F$32,$M$32,IF($B41=$F$33,$M$33,IF($B41=$F$34,$M$34,IF($B41=$F$35,$M$35,IF($B41=$F$36,$M$36,0)))))))))))) -> 1 | AE41: =IF($E41=$F$17,$M$17,IF($E41=$F$18,$M$18,IF($E41=$F$19,$M$19,IF($E41=$F$20,$M$20,IF($E41=$F$21,$M$21,IF($E41=$F$22,$M$22,IF($E41=$F$23,$M$23,0))))))) -> 1 | AF41: =VLOOKUP(F41,$Z$3:$AO$26,7,FALSE) -> 1 | AG41: =IF($BY$19=$BX$33,0,IF(AND(AD41=1,AE41=1,AF41=1),$BX$19,0)) -> 0 | AH41: =IF($B41=$F$25,$N$25,IF($B41=$F$26,$N$26,IF($B41=$F$27,$N$27,IF($B41=$F$28,$N$28,IF($B41=$F$29,$N$29,IF($B41=$F$30,$N$30,IF($B41=$F$31,$N$31,IF($B41=$F$32,$N$32,IF($B41=$F$33,$N$33,IF($B41=$F$34,$N$34,IF($B41=$F$35,$N$35,IF($B41=$F$36,$N$36,0)))))))))))) -> 1 | AI41: =IF($E41=$F$17,$N$17,IF($E41=$F$18,$N$18,IF($E41=$F$19,$N$19,IF($E41=$F$20,$N$20,IF($E41=$F$21,$N$21,IF($E41=$F$22,$N$22,IF($E41=$F$23,$N$23,0))))))) -> 1 | AJ41: =VLOOKUP(F41,$Z$3:$AO$26,8,FALSE) -> 1 | AK41: =IF($BY$21=$BX$33,0,IF(AND(AH41=1,AI41=1,AJ41=1),$BX$21*0.5,0)) -> 75 | AL41: =IF($B41=$F$25,$O$25,IF($B41=$F$26,$O$26,IF($B41=$F$27,$O$27,IF($B41=$F$28,$O$28,IF($B41=$F$29,$O$29,IF($B41=$F$30,$O$30,IF($B41=$F$31,$O$31,IF($B41=$F$32,$O$32,IF($B41=$F$33,$O$33,IF($B41=$F$34,$O$34,IF($B41=$F$35,$O$35,IF($B41=$F$36,$O$36,0)))))))))))) -> 1 | AM41: =IF($E41=$F$17,$O$17,IF($E41=$F$18,$O$18,IF($E41=$F$19,$O$19,IF($E41=$F$20,$O$20,IF($E41=$F$21,$O$21,IF($E41=$F$22,$O$22,IF($E41=$F$23,$O$23,0))))))) -> 1 | AN41: =VLOOKUP(F41,$Z$3:$AO$26,9,FALSE) -> 1 | AO41: =IF($BY$22=$BX$33,0,IF(AND(AL41=1,AM41=1,AN41=1),$BX$22*0.5,0)) -> 0 | AP41: =IF($B41=$F$25,$P$25,IF($B41=$F$26,$P$26,IF($B41=$F$27,$P$27,IF($B41=$F$28,$P$28,IF($B41=$F$29,$P$29,IF($B41=$F$30,$P$30,IF($B41=$F$31,$P$31,IF($B41=$F$32,$P$32,IF($B41=$F$33,$P$33,IF($B41=$F$34,$P$34,IF($B41=$F$35,$P$35,IF($B41=$F$36,$P$36,0)))))))))))) -> 1 | AQ41: =IF($E41=$F$17,$P$17,IF($E41=$F$18,$P$18,IF($E41=$F$19,$P$19,IF($E41=$F$20,$P$20,IF($E41=$F$21,$P$21,IF($E41=$F$22,$P$22,IF($E41=$F$23,$P$23,0))))))) -> 0 | AR41: =VLOOKUP(F41,$Z$3:$AO$26,10,FALSE) -> 0 | AS41: =IF($BY$23=$BX$33,0,IF(AND(AP41=1,AQ41=1,AR41=1),$BX$23,0)) -> 0 | AT41: =IF($B41=$F$25,$Q$25,IF($B41=$F$26,$Q$26,IF($B41=$F$27,$Q$27,IF($B41=$F$28,$Q$28,IF($B41=$F$29,$Q$29,IF($B41=$F$30,$Q$30,IF($B41=$F$31,$Q$31,IF($B41=$F$32,$Q$32,IF($B41=$F$33,$Q$33,IF($B41=$F$34,$Q$34,IF($B41=$F$35,$Q$35,IF($B41=$F$36,$Q$36,0)))))))))))) -> 1 | AU41: =IF($E41=$F$17,$Q$17,IF($E41=$F$18,$Q$18,IF($E41=$F$19,$Q$19,IF($E41=$F$20,$Q$20,IF($E41=$F$21,$Q$21,IF($E41=$F$22,$Q$22,IF($E41=$F$23,$Q$23,0))))))) -> 0 | AV41: =VLOOKUP(F41,$Z$3:$AO$26,11,FALSE) -> 0 | AW41: =IF($BY$24=$BX$33,0,IF(AND(AT41=1,AU41=1,AV41=1),$BX$24,0)) -> 0 | AX41: =IF($B41=$F$25,$R$25,IF($B41=$F$26,$R$26,IF($B41=$F$27,$R$27,IF($B41=$F$28,$R$28,IF($B41=$F$29,$R$29,IF($B41=$F$30,$R$30,IF($B41=$F$31,$R$31,IF($B41=$F$32,$R$32,IF($B41=$F$33,$R$33,IF($B41=$F$34,$R$34,IF($B41=$F$35,$R$35,IF($B41=$F$36,$R$36,0)))))))))))) -> 1 | AY41: =IF($E41=$F$17,$R$17,IF($E41=$F$18,$R$18,IF($E41=$F$19,$R$19,IF($E41=$F$20,$R$20,IF($E41=$F$21,$R$21,IF($E41=$F$22,$R$22,IF($E41=$F$23,$R$23,0))))))) -> 0 | AZ41: =VLOOKUP(F41,$Z$3:$AO$26,12,FALSE) -> 0 | BA41: =IF($BY$25=$BX$33,0,IF(AND(AX41=1,AY41=1,AZ41=1),$BX$25,0)) -> 0 | BB41: =IF($B41=$F$25,$S$25,IF($B41=$F$26,$S$26,IF($B41=$F$27,$S$27,IF($B41=$F$28,$S$28,IF($B41=$F$29,$S$29,IF($B41=$F$30,$S$30,IF($B41=$F$31,$S$31,IF($B41=$F$32,$S$32,IF($B41=$F$33,$S$33,IF($B41=$F$34,$S$34,IF($B41=$F$35,$S$35,IF($B41=$F$36,$S$36,0)))))))))))) -> 1 | BC41: =IF($E41=$F$17,$S$17,IF($E41=$F$18,$S$18,IF($E41=$F$19,$S$19,IF($E41=$F$20,$S$20,IF($E41=$F$21,$S$21,IF($E41=$F$22,$S$22,IF($E41=$F$23,$S$23,0))))))) -> 1 | BD41: =VLOOKUP(F41,$Z$3:$AO$26,13,FALSE) -> 0 | BE41: =IF($BY$26=$BX$33,0,IF(AND(BB41=1,BC41=1,BD41=1),$BX$26,0)) -> 0 | BF41: =IF($B41=$F$25,$T$25,IF($B41=$F$26,$T$26,IF($B41=$F$27,$T$27,IF($B41=$F$28,$T$28,IF($B41=$F$29,$T$29,IF($B41=$F$30,$T$30,IF($B41=$F$31,$T$31,IF($B41=$F$32,$T$32,IF($B41=$F$33,$T$33,IF($B41=$F$34,$T$34,IF($B41=$F$35,$T$35,IF($B41=$F$36,$T$36,0)))))))))))) -> 1 | BG41: =IF($E41=$F$17,$T$17,IF($E41=$F$18,$T$18,IF($E41=$F$19,$T$19,IF($E41=$F$20,$T$20,IF($E41=$F$21,$T$21,IF($E41=$F$22,$T$22,IF($E41=$F$23,$T$23,0))))))) -> 1 | BH41: =VLOOKUP(F41,$Z$3:$AO$26,14,FALSE) -> 0 | BI41: =IF($BY$27=$BX$33,0,IF(AND(BF41=1,BG41=1,BH41=1),$BX$27,0)) -> 0 | BJ41: =IF($B41=$F$25,$U$25,IF($B41=$F$26,$U$26,IF($B41=$F$27,$U$27,IF($B41=$F$28,$U$28,IF($B41=$F$29,$U$29,IF($B41=$F$30,$U$30,IF($B41=$F$31,$U$31,IF($B41=$F$32,$U$32,IF($B41=$F$33,$U$33,IF($B41=$F$34,$U$34,IF($B41=$F$35,$U$35,IF($B41=$F$36,$U$36,0)))))))))))) -> 1 | BK41: =IF($E41=$F$17,$U$17,IF($E41=$F$18,$U$18,IF($E41=$F$19,$U$19,IF($E41=$F$20,$U$20,IF($E41=$F$21,$U$21,IF($E41=$F$22,$U$22,IF($E41=$F$23,$U$23,0))))))) -> 1 | BL41: =VLOOKUP(F41,$Z$3:$AO$26,15,FALSE) -> 0 | BM41: =IF($BY$28=$BX$33,0,IF(AND(BJ41=1,BK41=1,BL41=1),$BX$28,0)) -> 0 | BN41: =IF($B41=$F$25,$V$25,IF($B41=$F$26,$V$26,IF($B41=$F$27,$V$27,IF($B41=$F$28,$V$28,IF($B41=$F$29,$V$29,IF($B41=$F$30,$V$30,IF($B41=$F$31,$V$31,IF($B41=$F$32,$V$32,IF($B41=$F$33,$V$33,IF($B41=$F$34,$V$34,IF($B41=$F$35,$V$35,IF($B41=$F$36,$V$36,0)))))))))))) -> 0 | BO41: =IF($E41=$F$17,$V$17,IF($E41=$F$18,$V$18,IF($E41=$F$19,$V$19,IF($E41=$F$20,$V$20,IF($E41=$F$21,$V$21,IF($E41=$F$22,$V$22,IF($E41=$F$23,$V$23,0))))))) -> 0 | BP41: =VLOOKUP(F41,$Z$3:$AO$26,16,FALSE) -> 0 | BQ41: =IF($BY$29=$BX$33,0,IF(AND(BN41=1,BO41=1,BP41=1),$BX$29,0)) -> 0 | BR41: =(K41+O41+S41+Y41+AC41+AG41+AK41+AO41+AS41+AW41+BA41+BE41+BI41+BM41+BQ41)/1000 -> 0.075 | BS41: =IF(B41='Données méteo'!$E$107,'Données méteo'!$AF$104,IF(B41='Données méteo'!$F$107,'Données méteo'!$AG$104,IF(B41='Données méteo'!$G$107,'Données méteo'!$AH$104,IF(B41='Données méteo'!$H$107,'Données méteo'!$AI$104,IF(B41='Données méteo'!$I$107,'Données méteo'!$AJ$104,IF(B41='Données méteo'!$J$107,'Données méteo'!$AK$104,IF(B41='Données méteo'!$K$107,'Données méteo'!$AL$104,IF(B41='Données méteo'!$L$107,'Données méteo'!$AM$104,IF(B41='Données méteo'!$M$107,'Données méteo'!$AN$104,IF(B41='Données méteo'!$N$107,'Données méteo'!$AO$104,IF(B41='Données méteo'!$O$107,'Données méteo'!$AP$104,'Données méteo'!$AQ$104))))))))))) -> 116.6045175 | BT41: =BS41/31*VLOOKUP(F41,'Données méteo'!$C$108:$P$131,3,FALSE) -> 0 | BU41: =IF(BT41>BR41,BR41,BT41) -> 0 | BV41: =IF(BT41-BR41<0,0,BT41-BR41) -> 0 | BX41: =BR41-S41/1000 -> 0.075 | BY41: =IF(BT41-BX41<0,0,BT41-BX41) -> 0 | BZ41: =IF(BY41>S41/1000,S41/1000,BY41) -> 0
A42: =IF(F41=23,A41+1,A41) -> 1 | B42: Janvier | C42: =CONCATENATE(A42," ", B42) -> 1 Janvier | D42: 1 | E42: Lundi | F42: 1 | H42: 1 | I42: 1 | J42: =VLOOKUP(F42,$Z$3:$AO$26,2,FALSE) -> 0 | K42: 0 | L42: 0 | M42: 1 | N42: =VLOOKUP(F42,$Z$3:$AO$26,3,FALSE) -> 0 | O42: 0 | P42: 1 | Q42: 1 | R42: =VLOOKUP(F42,$Z$3:$AO$26,4,FALSE) -> 0 | S42: 0 | T42: 1 | U42: 1 | V42: =IF(OR(F42=6,F42=7),$K$4,IF(OR(F42=8,F42=9),$K$5,IF(OR(F42=10,F42=11),$K$6,IF(OR(F42=12,F42=13),$K$7,IF(OR(F42=14,F42=15),$K$8,IF(OR(F42=16,F42=17),$K$9,IF(OR(F42=18,F42=19),$K$10,IF(OR(F42=20,F42=21),$K$11,IF(OR(F42=22,F42=23),$K$12,IF(OR(F42=0,F42=1),$K$13,IF(OR(F42=2,F42=3),$K$14,IF(OR(F42=4,F42=5),$K$15,0)))))))))))) -> 1 | W42: 0 | X42: =IFERROR(IF(E42<>E41,W42,IF(W42+X41>$AM$32,"",W42+X41)),"") -> 0 | Y42: =IF(OR(X42="",X42=0),0,IF(X42=$AM$32,$BX$16*(1-($AM$32-$AM$31)),$BX$16)) -> 0 | Z42: 0 | AA42: 1 | AB42: =VLOOKUP(F42,$Z$3:$AO$26,6,FALSE) -> 1 | AC42: =IF($BY$18=$BX$33,0,IF(AND(Z42=1,AA42=1,AB42=1),$BX$18,0)) -> 0 | AD42: 1 | AE42: 1 | AF42: =VLOOKUP(F42,$Z$3:$AO$26,7,FALSE) -> 1 | AG42: 0 | AH42: 1 | AI42: 1 | AJ42: =VLOOKUP(F42,$Z$3:$AO$26,8,FALSE) -> 1 | AK42: 75 | AL42: 1 | AM42: 1 | AN42: =VLOOKUP(F42,$Z$3:$AO$26,9,FALSE) -> 1 | AO42: 0 | AP42: 1 | AQ42: 0 | AR42: =VLOOKUP(F42,$Z$3:$AO$26,10,FALSE) -> 0 | AS42: 0 | AT42: 1 | AU42: 0 | AV42: =VLOOKUP(F42,$Z$3:$AO$26,11,FALSE) -> 0 | AW42: 0 | AX42: 1 | AY42: 0 | AZ42: =VLOOKUP(F42,$Z$3:$AO$26,12,FALSE) -> 0 | BA42: 0 | BB42: 1 | BC42: 1 | BD42: =VLOOKUP(F42,$Z$3:$AO$26,13,FALSE) -> 0 | BE42: 0 | BF42: 1 | BG42: 1 | BH42: =VLOOKUP(F42,$Z$3:$AO$26,14,FALSE) -> 0 | BI42: 0 | BJ42: 1 | BK42: 1 | BL42: =VLOOKUP(F42,$Z$3:$AO$26,15,FALSE) -> 0 | BM42: 0 | BN42: 0 | BO42: 0 | BP42: =VLOOKUP(F42,$Z$3:$AO$26,16,FALSE) -> 0 | BQ42: 0 | BR42: =(K42+O42+S42+Y42+AC42+AG42+AK42+AO42+AS42+AW42+BA42+BE42+BI42+BM42+BQ42)/1000 -> 0.075 | BS42: =IF(B42='Données méteo'!$E$107,'Données méteo'!$AF$104,IF(B42='Données méteo'!$F$107,'Données méteo'!$AG$104,IF(B42='Données méteo'!$G$107,'Données méteo'!$AH$104,IF(B42='Données méteo'!$H$107,'Données méteo'!$AI$104,IF(B42='Données méteo'!$I$107,'Données méteo'!$AJ$104,IF(B42='Données méteo'!$J$107,'Données méteo'!$AK$104,IF(B42='Données méteo'!$K$107,'Données méteo'!$AL$104,IF(B42='Données méteo'!$L$107,'Données méteo'!$AM$104,IF(B42='Données méteo'!$M$107,'Données méteo'!$AN$104,IF(B42='Données méteo'!$N$107,'Données méteo'!$AO$104,IF(B42='Données méteo'!$O$107,'Données méteo'!$AP$104,'Données méteo'!$AQ$104))))))))))) -> 116.6045175 | BT42: =BS42/31*VLOOKUP(F42,'Données méteo'!$C$108:$P$131,3,FALSE) -> 0 | BU42: =IF(BT42>BR42,BR42,BT42) -> 0 | BV42: =IF(BT42-BR42<0,0,BT42-BR42) -> 0 | BX42: =BR42-S42/1000 -> 0.075 | BY42: =IF(BT42-BX42<0,0,BT42-BX42) -> 0 | BZ42: =IF(BY42>S42/1000,S42/1000,BY42) -> 0
A43: =IF(F42=23,A42+1,A42) -> 1 | B43: Janvier | C43: 1 Janvier | D43: 2 | E43: Lundi | F43: 2 | H43: 1 | I43: 1 | J43: 0 | K43: 0 | L43: 0 | M43: 1 | N43: 0 | O43: 0 | P43: 1 | Q43: 1 | R43: 0 | S43: 0 | T43: 1 | U43: 1 | V43: 1 | W43: 0 | X43: =IFERROR(IF(E43<>E42,W43,IF(W43+X42>$AM$32,"",W43+X42)),"") -> 0 | Y43: 0 | Z43: 0 | AA43: 1 | AB43: 1 | AC43: 0 | AD43: 1 | AE43: 1 | AF43: 1 | AG43: 0 | AH43: 1 | AI43: 1 | AJ43: 1 | AK43: 75 | AL43: 1 | AM43: 1 | AN43: 1 | AO43: 0 | AP43: 1 | AQ43: 0 | AR43: 0 | AS43: 0 | AT43: 1 | AU43: 0 | AV43: 0 | AW43: 0 | AX43: 1 | AY43: 0 | AZ43: 0 | BA43: 0 | BB43: 1 | BC43: 1 | BD43: 0 | BE43: 0 | BF43: 1 | BG43: 1 | BH43: 0 | BI43: 0 | BJ43: 1 | BK43: 1 | BL43: 0 | BM43: 0 | BN43: 0 | BO43: 0 | BP43: 0 | BQ43: 0 | BR43: 0.075 | BS43: =IF(B43='Données méteo'!$E$107,'Données méteo'!$AF$104,IF(B43='Données méteo'!$F$107,'Données méteo'!$AG$104,IF(B43='Données méteo'!$G$107,'Données méteo'!$AH$104,IF(B43='Données méteo'!$H$107,'Données méteo'!$AI$104,IF(B43='Données méteo'!$I$107,'Données méteo'!$AJ$104,IF(B43='Données méteo'!$J$107,'Données méteo'!$AK$104,IF(B43='Données méteo'!$K$107,'Données méteo'!$AL$104,IF(B43='Données méteo'!$L$107,'Données méteo'!$AM$104,IF(B43='Données méteo'!$M$107,'Données méteo'!$AN$104,IF(B43='Données méteo'!$N$107,'Données méteo'!$AO$104,IF(B43='Données méteo'!$O$107,'Données méteo'!$AP$104,'Données méteo'!$AQ$104))))))))))) -> 116.6045175 | BT43: =BS43/31*VLOOKUP(F43,'Données méteo'!$C$108:$P$131,3,FALSE) -> 0 | BU43: 0 | BV43: 0 | BX43: 0.075 | BY43: 0 | BZ43: 0
A44: 1 | B44: Janvier | C44: 1 Janvier | D44: 3 | E44: Lundi | F44: 3 | H44: 1 | I44: 1 | J44: 0 | K44: 0 | L44: 0 | M44: 1 | N44: 0 | O44: 0 | P44: 1 | Q44: 1 | R44: 0 | S44: 0 | T44: 1 | U44: 1 | V44: 1 | W44: 0 | X44: =IFERROR(IF(E44<>E43,W44,IF(W44+X43>$AM$32,"",W44+X43)),"") -> 0 | Y44: 0 | Z44: 0 | AA44: 1 | AB44: 1 | AC44: 0 | AD44: 1 | AE44: 1 | AF44: 1 | AG44: 0 | AH44: 1 | AI44: 1 | AJ44: 1 | AK44: 75 | AL44: 1 | AM44: 1 | AN44: 1 | AO44: 0 | AP44: 1 | AQ44: 0 | AR44: 0 | AS44: 0 | AT44: 1 | AU44: 0 | AV44: 0 | AW44: 0 | AX44: 1 | AY44: 0 | AZ44: 0 | BA44: 0 | BB44: 1 | BC44: 1 | BD44: 0 | BE44: 0 | BF44: 1 | BG44: 1 | BH44: 0 | BI44: 0 | BJ44: 1 | BK44: 1 | BL44: 0 | BM44: 0 | BN44: 0 | BO44: 0 | BP44: 0 | BQ44: 0 | BR44: 0.075 | BS44: =IF(B44='Données méteo'!$E$107,'Données méteo'!$AF$104,IF(B44='Données méteo'!$F$107,'Données méteo'!$AG$104,IF(B44='Données méteo'!$G$107,'Données méteo'!$AH$104,IF(B44='Données méteo'!$H$107,'Données méteo'!$AI$104,IF(B44='Données méteo'!$I$107,'Données méteo'!$AJ$104,IF(B44='Données méteo'!$J$107,'Données méteo'!$AK$104,IF(B44='Données méteo'!$K$107,'Données méteo'!$AL$104,IF(B44='Données méteo'!$L$107,'Données méteo'!$AM$104,IF(B44='Données méteo'!$M$107,'Données méteo'!$AN$104,IF(B44='Données méteo'!$N$107,'Données méteo'!$AO$104,IF(B44='Données méteo'!$O$107,'Données méteo'!$AP$104,'Données méteo'!$AQ$104))))))))))) -> 116.6045175 | BT44: =BS44/31*VLOOKUP(F44,'Données méteo'!$C$108:$P$131,3,FALSE) -> 0 | BU44: 0 | BV44: 0 | BX44: 0.075 | BY44: 0 | BZ44: 0
A45: 1 | B45: Janvier | C45: 1 Janvier | D45: 4 | E45: Lundi | F45: 4 | H45: 1 | I45: 1 | J45: 0 | K45: 0 | L45: 0 | M45: 1 | N45: 0 | O45: 0 | P45: 1 | Q45: 1 | R45: 0 | S45: 0 | T45: 1 | U45: 1 | V45: 1 | W45: 0 | X45: 0 | Y45: 0 | Z45: 0 | AA45: 1 | AB45: 1 | AC45: 0 | AD45: 1 | AE45: 1 | AF45: 1 | AG45: 0 | AH45: 1 | AI45: 1 | AJ45: 1 | AK45: 75 | AL45: 1 | AM45: 1 | AN45: 1 | AO45: 0 | AP45: 1 | AQ45: 0 | AR45: 0 | AS45: 0 | AT45: 1 | AU45: 0 | AV45: 0 | AW45: 0 | AX45: 1 | AY45: 0 | AZ45: 0 | BA45: 0 | BB45: 1 | BC45: 1 | BD45: 0 | BE45: 0 | BF45: 1 | BG45: 1 | BH45: 0 | BI45: 0 | BJ45: 1 | BK45: 1 | BL45: 0 | BM45: 0 | BN45: 0 | BO45: 0 | BP45: 0 | BQ45: 0 | BR45: 0.075 | BS45: =IF(B45='Données méteo'!$E$107,'Données méteo'!$AF$104,IF(B45='Données méteo'!$F$107,'Données méteo'!$AG$104,IF(B45='Données méteo'!$G$107,'Données méteo'!$AH$104,IF(B45='Données méteo'!$H$107,'Données méteo'!$AI$104,IF(B45='Données méteo'!$I$107,'Données méteo'!$AJ$104,IF(B45='Données méteo'!$J$107,'Données méteo'!$AK$104,IF(B45='Données méteo'!$K$107,'Données méteo'!$AL$104,IF(B45='Données méteo'!$L$107,'Données méteo'!$AM$104,IF(B45='Données méteo'!$M$107,'Données méteo'!$AN$104,IF(B45='Données méteo'!$N$107,'Données méteo'!$AO$104,IF(B45='Données méteo'!$O$107,'Données méteo'!$AP$104,'Données méteo'!$AQ$104))))))))))) -> 116.6045175 | BT45: =BS45/31*VLOOKUP(F45,'Données méteo'!$C$108:$P$131,3,FALSE) -> 0 | BU45: 0 | BV45: 0 | BX45: 0.075 | BY45: 0 | BZ45: 0
A46: 1 | B46: Janvier | C46: 1 Janvier | D46: 5 | E46: Lundi | F46: 5 | H46: 1 | I46: 1 | J46: 0 | K46: 0 | L46: 0 | M46: 1 | N46: 0 | O46: 0 | P46: 1 | Q46: 1 | R46: 0 | S46: 0 | T46: 1 | U46: 1 | V46: 1 | W46: 0 | X46: 0 | Y46: 0 | Z46: 0 | AA46: 1 | AB46: 1 | AC46: 0 | AD46: 1 | AE46: 1 | AF46: 1 | AG46: 0 | AH46: 1 | AI46: 1 | AJ46: 1 | AK46: 75 | AL46: 1 | AM46: 1 | AN46: 1 | AO46: 0 | AP46: 1 | AQ46: 0 | AR46: 0 | AS46: 0 | AT46: 1 | AU46: 0 | AV46: 0 | AW46: 0 | AX46: 1 | AY46: 0 | AZ46: 0 | BA46: 0 | BB46: 1 | BC46: 1 | BD46: 0 | BE46: 0 | BF46: 1 | BG46: 1 | BH46: 0 | BI46: 0 | BJ46: 1 | BK46: 1 | BL46: 0 | BM46: 0 | BN46: 0 | BO46: 0 | BP46: 0 | BQ46: 0 | BR46: 0.075 | BS46: =IF(B46='Données méteo'!$E$107,'Données méteo'!$AF$104,IF(B46='Données méteo'!$F$107,'Données méteo'!$AG$104,IF(B46='Données méteo'!$G$107,'Données méteo'!$AH$104,IF(B46='Données méteo'!$H$107,'Données méteo'!$AI$104,IF(B46='Données méteo'!$I$107,'Données méteo'!$AJ$104,IF(B46='Données méteo'!$J$107,'Données méteo'!$AK$104,IF(B46='Données méteo'!$K$107,'Données méteo'!$AL$104,IF(B46='Données méteo'!$L$107,'Données méteo'!$AM$104,IF(B46='Données méteo'!$M$107,'Données méteo'!$AN$104,IF(B46='Données méteo'!$N$107,'Données méteo'!$AO$104,IF(B46='Données méteo'!$O$107,'Données méteo'!$AP$104,'Données méteo'!$AQ$104))))))))))) -> 116.6045175 | BT46: =BS46/31*VLOOKUP(F46,'Données méteo'!$C$108:$P$131,3,FALSE) -> 0 | BU46: 0 | BV46: 0 | BX46: 0.075 | BY46: 0 | BZ46: 0
A47: 1 | B47: Janvier | C47: 1 Janvier | D47: 6 | E47: Lundi | F47: 6 | H47: 1 | I47: 1 | J47: 1 | K47: 900 | L47: 0 | M47: 1 | N47: 0 | O47: 0 | P47: 1 | Q47: 1 | R47: 0 | S47: 0 | T47: 1 | U47: 1 | V47: 1 | W47: 0 | X47: 0 | Y47: 0 | Z47: 0 | AA47: 1 | AB47: 1 | AC47: 0 | AD47: 1 | AE47: 1 | AF47: 1 | AG47: 0 | AH47: 1 | AI47: 1 | AJ47: 1 | AK47: 75 | AL47: 1 | AM47: 1 | AN47: 1 | AO47: 0 | AP47: 1 | AQ47: 0 | AR47: 0 | AS47: 0 | AT47: 1 | AU47: 0 | AV47: 0 | AW47: 0 | AX47: 1 | AY47: 0 | AZ47: 0 | BA47: 0 | BB47: 1 | BC47: 1 | BD47: 0 | BE47: 0 | BF47: 1 | BG47: 1 | BH47: 0 | BI47: 0 | BJ47: 1 | BK47: 1 | BL47: 0 | BM47: 0 | BN47: 0 | BO47: 0 | BP47: 0 | BQ47: 0 | BR47: 0.975 | BS47: =IF(B47='Données méteo'!$E$107,'Données méteo'!$AF$104,IF(B47='Données méteo'!$F$107,'Données méteo'!$AG$104,IF(B47='Données méteo'!$G$107,'Données méteo'!$AH$104,IF(B47='Données méteo'!$H$107,'Données méteo'!$AI$104,IF(B47='Données méteo'!$I$107,'Données méteo'!$AJ$104,IF(B47='Données méteo'!$J$107,'Données méteo'!$AK$104,IF(B47='Données méteo'!$K$107,'Données méteo'!$AL$104,IF(B47='Données méteo'!$L$107,'Données méteo'!$AM$104,IF(B47='Données méteo'!$M$107,'Données méteo'!$AN$104,IF(B47='Données méteo'!$N$107,'Données méteo'!$AO$104,IF(B47='Données méteo'!$O$107,'Données méteo'!$AP$104,'Données méteo'!$AQ$104))))))))))) -> 116.6045175 | BT47: =BS47/31*VLOOKUP(F47,'Données méteo'!$C$108:$P$131,3,FALSE) -> 0 | BU47: 0 | BV47: 0 | BX47: 0.975 | BY47: 0 | BZ47: 0
A48: 1 | B48: Janvier | C48: 1 Janvier | D48: 7 | E48: Lundi | F48: 7 | H48: 1 | I48: 1 | J48: 1 | K48: 900 | L48: 0 | M48: 1 | N48: 0 | O48: 0 | P48: 1 | Q48: 1 | R48: 0 | S48: 0 | T48: 1 | U48: 1 | V48: 1 | W48: 0 | X48: 0 | Y48: 0 | Z48: 0 | AA48: 1 | AB48: 1 | AC48: 0 | AD48: 1 | AE48: 1 | AF48: 1 | AG48: 0 | AH48: 1 | AI48: 1 | AJ48: 1 | AK48: 75 | AL48: 1 | AM48: 1 | AN48: 1 | AO48: 0 | AP48: 1 | AQ48: 0 | AR48: 0 | AS48: 0 | AT48: 1 | AU48: 0 | AV48: 0 | AW48: 0 | AX48: 1 | AY48: 0 | AZ48: 0 | BA48: 0 | BB48: 1 | BC48: 1 | BD48: 0 | BE48: 0 | BF48: 1 | BG48: 1 | BH48: 0 | BI48: 0 | BJ48: 1 | BK48: 1 | BL48: 0 | BM48: 0 | BN48: 0 | BO48: 0 | BP48: 0 | BQ48: 0 | BR48: 0.975 | BS48: =IF(B48='Données méteo'!$E$107,'Données méteo'!$AF$104,IF(B48='Données méteo'!$F$107,'Données méteo'!$AG$104,IF(B48='Données méteo'!$G$107,'Données méteo'!$AH$104,IF(B48='Données méteo'!$H$107,'Données méteo'!$AI$104,IF(B48='Données méteo'!$I$107,'Données méteo'!$AJ$104,IF(B48='Données méteo'!$J$107,'Données méteo'!$AK$104,IF(B48='Données méteo'!$K$107,'Données méteo'!$AL$104,IF(B48='Données méteo'!$L$107,'Données méteo'!$AM$104,IF(B48='Données méteo'!$M$107,'Données méteo'!$AN$104,IF(B48='Données méteo'!$N$107,'Données méteo'!$AO$104,IF(B48='Données méteo'!$O$107,'Données méteo'!$AP$104,'Données méteo'!$AQ$104))))))))))) -> 116.6045175 | BT48: =BS48/31*VLOOKUP(F48,'Données méteo'!$C$108:$P$131,3,FALSE) -> 0 | BU48: 0 | BV48: 0 | BX48: 0.975 | BY48: 0 | BZ48: 0
A49: 1 | B49: Janvier | C49: 1 Janvier | D49: 8 | E49: Lundi | F49: 8 | H49: 1 | I49: 1 | J49: 0 | K49: 0 | L49: 0 | M49: 1 | N49: 0 | O49: 0 | P49: 1 | Q49: 1 | R49: 1 | S49: 580 | T49: 1 | U49: 1 | V49: 1 | W49: 0 | X49: 0 | Y49: 0 | Z49: 0 | AA49: 1 | AB49: 1 | AC49: 0 | AD49: 1 | AE49: 1 | AF49: 1 | AG49: 0 | AH49: 1 | AI49: 1 | AJ49: 1 | AK49: 75 | AL49: 1 | AM49: 1 | AN49: 1 | AO49: 0 | AP49: 1 | AQ49: 0 | AR49: 0 | AS49: 0 | AT49: 1 | AU49: 0 | AV49: 0 | AW49: 0 | AX49: 1 | AY49: 0 | AZ49: 0 | BA49: 0 | BB49: 1 | BC49: 1 | BD49: 0 | BE49: 0 | BF49: 1 | BG49: 1 | BH49: 0 | BI49: 0 | BJ49: 1 | BK49: 1 | BL49: 0 | BM49: 0 | BN49: 0 | BO49: 0 | BP49: 0 | BQ49: 0 | BR49: 0.655 | BS49: =IF(B49='Données méteo'!$E$107,'Données méteo'!$AF$104,IF(B49='Données méteo'!$F$107,'Données méteo'!$AG$104,IF(B49='Données méteo'!$G$107,'Données méteo'!$AH$104,IF(B49='Données méteo'!$H$107,'Données méteo'!$AI$104,IF(B49='Données méteo'!$I$107,'Données méteo'!$AJ$104,IF(B49='Données méteo'!$J$107,'Données méteo'!$AK$104,IF(B49='Données méteo'!$K$107,'Données méteo'!$AL$104,IF(B49='Données méteo'!$L$107,'Données méteo'!$AM$104,IF(B49='Données méteo'!$M$107,'Données méteo'!$AN$104,IF(B49='Données méteo'!$N$107,'Données méteo'!$AO$104,IF(B49='Données méteo'!$O$107,'Données méteo'!$AP$104,'Données méteo'!$AQ$104))))))))))) -> 116.6045175 | BT49: =BS49/31*VLOOKUP(F49,'Données méteo'!$C$108:$P$131,3,FALSE) -> 0 | BU49: 0 | BV49: 0 | BX49: 0.075 | BY49: 0 | BZ49: 0
A50: 1 | B50: Janvier | C50: 1 Janvier | D50: 9 | E50: Lundi | F50: 9 | H50: 1 | I50: 1 | J50: 0 | K50: 0 | L50: 0 | M50: 1 | N50: 0 | O50: 0 | P50: 1 | Q50: 1 | R50: 1 | S50: 580 | T50: 1 | U50: 1 | V50: 1 | W50: 0 | X50: 0 | Y50: 0 | Z50: 0 | AA50: 1 | AB50: 1 | AC50: 0 | AD50: 1 | AE50: 1 | AF50: 1 | AG50: 0 | AH50: 1 | AI50: 1 | AJ50: 1 | AK50: 75 | AL50: 1 | AM50: 1 | AN50: 1 | AO50: 0 | AP50: 1 | AQ50: 0 | AR50: 0 | AS50: 0 | AT50: 1 | AU50: 0 | AV50: 0 | AW50: 0 | AX50: 1 | AY50: 0 | AZ50: 0 | BA50: 0 | BB50: 1 | BC50: 1 | BD50: 0 | BE50: 0 | BF50: 1 | BG50: 1 | BH50: 0 | BI50: 0 | BJ50: 1 | BK50: 1 | BL50: 0 | BM50: 0 | BN50: 0 | BO50: 0 | BP50: 0 | BQ50: 0 | BR50: 0.655 | BS50: =IF(B50='Données méteo'!$E$107,'Données méteo'!$AF$104,IF(B50='Données méteo'!$F$107,'Données méteo'!$AG$104,IF(B50='Données méteo'!$G$107,'Données méteo'!$AH$104,IF(B50='Données méteo'!$H$107,'Données méteo'!$AI$104,IF(B50='Données méteo'!$I$107,'Données méteo'!$AJ$104,IF(B50='Données méteo'!$J$107,'Données méteo'!$AK$104,IF(B50='Données méteo'!$K$107,'Données méteo'!$AL$104,IF(B50='Données méteo'!$L$107,'Données méteo'!$AM$104,IF(B50='Données méteo'!$M$107,'Données méteo'!$AN$104,IF(B50='Données méteo'!$N$107,'Données méteo'!$AO$104,IF(B50='Données méteo'!$O$107,'Données méteo'!$AP$104,'Données méteo'!$AQ$104))))))))))) -> 116.6045175 | BT50: =BS50/31*VLOOKUP(F50,'Données méteo'!$C$108:$P$131,3,FALSE) -> 0.1504574419 | BU50: 0.1504574419 | BV50: 0 | BX50: 0.075 | BY50: 0.07545744188 | BZ50: 0.07545744188
A51: 1 | B51: Janvier | C51: 1 Janvier | D51: 10 | E51: Lundi | F51: 10 | H51: 1 | I51: 1 | J51: 0 | K51: 0 | L51: 0 | M51: 1 | N51: 0 | O51: 0 | P51: 1 | Q51: 1 | R51: 1 | S51: 580 | T51: 1 | U51: 1 | V51: 1 | W51: 0 | X51: 0 | Y51: 0 | Z51: 0 | AA51: 1 | AB51: 1 | AC51: 0 | AD51: 1 | AE51: 1 | AF51: 1 | AG51: 0 | AH51: 1 | AI51: 1 | AJ51: 1 | AK51: 75 | AL51: 1 | AM51: 1 | AN51: 1 | AO51: 0 | AP51: 1 | AQ51: 0 | AR51: 0 | AS51: 0 | AT51: 1 | AU51: 0 | AV51: 0 | AW51: 0 | AX51: 1 | AY51: 0 | AZ51: 0 | BA51: 0 | BB51: 1 | BC51: 1 | BD51: 0 | BE51: 0 | BF51: 1 | BG51: 1 | BH51: 0 | BI51: 0 | BJ51: 1 | BK51: 1 | BL51: 0 | BM51: 0 | BN51: 0 | BO51: 0 | BP51: 0 | BQ51: 0 | BR51: 0.655 | BS51: =IF(B51='Données méteo'!$E$107,'Données méteo'!$AF$104,IF(B51='Données méteo'!$F$107,'Données méteo'!$AG$104,IF(B51='Données méteo'!$G$107,'Données méteo'!$AH$104,IF(B51='Données méteo'!$H$107,'Données méteo'!$AI$104,IF(B51='Données méteo'!$I$107,'Données méteo'!$AJ$104,IF(B51='Données méteo'!$J$107,'Données méteo'!$AK$104,IF(B51='Données méteo'!$K$107,'Données méteo'!$AL$104,IF(B51='Données méteo'!$L$107,'Données méteo'!$AM$104,IF(B51='Données méteo'!$M$107,'Données méteo'!$AN$104,IF(B51='Données méteo'!$N$107,'Données méteo'!$AO$104,IF(B51='Données méteo'!$O$107,'Données méteo'!$AP$104,'Données méteo'!$AQ$104))))))))))) -> 116.6045175 | BT51: =BS51/31*VLOOKUP(F51,'Données méteo'!$C$108:$P$131,3,FALSE) -> 0.3761436047 | BU51: 0.3761436047 | BV51: 0 | BX51: 0.075 | BY51: 0.3011436047 | BZ51: 0.3011436047
A52: 1 | B52: Janvier | C52: 1 Janvier | D52: 11 | E52: Lundi | F52: 11 | H52: 1 | I52: 1 | J52: 0 | K52: 0 | L52: 0 | M52: 1 | N52: 0 | O52: 0 | P52: 1 | Q52: 1 | R52: 1 | S52: 580 | T52: 1 | U52: 1 | V52: 1 | W52: 0 | X52: 0 | Y52: 0 | Z52: 0 | AA52: 1 | AB52: 1 | AC52: 0 | AD52: 1 | AE52: 1 | AF52: 1 | AG52: 0 | AH52: 1 | AI52: 1 | AJ52: 1 | AK52: 75 | AL52: 1 | AM52: 1 | AN52: 1 | AO52: 0 | AP52: 1 | AQ52: 0 | AR52: 0 | AS52: 0 | AT52: 1 | AU52: 0 | AV52: 0 | AW52: 0 | AX52: 1 | AY52: 0 | AZ52: 0 | BA52: 0 | BB52: 1 | BC52: 1 | BD52: 0 | BE52: 0 | BF52: 1 | BG52: 1 | BH52: 0 | BI52: 0 | BJ52: 1 | BK52: 1 | BL52: 0 | BM52: 0 | BN52: 0 | BO52: 0 | BP52: 0 | BQ52: 0 | BR52: 0.655 | BS52: =IF(B52='Données méteo'!$E$107,'Données méteo'!$AF$104,IF(B52='Données méteo'!$F$107,'Données méteo'!$AG$104,IF(B52='Données méteo'!$G$107,'Données méteo'!$AH$104,IF(B52='Données méteo'!$H$107,'Données méteo'!$AI$104,IF(B52='Données méteo'!$I$107,'Données méteo'!$AJ$104,IF(B52='Données méteo'!$J$107,'Données méteo'!$AK$104,IF(B52='Données méteo'!$K$107,'Données méteo'!$AL$104,IF(B52='Données méteo'!$L$107,'Données méteo'!$AM$104,IF(B52='Données méteo'!$M$107,'Données méteo'!$AN$104,IF(B52='Données méteo'!$N$107,'Données méteo'!$AO$104,IF(B52='Données méteo'!$O$107,'Données méteo'!$AP$104,'Données méteo'!$AQ$104))))))))))) -> 116.6045175 | BT52: =BS52/31*VLOOKUP(F52,'Données méteo'!$C$108:$P$131,3,FALSE) -> 0.7522872094 | BU52: 0.655 | BV52: 0.09728720938 | BX52: 0.075 | BY52: 0.6772872094 | BZ52: 0.58
A53: 1 | B53: Janvier | C53: 1 Janvier | D53: 12 | E53: Lundi | F53: 12 | H53: 1 | I53: 1 | J53: 0 | K53: 0 | L53: 0 | M53: 1 | N53: 0 | O53: 0 | P53: 1 | Q53: 1 | R53: 1 | S53: 580 | T53: 1 | U53: 1 | V53: 1 | W53: 0 | X53: 0 | Y53: 0 | Z53: 0 | AA53: 1 | AB53: 1 | AC53: 0 | AD53: 1 | AE53: 1 | AF53: 1 | AG53: 0 | AH53: 1 | AI53: 1 | AJ53: 1 | AK53: 75 | AL53: 1 | AM53: 1 | AN53: 1 | AO53: 0 | AP53: 1 | AQ53: 0 | AR53: 0 | AS53: 0 | AT53: 1 | AU53: 0 | AV53: 0 | AW53: 0 | AX53: 1 | AY53: 0 | AZ53: 0 | BA53: 0 | BB53: 1 | BC53: 1 | BD53: 0 | BE53: 0 | BF53: 1 | BG53: 1 | BH53: 1 | BI53: 850 | BJ53: 1 | BK53: 1 | BL53: 0 | BM53: 0 | BN53: 0 | BO53: 0 | BP53: 0 | BQ53: 0 | BR53: 1.505 | BS53: =IF(B53='Données méteo'!$E$107,'Données méteo'!$AF$104,IF(B53='Données méteo'!$F$107,'Données méteo'!$AG$104,IF(B53='Données méteo'!$G$107,'Données méteo'!$AH$104,IF(B53='Données méteo'!$H$107,'Données méteo'!$AI$104,IF(B53='Données méteo'!$I$107,'Données méteo'!$AJ$104,IF(B53='Données méteo'!$J$107,'Données méteo'!$AK$104,IF(B53='Données méteo'!$K$107,'Données méteo'!$AL$104,IF(B53='Données méteo'!$L$107,'Données méteo'!$AM$104,IF(B53='Données méteo'!$M$107,'Données méteo'!$AN$104,IF(B53='Données méteo'!$N$107,'Données méteo'!$AO$104,IF(B53='Données méteo'!$O$107,'Données méteo'!$AP$104,'Données méteo'!$AQ$104))))))))))) -> 116.6045175 | BT53: =BS53/31*VLOOKUP(F53,'Données méteo'!$C$108:$P$131,3,FALSE) -> 0.9403590117 | BU53: 0.9403590117 | BV53: 0 | BX53: 0.925 | BY53: 0.01535901172 | BZ53: 0.01535901172
A54: 1 | B54: Janvier | C54: 1 Janvier | D54: 13 | E54: Lundi | F54: 13 | H54: 1 | I54: 1 | J54: 0 | K54: 0 | L54: 0 | M54: 1 | N54: 0 | O54: 0 | P54: 1 | Q54: 1 | R54: 1 | S54: 580 | T54: 1 | U54: 1 | V54: 1 | W54: 0 | X54: 0 | Y54: 0 | Z54: 0 | AA54: 1 | AB54: 1 | AC54: 0 | AD54: 1 | AE54: 1 | AF54: 1 | AG54: 0 | AH54: 1 | AI54: 1 | AJ54: 1 | AK54: 75 | AL54: 1 | AM54: 1 | AN54: 1 | AO54: 0 | AP54: 1 | AQ54: 0 | AR54: 0 | AS54: 0 | AT54: 1 | AU54: 0 | AV54: 0 | AW54: 0 | AX54: 1 | AY54: 0 | AZ54: 0 | BA54: 0 | BB54: 1 | BC54: 1 | BD54: 0 | BE54: 0 | BF54: 1 | BG54: 1 | BH54: 1 | BI54: 850 | BJ54: 1 | BK54: 1 | BL54: 0 | BM54: 0 | BN54: 0 | BO54: 0 | BP54: 0 | BQ54: 0 | BR54: 1.505 | BS54: =IF(B54='Données méteo'!$E$107,'Données méteo'!$AF$104,IF(B54='Données méteo'!$F$107,'Données méteo'!$AG$104,IF(B54='Données méteo'!$G$107,'Données méteo'!$AH$104,IF(B54='Données méteo'!$H$107,'Données méteo'!$AI$104,IF(B54='Données méteo'!$I$107,'Données méteo'!$AJ$104,IF(B54='Données méteo'!$J$107,'Données méteo'!$AK$104,IF(B54='Données méteo'!$K$107,'Données méteo'!$AL$104,IF(B54='Données méteo'!$L$107,'Données méteo'!$AM$104,IF(B54='Données méteo'!$M$107,'Données méteo'!$AN$104,IF(B54='Données méteo'!$N$107,'Données méteo'!$AO$104,IF(B54='Données méteo'!$O$107,'Données méteo'!$AP$104,'Données méteo'!$AQ$104))))))))))) -> 116.6045175 | BT54: =BS54/31*VLOOKUP(F54,'Données méteo'!$C$108:$P$131,3,FALSE) -> 0.8275159303 | BU54: 0.8275159303 | BV54: 0 | BX54: 0.925 | BY54: 0 | BZ54: 0
A55: 1 | B55: Janvier | C55: 1 Janvier | D55: 14 | E55: Lundi | F55: 14 | H55: 1 | I55: 1 | J55: 0 | K55: 0 | L55: 0 | M55: 1 | N55: 1 | O55: 0 | P55: 1 | Q55: 1 | R55: 1 | S55: 580 | T55: 1 | U55: 1 | V55: 1 | W55: 0 | X55: 0 | Y55: 0 | Z55: 0 | AA55: 1 | AB55: 1 | AC55: 0 | AD55: 1 | AE55: 1 | AF55: 1 | AG55: 0 | AH55: 1 | AI55: 1 | AJ55: 1 | AK55: 75 | AL55: 1 | AM55: 1 | AN55: 1 | AO55: 0 | AP55: 1 | AQ55: 0 | AR55: 1 | AS55: 0 | AT55: 1 | AU55: 0 | AV55: 0 | AW55: 0 | AX55: 1 | AY55: 0 | AZ55: 0 | BA55: 0 | BB55: 1 | BC55: 1 | BD55: 0 | BE55: 0 | BF55: 1 | BG55: 1 | BH55: 0 | BI55: 0 | BJ55: 1 | BK55: 1 | BL55: 0 | BM55: 0 | BN55: 0 | BO55: 0 | BP55: 0 | BQ55: 0 | BR55: 0.655 | BS55: =IF(B55='Données méteo'!$E$107,'Données méteo'!$AF$104,IF(B55='Données méteo'!$F$107,'Données méteo'!$AG$104,IF(B55='Données méteo'!$G$107,'Données méteo'!$AH$104,IF(B55='Données méteo'!$H$107,'Données méteo'!$AI$104,IF(B55='Données méteo'!$I$107,'Données méteo'!$AJ$104,IF(B55='Données méteo'!$J$107,'Données méteo'!$AK$104,IF(B55='Données méteo'!$K$107,'Données méteo'!$AL$104,IF(B55='Données méteo'!$L$107,'Données méteo'!$AM$104,IF(B55='Données méteo'!$M$107,'Données méteo'!$AN$104,IF(B55='Données méteo'!$N$107,'Données méteo'!$AO$104,IF(B55='Données méteo'!$O$107,'Données méteo'!$AP$104,'Données méteo'!$AQ$104))))))))))) -> 116.6045175 | BT55: =BS55/31*VLOOKUP(F55,'Données méteo'!$C$108:$P$131,3,FALSE) -> 0.3761436047 | BU55: 0.3761436047 | BV55: 0 | BX55: 0.075 | BY55: 0.3011436047 | BZ55: 0.3011436047
A56: 1 | B56: Janvier | C56: 1 Janvier | D56: 15 | E56: Lundi | F56: 15 | H56: 1 | I56: 1 | J56: 0 | K56: 0 | L56: 0 | M56: 1 | N56: 1 | O56: 0 | P56: 1 | Q56: 1 | R56: 1 | S56: 580 | T56: 1 | U56: 1 | V56: 1 | W56: 0 | X56: 0 | Y56: 0 | Z56: 0 | AA56: 1 | AB56: 1 | AC56: 0 | AD56: 1 | AE56: 1 | AF56: 1 | AG56: 0 | AH56: 1 | AI56: 1 | AJ56: 1 | AK56: 75 | AL56: 1 | AM56: 1 | AN56: 1 | AO56: 0 | AP56: 1 | AQ56: 0 | AR56: 1 | AS56: 0 | AT56: 1 | AU56: 0 | AV56: 0 | AW56: 0 | AX56: 1 | AY56: 0 | AZ56: 0 | BA56: 0 | BB56: 1 | BC56: 1 | BD56: 0 | BE56: 0 | BF56: 1 | BG56: 1 | BH56: 0 | BI56: 0 | BJ56: 1 | BK56: 1 | BL56: 0 | BM56: 0 | BN56: 0 | BO56: 0 | BP56: 0 | BQ56: 0 | BR56: 0.655 | BS56: =IF(B56='Données méteo'!$E$107,'Données méteo'!$AF$104,IF(B56='Données méteo'!$F$107,'Données méteo'!$AG$104,IF(B56='Données méteo'!$G$107,'Données méteo'!$AH$104,IF(B56='Données méteo'!$H$107,'Données méteo'!$AI$104,IF(B56='Données méteo'!$I$107,'Données méteo'!$AJ$104,IF(B56='Données méteo'!$J$107,'Données méteo'!$AK$104,IF(B56='Données méteo'!$K$107,'Données méteo'!$AL$104,IF(B56='Données méteo'!$L$107,'Données méteo'!$AM$104,IF(B56='Données méteo'!$M$107,'Données méteo'!$AN$104,IF(B56='Données méteo'!$N$107,'Données méteo'!$AO$104,IF(B56='Données méteo'!$O$107,'Données méteo'!$AP$104,'Données méteo'!$AQ$104))))))))))) -> 116.6045175 | BT56: =BS56/31*VLOOKUP(F56,'Données méteo'!$C$108:$P$131,3,FALSE) -> 0.1880718023 | BU56: 0.1880718023 | BV56: 0 | BX56: 0.075 | BY56: 0.1130718023 | BZ56: 0.1130718023
A57: 1 | B57: Janvier | C57: 1 Janvier | D57: 16 | E57: Lundi | F57: 16 | H57: 1 | I57: 1 | J57: 1 | K57: 900 | L57: 0 | M57: 1 | N57: 1 | O57: 0 | P57: 1 | Q57: 1 | R57: 1 | S57: 580 | T57: 1 | U57: 1 | V57: 1 | W57: 0 | X57: 0 | Y57: 0 | Z57: 0 | AA57: 1 | AB57: 1 | AC57: 0 | AD57: 1 | AE57: 1 | AF57: 1 | AG57: 0 | AH57: 1 | AI57: 1 | AJ57: 1 | AK57: 75 | AL57: 1 | AM57: 1 | AN57: 1 | AO57: 0 | AP57: 1 | AQ57: 0 | AR57: 0 | AS57: 0 | AT57: 1 | AU57: 0 | AV57: 1 | AW57: 0 | AX57: 1 | AY57: 0 | AZ57: 1 | BA57: 0 | BB57: 1 | BC57: 1 | BD57: 0 | BE57: 0 | BF57: 1 | BG57: 1 | BH57: 0 | BI57: 0 | BJ57: 1 | BK57: 1 | BL57: 0 | BM57: 0 | BN57: 0 | BO57: 0 | BP57: 0 | BQ57: 0 | BR57: 1.555 | BS57: =IF(B57='Données méteo'!$E$107,'Données méteo'!$AF$104,IF(B57='Données méteo'!$F$107,'Données méteo'!$AG$104,IF(B57='Données méteo'!$G$107,'Données méteo'!$AH$104,IF(B57='Données méteo'!$H$107,'Données méteo'!$AI$104,IF(B57='Données méteo'!$I$107,'Données méteo'!$AJ$104,IF(B57='Données méteo'!$J$107,'Données méteo'!$AK$104,IF(B57='Données méteo'!$K$107,'Données méteo'!$AL$104,IF(B57='Données méteo'!$L$107,'Données méteo'!$AM$104,IF(B57='Données méteo'!$M$107,'Données méteo'!$AN$104,IF(B57='Données méteo'!$N$107,'Données méteo'!$AO$104,IF(B57='Données méteo'!$O$107,'Données méteo'!$AP$104,'Données méteo'!$AQ$104))))))))))) -> 116.6045175 | BT57: =BS57/31*VLOOKUP(F57,'Données méteo'!$C$108:$P$131,3,FALSE) -> 0.1128430814 | BU57: 0.1128430814 | BV57: 0 | BX57: 0.975 | BY57: 0 | BZ57: 0
A58: 1 | B58: Janvier | C58: 1 Janvier | D58: 17 | E58: Lundi | F58: 17 | H58: 1 | I58: 1 | J58: 1 | K58: 900 | L58: 0 | M58: 1 | N58: 1 | O58: 0 | P58: 1 | Q58: 1 | R58: 1 | S58: 580 | T58: 1 | U58: 1 | V58: 1 | W58: 0 | X58: 0 | Y58: 0 | Z58: 0 | AA58: 1 | AB58: 1 | AC58: 0 | AD58: 1 | AE58: 1 | AF58: 1 | AG58: 0 | AH58: 1 | AI58: 1 | AJ58: 1 | AK58: 75 | AL58: 1 | AM58: 1 | AN58: 1 | AO58: 0 | AP58: 1 | AQ58: 0 | AR58: 0 | AS58: 0 | AT58: 1 | AU58: 0 | AV58: 1 | AW58: 0 | AX58: 1 | AY58: 0 | AZ58: 1 | BA58: 0 | BB58: 1 | BC58: 1 | BD58: 0 | BE58: 0 | BF58: 1 | BG58: 1 | BH58: 0 | BI58: 0 | BJ58: 1 | BK58: 1 | BL58: 0 | BM58: 0 | BN58: 0 | BO58: 0 | BP58: 0 | BQ58: 0 | BR58: 1.555 | BS58: =IF(B58='Données méteo'!$E$107,'Données méteo'!$AF$104,IF(B58='Données méteo'!$F$107,'Données méteo'!$AG$104,IF(B58='Données méteo'!$G$107,'Données méteo'!$AH$104,IF(B58='Données méteo'!$H$107,'Données méteo'!$AI$104,IF(B58='Données méteo'!$I$107,'Données méteo'!$AJ$104,IF(B58='Données méteo'!$J$107,'Données méteo'!$AK$104,IF(B58='Données méteo'!$K$107,'Données méteo'!$AL$104,IF(B58='Données méteo'!$L$107,'Données méteo'!$AM$104,IF(B58='Données méteo'!$M$107,'Données méteo'!$AN$104,IF(B58='Données méteo'!$N$107,'Données méteo'!$AO$104,IF(B58='Données méteo'!$O$107,'Données méteo'!$AP$104,'Données méteo'!$AQ$104))))))))))) -> 116.6045175 | BT58: =BS58/31*VLOOKUP(F58,'Données méteo'!$C$108:$P$131,3,FALSE) -> 0.03761436047 | BU58: 0.03761436047 | BV58: 0 | BX58: 0.975 | BY58: 0 | BZ58: 0
A59: 1 | B59: Janvier | C59: 1 Janvier | D59: 18 | E59: Lundi | F59: 18 | H59: 1 | I59: 1 | J59: 1 | K59: 900 | L59: 0 | M59: 1 | N59: 1 | O59: 0 | P59: 1 | Q59: 1 | R59: 1 | S59: 580 | T59: 1 | U59: 1 | V59: 1 | W59: 0 | X59: 0 | Y59: 0 | Z59: 0 | AA59: 1 | AB59: 1 | AC59: 0 | AD59: 1 | AE59: 1 | AF59: 1 | AG59: 0 | AH59: 1 | AI59: 1 | AJ59: 1 | AK59: 75 | AL59: 1 | AM59: 1 | AN59: 1 | AO59: 0 | AP59: 1 | AQ59: 0 | AR59: 0 | AS59: 0 | AT59: 1 | AU59: 0 | AV59: 0 | AW59: 0 | AX59: 1 | AY59: 0 | AZ59: 0 | BA59: 0 | BB59: 1 | BC59: 1 | BD59: 1 | BE59: 1500 | BF59: 1 | BG59: 1 | BH59: 0 | BI59: 0 | BJ59: 1 | BK59: 1 | BL59: 0 | BM59: 0 | BN59: 0 | BO59: 0 | BP59: 0 | BQ59: 0 | BR59: 3.055 | BS59: =IF(B59='Données méteo'!$E$107,'Données méteo'!$AF$104,IF(B59='Données méteo'!$F$107,'Données méteo'!$AG$104,IF(B59='Données méteo'!$G$107,'Données méteo'!$AH$104,IF(B59='Données méteo'!$H$107,'Données méteo'!$AI$104,IF(B59='Données méteo'!$I$107,'Données méteo'!$AJ$104,IF(B59='Données méteo'!$J$107,'Données méteo'!$AK$104,IF(B59='Données méteo'!$K$107,'Données méteo'!$AL$104,IF(B59='Données méteo'!$L$107,'Données méteo'!$AM$104,IF(B59='Données méteo'!$M$107,'Données méteo'!$AN$104,IF(B59='Données méteo'!$N$107,'Données méteo'!$AO$104,IF(B59='Données méteo'!$O$107,'Données méteo'!$AP$104,'Données méteo'!$AQ$104))))))))))) -> 116.6045175 | BT59: =BS59/31*VLOOKUP(F59,'Données méteo'!$C$108:$P$131,3,FALSE) -> 0 | BU59: 0 | BV59: 0 | BX59: 2.475 | BY59: 0 | BZ59: 0
A60: 1 | B60: Janvier | C60: 1 Janvier | D60: 19 | E60: Lundi | F60: 19 | H60: 1 | I60: 1 | J60: 1 | K60: 900 | L60: 0 | M60: 1 | N60: 1 | O60: 0 | P60: 1 | Q60: 1 | R60: 1 | S60: 580 | T60: 1 | U60: 1 | V60: 1 | W60: 0 | X60: 0 | Y60: 0 | Z60: 0 | AA60: 1 | AB60: 1 | AC60: 0 | AD60: 1 | AE60: 1 | AF60: 1 | AG60: 0 | AH60: 1 | AI60: 1 | AJ60: 1 | AK60: 75 | AL60: 1 | AM60: 1 | AN60: 1 | AO60: 0 | AP60: 1 | AQ60: 0 | AR60: 0 | AS60: 0 | AT60: 1 | AU60: 0 | AV60: 0 | AW60: 0 | AX60: 1 | AY60: 0 | AZ60: 0 | BA60: 0 | BB60: 1 | BC60: 1 | BD60: 1 | BE60: 1500 | BF60: 1 | BG60: 1 | BH60: 0 | BI60: 0 | BJ60: 1 | BK60: 1 | BL60: 0 | BM60: 0 | BN60: 0 | BO60: 0 | BP60: 0 | BQ60: 0 | BR60: 3.055 | BS60: =IF(B60='Données méteo'!$E$107,'Données méteo'!$AF$104,IF(B60='Données méteo'!$F$107,'Données méteo'!$AG$104,IF(B60='Données méteo'!$G$107,'Données méteo'!$AH$104,IF(B60='Données méteo'!$H$107,'Données méteo'!$AI$104,IF(B60='Données méteo'!$I$107,'Données méteo'!$AJ$104,IF(B60='Données méteo'!$J$107,'Données méteo'!$AK$104,IF(B60='Données méteo'!$K$107,'Données méteo'!$AL$104,IF(B60='Données méteo'!$L$107,'Données méteo'!$AM$104,IF(B60='Données méteo'!$M$107,'Données méteo'!$AN$104,IF(B60='Données méteo'!$N$107,'Données méteo'!$AO$104,IF(B60='Données méteo'!$O$107,'Données méteo'!$AP$104,'Données méteo'!$AQ$104))))))))))) -> 116.6045175 | BT60: =BS60/31*VLOOKUP(F60,'Données méteo'!$C$108:$P$131,3,FALSE) -> 0 | BU60: 0 | BV60: 0 | BX60: =BR60-S60/1000 -> 2.475 | BY60: 0 | BZ60: 0
A61: 1 | B61: Janvier | C61: 1 Janvier | D61: 20 | E61: Lundi | F61: 20 | H61: 1 | I61: 1 | J61: 1 | K61: 900 | L61: 0 | M61: 1 | N61: 1 | O61: 0 | P61: 1 | Q61: 1 | R61: 0 | S61: 0 | T61: 1 | U61: 1 | V61: 1 | W61: 0 | X61: 0 | Y61: 0 | Z61: 0 | AA61: 1 | AB61: 1 | AC61: 0 | AD61: 1 | AE61: 1 | AF61: 1 | AG61: 0 | AH61: 1 | AI61: 1 | AJ61: 1 | AK61: 75 | AL61: 1 | AM61: 1 | AN61: 1 | AO61: 0 | AP61: 1 | AQ61: 0 | AR61: 0 | AS61: 0 | AT61: 1 | AU61: 0 | AV61: 0 | AW61: 0 | AX61: 1 | AY61: 0 | AZ61: 0 | BA61: 0 | BB61: 1 | BC61: 1 | BD61: 0 | BE61: 0 | BF61: 1 | BG61: 1 | BH61: 0 | BI61: 0 | BJ61: 1 | BK61: 1 | BL61: 1 | BM61: 100 | BN61: 0 | BO61: 0 | BP61: 0 | BQ61: 0 | BR61: 1.075 | BS61: =IF(B61='Données méteo'!$E$107,'Données méteo'!$AF$104,IF(B61='Données méteo'!$F$107,'Données méteo'!$AG$104,IF(B61='Données méteo'!$G$107,'Données méteo'!$AH$104,IF(B61='Données méteo'!$H$107,'Données méteo'!$AI$104,IF(B61='Données méteo'!$I$107,'Données méteo'!$AJ$104,IF(B61='Données méteo'!$J$107,'Données méteo'!$AK$104,IF(B61='Données méteo'!$K$107,'Données méteo'!$AL$104,IF(B61='Données méteo'!$L$107,'Données méteo'!$AM$104,IF(B61='Données méteo'!$M$107,'Données méteo'!$AN$104,IF(B61='Données méteo'!$N$107,'Données méteo'!$AO$104,IF(B61='Données méteo'!$O$107,'Données méteo'!$AP$104,'Données méteo'!$AQ$104))))))))))) -> 116.6045175 | BT61: =BS61/31*VLOOKUP(F61,'Données méteo'!$C$108:$P$131,3,FALSE) -> 0 | BU61: 0 | BV61: 0 | BX61: 1.075 | BY61: 0 | BZ61: 0
A62: 1 | B62: Janvier | C62: 1 Janvier | D62: 21 | E62: Lundi | F62: 21 | H62: 1 | I62: 1 | J62: 1 | K62: 900 | L62: 0 | M62: 1 | N62: 1 | O62: 0 | P62: 1 | Q62: 1 | R62: 0 | S62: 0 | T62: 1 | U62: 1 | V62: 1 | W62: 0 | X62: 0 | Y62: 0 | Z62: 0 | AA62: 1 | AB62: 1 | AC62: 0 | AD62: 1 | AE62: 1 | AF62: 1 | AG62: 0 | AH62: 1 | AI62: 1 | AJ62: 1 | AK62: 75 | AL62: 1 | AM62: 1 | AN62: 1 | AO62: 0 | AP62: 1 | AQ62: 0 | AR62: 0 | AS62: 0 | AT62: 1 | AU62: 0 | AV62: 0 | AW62: 0 | AX62: 1 | AY62: 0 | AZ62: 0 | BA62: 0 | BB62: 1 | BC62: 1 | BD62: 0 | BE62: 0 | BF62: 1 | BG62: 1 | BH62: 0 | BI62: 0 | BJ62: 1 | BK62: 1 | BL62: 1 | BM62: 100 | BN62: 0 | BO62: 0 | BP62: 0 | BQ62: 0 | BR62: 1.075 | BS62: =IF(B62='Données méteo'!$E$107,'Données méteo'!$AF$104,IF(B62='Données méteo'!$F$107,'Données méteo'!$AG$104,IF(B62='Données méteo'!$G$107,'Données méteo'!$AH$104,IF(B62='Données méteo'!$H$107,'Données méteo'!$AI$104,IF(B62='Données méteo'!$I$107,'Données méteo'!$AJ$104,IF(B62='Données méteo'!$J$107,'Données méteo'!$AK$104,IF(B62='Données méteo'!$K$107,'Données méteo'!$AL$104,IF(B62='Données méteo'!$L$107,'Données méteo'!$AM$104,IF(B62='Données méteo'!$M$107,'Données méteo'!$AN$104,IF(B62='Données méteo'!$N$107,'Données méteo'!$AO$104,IF(B62='Données méteo'!$O$107,'Données méteo'!$AP$104,'Données méteo'!$AQ$104))))))))))) -> 116.6045175 | BT62: =BS62/31*VLOOKUP(F62,'Données méteo'!$C$108:$P$131,3,FALSE) -> 0 | BU62: 0 | BV62: 0 | BX62: 1.075 | BY62: 0 | BZ62: 0
A63: 1 | B63: Janvier | C63: 1 Janvier | D63: 22 | E63: Lundi | F63: 22 | H63: 1 | I63: 1 | J63: 0 | K63: 0 | L63: 0 | M63: 1 | N63: 0 | O63: 0 | P63: 1 | Q63: 1 | R63: 0 | S63: 0 | T63: 1 | U63: 1 | V63: 1 | W63: 0 | X63: 0 | Y63: 0 | Z63: 0 | AA63: 1 | AB63: 1 | AC63: 0 | AD63: 1 | AE63: 1 | AF63: 1 | AG63: 0 | AH63: 1 | AI63: 1 | AJ63: 1 | AK63: 75 | AL63: 1 | AM63: 1 | AN63: 1 | AO63: 0 | AP63: 1 | AQ63: 0 | AR63: 0 | AS63: 0 | AT63: 1 | AU63: 0 | AV63: 0 | AW63: 0 | AX63: 1 | AY63: 0 | AZ63: 0 | BA63: 0 | BB63: 1 | BC63: 1 | BD63: 0 | BE63: 0 | BF63: 1 | BG63: 1 | BH63: 0 | BI63: 0 | BJ63: 1 | BK63: 1 | BL63: 1 | BM63: 100 | BN63: 0 | BO63: 0 | BP63: 0 | BQ63: 0 | BR63: 0.175 | BS63: =IF(B63='Données méteo'!$E$107,'Données méteo'!$AF$104,IF(B63='Données méteo'!$F$107,'Données méteo'!$AG$104,IF(B63='Données méteo'!$G$107,'Données méteo'!$AH$104,IF(B63='Données méteo'!$H$107,'Données méteo'!$AI$104,IF(B63='Données méteo'!$I$107,'Données méteo'!$AJ$104,IF(B63='Données méteo'!$J$107,'Données méteo'!$AK$104,IF(B63='Données méteo'!$K$107,'Données méteo'!$AL$104,IF(B63='Données méteo'!$L$107,'Données méteo'!$AM$104,IF(B63='Données méteo'!$M$107,'Données méteo'!$AN$104,IF(B63='Données méteo'!$N$107,'Données méteo'!$AO$104,IF(B63='Données méteo'!$O$107,'Données méteo'!$AP$104,'Données méteo'!$AQ$104))))))))))) -> 116.6045175 | BT63: =BS63/31*VLOOKUP(F63,'Données méteo'!$C$108:$P$131,3,FALSE) -> 0 | BU63: 0 | BV63: 0 | BX63: 0.175 | BY63: 0 | BZ63: 0
A64: 1 | B64: Janvier | C64: 1 Janvier | D64: 23 | E64: Lundi | F64: 23 | H64: 1 | I64: 1 | J64: 0 | K64: 0 | L64: 0 | M64: 1 | N64: 0 | O64: 0 | P64: 1 | Q64: 1 | R64: 0 | S64: 0 | T64: 1 | U64: 1 | V64: 1 | W64: 0 | X64: 0 | Y64: 0 | Z64: 0 | AA64: 1 | AB64: 1 | AC64: 0 | AD64: 1 | AE64: 1 | AF64: 1 | AG64: 0 | AH64: 1 | AI64: 1 | AJ64: 1 | AK64: 75 | AL64: 1 | AM64: 1 | AN64: 1 | AO64: 0 | AP64: 1 | AQ64: 0 | AR64: 0 | AS64: 0 | AT64: 1 | AU64: 0 | AV64: 0 | AW64: 0 | AX64: 1 | AY64: 0 | AZ64: 0 | BA64: 0 | BB64: 1 | BC64: 1 | BD64: 0 | BE64: 0 | BF64: 1 | BG64: 1 | BH64: 0 | BI64: 0 | BJ64: 1 | BK64: 1 | BL64: 1 | BM64: 100 | BN64: 0 | BO64: 0 | BP64: 0 | BQ64: 0 | BR64: 0.175 | BS64: =IF(B64='Données méteo'!$E$107,'Données méteo'!$AF$104,IF(B64='Données méteo'!$F$107,'Données méteo'!$AG$104,IF(B64='Données méteo'!$G$107,'Données méteo'!$AH$104,IF(B64='Données méteo'!$H$107,'Données méteo'!$AI$104,IF(B64='Données méteo'!$I$107,'Données méteo'!$AJ$104,IF(B64='Données méteo'!$J$107,'Données méteo'!$AK$104,IF(B64='Données méteo'!$K$107,'Données méteo'!$AL$104,IF(B64='Données méteo'!$L$107,'Données méteo'!$AM$104,IF(B64='Données méteo'!$M$107,'Données méteo'!$AN$104,IF(B64='Données méteo'!$N$107,'Données méteo'!$AO$104,IF(B64='Données méteo'!$O$107,'Données méteo'!$AP$104,'Données méteo'!$AQ$104))))))))))) -> 116.6045175 | BT64: =BS64/31*VLOOKUP(F64,'Données méteo'!$C$108:$P$131,3,FALSE) -> 0 | BU64: 0 | BV64: 0 | BX64: 0.175 | BY64: 0 | BZ64: 0
A65: 2 | B65: Janvier | C65: =CONCATENATE(A65," ", B65) -> 2 Janvier | D65: 24 | E65: Mardi | F65: 0 | H65: 1 | I65: 1 | J65: 0 | K65: 0 | L65: 0 | M65: 1 | N65: 0 | O65: 0 | P65: 1 | Q65: 1 | R65: 0 | S65: 0 | T65: 1 | U65: 1 | V65: 1 | W65: 0 | X65: 0 | Y65: 0 | Z65: 0 | AA65: 1 | AB65: 1 | AC65: 0 | AD65: 1 | AE65: 1 | AF65: 1 | AG65: 0 | AH65: 1 | AI65: 1 | AJ65: 1 | AK65: 75 | AL65: 1 | AM65: 1 | AN65: 1 | AO65: 0 | AP65: 1 | AQ65: 0 | AR65: 0 | AS65: 0 | AT65: 1 | AU65: 0 | AV65: 0 | AW65: 0 | AX65: 1 | AY65: 0 | AZ65: 0 | BA65: 0 | BB65: 1 | BC65: 1 | BD65: 0 | BE65: 0 | BF65: 1 | BG65: 0 | BH65: 0 | BI65: 0 | BJ65: 1 | BK65: 1 | BL65: 0 | BM65: 0 | BN65: 0 | BO65: 0 | BP65: 0 | BQ65: 0 | BR65: 0.075 | BS65: =IF(B65='Données méteo'!$E$107,'Données méteo'!$AF$104,IF(B65='Données méteo'!$F$107,'Données méteo'!$AG$104,IF(B65='Données méteo'!$G$107,'Données méteo'!$AH$104,IF(B65='Données méteo'!$H$107,'Données méteo'!$AI$104,IF(B65='Données méteo'!$I$107,'Données méteo'!$AJ$104,IF(B65='Données méteo'!$J$107,'Données méteo'!$AK$104,IF(B65='Données méteo'!$K$107,'Données méteo'!$AL$104,IF(B65='Données méteo'!$L$107,'Données méteo'!$AM$104,IF(B65='Données méteo'!$M$107,'Données méteo'!$AN$104,IF(B65='Données méteo'!$N$107,'Données méteo'!$AO$104,IF(B65='Données méteo'!$O$107,'Données méteo'!$AP$104,'Données méteo'!$AQ$104))))))))))) -> 116.6045175 | BT65: =BS65/31*VLOOKUP(F65,'Données méteo'!$C$108:$P$131,3,FALSE) -> 0 | BU65: 0 | BV65: 0 | BX65: 0.075 | BY65: 0 | BZ65: 0
A66: 2 | B66: Janvier | C66: 2 Janvier | D66: 25 | E66: Mardi | F66: 1 | H66: 1 | I66: 1 | J66: 0 | K66: 0 | L66: 0 | M66: 1 | N66: 0 | O66: 0 | P66: 1 | Q66: 1 | R66: 0 | S66: 0 | T66: 1 | U66: 1 | V66: 1 | W66: 0 | X66: 0 | Y66: 0 | Z66: 0 | AA66: 1 | AB66: 1 | AC66: 0 | AD66: 1 | AE66: 1 | AF66: 1 | AG66: 0 | AH66: 1 | AI66: 1 | AJ66: 1 | AK66: 75 | AL66: 1 | AM66: 1 | AN66: 1 | AO66: 0 | AP66: 1 | AQ66: 0 | AR66: 0 | AS66: 0 | AT66: 1 | AU66: 0 | AV66: 0 | AW66: 0 | AX66: 1 | AY66: 0 | AZ66: 0 | BA66: 0 | BB66: 1 | BC66: 1 | BD66: 0 | BE66: 0 | BF66: 1 | BG66: 0 | BH66: 0 | BI66: 0 | BJ66: 1 | BK66: 1 | BL66: 0 | BM66: 0 | BN66: 0 | BO66: 0 | BP66: 0 | BQ66: 0 | BR66: 0.075 | BS66: =IF(B66='Données méteo'!$E$107,'Données méteo'!$AF$104,IF(B66='Données méteo'!$F$107,'Données méteo'!$AG$104,IF(B66='Données méteo'!$G$107,'Données méteo'!$AH$104,IF(B66='Données méteo'!$H$107,'Données méteo'!$AI$104,IF(B66='Données méteo'!$I$107,'Données méteo'!$AJ$104,IF(B66='Données méteo'!$J$107,'Données méteo'!$AK$104,IF(B66='Données méteo'!$K$107,'Données méteo'!$AL$104,IF(B66='Données méteo'!$L$107,'Données méteo'!$AM$104,IF(B66='Données méteo'!$M$107,'Données méteo'!$AN$104,IF(B66='Données méteo'!$N$107,'Données méteo'!$AO$104,IF(B66='Données méteo'!$O$107,'Données méteo'!$AP$104,'Données méteo'!$AQ$104))))))))))) -> 116.6045175 | BT66: =BS66/31*VLOOKUP(F66,'Données méteo'!$C$108:$P$131,3,FALSE) -> 0 | BU66: 0 | BV66: 0 | BX66: 0.075 | BY66: 0 | BZ66: 0
A67: 2 | B67: Janvier | C67: 2 Janvier | D67: 26 | E67: Mardi | F67: 2 | H67: 1 | I67: 1 | J67: 0 | K67: 0 | L67: 0 | M67: 1 | N67: 0 | O67: 0 | P67: 1 | Q67: 1 | R67: 0 | S67: 0 | T67: 1 | U67: 1 | V67: 1 | W67: 0 | X67: 0 | Y67: 0 | Z67: 0 | AA67: 1 | AB67: 1 | AC67: 0 | AD67: 1 | AE67: 1 | AF67: 1 | AG67: 0 | AH67: 1 | AI67: 1 | AJ67: 1 | AK67: 75 | AL67: 1 | AM67: 1 | AN67: 1 | AO67: 0 | AP67: 1 | AQ67: 0 | AR67: 0 | AS67: 0 | AT67: 1 | AU67: 0 | AV67: 0 | AW67: 0 | AX67: 1 | AY67: 0 | AZ67: 0 | BA67: 0 | BB67: 1 | BC67: 1 | BD67: 0 | BE67: 0 | BF67: 1 | BG67: 0 | BH67: 0 | BI67: 0 | BJ67: 1 | BK67: 1 | BL67: 0 | BM67: 0 | BN67: 0 | BO67: 0 | BP67: 0 | BQ67: 0 | BR67: 0.075 | BS67: =IF(B67='Données méteo'!$E$107,'Données méteo'!$AF$104,IF(B67='Données méteo'!$F$107,'Données méteo'!$AG$104,IF(B67='Données méteo'!$G$107,'Données méteo'!$AH$104,IF(B67='Données méteo'!$H$107,'Données méteo'!$AI$104,IF(B67='Données méteo'!$I$107,'Données méteo'!$AJ$104,IF(B67='Données méteo'!$J$107,'Données méteo'!$AK$104,IF(B67='Données méteo'!$K$107,'Données méteo'!$AL$104,IF(B67='Données méteo'!$L$107,'Données méteo'!$AM$104,IF(B67='Données méteo'!$M$107,'Données méteo'!$AN$104,IF(B67='Données méteo'!$N$107,'Données méteo'!$AO$104,IF(B67='Données méteo'!$O$107,'Données méteo'!$AP$104,'Données méteo'!$AQ$104))))))))))) -> 116.6045175 | BT67: =BS67/31*VLOOKUP(F67,'Données méteo'!$C$108:$P$131,3,FALSE) -> 0 | BU67: 0 | BV67: 0 | BX67: 0.075 | BY67: 0 | BZ67: 0
A68: 2 | B68: Janvier | C68: 2 Janvier | D68: 27 | E68: Mardi | F68: 3 | H68: 1 | I68: 1 | J68: 0 | K68: 0 | L68: 0 | M68: 1 | N68: 0 | O68: 0 | P68: 1 | Q68: 1 | R68: 0 | S68: 0 | T68: 1 | U68: 1 | V68: 1 | W68: 0 | X68: 0 | Y68: 0 | Z68: 0 | AA68: 1 | AB68: 1 | AC68: 0 | AD68: 1 | AE68: 1 | AF68: 1 | AG68: 0 | AH68: 1 | AI68: 1 | AJ68: 1 | AK68: 75 | AL68: 1 | AM68: 1 | AN68: 1 | AO68: 0 | AP68: 1 | AQ68: 0 | AR68: 0 | AS68: 0 | AT68: 1 | AU68: 0 | AV68: 0 | AW68: 0 | AX68: 1 | AY68: 0 | AZ68: 0 | BA68: 0 | BB68: 1 | BC68: 1 | BD68: 0 | BE68: 0 | BF68: 1 | BG68: 0 | BH68: 0 | BI68: 0 | BJ68: 1 | BK68: 1 | BL68: 0 | BM68: 0 | BN68: 0 | BO68: 0 | BP68: 0 | BQ68: 0 | BR68: 0.075 | BS68: =IF(B68='Données méteo'!$E$107,'Données méteo'!$AF$104,IF(B68='Données méteo'!$F$107,'Données méteo'!$AG$104,IF(B68='Données méteo'!$G$107,'Données méteo'!$AH$104,IF(B68='Données méteo'!$H$107,'Données méteo'!$AI$104,IF(B68='Données méteo'!$I$107,'Données méteo'!$AJ$104,IF(B68='Données méteo'!$J$107,'Données méteo'!$AK$104,IF(B68='Données méteo'!$K$107,'Données méteo'!$AL$104,IF(B68='Données méteo'!$L$107,'Données méteo'!$AM$104,IF(B68='Données méteo'!$M$107,'Données méteo'!$AN$104,IF(B68='Données méteo'!$N$107,'Données méteo'!$AO$104,IF(B68='Données méteo'!$O$107,'Données méteo'!$AP$104,'Données méteo'!$AQ$104))))))))))) -> 116.6045175 | BT68: =BS68/31*VLOOKUP(F68,'Données méteo'!$C$108:$P$131,3,FALSE) -> 0 | BU68: 0 | BV68: 0 | BX68: 0.075 | BY68: 0 | BZ68: 0
A69: 2 | B69: Janvier | C69: 2 Janvier | D69: 28 | E69: Mardi | F69: 4 | H69: 1 | I69: 1 | J69: 0 | K69: 0 | L69: 0 | M69: 1 | N69: 0 | O69: 0 | P69: 1 | Q69: 1 | R69: 0 | S69: 0 | T69: 1 | U69: 1 | V69: 1 | W69: 0 | X69: 0 | Y69: 0 | Z69: 0 | AA69: 1 | AB69: 1 | AC69: 0 | AD69: 1 | AE69: 1 | AF69: 1 | AG69: 0 | AH69: 1 | AI69: 1 | AJ69: 1 | AK69: 75 | AL69: 1 | AM69: 1 | AN69: 1 | AO69: 0 | AP69: 1 | AQ69: 0 | AR69: 0 | AS69: 0 | AT69: 1 | AU69: 0 | AV69: 0 | AW69: 0 | AX69: 1 | AY69: 0 | AZ69: 0 | BA69: 0 | BB69: 1 | BC69: 1 | BD69: 0 | BE69: 0 | BF69: 1 | BG69: 0 | BH69: 0 | BI69: 0 | BJ69: 1 | BK69: 1 | BL69: 0 | BM69: 0 | BN69: 0 | BO69: 0 | BP69: 0 | BQ69: 0 | BR69: 0.075 | BS69: =IF(B69='Données méteo'!$E$107,'Données méteo'!$AF$104,IF(B69='Données méteo'!$F$107,'Données méteo'!$AG$104,IF(B69='Données méteo'!$G$107,'Données méteo'!$AH$104,IF(B69='Données méteo'!$H$107,'Données méteo'!$AI$104,IF(B69='Données méteo'!$I$107,'Données méteo'!$AJ$104,IF(B69='Données méteo'!$J$107,'Données méteo'!$AK$104,IF(B69='Données méteo'!$K$107,'Données méteo'!$AL$104,IF(B69='Données méteo'!$L$107,'Données méteo'!$AM$104,IF(B69='Données méteo'!$M$107,'Données méteo'!$AN$104,IF(B69='Données méteo'!$N$107,'Données méteo'!$AO$104,IF(B69='Données méteo'!$O$107,'Données méteo'!$AP$104,'Données méteo'!$AQ$104))))))))))) -> 116.6045175 | BT69: =BS69/31*VLOOKUP(F69,'Données méteo'!$C$108:$P$131,3,FALSE) -> 0 | BU69: 0 | BV69: 0 | BX69: 0.075 | BY69: 0 | BZ69: 0
A70: 2 | B70: Janvier | C70: 2 Janvier | D70: 29 | E70: Mardi | F70: 5 | H70: 1 | I70: 1 | J70: 0 | K70: 0 | L70: 0 | M70: 1 | N70: 0 | O70: 0 | P70: 1 | Q70: 1 | R70: 0 | S70: 0 | T70: 1 | U70: 1 | V70: 1 | W70: 0 | X70: 0 | Y70: 0 | Z70: 0 | AA70: 1 | AB70: 1 | AC70: 0 | AD70: 1 | AE70: 1 | AF70: 1 | AG70: 0 | AH70: 1 | AI70: 1 | AJ70: 1 | AK70: 75 | AL70: 1 | AM70: 1 | AN70: 1 | AO70: 0 | AP70: 1 | AQ70: 0 | AR70: 0 | AS70: 0 | AT70: 1 | AU70: 0 | AV70: 0 | AW70: 0 | AX70: 1 | AY70: 0 | AZ70: 0 | BA70: 0 | BB70: 1 | BC70: 1 | BD70: 0 | BE70: 0 | BF70: 1 | BG70: 0 | BH70: 0 | BI70: 0 | BJ70: 1 | BK70: 1 | BL70: 0 | BM70: 0 | BN70: 0 | BO70: 0 | BP70: 0 | BQ70: 0 | BR70: 0.075 | BS70: =IF(B70='Données méteo'!$E$107,'Données méteo'!$AF$104,IF(B70='Données méteo'!$F$107,'Données méteo'!$AG$104,IF(B70='Données méteo'!$G$107,'Données méteo'!$AH$104,IF(B70='Données méteo'!$H$107,'Données méteo'!$AI$104,IF(B70='Données méteo'!$I$107,'Données méteo'!$AJ$104,IF(B70='Données méteo'!$J$107,'Données méteo'!$AK$104,IF(B70='Données méteo'!$K$107,'Données méteo'!$AL$104,IF(B70='Données méteo'!$L$107,'Données méteo'!$AM$104,IF(B70='Données méteo'!$M$107,'Données méteo'!$AN$104,IF(B70='Données méteo'!$N$107,'Données méteo'!$AO$104,IF(B70='Données méteo'!$O$107,'Données méteo'!$AP$104,'Données méteo'!$AQ$104))))))))))) -> 116.6045175 | BT70: =BS70/31*VLOOKUP(F70,'Données méteo'!$C$108:$P$131,3,FALSE) -> 0 | BU70: 0 | BV70: 0 | BX70: 0.075 | BY70: 0 | BZ70: 0
A71: 2 | B71: Janvier | C71: 2 Janvier | D71: 30 | E71: Mardi | F71: 6 | H71: 1 | I71: 1 | J71: 1 | K71: 900 | L71: 0 | M71: 1 | N71: 0 | O71: 0 | P71: 1 | Q71: 1 | R71: 0 | S71: 0 | T71: 1 | U71: 1 | V71: 1 | W71: 0 | X71: 0 | Y71: 0 | Z71: 0 | AA71: 1 | AB71: 1 | AC71: 0 | AD71: 1 | AE71: 1 | AF71: 1 | AG71: 0 | AH71: 1 | AI71: 1 | AJ71: 1 | AK71: 75 | AL71: 1 | AM71: 1 | AN71: 1 | AO71: 0 | AP71: 1 | AQ71: 0 | AR71: 0 | AS71: 0 | AT71: 1 | AU71: 0 | AV71: 0 | AW71: 0 | AX71: 1 | AY71: 0 | AZ71: 0 | BA71: 0 | BB71: 1 | BC71: 1 | BD71: 0 | BE71: 0 | BF71: 1 | BG71: 0 | BH71: 0 | BI71: 0 | BJ71: 1 | BK71: 1 | BL71: 0 | BM71: 0 | BN71: 0 | BO71: 0 | BP71: 0 | BQ71: 0 | BR71: 0.975 | BS71: =IF(B71='Données méteo'!$E$107,'Données méteo'!$AF$104,IF(B71='Données méteo'!$F$107,'Données méteo'!$AG$104,IF(B71='Données méteo'!$G$107,'Données méteo'!$AH$104,IF(B71='Données méteo'!$H$107,'Données méteo'!$AI$104,IF(B71='Données méteo'!$I$107,'Données méteo'!$AJ$104,IF(B71='Données méteo'!$J$107,'Données méteo'!$AK$104,IF(B71='Données méteo'!$K$107,'Données méteo'!$AL$104,IF(B71='Données méteo'!$L$107,'Données méteo'!$AM$104,IF(B71='Données méteo'!$M$107,'Données méteo'!$AN$104,IF(B71='Données méteo'!$N$107,'Données méteo'!$AO$104,IF(B71='Données méteo'!$O$107,'Données méteo'!$AP$104,'Données méteo'!$AQ$104))))))))))) -> 116.6045175 | BT71: =BS71/31*VLOOKUP(F71,'Données méteo'!$C$108:$P$131,3,FALSE) -> 0 | BU71: 0 | BV71: 0 | BX71: 0.975 | BY71: 0 | BZ71: 0
A72: 2 | B72: Janvier | C72: 2 Janvier | D72: 31 | E72: Mardi | F72: 7 | H72: 1 | I72: 1 | J72: 1 | K72: 900 | L72: 0 | M72: 1 | N72: 0 | O72: 0 | P72: 1 | Q72: 1 | R72: 0 | S72: 0 | T72: 1 | U72: 1 | V72: 1 | W72: 0 | X72: 0 | Y72: 0 | Z72: 0 | AA72: 1 | AB72: 1 | AC72: 0 | AD72: 1 | AE72: 1 | AF72: 1 | AG72: 0 | AH72: 1 | AI72: 1 | AJ72: 1 | AK72: 75 | AL72: 1 | AM72: 1 | AN72: 1 | AO72: 0 | AP72: 1 | AQ72: 0 | AR72: 0 | AS72: 0 | AT72: 1 | AU72: 0 | AV72: 0 | AW72: 0 | AX72: 1 | AY72: 0 | AZ72: 0 | BA72: 0 | BB72: 1 | BC72: 1 | BD72: 0 | BE72: 0 | BF72: 1 | BG72: 0 | BH72: 0 | BI72: 0 | BJ72: 1 | BK72: 1 | BL72: 0 | BM72: 0 | BN72: 0 | BO72: 0 | BP72: 0 | BQ72: 0 | BR72: 0.975 | BS72: =IF(B72='Données méteo'!$E$107,'Données méteo'!$AF$104,IF(B72='Données méteo'!$F$107,'Données méteo'!$AG$104,IF(B72='Données méteo'!$G$107,'Données méteo'!$AH$104,IF(B72='Données méteo'!$H$107,'Données méteo'!$AI$104,IF(B72='Données méteo'!$I$107,'Données méteo'!$AJ$104,IF(B72='Données méteo'!$J$107,'Données méteo'!$AK$104,IF(B72='Données méteo'!$K$107,'Données méteo'!$AL$104,IF(B72='Données méteo'!$L$107,'Données méteo'!$AM$104,IF(B72='Données méteo'!$M$107,'Données méteo'!$AN$104,IF(B72='Données méteo'!$N$107,'Données méteo'!$AO$104,IF(B72='Données méteo'!$O$107,'Données méteo'!$AP$104,'Données méteo'!$AQ$104))))))))))) -> 116.6045175 | BT72: =BS72/31*VLOOKUP(F72,'Données méteo'!$C$108:$P$131,3,FALSE) -> 0 | BU72: 0 | BV72: 0 | BX72: 0.975 | BY72: 0 | BZ72: 0
A73: 2 | B73: Janvier | C73: 2 Janvier | D73: 32 | E73: Mardi | F73: 8 | H73: 1 | I73: 1 | J73: 0 | K73: 0 | L73: 0 | M73: 1 | N73: 0 | O73: 0 | P73: 1 | Q73: 1 | R73: 1 | S73: 580 | T73: 1 | U73: 1 | V73: 1 | W73: 0 | X73: 0 | Y73: 0 | Z73: 0 | AA73: 1 | AB73: 1 | AC73: 0 | AD73: 1 | AE73: 1 | AF73: 1 | AG73: 0 | AH73: 1 | AI73: 1 | AJ73: 1 | AK73: 75 | AL73: 1 | AM73: 1 | AN73: 1 | AO73: 0 | AP73: 1 | AQ73: 0 | AR73: 0 | AS73: 0 | AT73: 1 | AU73: 0 | AV73: 0 | AW73: 0 | AX73: 1 | AY73: 0 | AZ73: 0 | BA73: 0 | BB73: 1 | BC73: 1 | BD73: 0 | BE73: 0 | BF73: 1 | BG73: 0 | BH73: 0 | BI73: 0 | BJ73: 1 | BK73: 1 | BL73: 0 | BM73: 0 | BN73: 0 | BO73: 0 | BP73: 0 | BQ73: 0 | BR73: 0.655 | BS73: =IF(B73='Données méteo'!$E$107,'Données méteo'!$AF$104,IF(B73='Données méteo'!$F$107,'Données méteo'!$AG$104,IF(B73='Données méteo'!$G$107,'Données méteo'!$AH$104,IF(B73='Données méteo'!$H$107,'Données méteo'!$AI$104,IF(B73='Données méteo'!$I$107,'Données méteo'!$AJ$104,IF(B73='Données méteo'!$J$107,'Données méteo'!$AK$104,IF(B73='Données méteo'!$K$107,'Données méteo'!$AL$104,IF(B73='Données méteo'!$L$107,'Données méteo'!$AM$104,IF(B73='Données méteo'!$M$107,'Données méteo'!$AN$104,IF(B73='Données méteo'!$N$107,'Données méteo'!$AO$104,IF(B73='Données méteo'!$O$107,'Données méteo'!$AP$104,'Données méteo'!$AQ$104))))))))))) -> 116.6045175 | BT73: =BS73/31*VLOOKUP(F73,'Données méteo'!$C$108:$P$131,3,FALSE) -> 0 | BU73: 0 | BV73: 0 | BX73: 0.075 | BY73: 0 | BZ73: 0
A74: 2 | B74: Janvier | C74: 2 Janvier | D74: 33 | E74: Mardi | F74: 9 | H74: 1 | I74: 1 | J74: 0 | K74: 0 | L74: 0 | M74: 1 | N74: 0 | O74: 0 | P74: 1 | Q74: 1 | R74: 1 | S74: 580 | T74: 1 | U74: 1 | V74: 1 | W74: 0 | X74: 0 | Y74: 0 | Z74: 0 | AA74: 1 | AB74: 1 | AC74: 0 | AD74: 1 | AE74: 1 | AF74: 1 | AG74: 0 | AH74: 1 | AI74: 1 | AJ74: 1 | AK74: 75 | AL74: 1 | AM74: 1 | AN74: 1 | AO74: 0 | AP74: 1 | AQ74: 0 | AR74: 0 | AS74: 0 | AT74: 1 | AU74: 0 | AV74: 0 | AW74: 0 | AX74: 1 | AY74: 0 | AZ74: 0 | BA74: 0 | BB74: 1 | BC74: 1 | BD74: 0 | BE74: 0 | BF74: 1 | BG74: 0 | BH74: 0 | BI74: 0 | BJ74: 1 | BK74: 1 | BL74: 0 | BM74: 0 | BN74: 0 | BO74: 0 | BP74: 0 | BQ74: 0 | BR74: 0.655 | BS74: =IF(B74='Données méteo'!$E$107,'Données méteo'!$AF$104,IF(B74='Données méteo'!$F$107,'Données méteo'!$AG$104,IF(B74='Données méteo'!$G$107,'Données méteo'!$AH$104,IF(B74='Données méteo'!$H$107,'Données méteo'!$AI$104,IF(B74='Données méteo'!$I$107,'Données méteo'!$AJ$104,IF(B74='Données méteo'!$J$107,'Données méteo'!$AK$104,IF(B74='Données méteo'!$K$107,'Données méteo'!$AL$104,IF(B74='Données méteo'!$L$107,'Données méteo'!$AM$104,IF(B74='Données méteo'!$M$107,'Données méteo'!$AN$104,IF(B74='Données méteo'!$N$107,'Données méteo'!$AO$104,IF(B74='Données méteo'!$O$107,'Données méteo'!$AP$104,'Données méteo'!$AQ$104))))))))))) -> 116.6045175 | BT74: =BS74/31*VLOOKUP(F74,'Données méteo'!$C$108:$P$131,3,FALSE) -> 0.1504574419 | BU74: 0.1504574419 | BV74: 0 | BX74: 0.075 | BY74: 0.07545744188 | BZ74: 0.07545744188
A75: 2 | B75: Janvier | C75: 2 Janvier | D75: 34 | E75: Mardi | F75: 10 | H75: 1 | I75: 1 | J75: 0 | K75: 0 | L75: 0 | M75: 1 | N75: 0 | O75: 0 | P75: 1 | Q75: 1 | R75: 1 | S75: 580 | T75: 1 | U75: 1 | V75: 1 | W75: 0 | X75: 0 | Y75: 0 | Z75: 0 | AA75: 1 | AB75: 1 | AC75: 0 | AD75: 1 | AE75: 1 | AF75: 1 | AG75: 0 | AH75: 1 | AI75: 1 | AJ75: 1 | AK75: 75 | AL75: 1 | AM75: 1 | AN75: 1 | AO75: 0 | AP75: 1 | AQ75: 0 | AR75: 0 | AS75: 0 | AT75: 1 | AU75: 0 | AV75: 0 | AW75: 0 | AX75: 1 | AY75: 0 | AZ75: 0 | BA75: 0 | BB75: 1 | BC75: 1 | BD75: 0 | BE75: 0 | BF75: 1 | BG75: 0 | BH75: 0 | BI75: 0 | BJ75: 1 | BK75: 1 | BL75: 0 | BM75: 0 | BN75: 0 | BO75: 0 | BP75: 0 | BQ75: 0 | BR75: 0.655 | BS75: =IF(B75='Données méteo'!$E$107,'Données méteo'!$AF$104,IF(B75='Données méteo'!$F$107,'Données méteo'!$AG$104,IF(B75='Données méteo'!$G$107,'Données méteo'!$AH$104,IF(B75='Données méteo'!$H$107,'Données méteo'!$AI$104,IF(B75='Données méteo'!$I$107,'Données méteo'!$AJ$104,IF(B75='Données méteo'!$J$107,'Données méteo'!$AK$104,IF(B75='Données méteo'!$K$107,'Données méteo'!$AL$104,IF(B75='Données méteo'!$L$107,'Données méteo'!$AM$104,IF(B75='Données méteo'!$M$107,'Données méteo'!$AN$104,IF(B75='Données méteo'!$N$107,'Données méteo'!$AO$104,IF(B75='Données méteo'!$O$107,'Données méteo'!$AP$104,'Données méteo'!$AQ$104))))))))))) -> 116.6045175 | BT75: =BS75/31*VLOOKUP(F75,'Données méteo'!$C$108:$P$131,3,FALSE) -> 0.3761436047 | BU75: 0.3761436047 | BV75: 0 | BX75: 0.075 | BY75: 0.3011436047 | BZ75: 0.3011436047
A76: 2 | B76: Janvier | C76: 2 Janvier | D76: 35 | E76: Mardi | F76: 11 | H76: 1 | I76: 1 | J76: 0 | K76: 0 | L76: 0 | M76: 1 | N76: 0 | O76: 0 | P76: 1 | Q76: 1 | R76: 1 | S76: 580 | T76: 1 | U76: 1 | V76: 1 | W76: 0 | X76: 0 | Y76: 0 | Z76: 0 | AA76: 1 | AB76: 1 | AC76: 0 | AD76: 1 | AE76: 1 | AF76: 1 | AG76: 0 | AH76: 1 | AI76: 1 | AJ76: 1 | AK76: 75 | AL76: 1 | AM76: 1 | AN76: 1 | AO76: 0 | AP76: 1 | AQ76: 0 | AR76: 0 | AS76: 0 | AT76: 1 | AU76: 0 | AV76: 0 | AW76: 0 | AX76: 1 | AY76: 0 | AZ76: 0 | BA76: 0 | BB76: 1 | BC76: 1 | BD76: 0 | BE76: 0 | BF76: 1 | BG76: 0 | BH76: 0 | BI76: 0 | BJ76: 1 | BK76: 1 | BL76: 0 | BM76: 0 | BN76: 0 | BO76: 0 | BP76: 0 | BQ76: 0 | BR76: 0.655 | BS76: =IF(B76='Données méteo'!$E$107,'Données méteo'!$AF$104,IF(B76='Données méteo'!$F$107,'Données méteo'!$AG$104,IF(B76='Données méteo'!$G$107,'Données méteo'!$AH$104,IF(B76='Données méteo'!$H$107,'Données méteo'!$AI$104,IF(B76='Données méteo'!$I$107,'Données méteo'!$AJ$104,IF(B76='Données méteo'!$J$107,'Données méteo'!$AK$104,IF(B76='Données méteo'!$K$107,'Données méteo'!$AL$104,IF(B76='Données méteo'!$L$107,'Données méteo'!$AM$104,IF(B76='Données méteo'!$M$107,'Données méteo'!$AN$104,IF(B76='Données méteo'!$N$107,'Données méteo'!$AO$104,IF(B76='Données méteo'!$O$107,'Données méteo'!$AP$104,'Données méteo'!$AQ$104))))))))))) -> 116.6045175 | BT76: =BS76/31*VLOOKUP(F76,'Données méteo'!$C$108:$P$131,3,FALSE) -> 0.7522872094 | BU76: 0.655 | BV76: 0.09728720938 | BX76: 0.075 | BY76: 0.6772872094 | BZ76: 0.58
A77: 2 | B77: Janvier | C77: 2 Janvier | D77: 36 | E77: Mardi | F77: 12 | H77: 1 | I77: 1 | J77: 0 | K77: 0 | L77: 0 | M77: 1 | N77: 0 | O77: 0 | P77: 1 | Q77: 1 | R77: 1 | S77: 580 | T77: 1 | U77: 1 | V77: 1 | W77: 0 | X77: 0 | Y77: 0 | Z77: 0 | AA77: 1 | AB77: 1 | AC77: 0 | AD77: 1 | AE77: 1 | AF77: 1 | AG77: 0 | AH77: 1 | AI77: 1 | AJ77: 1 | AK77: 75 | AL77: 1 | AM77: 1 | AN77: 1 | AO77: 0 | AP77: 1 | AQ77: 0 | AR77: 0 | AS77: 0 | AT77: 1 | AU77: 0 | AV77: 0 | AW77: 0 | AX77: 1 | AY77: 0 | AZ77: 0 | BA77: 0 | BB77: 1 | BC77: 1 | BD77: 0 | BE77: 0 | BF77: 1 | BG77: 0 | BH77: 1 | BI77: 0 | BJ77: 1 | BK77: 1 | BL77: 0 | BM77: 0 | BN77: 0 | BO77: 0 | BP77: 0 | BQ77: 0 | BR77: 0.655 | BS77: =IF(B77='Données méteo'!$E$107,'Données méteo'!$AF$104,IF(B77='Données méteo'!$F$107,'Données méteo'!$AG$104,IF(B77='Données méteo'!$G$107,'Données méteo'!$AH$104,IF(B77='Données méteo'!$H$107,'Données méteo'!$AI$104,IF(B77='Données méteo'!$I$107,'Données méteo'!$AJ$104,IF(B77='Données méteo'!$J$107,'Données méteo'!$AK$104,IF(B77='Données méteo'!$K$107,'Données méteo'!$AL$104,IF(B77='Données méteo'!$L$107,'Données méteo'!$AM$104,IF(B77='Données méteo'!$M$107,'Données méteo'!$AN$104,IF(B77='Données méteo'!$N$107,'Données méteo'!$AO$104,IF(B77='Données méteo'!$O$107,'Données méteo'!$AP$104,'Données méteo'!$AQ$104))))))))))) -> 116.6045175 | BT77: =BS77/31*VLOOKUP(F77,'Données méteo'!$C$108:$P$131,3,FALSE) -> 0.9403590117 | BU77: 0.655 | BV77: 0.2853590117 | BX77: 0.075 | BY77: 0.8653590117 | BZ77: 0.58
A78: 2 | B78: Janvier | C78: 2 Janvier | D78: 37 | E78: Mardi | F78: 13 | H78: 1 | I78: 1 | J78: 0 | K78: 0 | L78: 0 | M78: 1 | N78: 0 | O78: 0 | P78: 1 | Q78: 1 | R78: 1 | S78: 580 | T78: 1 | U78: 1 | V78: 1 | W78: 0 | X78: 0 | Y78: 0 | Z78: 0 | AA78: 1 | AB78: 1 | AC78: 0 | AD78: 1 | AE78: 1 | AF78: 1 | AG78: 0 | AH78: 1 | AI78: 1 | AJ78: 1 | AK78: 75 | AL78: 1 | AM78: 1 | AN78: 1 | AO78: 0 | AP78: 1 | AQ78: 0 | AR78: 0 | AS78: 0 | AT78: 1 | AU78: 0 | AV78: 0 | AW78: 0 | AX78: 1 | AY78: 0 | AZ78: 0 | BA78: 0 | BB78: 1 | BC78: 1 | BD78: 0 | BE78: 0 | BF78: 1 | BG78: 0 | BH78: 1 | BI78: 0 | BJ78: 1 | BK78: 1 | BL78: 0 | BM78: 0 | BN78: 0 | BO78: 0 | BP78: 0 | BQ78: 0 | BR78: 0.655 | BS78: =IF(B78='Données méteo'!$E$107,'Données méteo'!$AF$104,IF(B78='Données méteo'!$F$107,'Données méteo'!$AG$104,IF(B78='Données méteo'!$G$107,'Données méteo'!$AH$104,IF(B78='Données méteo'!$H$107,'Données méteo'!$AI$104,IF(B78='Données méteo'!$I$107,'Données méteo'!$AJ$104,IF(B78='Données méteo'!$J$107,'Données méteo'!$AK$104,IF(B78='Données méteo'!$K$107,'Données méteo'!$AL$104,IF(B78='Données méteo'!$L$107,'Données méteo'!$AM$104,IF(B78='Données méteo'!$M$107,'Données méteo'!$AN$104,IF(B78='Données méteo'!$N$107,'Données méteo'!$AO$104,IF(B78='Données méteo'!$O$107,'Données méteo'!$AP$104,'Données méteo'!$AQ$104))))))))))) -> 116.6045175 | BT78: =BS78/31*VLOOKUP(F78,'Données méteo'!$C$108:$P$131,3,FALSE) -> 0.8275159303 | BU78: 0.655 | BV78: 0.1725159303 | BX78: 0.075 | BY78: 0.7525159303 | BZ78: 0.58
A79: 2 | B79: Janvier | C79: 2 Janvier | D79: 38 | E79: Mardi | F79: 14 | H79: 1 | I79: 1 | J79: 0 | K79: 0 | L79: 0 | M79: 1 | N79: 1 | O79: 0 | P79: 1 | Q79: 1 | R79: 1 | S79: 580 | T79: 1 | U79: 1 | V79: 1 | W79: 0 | X79: 0 | Y79: 0 | Z79: 0 | AA79: 1 | AB79: 1 | AC79: 0 | AD79: 1 | AE79: 1 | AF79: 1 | AG79: 0 | AH79: 1 | AI79: 1 | AJ79: 1 | AK79: 75 | AL79: 1 | AM79: 1 | AN79: 1 | AO79: 0 | AP79: 1 | AQ79: 0 | AR79: 1 | AS79: 0 | AT79: 1 | AU79: 0 | AV79: 0 | AW79: 0 | AX79: 1 | AY79: 0 | AZ79: 0 | BA79: 0 | BB79: 1 | BC79: 1 | BD79: 0 | BE79: 0 | BF79: 1 | BG79: 0 | BH79: 0 | BI79: 0 | BJ79: 1 | BK79: 1 | BL79: 0 | BM79: 0 | BN79: 0 | BO79: 0 | BP79: 0 | BQ79: 0 | BR79: 0.655 | BS79: =IF(B79='Données méteo'!$E$107,'Données méteo'!$AF$104,IF(B79='Données méteo'!$F$107,'Données méteo'!$AG$104,IF(B79='Données méteo'!$G$107,'Données méteo'!$AH$104,IF(B79='Données méteo'!$H$107,'Données méteo'!$AI$104,IF(B79='Données méteo'!$I$107,'Données méteo'!$AJ$104,IF(B79='Données méteo'!$J$107,'Données méteo'!$AK$104,IF(B79='Données méteo'!$K$107,'Données méteo'!$AL$104,IF(B79='Données méteo'!$L$107,'Données méteo'!$AM$104,IF(B79='Données méteo'!$M$107,'Données méteo'!$AN$104,IF(B79='Données méteo'!$N$107,'Données méteo'!$AO$104,IF(B79='Données méteo'!$O$107,'Données méteo'!$AP$104,'Données méteo'!$AQ$104))))))))))) -> 116.6045175 | BT79: =BS79/31*VLOOKUP(F79,'Données méteo'!$C$108:$P$131,3,FALSE) -> 0.3761436047 | BU79: 0.3761436047 | BV79: 0 | BX79: 0.075 | BY79: 0.3011436047 | BZ79: 0.3011436047
A80: 2 | B80: Janvier | C80: 2 Janvier | D80: 39 | E80: Mardi | F80: 15 | H80: 1 | I80: 1 | J80: 0 | K80: 0 | L80: 0 | M80: 1 | N80: 1 | O80: 0 | P80: 1 | Q80: 1 | R80: 1 | S80: 580 | T80: 1 | U80: 1 | V80: 1 | W80: 0 | X80: 0 | Y80: 0 | Z80: 0 | AA80: 1 | AB80: 1 | AC80: 0 | AD80: 1 | AE80: 1 | AF80: 1 | AG80: 0 | AH80: 1 | AI80: 1 | AJ80: 1 | AK80: 75 | AL80: 1 | AM80: 1 | AN80: 1 | AO80: 0 | AP80: 1 | AQ80: 0 | AR80: 1 | AS80: 0 | AT80: 1 | AU80: 0 | AV80: 0 | AW80: 0 | AX80: 1 | AY80: 0 | AZ80: 0 | BA80: 0 | BB80: 1 | BC80: 1 | BD80: 0 | BE80: 0 | BF80: 1 | BG80: 0 | BH80: 0 | BI80: 0 | BJ80: 1 | BK80: 1 | BL80: 0 | BM80: 0 | BN80: 0 | BO80: 0 | BP80: 0 | BQ80: 0 | BR80: 0.655 | BS80: =IF(B80='Données méteo'!$E$107,'Données méteo'!$AF$104,IF(B80='Données méteo'!$F$107,'Données méteo'!$AG$104,IF(B80='Données méteo'!$G$107,'Données méteo'!$AH$104,IF(B80='Données méteo'!$H$107,'Données méteo'!$AI$104,IF(B80='Données méteo'!$I$107,'Données méteo'!$AJ$104,IF(B80='Données méteo'!$J$107,'Données méteo'!$AK$104,IF(B80='Données méteo'!$K$107,'Données méteo'!$AL$104,IF(B80='Données méteo'!$L$107,'Données méteo'!$AM$104,IF(B80='Données méteo'!$M$107,'Données méteo'!$AN$104,IF(B80='Données méteo'!$N$107,'Données méteo'!$AO$104,IF(B80='Données méteo'!$O$107,'Données méteo'!$AP$104,'Données méteo'!$AQ$104))))))))))) -> 116.6045175 | BT80: =BS80/31*VLOOKUP(F80,'Données méteo'!$C$108:$P$131,3,FALSE) -> 0.1880718023 | BU80: 0.1880718023 | BV80: 0 | BX80: 0.075 | BY80: 0.1130718023 | BZ80: 0.1130718023
A81: 2 | B81: Janvier | C81: 2 Janvier | D81: 40 | E81: Mardi | F81: 16 | H81: 1 | I81: 1 | J81: 1 | K81: 900 | L81: 0 | M81: 1 | N81: 1 | O81: 0 | P81: 1 | Q81: 1 | R81: 1 | S81: 580 | T81: 1 | U81: 1 | V81: 1 | W81: 0 | X81: 0 | Y81: 0 | Z81: 0 | AA81: 1 | AB81: 1 | AC81: 0 | AD81: 1 | AE81: 1 | AF81: 1 | AG81: 0 | AH81: 1 | AI81: 1 | AJ81: 1 | AK81: 75 | AL81: 1 | AM81: 1 | AN81: 1 | AO81: 0 | AP81: 1 | AQ81: 0 | AR81: 0 | AS81: 0 | AT81: 1 | AU81: 0 | AV81: 1 | AW81: 0 | AX81: 1 | AY81: 0 | AZ81: 1 | BA81: 0 | BB81: 1 | BC81: 1 | BD81: 0 | BE81: 0 | BF81: 1 | BG81: 0 | BH81: 0 | BI81: 0 | BJ81: 1 | BK81: 1 | BL81: 0 | BM81: 0 | BN81: 0 | BO81: 0 | BP81: 0 | BQ81: 0 | BR81: 1.555 | BS81: =IF(B81='Données méteo'!$E$107,'Données méteo'!$AF$104,IF(B81='Données méteo'!$F$107,'Données méteo'!$AG$104,IF(B81='Données méteo'!$G$107,'Données méteo'!$AH$104,IF(B81='Données méteo'!$H$107,'Données méteo'!$AI$104,IF(B81='Données méteo'!$I$107,'Données méteo'!$AJ$104,IF(B81='Données méteo'!$J$107,'Données méteo'!$AK$104,IF(B81='Données méteo'!$K$107,'Données méteo'!$AL$104,IF(B81='Données méteo'!$L$107,'Données méteo'!$AM$104,IF(B81='Données méteo'!$M$107,'Données méteo'!$AN$104,IF(B81='Données méteo'!$N$107,'Données méteo'!$AO$104,IF(B81='Données méteo'!$O$107,'Données méteo'!$AP$104,'Données méteo'!$AQ$104))))))))))) -> 116.6045175 | BT81: =BS81/31*VLOOKUP(F81,'Données méteo'!$C$108:$P$131,3,FALSE) -> 0.1128430814 | BU81: 0.1128430814 | BV81: 0 | BX81: 0.975 | BY81: 0 | BZ81: 0
A82: 2 | B82: Janvier | C82: 2 Janvier | D82: 41 | E82: Mardi | F82: 17 | H82: 1 | I82: 1 | J82: 1 | K82: 900 | L82: 0 | M82: 1 | N82: 1 | O82: 0 | P82: 1 | Q82: 1 | R82: 1 | S82: 580 | T82: 1 | U82: 1 | V82: 1 | W82: 0 | X82: 0 | Y82: 0 | Z82: 0 | AA82: 1 | AB82: 1 | AC82: 0 | AD82: 1 | AE82: 1 | AF82: 1 | AG82: 0 | AH82: 1 | AI82: 1 | AJ82: 1 | AK82: 75 | AL82: 1 | AM82: 1 | AN82: 1 | AO82: 0 | AP82: 1 | AQ82: 0 | AR82: 0 | AS82: 0 | AT82: 1 | AU82: 0 | AV82: 1 | AW82: 0 | AX82: 1 | AY82: 0 | AZ82: 1 | BA82: 0 | BB82: 1 | BC82: 1 | BD82: 0 | BE82: 0 | BF82: 1 | BG82: 0 | BH82: 0 | BI82: 0 | BJ82: 1 | BK82: 1 | BL82: 0 | BM82: 0 | BN82: 0 | BO82: 0 | BP82: 0 | BQ82: 0 | BR82: 1.555 | BS82: =IF(B82='Données méteo'!$E$107,'Données méteo'!$AF$104,IF(B82='Données méteo'!$F$107,'Données méteo'!$AG$104,IF(B82='Données méteo'!$G$107,'Données méteo'!$AH$104,IF(B82='Données méteo'!$H$107,'Données méteo'!$AI$104,IF(B82='Données méteo'!$I$107,'Données méteo'!$AJ$104,IF(B82='Données méteo'!$J$107,'Données méteo'!$AK$104,IF(B82='Données méteo'!$K$107,'Données méteo'!$AL$104,IF(B82='Données méteo'!$L$107,'Données méteo'!$AM$104,IF(B82='Données méteo'!$M$107,'Données méteo'!$AN$104,IF(B82='Données méteo'!$N$107,'Données méteo'!$AO$104,IF(B82='Données méteo'!$O$107,'Données méteo'!$AP$104,'Données méteo'!$AQ$104))))))))))) -> 116.6045175 | BT82: =BS82/31*VLOOKUP(F82,'Données méteo'!$C$108:$P$131,3,FALSE) -> 0.03761436047 | BU82: 0.03761436047 | BV82: 0 | BX82: 0.975 | BY82: 0 | BZ82: 0
A83: 2 | B83: Janvier | C83: 2 Janvier | D83: 42 | E83: Mardi | F83: 18 | H83: 1 | I83: 1 | J83: 1 | K83: 900 | L83: 0 | M83: 1 | N83: 1 | O83: 0 | P83: 1 | Q83: 1 | R83: 1 | S83: 580 | T83: 1 | U83: 1 | V83: 1 | W83: 0 | X83: 0 | Y83: 0 | Z83: 0 | AA83: 1 | AB83: 1 | AC83: 0 | AD83: 1 | AE83: 1 | AF83: 1 | AG83: 0 | AH83: 1 | AI83: 1 | AJ83: 1 | AK83: 75 | AL83: 1 | AM83: 1 | AN83: 1 | AO83: 0 | AP83: 1 | AQ83: 0 | AR83: 0 | AS83: 0 | AT83: 1 | AU83: 0 | AV83: 0 | AW83: 0 | AX83: 1 | AY83: 0 | AZ83: 0 | BA83: 0 | BB83: 1 | BC83: 1 | BD83: 1 | BE83: 1500 | BF83: 1 | BG83: 0 | BH83: 0 | BI83: 0 | BJ83: 1 | BK83: 1 | BL83: 0 | BM83: 0 | BN83: 0 | BO83: 0 | BP83: 0 | BQ83: 0 | BR83: 3.055 | BS83: =IF(B83='Données méteo'!$E$107,'Données méteo'!$AF$104,IF(B83='Données méteo'!$F$107,'Données méteo'!$AG$104,IF(B83='Données méteo'!$G$107,'Données méteo'!$AH$104,IF(B83='Données méteo'!$H$107,'Données méteo'!$AI$104,IF(B83='Données méteo'!$I$107,'Données méteo'!$AJ$104,IF(B83='Données méteo'!$J$107,'Données méteo'!$AK$104,IF(B83='Données méteo'!$K$107,'Données méteo'!$AL$104,IF(B83='Données méteo'!$L$107,'Données méteo'!$AM$104,IF(B83='Données méteo'!$M$107,'Données méteo'!$AN$104,IF(B83='Données méteo'!$N$107,'Données méteo'!$AO$104,IF(B83='Données méteo'!$O$107,'Données méteo'!$AP$104,'Données méteo'!$AQ$104))))))))))) -> 116.6045175 | BT83: =BS83/31*VLOOKUP(F83,'Données méteo'!$C$108:$P$131,3,FALSE) -> 0 | BU83: 0 | BV83: 0 | BX83: 2.475 | BY83: 0 | BZ83: 0
A84: 2 | B84: Janvier | C84: 2 Janvier | D84: 43 | E84: Mardi | F84: 19 | H84: 1 | I84: 1 | J84: 1 | K84: 900 | L84: 0 | M84: 1 | N84: 1 | O84: 0 | P84: 1 | Q84: 1 | R84: 1 | S84: 580 | T84: 1 | U84: 1 | V84: 1 | W84: 0 | X84: 0 | Y84: 0 | Z84: 0 | AA84: 1 | AB84: 1 | AC84: 0 | AD84: 1 | AE84: 1 | AF84: 1 | AG84: 0 | AH84: 1 | AI84: 1 | AJ84: 1 | AK84: 75 | AL84: 1 | AM84: 1 | AN84: 1 | AO84: 0 | AP84: 1 | AQ84: 0 | AR84: 0 | AS84: 0 | AT84: 1 | AU84: 0 | AV84: 0 | AW84: 0 | AX84: 1 | AY84: 0 | AZ84: 0 | BA84: 0 | BB84: 1 | BC84: 1 | BD84: 1 | BE84: 1500 | BF84: 1 | BG84: 0 | BH84: 0 | BI84: 0 | BJ84: 1 | BK84: 1 | BL84: 0 | BM84: 0 | BN84: 0 | BO84: 0 | BP84: 0 | BQ84: 0 | BR84: 3.055 | BS84: =IF(B84='Données méteo'!$E$107,'Données méteo'!$AF$104,IF(B84='Données méteo'!$F$107,'Données méteo'!$AG$104,IF(B84='Données méteo'!$G$107,'Données méteo'!$AH$104,IF(B84='Données méteo'!$H$107,'Données méteo'!$AI$104,IF(B84='Données méteo'!$I$107,'Données méteo'!$AJ$104,IF(B84='Données méteo'!$J$107,'Données méteo'!$AK$104,IF(B84='Données méteo'!$K$107,'Données méteo'!$AL$104,IF(B84='Données méteo'!$L$107,'Données méteo'!$AM$104,IF(B84='Données méteo'!$M$107,'Données méteo'!$AN$104,IF(B84='Données méteo'!$N$107,'Données méteo'!$AO$104,IF(B84='Données méteo'!$O$107,'Données méteo'!$AP$104,'Données méteo'!$AQ$104))))))))))) -> 116.6045175 | BT84: =BS84/31*VLOOKUP(F84,'Données méteo'!$C$108:$P$131,3,FALSE) -> 0 | BU84: 0 | BV84: 0 | BX84: 2.475 | BY84: 0 | BZ84: 0
A85: 2 | B85: Janvier | C85: 2 Janvier | D85: 44 | E85: Mardi | F85: 20 | H85: 1 | I85: 1 | J85: 1 | K85: 900 | L85: 0 | M85: 1 | N85: 1 | O85: 0 | P85: 1 | Q85: 1 | R85: 0 | S85: 0 | T85: 1 | U85: 1 | V85: 1 | W85: 0 | X85: 0 | Y85: 0 | Z85: 0 | AA85: 1 | AB85: 1 | AC85: 0 | AD85: 1 | AE85: 1 | AF85: 1 | AG85: 0 | AH85: 1 | AI85: 1 | AJ85: 1 | AK85: 75 | AL85: 1 | AM85: 1 | AN85: 1 | AO85: 0 | AP85: 1 | AQ85: 0 | AR85: 0 | AS85: 0 | AT85: 1 | AU85: 0 | AV85: 0 | AW85: 0 | AX85: 1 | AY85: 0 | AZ85: 0 | BA85: 0 | BB85: 1 | BC85: 1 | BD85: 0 | BE85: 0 | BF85: 1 | BG85: 0 | BH85: 0 | BI85: 0 | BJ85: 1 | BK85: 1 | BL85: 1 | BM85: 100 | BN85: 0 | BO85: 0 | BP85: 0 | BQ85: 0 | BR85: 1.075 | BS85: =IF(B85='Données méteo'!$E$107,'Données méteo'!$AF$104,IF(B85='Données méteo'!$F$107,'Données méteo'!$AG$104,IF(B85='Données méteo'!$G$107,'Données méteo'!$AH$104,IF(B85='Données méteo'!$H$107,'Données méteo'!$AI$104,IF(B85='Données méteo'!$I$107,'Données méteo'!$AJ$104,IF(B85='Données méteo'!$J$107,'Données méteo'!$AK$104,IF(B85='Données méteo'!$K$107,'Données méteo'!$AL$104,IF(B85='Données méteo'!$L$107,'Données méteo'!$AM$104,IF(B85='Données méteo'!$M$107,'Données méteo'!$AN$104,IF(B85='Données méteo'!$N$107,'Données méteo'!$AO$104,IF(B85='Données méteo'!$O$107,'Données méteo'!$AP$104,'Données méteo'!$AQ$104))))))))))) -> 116.6045175 | BT85: =BS85/31*VLOOKUP(F85,'Données méteo'!$C$108:$P$131,3,FALSE) -> 0 | BU85: 0 | BV85: 0 | BX85: 1.075 | BY85: 0 | BZ85: 0
A86: 2 | B86: Janvier | C86: 2 Janvier | D86: 45 | E86: Mardi | F86: 21 | H86: 1 | I86: 1 | J86: 1 | K86: 900 | L86: 0 | M86: 1 | N86: 1 | O86: 0 | P86: 1 | Q86: 1 | R86: 0 | S86: 0 | T86: 1 | U86: 1 | V86: 1 | W86: 0 | X86: 0 | Y86: 0 | Z86: 0 | AA86: 1 | AB86: 1 | AC86: 0 | AD86: 1 | AE86: 1 | AF86: 1 | AG86: 0 | AH86: 1 | AI86: 1 | AJ86: 1 | AK86: 75 | AL86: 1 | AM86: 1 | AN86: 1 | AO86: 0 | AP86: 1 | AQ86: 0 | AR86: 0 | AS86: 0 | AT86: 1 | AU86: 0 | AV86: 0 | AW86: 0 | AX86: 1 | AY86: 0 | AZ86: 0 | BA86: 0 | BB86: 1 | BC86: 1 | BD86: 0 | BE86: 0 | BF86: 1 | BG86: 0 | BH86: 0 | BI86: 0 | BJ86: 1 | BK86: 1 | BL86: 1 | BM86: 100 | BN86: 0 | BO86: 0 | BP86: 0 | BQ86: 0 | BR86: 1.075 | BS86: =IF(B86='Données méteo'!$E$107,'Données méteo'!$AF$104,IF(B86='Données méteo'!$F$107,'Données méteo'!$AG$104,IF(B86='Données méteo'!$G$107,'Données méteo'!$AH$104,IF(B86='Données méteo'!$H$107,'Données méteo'!$AI$104,IF(B86='Données méteo'!$I$107,'Données méteo'!$AJ$104,IF(B86='Données méteo'!$J$107,'Données méteo'!$AK$104,IF(B86='Données méteo'!$K$107,'Données méteo'!$AL$104,IF(B86='Données méteo'!$L$107,'Données méteo'!$AM$104,IF(B86='Données méteo'!$M$107,'Données méteo'!$AN$104,IF(B86='Données méteo'!$N$107,'Données méteo'!$AO$104,IF(B86='Données méteo'!$O$107,'Données méteo'!$AP$104,'Données méteo'!$AQ$104))))))))))) -> 116.6045175 | BT86: =BS86/31*VLOOKUP(F86,'Données méteo'!$C$108:$P$131,3,FALSE) -> 0 | BU86: 0 | BV86: 0 | BX86: 1.075 | BY86: 0 | BZ86: 0
A87: 2 | B87: Janvier | C87: 2 Janvier | D87: 46 | E87: Mardi | F87: 22 | H87: 1 | I87: 1 | J87: 0 | K87: 0 | L87: 0 | M87: 1 | N87: 0 | O87: 0 | P87: 1 | Q87: 1 | R87: 0 | S87: 0 | T87: 1 | U87: 1 | V87: 1 | W87: 0 | X87: 0 | Y87: 0 | Z87: 0 | AA87: 1 | AB87: 1 | AC87: 0 | AD87: 1 | AE87: 1 | AF87: 1 | AG87: 0 | AH87: 1 | AI87: 1 | AJ87: 1 | AK87: 75 | AL87: 1 | AM87: 1 | AN87: 1 | AO87: 0 | AP87: 1 | AQ87: 0 | AR87: 0 | AS87: 0 | AT87: 1 | AU87: 0 | AV87: 0 | AW87: 0 | AX87: 1 | AY87: 0 | AZ87: 0 | BA87: 0 | BB87: 1 | BC87: 1 | BD87: 0 | BE87: 0 | BF87: 1 | BG87: 0 | BH87: 0 | BI87: 0 | BJ87: 1 | BK87: 1 | BL87: 1 | BM87: 100 | BN87: 0 | BO87: 0 | BP87: 0 | BQ87: 0 | BR87: 0.175 | BS87: =IF(B87='Données méteo'!$E$107,'Données méteo'!$AF$104,IF(B87='Données méteo'!$F$107,'Données méteo'!$AG$104,IF(B87='Données méteo'!$G$107,'Données méteo'!$AH$104,IF(B87='Données méteo'!$H$107,'Données méteo'!$AI$104,IF(B87='Données méteo'!$I$107,'Données méteo'!$AJ$104,IF(B87='Données méteo'!$J$107,'Données méteo'!$AK$104,IF(B87='Données méteo'!$K$107,'Données méteo'!$AL$104,IF(B87='Données méteo'!$L$107,'Données méteo'!$AM$104,IF(B87='Données méteo'!$M$107,'Données méteo'!$AN$104,IF(B87='Données méteo'!$N$107,'Données méteo'!$AO$104,IF(B87='Données méteo'!$O$107,'Données méteo'!$AP$104,'Données méteo'!$AQ$104))))))))))) -> 116.6045175 | BT87: =BS87/31*VLOOKUP(F87,'Données méteo'!$C$108:$P$131,3,FALSE) -> 0 | BU87: 0 | BV87: 0 | BX87: 0.175 | BY87: 0 | BZ87: 0
A88: 2 | B88: Janvier | C88: 2 Janvier | D88: 47 | E88: Mardi | F88: 23 | H88: 1 | I88: 1 | J88: 0 | K88: 0 | L88: 0 | M88: 1 | N88: 0 | O88: 0 | P88: 1 | Q88: 1 | R88: 0 | S88: 0 | T88: 1 | U88: 1 | V88: 1 | W88: 0 | X88: 0 | Y88: 0 | Z88: 0 | AA88: 1 | AB88: 1 | AC88: 0 | AD88: 1 | AE88: 1 | AF88: 1 | AG88: 0 | AH88: 1 | AI88: 1 | AJ88: 1 | AK88: 75 | AL88: 1 | AM88: 1 | AN88: 1 | AO88: 0 | AP88: 1 | AQ88: 0 | AR88: 0 | AS88: 0 | AT88: 1 | AU88: 0 | AV88: 0 | AW88: 0 | AX88: 1 | AY88: 0 | AZ88: 0 | BA88: 0 | BB88: 1 | BC88: 1 | BD88: 0 | BE88: 0 | BF88: 1 | BG88: 0 | BH88: 0 | BI88: 0 | BJ88: 1 | BK88: 1 | BL88: 1 | BM88: 100 | BN88: 0 | BO88: 0 | BP88: 0 | BQ88: 0 | BR88: 0.175 | BS88: =IF(B88='Données méteo'!$E$107,'Données méteo'!$AF$104,IF(B88='Données méteo'!$F$107,'Données méteo'!$AG$104,IF(B88='Données méteo'!$G$107,'Données méteo'!$AH$104,IF(B88='Données méteo'!$H$107,'Données méteo'!$AI$104,IF(B88='Données méteo'!$I$107,'Données méteo'!$AJ$104,IF(B88='Données méteo'!$J$107,'Données méteo'!$AK$104,IF(B88='Données méteo'!$K$107,'Données méteo'!$AL$104,IF(B88='Données méteo'!$L$107,'Données méteo'!$AM$104,IF(B88='Données méteo'!$M$107,'Données méteo'!$AN$104,IF(B88='Données méteo'!$N$107,'Données méteo'!$AO$104,IF(B88='Données méteo'!$O$107,'Données méteo'!$AP$104,'Données méteo'!$AQ$104))))))))))) -> 116.6045175 | BT88: =BS88/31*VLOOKUP(F88,'Données méteo'!$C$108:$P$131,3,FALSE) -> 0 | BU88: 0 | BV88: 0 | BX88: 0.175 | BY88: 0 | BZ88: 0
A89: 3 | B89: Janvier | C89: 3 Janvier | D89: 48 | E89: Mercredi | F89: 0 | H89: 1 | I89: 1 | J89: 0 | K89: 0 | L89: 0 | M89: 1 | N89: 0 | O89: 0 | P89: 1 | Q89: 1 | R89: 0 | S89: 0 | T89: 1 | U89: 1 | V89: 1 | W89: 0 | X89: 0 | Y89: 0 | Z89: 0 | AA89: 1 | AB89: 1 | AC89: 0 | AD89: 1 | AE89: 1 | AF89: 1 | AG89: 0 | AH89: 1 | AI89: 1 | AJ89: 1 | AK89: 75 | AL89: 1 | AM89: 1 | AN89: 1 | AO89: 0 | AP89: 1 | AQ89: 0 | AR89: 0 | AS89: 0 | AT89: 1 | AU89: 0 | AV89: 0 | AW89: 0 | AX89: 1 | AY89: 0 | AZ89: 0 | BA89: 0 | BB89: 1 | BC89: 1 | BD89: 0 | BE89: 0 | BF89: 1 | BG89: 1 | BH89: 0 | BI89: 0 | BJ89: 1 | BK89: 1 | BL89: 0 | BM89: 0 | BN89: 0 | BO89: 0 | BP89: 0 | BQ89: 0 | BR89: 0.075 | BS89: =IF(B89='Données méteo'!$E$107,'Données méteo'!$AF$104,IF(B89='Données méteo'!$F$107,'Données méteo'!$AG$104,IF(B89='Données méteo'!$G$107,'Données méteo'!$AH$104,IF(B89='Données méteo'!$H$107,'Données méteo'!$AI$104,IF(B89='Données méteo'!$I$107,'Données méteo'!$AJ$104,IF(B89='Données méteo'!$J$107,'Données méteo'!$AK$104,IF(B89='Données méteo'!$K$107,'Données méteo'!$AL$104,IF(B89='Données méteo'!$L$107,'Données méteo'!$AM$104,IF(B89='Données méteo'!$M$107,'Données méteo'!$AN$104,IF(B89='Données méteo'!$N$107,'Données méteo'!$AO$104,IF(B89='Données méteo'!$O$107,'Données méteo'!$AP$104,'Données méteo'!$AQ$104))))))))))) -> 116.6045175 | BT89: =BS89/31*VLOOKUP(F89,'Données méteo'!$C$108:$P$131,3,FALSE) -> 0 | BU89: 0 | BV89: 0 | BX89: 0.075 | BY89: 0 | BZ89: 0
A90: 3 | B90: Janvier | C90: 3 Janvier | D90: 49 | E90: Mercredi | F90: 1 | H90: 1 | I90: 1 | J90: 0 | K90: 0 | L90: 0 | M90: 1 | N90: 0 | O90: 0 | P90: 1 | Q90: 1 | R90: 0 | S90: 0 | T90: 1 | U90: 1 | V90: 1 | W90: 0 | X90: 0 | Y90: 0 | Z90: 0 | AA90: 1 | AB90: 1 | AC90: 0 | AD90: 1 | AE90: 1 | AF90: 1 | AG90: 0 | AH90: 1 | AI90: 1 | AJ90: 1 | AK90: 75 | AL90: 1 | AM90: 1 | AN90: 1 | AO90: 0 | AP90: 1 | AQ90: 0 | AR90: 0 | AS90: 0 | AT90: 1 | AU90: 0 | AV90: 0 | AW90: 0 | AX90: 1 | AY90: 0 | AZ90: 0 | BA90: 0 | BB90: 1 | BC90: 1 | BD90: 0 | BE90: 0 | BF90: 1 | BG90: 1 | BH90: 0 | BI90: 0 | BJ90: 1 | BK90: 1 | BL90: 0 | BM90: 0 | BN90: 0 | BO90: 0 | BP90: 0 | BQ90: 0 | BR90: 0.075 | BS90: =IF(B90='Données méteo'!$E$107,'Données méteo'!$AF$104,IF(B90='Données méteo'!$F$107,'Données méteo'!$AG$104,IF(B90='Données méteo'!$G$107,'Données méteo'!$AH$104,IF(B90='Données méteo'!$H$107,'Données méteo'!$AI$104,IF(B90='Données méteo'!$I$107,'Données méteo'!$AJ$104,IF(B90='Données méteo'!$J$107,'Données méteo'!$AK$104,IF(B90='Données méteo'!$K$107,'Données méteo'!$AL$104,IF(B90='Données méteo'!$L$107,'Données méteo'!$AM$104,IF(B90='Données méteo'!$M$107,'Données méteo'!$AN$104,IF(B90='Données méteo'!$N$107,'Données méteo'!$AO$104,IF(B90='Données méteo'!$O$107,'Données méteo'!$AP$104,'Données méteo'!$AQ$104))))))))))) -> 116.6045175 | BT90: =BS90/31*VLOOKUP(F90,'Données méteo'!$C$108:$P$131,3,FALSE) -> 0 | BU90: 0 | BV90: 0 | BX90: 0.075 | BY90: 0 | BZ90: 0
A91: 3 | B91: Janvier | C91: 3 Janvier | D91: 50 | E91: Mercredi | F91: 2 | H91: 1 | I91: 1 | J91: 0 | K91: 0 | L91: 0 | M91: 1 | N91: 0 | O91: 0 | P91: 1 | Q91: 1 | R91: 0 | S91: 0 | T91: 1 | U91: 1 | V91: 1 | W91: 0 | X91: 0 | Y91: 0 | Z91: 0 | AA91: 1 | AB91: 1 | AC91: 0 | AD91: 1 | AE91: 1 | AF91: 1 | AG91: 0 | AH91: 1 | AI91: 1 | AJ91: 1 | AK91: 75 | AL91: 1 | AM91: 1 | AN91: 1 | AO91: 0 | AP91: 1 | AQ91: 0 | AR91: 0 | AS91: 0 | AT91: 1 | AU91: 0 | AV91: 0 | AW91: 0 | AX91: 1 | AY91: 0 | AZ91: 0 | BA91: 0 | BB91: 1 | BC91: 1 | BD91: 0 | BE91: 0 | BF91: 1 | BG91: 1 | BH91: 0 | BI91: 0 | BJ91: 1 | BK91: 1 | BL91: 0 | BM91: 0 | BN91: 0 | BO91: 0 | BP91: 0 | BQ91: 0 | BR91: 0.075 | BS91: =IF(B91='Données méteo'!$E$107,'Données méteo'!$AF$104,IF(B91='Données méteo'!$F$107,'Données méteo'!$AG$104,IF(B91='Données méteo'!$G$107,'Données méteo'!$AH$104,IF(B91='Données méteo'!$H$107,'Données méteo'!$AI$104,IF(B91='Données méteo'!$I$107,'Données méteo'!$AJ$104,IF(B91='Données méteo'!$J$107,'Données méteo'!$AK$104,IF(B91='Données méteo'!$K$107,'Données méteo'!$AL$104,IF(B91='Données méteo'!$L$107,'Données méteo'!$AM$104,IF(B91='Données méteo'!$M$107,'Données méteo'!$AN$104,IF(B91='Données méteo'!$N$107,'Données méteo'!$AO$104,IF(B91='Données méteo'!$O$107,'Données méteo'!$AP$104,'Données méteo'!$AQ$104))))))))))) -> 116.6045175 | BT91: =BS91/31*VLOOKUP(F91,'Données méteo'!$C$108:$P$131,3,FALSE) -> 0 | BU91: 0 | BV91: 0 | BX91: 0.075 | BY91: 0 | BZ91: 0
A92: 3 | B92: Janvier | C92: 3 Janvier | D92: 51 | E92: Mercredi | F92: 3 | H92: 1 | I92: 1 | J92: 0 | K92: 0 | L92: 0 | M92: 1 | N92: 0 | O92: 0 | P92: 1 | Q92: 1 | R92: 0 | S92: 0 | T92: 1 | U92: 1 | V92: 1 | W92: 0 | X92: 0 | Y92: 0 | Z92: 0 | AA92: 1 | AB92: 1 | AC92: 0 | AD92: 1 | AE92: 1 | AF92: 1 | AG92: 0 | AH92: 1 | AI92: 1 | AJ92: 1 | AK92: 75 | AL92: 1 | AM92: 1 | AN92: 1 | AO92: 0 | AP92: 1 | AQ92: 0 | AR92: 0 | AS92: 0 | AT92: 1 | AU92: 0 | AV92: 0 | AW92: 0 | AX92: 1 | AY92: 0 | AZ92: 0 | BA92: 0 | BB92: 1 | BC92: 1 | BD92: 0 | BE92: 0 | BF92: 1 | BG92: 1 | BH92: 0 | BI92: 0 | BJ92: 1 | BK92: 1 | BL92: 0 | BM92: 0 | BN92: 0 | BO92: 0 | BP92: 0 | BQ92: 0 | BR92: 0.075 | BS92: =IF(B92='Données méteo'!$E$107,'Données méteo'!$AF$104,IF(B92='Données méteo'!$F$107,'Données méteo'!$AG$104,IF(B92='Données méteo'!$G$107,'Données méteo'!$AH$104,IF(B92='Données méteo'!$H$107,'Données méteo'!$AI$104,IF(B92='Données méteo'!$I$107,'Données méteo'!$AJ$104,IF(B92='Données méteo'!$J$107,'Données méteo'!$AK$104,IF(B92='Données méteo'!$K$107,'Données méteo'!$AL$104,IF(B92='Données méteo'!$L$107,'Données méteo'!$AM$104,IF(B92='Données méteo'!$M$107,'Données méteo'!$AN$104,IF(B92='Données méteo'!$N$107,'Données méteo'!$AO$104,IF(B92='Données méteo'!$O$107,'Données méteo'!$AP$104,'Données méteo'!$AQ$104))))))))))) -> 116.6045175 | BT92: =BS92/31*VLOOKUP(F92,'Données méteo'!$C$108:$P$131,3,FALSE) -> 0 | BU92: 0 | BV92: 0 | BX92: 0.075 | BY92: 0 | BZ92: 0
A93: 3 | B93: Janvier | C93: 3 Janvier | D93: 52 | E93: Mercredi | F93: 4 | H93: 1 | I93: 1 | J93: 0 | K93: 0 | L93: 0 | M93: 1 | N93: 0 | O93: 0 | P93: 1 | Q93: 1 | R93: 0 | S93: 0 | T93: 1 | U93: 1 | V93: 1 | W93: 0 | X93: 0 | Y93: 0 | Z93: 0 | AA93: 1 | AB93: 1 | AC93: 0 | AD93: 1 | AE93: 1 | AF93: 1 | AG93: 0 | AH93: 1 | AI93: 1 | AJ93: 1 | AK93: 75 | AL93: 1 | AM93: 1 | AN93: 1 | AO93: 0 | AP93: 1 | AQ93: 0 | AR93: 0 | AS93: 0 | AT93: 1 | AU93: 0 | AV93: 0 | AW93: 0 | AX93: 1 | AY93: 0 | AZ93: 0 | BA93: 0 | BB93: 1 | BC93: 1 | BD93: 0 | BE93: 0 | BF93: 1 | BG93: 1 | BH93: 0 | BI93: 0 | BJ93: 1 | BK93: 1 | BL93: 0 | BM93: 0 | BN93: 0 | BO93: 0 | BP93: 0 | BQ93: 0 | BR93: 0.075 | BS93: =IF(B93='Données méteo'!$E$107,'Données méteo'!$AF$104,IF(B93='Données méteo'!$F$107,'Données méteo'!$AG$104,IF(B93='Données méteo'!$G$107,'Données méteo'!$AH$104,IF(B93='Données méteo'!$H$107,'Données méteo'!$AI$104,IF(B93='Données méteo'!$I$107,'Données méteo'!$AJ$104,IF(B93='Données méteo'!$J$107,'Données méteo'!$AK$104,IF(B93='Données méteo'!$K$107,'Données méteo'!$AL$104,IF(B93='Données méteo'!$L$107,'Données méteo'!$AM$104,IF(B93='Données méteo'!$M$107,'Données méteo'!$AN$104,IF(B93='Données méteo'!$N$107,'Données méteo'!$AO$104,IF(B93='Données méteo'!$O$107,'Données méteo'!$AP$104,'Données méteo'!$AQ$104))))))))))) -> 116.6045175 | BT93: =BS93/31*VLOOKUP(F93,'Données méteo'!$C$108:$P$131,3,FALSE) -> 0 | BU93: 0 | BV93: 0 | BX93: 0.075 | BY93: 0 | BZ93: 0
A94: 3 | B94: Janvier | C94: 3 Janvier | D94: 53 | E94: Mercredi | F94: 5 | H94: 1 | I94: 1 | J94: 0 | K94: 0 | L94: 0 | M94: 1 | N94: 0 | O94: 0 | P94: 1 | Q94: 1 | R94: 0 | S94: 0 | T94: 1 | U94: 1 | V94: 1 | W94: 0 | X94: 0 | Y94: 0 | Z94: 0 | AA94: 1 | AB94: 1 | AC94: 0 | AD94: 1 | AE94: 1 | AF94: 1 | AG94: 0 | AH94: 1 | AI94: 1 | AJ94: 1 | AK94: 75 | AL94: 1 | AM94: 1 | AN94: 1 | AO94: 0 | AP94: 1 | AQ94: 0 | AR94: 0 | AS94: 0 | AT94: 1 | AU94: 0 | AV94: 0 | AW94: 0 | AX94: 1 | AY94: 0 | AZ94: 0 | BA94: 0 | BB94: 1 | BC94: 1 | BD94: 0 | BE94: 0 | BF94: 1 | BG94: 1 | BH94: 0 | BI94: 0 | BJ94: 1 | BK94: 1 | BL94: 0 | BM94: 0 | BN94: 0 | BO94: 0 | BP94: 0 | BQ94: 0 | BR94: 0.075 | BS94: =IF(B94='Données méteo'!$E$107,'Données méteo'!$AF$104,IF(B94='Données méteo'!$F$107,'Données méteo'!$AG$104,IF(B94='Données méteo'!$G$107,'Données méteo'!$AH$104,IF(B94='Données méteo'!$H$107,'Données méteo'!$AI$104,IF(B94='Données méteo'!$I$107,'Données méteo'!$AJ$104,IF(B94='Données méteo'!$J$107,'Données méteo'!$AK$104,IF(B94='Données méteo'!$K$107,'Données méteo'!$AL$104,IF(B94='Données méteo'!$L$107,'Données méteo'!$AM$104,IF(B94='Données méteo'!$M$107,'Données méteo'!$AN$104,IF(B94='Données méteo'!$N$107,'Données méteo'!$AO$104,IF(B94='Données méteo'!$O$107,'Données méteo'!$AP$104,'Données méteo'!$AQ$104))))))))))) -> 116.6045175 | BT94: =BS94/31*VLOOKUP(F94,'Données méteo'!$C$108:$P$131,3,FALSE) -> 0 | BU94: 0 | BV94: 0 | BX94: 0.075 | BY94: 0 | BZ94: 0
A95: 3 | B95: Janvier | C95: 3 Janvier | D95: 54 | E95: Mercredi | F95: 6 | H95: 1 | I95: 1 | J95: 1 | K95: 900 | L95: 0 | M95: 1 | N95: 0 | O95: 0 | P95: 1 | Q95: 1 | R95: 0 | S95: 0 | T95: 1 | U95: 1 | V95: 1 | W95: 0 | X95: 0 | Y95: 0 | Z95: 0 | AA95: 1 | AB95: 1 | AC95: 0 | AD95: 1 | AE95: 1 | AF95: 1 | AG95: 0 | AH95: 1 | AI95: 1 | AJ95: 1 | AK95: 75 | AL95: 1 | AM95: 1 | AN95: 1 | AO95: 0 | AP95: 1 | AQ95: 0 | AR95: 0 | AS95: 0 | AT95: 1 | AU95: 0 | AV95: 0 | AW95: 0 | AX95: 1 | AY95: 0 | AZ95: 0 | BA95: 0 | BB95: 1 | BC95: 1 | BD95: 0 | BE95: 0 | BF95: 1 | BG95: 1 | BH95: 0 | BI95: 0 | BJ95: 1 | BK95: 1 | BL95: 0 | BM95: 0 | BN95: 0 | BO95: 0 | BP95: 0 | BQ95: 0 | BR95: 0.975 | BS95: =IF(B95='Données méteo'!$E$107,'Données méteo'!$AF$104,IF(B95='Données méteo'!$F$107,'Données méteo'!$AG$104,IF(B95='Données méteo'!$G$107,'Données méteo'!$AH$104,IF(B95='Données méteo'!$H$107,'Données méteo'!$AI$104,IF(B95='Données méteo'!$I$107,'Données méteo'!$AJ$104,IF(B95='Données méteo'!$J$107,'Données méteo'!$AK$104,IF(B95='Données méteo'!$K$107,'Données méteo'!$AL$104,IF(B95='Données méteo'!$L$107,'Données méteo'!$AM$104,IF(B95='Données méteo'!$M$107,'Données méteo'!$AN$104,IF(B95='Données méteo'!$N$107,'Données méteo'!$AO$104,IF(B95='Données méteo'!$O$107,'Données méteo'!$AP$104,'Données méteo'!$AQ$104))))))))))) -> 116.6045175 | BT95: =BS95/31*VLOOKUP(F95,'Données méteo'!$C$108:$P$131,3,FALSE) -> 0 | BU95: 0 | BV95: 0 | BX95: 0.975 | BY95: 0 | BZ95: 0
A96: 3 | B96: Janvier | C96: 3 Janvier | D96: 55 | E96: Mercredi | F96: 7 | H96: 1 | I96: 1 | J96: 1 | K96: 900 | L96: 0 | M96: 1 | N96: 0 | O96: 0 | P96: 1 | Q96: 1 | R96: 0 | S96: 0 | T96: 1 | U96: 1 | V96: 1 | W96: 0 | X96: 0 | Y96: 0 | Z96: 0 | AA96: 1 | AB96: 1 | AC96: 0 | AD96: 1 | AE96: 1 | AF96: 1 | AG96: 0 | AH96: 1 | AI96: 1 | AJ96: 1 | AK96: 75 | AL96: 1 | AM96: 1 | AN96: 1 | AO96: 0 | AP96: 1 | AQ96: 0 | AR96: 0 | AS96: 0 | AT96: 1 | AU96: 0 | AV96: 0 | AW96: 0 | AX96: 1 | AY96: 0 | AZ96: 0 | BA96: 0 | BB96: 1 | BC96: 1 | BD96: 0 | BE96: 0 | BF96: 1 | BG96: 1 | BH96: 0 | BI96: 0 | BJ96: 1 | BK96: 1 | BL96: 0 | BM96: 0 | BN96: 0 | BO96: 0 | BP96: 0 | BQ96: 0 | BR96: 0.975 | BS96: =IF(B96='Données méteo'!$E$107,'Données méteo'!$AF$104,IF(B96='Données méteo'!$F$107,'Données méteo'!$AG$104,IF(B96='Données méteo'!$G$107,'Données méteo'!$AH$104,IF(B96='Données méteo'!$H$107,'Données méteo'!$AI$104,IF(B96='Données méteo'!$I$107,'Données méteo'!$AJ$104,IF(B96='Données méteo'!$J$107,'Données méteo'!$AK$104,IF(B96='Données méteo'!$K$107,'Données méteo'!$AL$104,IF(B96='Données méteo'!$L$107,'Données méteo'!$AM$104,IF(B96='Données méteo'!$M$107,'Données méteo'!$AN$104,IF(B96='Données méteo'!$N$107,'Données méteo'!$AO$104,IF(B96='Données méteo'!$O$107,'Données méteo'!$AP$104,'Données méteo'!$AQ$104))))))))))) -> 116.6045175 | BT96: =BS96/31*VLOOKUP(F96,'Données méteo'!$C$108:$P$131,3,FALSE) -> 0 | BU96: 0 | BV96: 0 | BX96: 0.975 | BY96: 0 | BZ96: 0
A97: 3 | B97: Janvier | C97: 3 Janvier | D97: 56 | E97: Mercredi | F97: 8 | H97: 1 | I97: 1 | J97: 0 | K97: 0 | L97: 0 | M97: 1 | N97: 0 | O97: 0 | P97: 1 | Q97: 1 | R97: 1 | S97: 580 | T97: 1 | U97: 1 | V97: 1 | W97: 0 | X97: 0 | Y97: 0 | Z97: 0 | AA97: 1 | AB97: 1 | AC97: 0 | AD97: 1 | AE97: 1 | AF97: 1 | AG97: 0 | AH97: 1 | AI97: 1 | AJ97: 1 | AK97: 75 | AL97: 1 | AM97: 1 | AN97: 1 | AO97: 0 | AP97: 1 | AQ97: 0 | AR97: 0 | AS97: 0 | AT97: 1 | AU97: 0 | AV97: 0 | AW97: 0 | AX97: 1 | AY97: 0 | AZ97: 0 | BA97: 0 | BB97: 1 | BC97: 1 | BD97: 0 | BE97: 0 | BF97: 1 | BG97: 1 | BH97: 0 | BI97: 0 | BJ97: 1 | BK97: 1 | BL97: 0 | BM97: 0 | BN97: 0 | BO97: 0 | BP97: 0 | BQ97: 0 | BR97: 0.655 | BS97: =IF(B97='Données méteo'!$E$107,'Données méteo'!$AF$104,IF(B97='Données méteo'!$F$107,'Données méteo'!$AG$104,IF(B97='Données méteo'!$G$107,'Données méteo'!$AH$104,IF(B97='Données méteo'!$H$107,'Données méteo'!$AI$104,IF(B97='Données méteo'!$I$107,'Données méteo'!$AJ$104,IF(B97='Données méteo'!$J$107,'Données méteo'!$AK$104,IF(B97='Données méteo'!$K$107,'Données méteo'!$AL$104,IF(B97='Données méteo'!$L$107,'Données méteo'!$AM$104,IF(B97='Données méteo'!$M$107,'Données méteo'!$AN$104,IF(B97='Données méteo'!$N$107,'Données méteo'!$AO$104,IF(B97='Données méteo'!$O$107,'Données méteo'!$AP$104,'Données méteo'!$AQ$104))))))))))) -> 116.6045175 | BT97: =BS97/31*VLOOKUP(F97,'Données méteo'!$C$108:$P$131,3,FALSE) -> 0 | BU97: 0 | BV97: 0 | BX97: 0.075 | BY97: 0 | BZ97: 0
A98: 3 | B98: Janvier | C98: 3 Janvier | D98: 57 | E98: Mercredi | F98: 9 | H98: 1 | I98: 1 | J98: 0 | K98: 0 | L98: 0 | M98: 1 | N98: 0 | O98: 0 | P98: 1 | Q98: 1 | R98: 1 | S98: 580 | T98: 1 | U98: 1 | V98: 1 | W98: 0 | X98: 0 | Y98: 0 | Z98: 0 | AA98: 1 | AB98: 1 | AC98: 0 | AD98: 1 | AE98: 1 | AF98: 1 | AG98: 0 | AH98: 1 | AI98: 1 | AJ98: 1 | AK98: 75 | AL98: 1 | AM98: 1 | AN98: 1 | AO98: 0 | AP98: 1 | AQ98: 0 | AR98: 0 | AS98: 0 | AT98: 1 | AU98: 0 | AV98: 0 | AW98: 0 | AX98: 1 | AY98: 0 | AZ98: 0 | BA98: 0 | BB98: 1 | BC98: 1 | BD98: 0 | BE98: 0 | BF98: 1 | BG98: 1 | BH98: 0 | BI98: 0 | BJ98: 1 | BK98: 1 | BL98: 0 | BM98: 0 | BN98: 0 | BO98: 0 | BP98: 0 | BQ98: 0 | BR98: 0.655 | BS98: =IF(B98='Données méteo'!$E$107,'Données méteo'!$AF$104,IF(B98='Données méteo'!$F$107,'Données méteo'!$AG$104,IF(B98='Données méteo'!$G$107,'Données méteo'!$AH$104,IF(B98='Données méteo'!$H$107,'Données méteo'!$AI$104,IF(B98='Données méteo'!$I$107,'Données méteo'!$AJ$104,IF(B98='Données méteo'!$J$107,'Données méteo'!$AK$104,IF(B98='Données méteo'!$K$107,'Données méteo'!$AL$104,IF(B98='Données méteo'!$L$107,'Données méteo'!$AM$104,IF(B98='Données méteo'!$M$107,'Données méteo'!$AN$104,IF(B98='Données méteo'!$N$107,'Données méteo'!$AO$104,IF(B98='Données méteo'!$O$107,'Données méteo'!$AP$104,'Données méteo'!$AQ$104))))))))))) -> 116.6045175 | BT98: =BS98/31*VLOOKUP(F98,'Données méteo'!$C$108:$P$131,3,FALSE) -> 0.1504574419 | BU98: 0.1504574419 | BV98: 0 | BX98: 0.075 | BY98: 0.07545744188 | BZ98: 0.07545744188
A99: 3 | B99: Janvier | C99: 3 Janvier | D99: 58 | E99: Mercredi | F99: 10 | H99: 1 | I99: 1 | J99: 0 | K99: 0 | L99: 0 | M99: 1 | N99: 0 | O99: 0 | P99: 1 | Q99: 1 | R99: 1 | S99: 580 | T99: 1 | U99: 1 | V99: 1 | W99: 0 | X99: 0 | Y99: 0 | Z99: 0 | AA99: 1 | AB99: 1 | AC99: 0 | AD99: 1 | AE99: 1 | AF99: 1 | AG99: 0 | AH99: 1 | AI99: 1 | AJ99: 1 | AK99: 75 | AL99: 1 | AM99: 1 | AN99: 1 | AO99: 0 | AP99: 1 | AQ99: 0 | AR99: 0 | AS99: 0 | AT99: 1 | AU99: 0 | AV99: 0 | AW99: 0 | AX99: 1 | AY99: 0 | AZ99: 0 | BA99: 0 | BB99: 1 | BC99: 1 | BD99: 0 | BE99: 0 | BF99: 1 | BG99: 1 | BH99: 0 | BI99: 0 | BJ99: 1 | BK99: 1 | BL99: 0 | BM99: 0 | BN99: 0 | BO99: 0 | BP99: 0 | BQ99: 0 | BR99: 0.655 | BS99: =IF(B99='Données méteo'!$E$107,'Données méteo'!$AF$104,IF(B99='Données méteo'!$F$107,'Données méteo'!$AG$104,IF(B99='Données méteo'!$G$107,'Données méteo'!$AH$104,IF(B99='Données méteo'!$H$107,'Données méteo'!$AI$104,IF(B99='Données méteo'!$I$107,'Données méteo'!$AJ$104,IF(B99='Données méteo'!$J$107,'Données méteo'!$AK$104,IF(B99='Données méteo'!$K$107,'Données méteo'!$AL$104,IF(B99='Données méteo'!$L$107,'Données méteo'!$AM$104,IF(B99='Données méteo'!$M$107,'Données méteo'!$AN$104,IF(B99='Données méteo'!$N$107,'Données méteo'!$AO$104,IF(B99='Données méteo'!$O$107,'Données méteo'!$AP$104,'Données méteo'!$AQ$104))))))))))) -> 116.6045175 | BT99: =BS99/31*VLOOKUP(F99,'Données méteo'!$C$108:$P$131,3,FALSE) -> 0.3761436047 | BU99: 0.3761436047 | BV99: 0 | BX99: 0.075 | BY99: 0.3011436047 | BZ99: 0.3011436047
A100: 3 | B100: Janvier | C100: 3 Janvier | D100: 59 | E100: Mercredi | F100: 11 | H100: 1 | I100: 1 | J100: 0 | K100: 0 | L100: 0 | M100: 1 | N100: 0 | O100: 0 | P100: 1 | Q100: 1 | R100: 1 | S100: 580 | T100: 1 | U100: 1 | V100: 1 | W100: 0 | X100: 0 | Y100: 0 | Z100: 0 | AA100: 1 | AB100: 1 | AC100: 0 | AD100: 1 | AE100: 1 | AF100: 1 | AG100: 0 | AH100: 1 | AI100: 1 | AJ100: 1 | AK100: 75 | AL100: 1 | AM100: 1 | AN100: 1 | AO100: 0 | AP100: 1 | AQ100: 0 | AR100: 0 | AS100: 0 | AT100: 1 | AU100: 0 | AV100: 0 | AW100: 0 | AX100: 1 | AY100: 0 | AZ100: 0 | BA100: 0 | BB100: 1 | BC100: 1 | BD100: 0 | BE100: 0 | BF100: 1 | BG100: 1 | BH100: 0 | BI100: 0 | BJ100: 1 | BK100: 1 | BL100: 0 | BM100: 0 | BN100: 0 | BO100: 0 | BP100: 0 | BQ100: 0 | BR100: 0.655 | BS100: =IF(B100='Données méteo'!$E$107,'Données méteo'!$AF$104,IF(B100='Données méteo'!$F$107,'Données méteo'!$AG$104,IF(B100='Données méteo'!$G$107,'Données méteo'!$AH$104,IF(B100='Données méteo'!$H$107,'Données méteo'!$AI$104,IF(B100='Données méteo'!$I$107,'Données méteo'!$AJ$104,IF(B100='Données méteo'!$J$107,'Données méteo'!$AK$104,IF(B100='Données méteo'!$K$107,'Données méteo'!$AL$104,IF(B100='Données méteo'!$L$107,'Données méteo'!$AM$104,IF(B100='Données méteo'!$M$107,'Données méteo'!$AN$104,IF(B100='Données méteo'!$N$107,'Données méteo'!$AO$104,IF(B100='Données méteo'!$O$107,'Données méteo'!$AP$104,'Données méteo'!$AQ$104))))))))))) -> 116.6045175 | BT100: =BS100/31*VLOOKUP(F100,'Données méteo'!$C$108:$P$131,3,FALSE) -> 0.7522872094 | BU100: 0.655 | BV100: 0.09728720938 | BX100: 0.075 | BY100: 0.6772872094 | BZ100: 0.58
A101: 3 | B101: Janvier | C101: 3 Janvier | D101: 60 | E101: Mercredi | F101: 12 | H101: 1 | I101: 1 | J101: 0 | K101: 0 | L101: 0 | M101: 1 | N101: 0 | O101: 0 | P101: 1 | Q101: 1 | R101: 1 | S101: 580 | T101: 1 | U101: 1 | V101: 1 | W101: 0 | X101: 0 | Y101: 0 | Z101: 0 | AA101: 1 | AB101: 1 | AC101: 0 | AD101: 1 | AE101: 1 | AF101: 1 | AG101: 0 | AH101: 1 | AI101: 1 | AJ101: 1 | AK101: 75 | AL101: 1 | AM101: 1 | AN101: 1 | AO101: 0 | AP101: 1 | AQ101: 0 | AR101: 0 | AS101: 0 | AT101: 1 | AU101: 0 | AV101: 0 | AW101: 0 | AX101: 1 | AY101: 0 | AZ101: 0 | BA101: 0 | BB101: 1 | BC101: 1 | BD101: 0 | BE101: 0 | BF101: 1 | BG101: 1 | BH101: 1 | BI101: 850 | BJ101: 1 | BK101: 1 | BL101: 0 | BM101: 0 | BN101: 0 | BO101: 0 | BP101: 0 | BQ101: 0 | BR101: 1.505 | BS101: =IF(B101='Données méteo'!$E$107,'Données méteo'!$AF$104,IF(B101='Données méteo'!$F$107,'Données méteo'!$AG$104,IF(B101='Données méteo'!$G$107,'Données méteo'!$AH$104,IF(B101='Données méteo'!$H$107,'Données méteo'!$AI$104,IF(B101='Données méteo'!$I$107,'Données méteo'!$AJ$104,IF(B101='Données méteo'!$J$107,'Données méteo'!$AK$104,IF(B101='Données méteo'!$K$107,'Données méteo'!$AL$104,IF(B101='Données méteo'!$L$107,'Données méteo'!$AM$104,IF(B101='Données méteo'!$M$107,'Données méteo'!$AN$104,IF(B101='Données méteo'!$N$107,'Données méteo'!$AO$104,IF(B101='Données méteo'!$O$107,'Données méteo'!$AP$104,'Données méteo'!$AQ$104))))))))))) -> 116.6045175 | BT101: =BS101/31*VLOOKUP(F101,'Données méteo'!$C$108:$P$131,3,FALSE) -> 0.9403590117 | BU101: 0.9403590117 | BV101: 0 | BX101: 0.925 | BY101: 0.01535901172 | BZ101: 0.01535901172
A102: 3 | B102: Janvier | C102: 3 Janvier | D102: 61 | E102: Mercredi | F102: 13 | H102: 1 | I102: 1 | J102: 0 | K102: 0 | L102: 0 | M102: 1 | N102: 0 | O102: 0 | P102: 1 | Q102: 1 | R102: 1 | S102: 580 | T102: 1 | U102: 1 | V102: 1 | W102: 0 | X102: 0 | Y102: 0 | Z102: 0 | AA102: 1 | AB102: 1 | AC102: 0 | AD102: 1 | AE102: 1 | AF102: 1 | AG102: 0 | AH102: 1 | AI102: 1 | AJ102: 1 | AK102: 75 | AL102: 1 | AM102: 1 | AN102: 1 | AO102: 0 | AP102: 1 | AQ102: 0 | AR102: 0 | AS102: 0 | AT102: 1 | AU102: 0 | AV102: 0 | AW102: 0 | AX102: 1 | AY102: 0 | AZ102: 0 | BA102: 0 | BB102: 1 | BC102: 1 | BD102: 0 | BE102: 0 | BF102: 1 | BG102: 1 | BH102: 1 | BI102: 850 | BJ102: 1 | BK102: 1 | BL102: 0 | BM102: 0 | BN102: 0 | BO102: 0 | BP102: 0 | BQ102: 0 | BR102: 1.505 | BS102: =IF(B102='Données méteo'!$E$107,'Données méteo'!$AF$104,IF(B102='Données méteo'!$F$107,'Données méteo'!$AG$104,IF(B102='Données méteo'!$G$107,'Données méteo'!$AH$104,IF(B102='Données méteo'!$H$107,'Données méteo'!$AI$104,IF(B102='Données méteo'!$I$107,'Données méteo'!$AJ$104,IF(B102='Données méteo'!$J$107,'Données méteo'!$AK$104,IF(B102='Données méteo'!$K$107,'Données méteo'!$AL$104,IF(B102='Données méteo'!$L$107,'Données méteo'!$AM$104,IF(B102='Données méteo'!$M$107,'Données méteo'!$AN$104,IF(B102='Données méteo'!$N$107,'Données méteo'!$AO$104,IF(B102='Données méteo'!$O$107,'Données méteo'!$AP$104,'Données méteo'!$AQ$104))))))))))) -> 116.6045175 | BT102: =BS102/31*VLOOKUP(F102,'Données méteo'!$C$108:$P$131,3,FALSE) -> 0.8275159303 | BU102: 0.8275159303 | BV102: 0 | BX102: 0.925 | BY102: 0 | BZ102: 0
A103: 3 | B103: Janvier | C103: 3 Janvier | D103: 62 | E103: Mercredi | F103: 14 | H103: 1 | I103: 1 | J103: 0 | K103: 0 | L103: 0 | M103: 1 | N103: 1 | O103: 0 | P103: 1 | Q103: 1 | R103: 1 | S103: 580 | T103: 1 | U103: 1 | V103: 1 | W103: 0 | X103: 0 | Y103: 0 | Z103: 0 | AA103: 1 | AB103: 1 | AC103: 0 | AD103: 1 | AE103: 1 | AF103: 1 | AG103: 0 | AH103: 1 | AI103: 1 | AJ103: 1 | AK103: 75 | AL103: 1 | AM103: 1 | AN103: 1 | AO103: 0 | AP103: 1 | AQ103: 0 | AR103: 1 | AS103: 0 | AT103: 1 | AU103: 0 | AV103: 0 | AW103: 0 | AX103: 1 | AY103: 0 | AZ103: 0 | BA103: 0 | BB103: 1 | BC103: 1 | BD103: 0 | BE103: 0 | BF103: 1 | BG103: 1 | BH103: 0 | BI103: 0 | BJ103: 1 | BK103: 1 | BL103: 0 | BM103: 0 | BN103: 0 | BO103: 0 | BP103: 0 | BQ103: 0 | BR103: 0.655 | BS103: =IF(B103='Données méteo'!$E$107,'Données méteo'!$AF$104,IF(B103='Données méteo'!$F$107,'Données méteo'!$AG$104,IF(B103='Données méteo'!$G$107,'Données méteo'!$AH$104,IF(B103='Données méteo'!$H$107,'Données méteo'!$AI$104,IF(B103='Données méteo'!$I$107,'Données méteo'!$AJ$104,IF(B103='Données méteo'!$J$107,'Données méteo'!$AK$104,IF(B103='Données méteo'!$K$107,'Données méteo'!$AL$104,IF(B103='Données méteo'!$L$107,'Données méteo'!$AM$104,IF(B103='Données méteo'!$M$107,'Données méteo'!$AN$104,IF(B103='Données méteo'!$N$107,'Données méteo'!$AO$104,IF(B103='Données méteo'!$O$107,'Données méteo'!$AP$104,'Données méteo'!$AQ$104))))))))))) -> 116.6045175 | BT103: =BS103/31*VLOOKUP(F103,'Données méteo'!$C$108:$P$131,3,FALSE) -> 0.3761436047 | BU103: 0.3761436047 | BV103: 0 | BX103: 0.075 | BY103: 0.3011436047 | BZ103: 0.3011436047
A104: 3 | B104: Janvier | C104: 3 Janvier | D104: 63 | E104: Mercredi | F104: 15 | H104: 1 | I104: 1 | J104: 0 | K104: 0 | L104: 0 | M104: 1 | N104: 1 | O104: 0 | P104: 1 | Q104: 1 | R104: 1 | S104: 580 | T104: 1 | U104: 1 | V104: 1 | W104: 0 | X104: 0 | Y104: 0 | Z104: 0 | AA104: 1 | AB104: 1 | AC104: 0 | AD104: 1 | AE104: 1 | AF104: 1 | AG104: 0 | AH104: 1 | AI104: 1 | AJ104: 1 | AK104: 75 | AL104: 1 | AM104: 1 | AN104: 1 | AO104: 0 | AP104: 1 | AQ104: 0 | AR104: 1 | AS104: 0 | AT104: 1 | AU104: 0 | AV104: 0 | AW104: 0 | AX104: 1 | AY104: 0 | AZ104: 0 | BA104: 0 | BB104: 1 | BC104: 1 | BD104: 0 | BE104: 0 | BF104: 1 | BG104: 1 | BH104: 0 | BI104: 0 | BJ104: 1 | BK104: 1 | BL104: 0 | BM104: 0 | BN104: 0 | BO104: 0 | BP104: 0 | BQ104: 0 | BR104: 0.655 | BS104: =IF(B104='Données méteo'!$E$107,'Données méteo'!$AF$104,IF(B104='Données méteo'!$F$107,'Données méteo'!$AG$104,IF(B104='Données méteo'!$G$107,'Données méteo'!$AH$104,IF(B104='Données méteo'!$H$107,'Données méteo'!$AI$104,IF(B104='Données méteo'!$I$107,'Données méteo'!$AJ$104,IF(B104='Données méteo'!$J$107,'Données méteo'!$AK$104,IF(B104='Données méteo'!$K$107,'Données méteo'!$AL$104,IF(B104='Données méteo'!$L$107,'Données méteo'!$AM$104,IF(B104='Données méteo'!$M$107,'Données méteo'!$AN$104,IF(B104='Données méteo'!$N$107,'Données méteo'!$AO$104,IF(B104='Données méteo'!$O$107,'Données méteo'!$AP$104,'Données méteo'!$AQ$104))))))))))) -> 116.6045175 | BT104: =BS104/31*VLOOKUP(F104,'Données méteo'!$C$108:$P$131,3,FALSE) -> 0.1880718023 | BU104: 0.1880718023 | BV104: 0 | BX104: 0.075 | BY104: 0.1130718023 | BZ104: 0.1130718023
A105: 3 | B105: Janvier | C105: 3 Janvier | D105: 64 | E105: Mercredi | F105: 16 | H105: =IF($B105=$F$25,$H$25,IF($B105=$F$26,$H$26,IF($B105=$F$27,$H$27,IF($B105=$F$28,$H$28,IF($B105=$F$29,$H$29,IF($B105=$F$30,$H$30,IF($B105=$F$31,$H$31,IF($B105=$F$32,$H$32,IF($B105=$F$33,$H$33,IF($B105=$F$34,$H$34,IF($B105=$F$35,$H$35,IF($B105=$F$36,$H$36,0)))))))))))) -> 1 | I105: =IF($E105=$F$17,$H$17,IF($E105=$F$18,$H$18,IF($E105=$F$19,$H$19,IF($E105=$F$20,$H$20,IF($E105=$F$21,$H$21,IF($E105=$F$22,$H$22,IF($E105=$F$23,$H$23,0))))))) -> 1 | J105: 1 | K105: =IF($BY$13=$BX$33,0,IF(AND(H105=1,I105=1,J105=1),$BX$13*0.3,0)) -> 900 | L105: =IF($B105=$F$25,$I$25,IF($B105=$F$26,$I$26,IF($B105=$F$27,$I$27,IF($B105=$F$28,$I$28,IF($B105=$F$29,$I$29,IF($B105=$F$30,$I$30,IF($B105=$F$31,$I$31,IF($B105=$F$32,$I$32,IF($B105=$F$33,$I$33,IF($B105=$F$34,$I$34,IF($B105=$F$35,$I$35,IF($B105=$F$36,$I$36,0)))))))))))) -> 0 | M105: =IF($E105=$F$17,$I$17,IF($E105=$F$18,$I$18,IF($E105=$F$19,$I$19,IF($E105=$F$20,$I$20,IF($E105=$F$21,$I$21,IF($E105=$F$22,$I$22,IF($E105=$F$23,$I$23,0))))))) -> 1 | N105: 1 | O105: =IF($BY$14=$BX$33,0,IF(AND(L105=1,M105=1,N105=1),$BX$14*0.3,0)) -> 0 | P105: =IF($B105=$F$25,$J$25,IF($B105=$F$26,$J$26,IF($B105=$F$27,$J$27,IF($B105=$F$28,$J$28,IF($B105=$F$29,$J$29,IF($B105=$F$30,$J$30,IF($B105=$F$31,$J$31,IF($B105=$F$32,$J$32,IF($B105=$F$33,$J$33,IF($B105=$F$34,$J$34,IF($B105=$F$35,$J$35,IF($B105=$F$36,$J$36,0)))))))))))) -> 1 | Q105: =IF($E105=$F$17,$J$17,IF($E105=$F$18,$J$18,IF($E105=$F$19,$J$19,IF($E105=$F$20,$J$20,IF($E105=$F$21,$J$21,IF($E105=$F$22,$J$22,IF($E105=$F$23,$J$23,0))))))) -> 1 | R105: 1 | S105: =IF($BY$15=$BX$33,0,IF(AND(P105=1,Q105=1,R105=1),$BX$15*$AM$37,0)) -> 580 | T105: =IF($B105=$F$25,$K$25,IF($B105=$F$26,$K$26,IF($B105=$F$27,$K$27,IF($B105=$F$28,$K$28,IF($B105=$F$29,$K$29,IF($B105=$F$30,$K$30,IF($B105=$F$31,$K$31,IF($B105=$F$32,$K$32,IF($B105=$F$33,$K$33,IF($B105=$F$34,$K$34,IF($B105=$F$35,$K$35,IF($B105=$F$36,$K$36,0)))))))))))) -> 1 | U105: =IF($E105=$F$17,$K$17,IF($E105=$F$18,$K$18,IF($E105=$F$19,$K$19,IF($E105=$F$20,$K$20,IF($E105=$F$21,$K$21,IF($E105=$F$22,$K$22,IF($E105=$F$23,$K$23,0))))))) -> 1 | V105: 1 | W105: =IF($BY$16=$BX$33,0,IF(AND(T105=1,U105=1,V105=1),1,0)) -> 0 | X105: 0 | Y105: 0 | Z105: =IF($B105=$F$25,$L$25,IF($B105=$F$26,$L$26,IF($B105=$F$27,$L$27,IF($B105=$F$28,$L$28,IF($B105=$F$29,$L$29,IF($B105=$F$30,$L$30,IF($B105=$F$31,$L$31,IF($B105=$F$32,$L$32,IF($B105=$F$33,$L$33,IF($B105=$F$34,$L$34,IF($B105=$F$35,$L$35,IF($B105=$F$36,$L$36,0)))))))))))) -> 0 | AA105: =IF($E105=$F$17,$L$17,IF($E105=$F$18,$L$18,IF($E105=$F$19,$L$19,IF($E105=$F$20,$L$20,IF($E105=$F$21,$L$21,IF($E105=$F$22,$L$22,IF($E105=$F$23,$L$23,0))))))) -> 1 | AB105: 1 | AC105: 0 | AD105: =IF($B105=$F$25,$M$25,IF($B105=$F$26,$M$26,IF($B105=$F$27,$M$27,IF($B105=$F$28,$M$28,IF($B105=$F$29,$M$29,IF($B105=$F$30,$M$30,IF($B105=$F$31,$M$31,IF($B105=$F$32,$M$32,IF($B105=$F$33,$M$33,IF($B105=$F$34,$M$34,IF($B105=$F$35,$M$35,IF($B105=$F$36,$M$36,0)))))))))))) -> 1 | AE105: =IF($E105=$F$17,$M$17,IF($E105=$F$18,$M$18,IF($E105=$F$19,$M$19,IF($E105=$F$20,$M$20,IF($E105=$F$21,$M$21,IF($E105=$F$22,$M$22,IF($E105=$F$23,$M$23,0))))))) -> 1 | AF105: 1 | AG105: =IF($BY$19=$BX$33,0,IF(AND(AD105=1,AE105=1,AF105=1),$BX$19,0)) -> 0 | AH105: =IF($B105=$F$25,$N$25,IF($B105=$F$26,$N$26,IF($B105=$F$27,$N$27,IF($B105=$F$28,$N$28,IF($B105=$F$29,$N$29,IF($B105=$F$30,$N$30,IF($B105=$F$31,$N$31,IF($B105=$F$32,$N$32,IF($B105=$F$33,$N$33,IF($B105=$F$34,$N$34,IF($B105=$F$35,$N$35,IF($B105=$F$36,$N$36,0)))))))))))) -> 1 | AI105: =IF($E105=$F$17,$N$17,IF($E105=$F$18,$N$18,IF($E105=$F$19,$N$19,IF($E105=$F$20,$N$20,IF($E105=$F$21,$N$21,IF($E105=$F$22,$N$22,IF($E105=$F$23,$N$23,0))))))) -> 1 | AJ105: 1 | AK105: =IF($BY$21=$BX$33,0,IF(AND(AH105=1,AI105=1,AJ105=1),$BX$21*0.5,0)) -> 75 | AL105: =IF($B105=$F$25,$O$25,IF($B105=$F$26,$O$26,IF($B105=$F$27,$O$27,IF($B105=$F$28,$O$28,IF($B105=$F$29,$O$29,IF($B105=$F$30,$O$30,IF($B105=$F$31,$O$31,IF($B105=$F$32,$O$32,IF($B105=$F$33,$O$33,IF($B105=$F$34,$O$34,IF($B105=$F$35,$O$35,IF($B105=$F$36,$O$36,0)))))))))))) -> 1 | AM105: =IF($E105=$F$17,$O$17,IF($E105=$F$18,$O$18,IF($E105=$F$19,$O$19,IF($E105=$F$20,$O$20,IF($E105=$F$21,$O$21,IF($E105=$F$22,$O$22,IF($E105=$F$23,$O$23,0))))))) -> 1 | AN105: 1 | AO105: =IF($BY$22=$BX$33,0,IF(AND(AL105=1,AM105=1,AN105=1),$BX$22*0.5,0)) -> 0 | AP105: =IF($B105=$F$25,$P$25,IF($B105=$F$26,$P$26,IF($B105=$F$27,$P$27,IF($B105=$F$28,$P$28,IF($B105=$F$29,$P$29,IF($B105=$F$30,$P$30,IF($B105=$F$31,$P$31,IF($B105=$F$32,$P$32,IF($B105=$F$33,$P$33,IF($B105=$F$34,$P$34,IF($B105=$F$35,$P$35,IF($B105=$F$36,$P$36,0)))))))))))) -> 1 | AQ105: =IF($E105=$F$17,$P$17,IF($E105=$F$18,$P$18,IF($E105=$F$19,$P$19,IF($E105=$F$20,$P$20,IF($E105=$F$21,$P$21,IF($E105=$F$22,$P$22,IF($E105=$F$23,$P$23,0))))))) -> 0 | AR105: 0 | AS105: =IF($BY$23=$BX$33,0,IF(AND(AP105=1,AQ105=1,AR105=1),$BX$23,0)) -> 0 | AT105: =IF($B105=$F$25,$Q$25,IF($B105=$F$26,$Q$26,IF($B105=$F$27,$Q$27,IF($B105=$F$28,$Q$28,IF($B105=$F$29,$Q$29,IF($B105=$F$30,$Q$30,IF($B105=$F$31,$Q$31,IF($B105=$F$32,$Q$32,IF($B105=$F$33,$Q$33,IF($B105=$F$34,$Q$34,IF($B105=$F$35,$Q$35,IF($B105=$F$36,$Q$36,0)))))))))))) -> 1 | AU105: =IF($E105=$F$17,$Q$17,IF($E105=$F$18,$Q$18,IF($E105=$F$19,$Q$19,IF($E105=$F$20,$Q$20,IF($E105=$F$21,$Q$21,IF($E105=$F$22,$Q$22,IF($E105=$F$23,$Q$23,0))))))) -> 0 | AV105: 1 | AW105: =IF($BY$24=$BX$33,0,IF(AND(AT105=1,AU105=1,AV105=1),$BX$24,0)) -> 0 | AX105: =IF($B105=$F$25,$R$25,IF($B105=$F$26,$R$26,IF($B105=$F$27,$R$27,IF($B105=$F$28,$R$28,IF($B105=$F$29,$R$29,IF($B105=$F$30,$R$30,IF($B105=$F$31,$R$31,IF($B105=$F$32,$R$32,IF($B105=$F$33,$R$33,IF($B105=$F$34,$R$34,IF($B105=$F$35,$R$35,IF($B105=$F$36,$R$36,0)))))))))))) -> 1 | AY105: =IF($E105=$F$17,$R$17,IF($E105=$F$18,$R$18,IF($E105=$F$19,$R$19,IF($E105=$F$20,$R$20,IF($E105=$F$21,$R$21,IF($E105=$F$22,$R$22,IF($E105=$F$23,$R$23,0))))))) -> 0 | AZ105: 1 | BA105: =IF($BY$25=$BX$33,0,IF(AND(AX105=1,AY105=1,AZ105=1),$BX$25,0)) -> 0 | BB105: =IF($B105=$F$25,$S$25,IF($B105=$F$26,$S$26,IF($B105=$F$27,$S$27,IF($B105=$F$28,$S$28,IF($B105=$F$29,$S$29,IF($B105=$F$30,$S$30,IF($B105=$F$31,$S$31,IF($B105=$F$32,$S$32,IF($B105=$F$33,$S$33,IF($B105=$F$34,$S$34,IF($B105=$F$35,$S$35,IF($B105=$F$36,$S$36,0)))))))))))) -> 1 | BC105: =IF($E105=$F$17,$S$17,IF($E105=$F$18,$S$18,IF($E105=$F$19,$S$19,IF($E105=$F$20,$S$20,IF($E105=$F$21,$S$21,IF($E105=$F$22,$S$22,IF($E105=$F$23,$S$23,0))))))) -> 1 | BD105: 0 | BE105: =IF($BY$26=$BX$33,0,IF(AND(BB105=1,BC105=1,BD105=1),$BX$26,0)) -> 0 | BF105: =IF($B105=$F$25,$T$25,IF($B105=$F$26,$T$26,IF($B105=$F$27,$T$27,IF($B105=$F$28,$T$28,IF($B105=$F$29,$T$29,IF($B105=$F$30,$T$30,IF($B105=$F$31,$T$31,IF($B105=$F$32,$T$32,IF($B105=$F$33,$T$33,IF($B105=$F$34,$T$34,IF($B105=$F$35,$T$35,IF($B105=$F$36,$T$36,0)))))))))))) -> 1 | BG105: =IF($E105=$F$17,$T$17,IF($E105=$F$18,$T$18,IF($E105=$F$19,$T$19,IF($E105=$F$20,$T$20,IF($E105=$F$21,$T$21,IF($E105=$F$22,$T$22,IF($E105=$F$23,$T$23,0))))))) -> 1 | BH105: 0 | BI105: =IF($BY$27=$BX$33,0,IF(AND(BF105=1,BG105=1,BH105=1),$BX$27,0)) -> 0 | BJ105: =IF($B105=$F$25,$U$25,IF($B105=$F$26,$U$26,IF($B105=$F$27,$U$27,IF($B105=$F$28,$U$28,IF($B105=$F$29,$U$29,IF($B105=$F$30,$U$30,IF($B105=$F$31,$U$31,IF($B105=$F$32,$U$32,IF($B105=$F$33,$U$33,IF($B105=$F$34,$U$34,IF($B105=$F$35,$U$35,IF($B105=$F$36,$U$36,0)))))))))))) -> 1 | BK105: =IF($E105=$F$17,$U$17,IF($E105=$F$18,$U$18,IF($E105=$F$19,$U$19,IF($E105=$F$20,$U$20,IF($E105=$F$21,$U$21,IF($E105=$F$22,$U$22,IF($E105=$F$23,$U$23,0))))))) -> 1 | BL105: 0 | BM105: =IF($BY$28=$BX$33,0,IF(AND(BJ105=1,BK105=1,BL105=1),$BX$28,0)) -> 0 | BN105: =IF($B105=$F$25,$V$25,IF($B105=$F$26,$V$26,IF($B105=$F$27,$V$27,IF($B105=$F$28,$V$28,IF($B105=$F$29,$V$29,IF($B105=$F$30,$V$30,IF($B105=$F$31,$V$31,IF($B105=$F$32,$V$32,IF($B105=$F$33,$V$33,IF($B105=$F$34,$V$34,IF($B105=$F$35,$V$35,IF($B105=$F$36,$V$36,0)))))))))))) -> 0 | BO105: =IF($E105=$F$17,$V$17,IF($E105=$F$18,$V$18,IF($E105=$F$19,$V$19,IF($E105=$F$20,$V$20,IF($E105=$F$21,$V$21,IF($E105=$F$22,$V$22,IF($E105=$F$23,$V$23,0))))))) -> 0 | BP105: 0 | BQ105: =IF($BY$29=$BX$33,0,IF(AND(BN105=1,BO105=1,BP105=1),$BX$29,0)) -> 0 | BR105: 1.555 | BS105: =IF(B105='Données méteo'!$E$107,'Données méteo'!$AF$104,IF(B105='Données méteo'!$F$107,'Données méteo'!$AG$104,IF(B105='Données méteo'!$G$107,'Données méteo'!$AH$104,IF(B105='Données méteo'!$H$107,'Données méteo'!$AI$104,IF(B105='Données méteo'!$I$107,'Données méteo'!$AJ$104,IF(B105='Données méteo'!$J$107,'Données méteo'!$AK$104,IF(B105='Données méteo'!$K$107,'Données méteo'!$AL$104,IF(B105='Données méteo'!$L$107,'Données méteo'!$AM$104,IF(B105='Données méteo'!$M$107,'Données méteo'!$AN$104,IF(B105='Données méteo'!$N$107,'Données méteo'!$AO$104,IF(B105='Données méteo'!$O$107,'Données méteo'!$AP$104,'Données méteo'!$AQ$104))))))))))) -> 116.6045175 | BT105: =BS105/31*VLOOKUP(F105,'Données méteo'!$C$108:$P$131,3,FALSE) -> 0.1128430814 | BU105: 0.1128430814 | BV105: 0 | BX105: 0.975 | BY105: 0 | BZ105: 0
A106: 3 | B106: Janvier | C106: =CONCATENATE(A106," ", B106) -> 3 Janvier | D106: 65 | E106: Mercredi | F106: 17 | H106: 1 | I106: 1 | J106: =VLOOKUP(F106,$Z$3:$AO$26,2,FALSE) -> 1 | K106: 900 | L106: 0 | M106: 1 | N106: =VLOOKUP(F106,$Z$3:$AO$26,3,FALSE) -> 1 | O106: 0 | P106: 1 | Q106: 1 | R106: =VLOOKUP(F106,$Z$3:$AO$26,4,FALSE) -> 1 | S106: 580 | T106: 1 | U106: 1 | V106: =IF(OR(F106=6,F106=7),$K$4,IF(OR(F106=8,F106=9),$K$5,IF(OR(F106=10,F106=11),$K$6,IF(OR(F106=12,F106=13),$K$7,IF(OR(F106=14,F106=15),$K$8,IF(OR(F106=16,F106=17),$K$9,IF(OR(F106=18,F106=19),$K$10,IF(OR(F106=20,F106=21),$K$11,IF(OR(F106=22,F106=23),$K$12,IF(OR(F106=0,F106=1),$K$13,IF(OR(F106=2,F106=3),$K$14,IF(OR(F106=4,F106=5),$K$15,0)))))))))))) -> 1 | W106: 0 | X106: 0 | Y106: =IF(OR(X106="",X106=0),0,IF(X106=$AM$32,$BX$16*(1-($AM$32-$AM$31)),$BX$16)) -> 0 | Z106: 0 | AA106: 1 | AB106: =VLOOKUP(F106,$Z$3:$AO$26,6,FALSE) -> 1 | AC106: =IF($BY$18=$BX$33,0,IF(AND(Z106=1,AA106=1,AB106=1),$BX$18,0)) -> 0 | AD106: 1 | AE106: 1 | AF106: =VLOOKUP(F106,$Z$3:$AO$26,7,FALSE) -> 1 | AG106: 0 | AH106: 1 | AI106: 1 | AJ106: =VLOOKUP(F106,$Z$3:$AO$26,8,FALSE) -> 1 | AK106: 75 | AL106: 1 | AM106: 1 | AN106: =VLOOKUP(F106,$Z$3:$AO$26,9,FALSE) -> 1 | AO106: 0 | AP106: 1 | AQ106: 0 | AR106: =VLOOKUP(F106,$Z$3:$AO$26,10,FALSE) -> 0 | AS106: 0 | AT106: 1 | AU106: 0 | AV106: =VLOOKUP(F106,$Z$3:$AO$26,11,FALSE) -> 1 | AW106: 0 | AX106: 1 | AY106: 0 | AZ106: =VLOOKUP(F106,$Z$3:$AO$26,12,FALSE) -> 1 | BA106: 0 | BB106: 1 | BC106: 1 | BD106: =VLOOKUP(F106,$Z$3:$AO$26,13,FALSE) -> 0 | BE106: 0 | BF106: 1 | BG106: 1 | BH106: =VLOOKUP(F106,$Z$3:$AO$26,14,FALSE) -> 0 | BI106: 0 | BJ106: 1 | BK106: 1 | BL106: =VLOOKUP(F106,$Z$3:$AO$26,15,FALSE) -> 0 | BM106: 0 | BN106: 0 | BO106: 0 | BP106: =VLOOKUP(F106,$Z$3:$AO$26,16,FALSE) -> 0 | BQ106: 0 | BR106: =(K106+O106+S106+Y106+AC106+AG106+AK106+AO106+AS106+AW106+BA106+BE106+BI106+BM106+BQ106)/1000 -> 1.555 | BS106: =IF(B106='Données méteo'!$E$107,'Données méteo'!$AF$104,IF(B106='Données méteo'!$F$107,'Données méteo'!$AG$104,IF(B106='Données méteo'!$G$107,'Données méteo'!$AH$104,IF(B106='Données méteo'!$H$107,'Données méteo'!$AI$104,IF(B106='Données méteo'!$I$107,'Données méteo'!$AJ$104,IF(B106='Données méteo'!$J$107,'Données méteo'!$AK$104,IF(B106='Données méteo'!$K$107,'Données méteo'!$AL$104,IF(B106='Données méteo'!$L$107,'Données méteo'!$AM$104,IF(B106='Données méteo'!$M$107,'Données méteo'!$AN$104,IF(B106='Données méteo'!$N$107,'Données méteo'!$AO$104,IF(B106='Données méteo'!$O$107,'Données méteo'!$AP$104,'Données méteo'!$AQ$104))))))))))) -> 116.6045175 | BT106: =BS106/31*VLOOKUP(F106,'Données méteo'!$C$108:$P$131,3,FALSE) -> 0.03761436047 | BU106: =IF(BT106>BR106,BR106,BT106) -> 0.03761436047 | BV106: =IF(BT106-BR106<0,0,BT106-BR106) -> 0 | BX106: =BR106-S106/1000 -> 0.975 | BY106: =IF(BT106-BX106<0,0,BT106-BX106) -> 0 | BZ106: =IF(BY106>S106/1000,S106/1000,BY106) -> 0
A107: =IF(F106=23,A106+1,A106) -> 3 | B107: Janvier | C107: 3 Janvier | D107: 66 | E107: Mercredi | F107: 18 | H107: 1 | I107: 1 | J107: 1 | K107: 900 | L107: 0 | M107: 1 | N107: 1 | O107: 0 | P107: 1 | Q107: 1 | R107: 1 | S107: 580 | T107: 1 | U107: 1 | V107: 1 | W107: 0 | X107: =IFERROR(IF(E107<>E106,W107,IF(W107+X106>$AM$32,"",W107+X106)),"") -> 0 | Y107: 0 | Z107: 0 | AA107: 1 | AB107: 1 | AC107: 0 | AD107: 1 | AE107: 1 | AF107: 1 | AG107: 0 | AH107: 1 | AI107: 1 | AJ107: 1 | AK107: 75 | AL107: 1 | AM107: 1 | AN107: 1 | AO107: 0 | AP107: 1 | AQ107: 0 | AR107: 0 | AS107: 0 | AT107: 1 | AU107: 0 | AV107: 0 | AW107: 0 | AX107: 1 | AY107: 0 | AZ107: 0 | BA107: 0 | BB107: 1 | BC107: 1 | BD107: 1 | BE107: 1500 | BF107: 1 | BG107: 1 | BH107: 0 | BI107: 0 | BJ107: 1 | BK107: 1 | BL107: 0 | BM107: 0 | BN107: 0 | BO107: 0 | BP107: 0 | BQ107: 0 | BR107: 3.055 | BS107: =IF(B107='Données méteo'!$E$107,'Données méteo'!$AF$104,IF(B107='Données méteo'!$F$107,'Données méteo'!$AG$104,IF(B107='Données méteo'!$G$107,'Données méteo'!$AH$104,IF(B107='Données méteo'!$H$107,'Données méteo'!$AI$104,IF(B107='Données méteo'!$I$107,'Données méteo'!$AJ$104,IF(B107='Données méteo'!$J$107,'Données méteo'!$AK$104,IF(B107='Données méteo'!$K$107,'Données méteo'!$AL$104,IF(B107='Données méteo'!$L$107,'Données méteo'!$AM$104,IF(B107='Données méteo'!$M$107,'Données méteo'!$AN$104,IF(B107='Données méteo'!$N$107,'Données méteo'!$AO$104,IF(B107='Données méteo'!$O$107,'Données méteo'!$AP$104,'Données méteo'!$AQ$104))))))))))) -> 116.6045175 | BT107: =BS107/31*VLOOKUP(F107,'Données méteo'!$C$108:$P$131,3,FALSE) -> 0 | BU107: 0 | BV107: 0 | BX107: 2.475 | BY107: 0 | BZ107: 0
A108: 3 | B108: Janvier | C108: 3 Janvier | D108: 67 | E108: Mercredi | F108: 19 | H108: 1 | I108: 1 | J108: 1 | K108: 900 | L108: 0 | M108: 1 | N108: 1 | O108: 0 | P108: 1 | Q108: 1 | R108: 1 | S108: 580 | T108: 1 | U108: 1 | V108: 1 | W108: 0 | X108: 0 | Y108: 0 | Z108: 0 | AA108: 1 | AB108: 1 | AC108: 0 | AD108: 1 | AE108: 1 | AF108: 1 | AG108: 0 | AH108: 1 | AI108: 1 | AJ108: 1 | AK108: 75 | AL108: 1 | AM108: 1 | AN108: 1 | AO108: 0 | AP108: 1 | AQ108: 0 | AR108: 0 | AS108: 0 | AT108: 1 | AU108: 0 | AV108: 0 | AW108: 0 | AX108: 1 | AY108: 0 | AZ108: 0 | BA108: 0 | BB108: 1 | BC108: 1 | BD108: 1 | BE108: 1500 | BF108: 1 | BG108: 1 | BH108: 0 | BI108: 0 | BJ108: 1 | BK108: 1 | BL108: 0 | BM108: 0 | BN108: 0 | BO108: 0 | BP108: 0 | BQ108: 0 | BR108: 3.055 | BS108: =IF(B108='Données méteo'!$E$107,'Données méteo'!$AF$104,IF(B108='Données méteo'!$F$107,'Données méteo'!$AG$104,IF(B108='Données méteo'!$G$107,'Données méteo'!$AH$104,IF(B108='Données méteo'!$H$107,'Données méteo'!$AI$104,IF(B108='Données méteo'!$I$107,'Données méteo'!$AJ$104,IF(B108='Données méteo'!$J$107,'Données méteo'!$AK$104,IF(B108='Données méteo'!$K$107,'Données méteo'!$AL$104,IF(B108='Données méteo'!$L$107,'Données méteo'!$AM$104,IF(B108='Données méteo'!$M$107,'Données méteo'!$AN$104,IF(B108='Données méteo'!$N$107,'Données méteo'!$AO$104,IF(B108='Données méteo'!$O$107,'Données méteo'!$AP$104,'Données méteo'!$AQ$104))))))))))) -> 116.6045175 | BT108: =BS108/31*VLOOKUP(F108,'Données méteo'!$C$108:$P$131,3,FALSE) -> 0 | BU108: 0 | BV108: 0 | BX108: 2.475 | BY108: 0 | BZ108: 0
A109: 3 | B109: Janvier | C109: 3 Janvier | D109: 68 | E109: Mercredi | F109: 20 | H109: 1 | I109: 1 | J109: 1 | K109: 900 | L109: 0 | M109: 1 | N109: 1 | O109: 0 | P109: 1 | Q109: 1 | R109: 0 | S109: 0 | T109: 1 | U109: 1 | V109: 1 | W109: 0 | X109: 0 | Y109: 0 | Z109: 0 | AA109: 1 | AB109: 1 | AC109: 0 | AD109: 1 | AE109: 1 | AF109: 1 | AG109: 0 | AH109: 1 | AI109: 1 | AJ109: 1 | AK109: 75 | AL109: 1 | AM109: 1 | AN109: 1 | AO109: 0 | AP109: 1 | AQ109: 0 | AR109: 0 | AS109: 0 | AT109: 1 | AU109: 0 | AV109: 0 | AW109: 0 | AX109: 1 | AY109: 0 | AZ109: 0 | BA109: 0 | BB109: 1 | BC109: 1 | BD109: 0 | BE109: 0 | BF109: 1 | BG109: 1 | BH109: 0 | BI109: 0 | BJ109: 1 | BK109: 1 | BL109: 1 | BM109: 100 | BN109: 0 | BO109: 0 | BP109: 0 | BQ109: 0 | BR109: 1.075 | BS109: =IF(B109='Données méteo'!$E$107,'Données méteo'!$AF$104,IF(B109='Données méteo'!$F$107,'Données méteo'!$AG$104,IF(B109='Données méteo'!$G$107,'Données méteo'!$AH$104,IF(B109='Données méteo'!$H$107,'Données méteo'!$AI$104,IF(B109='Données méteo'!$I$107,'Données méteo'!$AJ$104,IF(B109='Données méteo'!$J$107,'Données méteo'!$AK$104,IF(B109='Données méteo'!$K$107,'Données méteo'!$AL$104,IF(B109='Données méteo'!$L$107,'Données méteo'!$AM$104,IF(B109='Données méteo'!$M$107,'Données méteo'!$AN$104,IF(B109='Données méteo'!$N$107,'Données méteo'!$AO$104,IF(B109='Données méteo'!$O$107,'Données méteo'!$AP$104,'Données méteo'!$AQ$104))))))))))) -> 116.6045175 | BT109: =BS109/31*VLOOKUP(F109,'Données méteo'!$C$108:$P$131,3,FALSE) -> 0 | BU109: 0 | BV109: 0 | BX109: 1.075 | BY109: 0 | BZ109: 0
A110: 3 | B110: Janvier | C110: 3 Janvier | D110: 69 | E110: Mercredi | F110: 21 | H110: 1 | I110: 1 | J110: 1 | K110: 900 | L110: 0 | M110: 1 | N110: 1 | O110: 0 | P110: 1 | Q110: 1 | R110: 0 | S110: 0 | T110: 1 | U110: 1 | V110: 1 | W110: 0 | X110: 0 | Y110: 0 | Z110: 0 | AA110: 1 | AB110: 1 | AC110: 0 | AD110: 1 | AE110: 1 | AF110: 1 | AG110: 0 | AH110: 1 | AI110: 1 | AJ110: 1 | AK110: 75 | AL110: 1 | AM110: 1 | AN110: 1 | AO110: 0 | AP110: 1 | AQ110: 0 | AR110: 0 | AS110: 0 | AT110: 1 | AU110: 0 | AV110: 0 | AW110: 0 | AX110: 1 | AY110: 0 | AZ110: 0 | BA110: 0 | BB110: 1 | BC110: 1 | BD110: 0 | BE110: 0 | BF110: 1 | BG110: 1 | BH110: 0 | BI110: 0 | BJ110: 1 | BK110: 1 | BL110: 1 | BM110: 100 | BN110: 0 | BO110: 0 | BP110: 0 | BQ110: 0 | BR110: 1.075 | BS110: =IF(B110='Données méteo'!$E$107,'Données méteo'!$AF$104,IF(B110='Données méteo'!$F$107,'Données méteo'!$AG$104,IF(B110='Données méteo'!$G$107,'Données méteo'!$AH$104,IF(B110='Données méteo'!$H$107,'Données méteo'!$AI$104,IF(B110='Données méteo'!$I$107,'Données méteo'!$AJ$104,IF(B110='Données méteo'!$J$107,'Données méteo'!$AK$104,IF(B110='Données méteo'!$K$107,'Données méteo'!$AL$104,IF(B110='Données méteo'!$L$107,'Données méteo'!$AM$104,IF(B110='Données méteo'!$M$107,'Données méteo'!$AN$104,IF(B110='Données méteo'!$N$107,'Données méteo'!$AO$104,IF(B110='Données méteo'!$O$107,'Données méteo'!$AP$104,'Données méteo'!$AQ$104))))))))))) -> 116.6045175 | BT110: =BS110/31*VLOOKUP(F110,'Données méteo'!$C$108:$P$131,3,FALSE) -> 0 | BU110: 0 | BV110: 0 | BX110: 1.075 | BY110: 0 | BZ110: 0
A111: 3 | B111: Janvier | C111: 3 Janvier | D111: 70 | E111: Mercredi | F111: 22 | H111: 1 | I111: 1 | J111: 0 | K111: 0 | L111: 0 | M111: 1 | N111: 0 | O111: 0 | P111: 1 | Q111: 1 | R111: 0 | S111: 0 | T111: 1 | U111: 1 | V111: 1 | W111: 0 | X111: 0 | Y111: 0 | Z111: 0 | AA111: 1 | AB111: 1 | AC111: 0 | AD111: 1 | AE111: 1 | AF111: 1 | AG111: 0 | AH111: 1 | AI111: 1 | AJ111: 1 | AK111: 75 | AL111: 1 | AM111: 1 | AN111: 1 | AO111: 0 | AP111: 1 | AQ111: 0 | AR111: 0 | AS111: 0 | AT111: 1 | AU111: 0 | AV111: 0 | AW111: 0 | AX111: 1 | AY111: 0 | AZ111: 0 | BA111: 0 | BB111: 1 | BC111: 1 | BD111: 0 | BE111: 0 | BF111: 1 | BG111: 1 | BH111: 0 | BI111: 0 | BJ111: 1 | BK111: 1 | BL111: 1 | BM111: 100 | BN111: 0 | BO111: 0 | BP111: 0 | BQ111: 0 | BR111: 0.175 | BS111: =IF(B111='Données méteo'!$E$107,'Données méteo'!$AF$104,IF(B111='Données méteo'!$F$107,'Données méteo'!$AG$104,IF(B111='Données méteo'!$G$107,'Données méteo'!$AH$104,IF(B111='Données méteo'!$H$107,'Données méteo'!$AI$104,IF(B111='Données méteo'!$I$107,'Données méteo'!$AJ$104,IF(B111='Données méteo'!$J$107,'Données méteo'!$AK$104,IF(B111='Données méteo'!$K$107,'Données méteo'!$AL$104,IF(B111='Données méteo'!$L$107,'Données méteo'!$AM$104,IF(B111='Données méteo'!$M$107,'Données méteo'!$AN$104,IF(B111='Données méteo'!$N$107,'Données méteo'!$AO$104,IF(B111='Données méteo'!$O$107,'Données méteo'!$AP$104,'Données méteo'!$AQ$104))))))))))) -> 116.6045175 | BT111: =BS111/31*VLOOKUP(F111,'Données méteo'!$C$108:$P$131,3,FALSE) -> 0 | BU111: 0 | BV111: 0 | BX111: 0.175 | BY111: 0 | BZ111: 0
A112: 3 | B112: Janvier | C112: 3 Janvier | D112: 71 | E112: Mercredi | F112: 23 | H112: 1 | I112: 1 | J112: 0 | K112: 0 | L112: 0 | M112: 1 | N112: 0 | O112: 0 | P112: 1 | Q112: 1 | R112: 0 | S112: 0 | T112: 1 | U112: 1 | V112: 1 | W112: 0 | X112: 0 | Y112: 0 | Z112: 0 | AA112: 1 | AB112: 1 | AC112: 0 | AD112: 1 | AE112: 1 | AF112: 1 | AG112: 0 | AH112: 1 | AI112: 1 | AJ112: 1 | AK112: 75 | AL112: 1 | AM112: 1 | AN112: 1 | AO112: 0 | AP112: 1 | AQ112: 0 | AR112: 0 | AS112: 0 | AT112: 1 | AU112: 0 | AV112: 0 | AW112: 0 | AX112: 1 | AY112: 0 | AZ112: 0 | BA112: 0 | BB112: 1 | BC112: 1 | BD112: 0 | BE112: 0 | BF112: 1 | BG112: 1 | BH112: 0 | BI112: 0 | BJ112: 1 | BK112: 1 | BL112: 1 | BM112: 100 | BN112: 0 | BO112: 0 | BP112: 0 | BQ112: 0 | BR112: 0.175 | BS112: =IF(B112='Données méteo'!$E$107,'Données méteo'!$AF$104,IF(B112='Données méteo'!$F$107,'Données méteo'!$AG$104,IF(B112='Données méteo'!$G$107,'Données méteo'!$AH$104,IF(B112='Données méteo'!$H$107,'Données méteo'!$AI$104,IF(B112='Données méteo'!$I$107,'Données méteo'!$AJ$104,IF(B112='Données méteo'!$J$107,'Données méteo'!$AK$104,IF(B112='Données méteo'!$K$107,'Données méteo'!$AL$104,IF(B112='Données méteo'!$L$107,'Données méteo'!$AM$104,IF(B112='Données méteo'!$M$107,'Données méteo'!$AN$104,IF(B112='Données méteo'!$N$107,'Données méteo'!$AO$104,IF(B112='Données méteo'!$O$107,'Données méteo'!$AP$104,'Données méteo'!$AQ$104))))))))))) -> 116.6045175 | BT112: =BS112/31*VLOOKUP(F112,'Données méteo'!$C$108:$P$131,3,FALSE) -> 0 | BU112: 0 | BV112: 0 | BX112: 0.175 | BY112: 0 | BZ112: 0
A113: 4 | B113: Janvier | C113: 4 Janvier | D113: 72 | E113: Jeudi | F113: 0 | H113: 1 | I113: 1 | J113: 0 | K113: 0 | L113: 0 | M113: 1 | N113: 0 | O113: 0 | P113: 1 | Q113: 1 | R113: 0 | S113: 0 | T113: 1 | U113: 1 | V113: 1 | W113: 0 | X113: 0 | Y113: 0 | Z113: 0 | AA113: 1 | AB113: 1 | AC113: 0 | AD113: 1 | AE113: 1 | AF113: 1 | AG113: 0 | AH113: 1 | AI113: 1 | AJ113: 1 | AK113: 75 | AL113: 1 | AM113: 1 | AN113: 1 | AO113: 0 | AP113: 1 | AQ113: 0 | AR113: 0 | AS113: 0 | AT113: 1 | AU113: 0 | AV113: 0 | AW113: 0 | AX113: 1 | AY113: 0 | AZ113: 0 | BA113: 0 | BB113: 1 | BC113: 1 | BD113: 0 | BE113: 0 | BF113: 1 | BG113: 0 | BH113: 0 | BI113: 0 | BJ113: 1 | BK113: 1 | BL113: 0 | BM113: 0 | BN113: 0 | BO113: 0 | BP113: 0 | BQ113: 0 | BR113: 0.075 | BS113: =IF(B113='Données méteo'!$E$107,'Données méteo'!$AF$104,IF(B113='Données méteo'!$F$107,'Données méteo'!$AG$104,IF(B113='Données méteo'!$G$107,'Données méteo'!$AH$104,IF(B113='Données méteo'!$H$107,'Données méteo'!$AI$104,IF(B113='Données méteo'!$I$107,'Données méteo'!$AJ$104,IF(B113='Données méteo'!$J$107,'Données méteo'!$AK$104,IF(B113='Données méteo'!$K$107,'Données méteo'!$AL$104,IF(B113='Données méteo'!$L$107,'Données méteo'!$AM$104,IF(B113='Données méteo'!$M$107,'Données méteo'!$AN$104,IF(B113='Données méteo'!$N$107,'Données méteo'!$AO$104,IF(B113='Données méteo'!$O$107,'Données méteo'!$AP$104,'Données méteo'!$AQ$104))))))))))) -> 116.6045175 | BT113: =BS113/31*VLOOKUP(F113,'Données méteo'!$C$108:$P$131,3,FALSE) -> 0 | BU113: 0 | BV113: 0 | BX113: 0.075 | BY113: 0 | BZ113: 0
A114: 4 | B114: Janvier | C114: 4 Janvier | D114: 73 | E114: Jeudi | F114: 1 | H114: 1 | I114: 1 | J114: 0 | K114: 0 | L114: 0 | M114: 1 | N114: 0 | O114: 0 | P114: 1 | Q114: 1 | R114: 0 | S114: 0 | T114: 1 | U114: 1 | V114: 1 | W114: 0 | X114: 0 | Y114: 0 | Z114: 0 | AA114: 1 | AB114: 1 | AC114: 0 | AD114: 1 | AE114: 1 | AF114: 1 | AG114: 0 | AH114: 1 | AI114: 1 | AJ114: 1 | AK114: 75 | AL114: 1 | AM114: 1 | AN114: 1 | AO114: 0 | AP114: 1 | AQ114: 0 | AR114: 0 | AS114: 0 | AT114: 1 | AU114: 0 | AV114: 0 | AW114: 0 | AX114: 1 | AY114: 0 | AZ114: 0 | BA114: 0 | BB114: 1 | BC114: 1 | BD114: 0 | BE114: 0 | BF114: 1 | BG114: 0 | BH114: 0 | BI114: 0 | BJ114: 1 | BK114: 1 | BL114: 0 | BM114: 0 | BN114: 0 | BO114: 0 | BP114: 0 | BQ114: 0 | BR114: 0.075 | BS114: =IF(B114='Données méteo'!$E$107,'Données méteo'!$AF$104,IF(B114='Données méteo'!$F$107,'Données méteo'!$AG$104,IF(B114='Données méteo'!$G$107,'Données méteo'!$AH$104,IF(B114='Données méteo'!$H$107,'Données méteo'!$AI$104,IF(B114='Données méteo'!$I$107,'Données méteo'!$AJ$104,IF(B114='Données méteo'!$J$107,'Données méteo'!$AK$104,IF(B114='Données méteo'!$K$107,'Données méteo'!$AL$104,IF(B114='Données méteo'!$L$107,'Données méteo'!$AM$104,IF(B114='Données méteo'!$M$107,'Données méteo'!$AN$104,IF(B114='Données méteo'!$N$107,'Données méteo'!$AO$104,IF(B114='Données méteo'!$O$107,'Données méteo'!$AP$104,'Données méteo'!$AQ$104))))))))))) -> 116.6045175 | BT114: =BS114/31*VLOOKUP(F114,'Données méteo'!$C$108:$P$131,3,FALSE) -> 0 | BU114: 0 | BV114: 0 | BX114: 0.075 | BY114: 0 | BZ114: 0
A115: 4 | B115: Janvier | C115: 4 Janvier | D115: 74 | E115: Jeudi | F115: 2 | H115: 1 | I115: 1 | J115: 0 | K115: 0 | L115: 0 | M115: 1 | N115: 0 | O115: 0 | P115: 1 | Q115: 1 | R115: 0 | S115: 0 | T115: 1 | U115: 1 | V115: 1 | W115: 0 | X115: 0 | Y115: 0 | Z115: 0 | AA115: 1 | AB115: 1 | AC115: 0 | AD115: 1 | AE115: 1 | AF115: 1 | AG115: 0 | AH115: 1 | AI115: 1 | AJ115: 1 | AK115: 75 | AL115: 1 | AM115: 1 | AN115: 1 | AO115: 0 | AP115: 1 | AQ115: 0 | AR115: 0 | AS115: 0 | AT115: 1 | AU115: 0 | AV115: 0 | AW115: 0 | AX115: 1 | AY115: 0 | AZ115: 0 | BA115: 0 | BB115: 1 | BC115: 1 | BD115: 0 | BE115: 0 | BF115: 1 | BG115: 0 | BH115: 0 | BI115: 0 | BJ115: 1 | BK115: 1 | BL115: 0 | BM115: 0 | BN115: 0 | BO115: 0 | BP115: 0 | BQ115: 0 | BR115: 0.075 | BS115: =IF(B115='Données méteo'!$E$107,'Données méteo'!$AF$104,IF(B115='Données méteo'!$F$107,'Données méteo'!$AG$104,IF(B115='Données méteo'!$G$107,'Données méteo'!$AH$104,IF(B115='Données méteo'!$H$107,'Données méteo'!$AI$104,IF(B115='Données méteo'!$I$107,'Données méteo'!$AJ$104,IF(B115='Données méteo'!$J$107,'Données méteo'!$AK$104,IF(B115='Données méteo'!$K$107,'Données méteo'!$AL$104,IF(B115='Données méteo'!$L$107,'Données méteo'!$AM$104,IF(B115='Données méteo'!$M$107,'Données méteo'!$AN$104,IF(B115='Données méteo'!$N$107,'Données méteo'!$AO$104,IF(B115='Données méteo'!$O$107,'Données méteo'!$AP$104,'Données méteo'!$AQ$104))))))))))) -> 116.6045175 | BT115: =BS115/31*VLOOKUP(F115,'Données méteo'!$C$108:$P$131,3,FALSE) -> 0 | BU115: 0 | BV115: 0 | BX115: 0.075 | BY115: 0 | BZ115: 0
A116: 4 | B116: Janvier | C116: 4 Janvier | D116: 75 | E116: Jeudi | F116: 3 | H116: 1 | I116: 1 | J116: 0 | K116: 0 | L116: 0 | M116: 1 | N116: 0 | O116: 0 | P116: 1 | Q116: 1 | R116: 0 | S116: 0 | T116: 1 | U116: 1 | V116: 1 | W116: 0 | X116: 0 | Y116: 0 | Z116: 0 | AA116: 1 | AB116: 1 | AC116: 0 | AD116: 1 | AE116: 1 | AF116: 1 | AG116: 0 | AH116: 1 | AI116: 1 | AJ116: 1 | AK116: 75 | AL116: 1 | AM116: 1 | AN116: 1 | AO116: 0 | AP116: 1 | AQ116: 0 | AR116: 0 | AS116: 0 | AT116: 1 | AU116: 0 | AV116: 0 | AW116: 0 | AX116: 1 | AY116: 0 | AZ116: 0 | BA116: 0 | BB116: 1 | BC116: 1 | BD116: 0 | BE116: 0 | BF116: 1 | BG116: 0 | BH116: 0 | BI116: 0 | BJ116: 1 | BK116: 1 | BL116: 0 | BM116: 0 | BN116: 0 | BO116: 0 | BP116: 0 | BQ116: 0 | BR116: 0.075 | BS116: =IF(B116='Données méteo'!$E$107,'Données méteo'!$AF$104,IF(B116='Données méteo'!$F$107,'Données méteo'!$AG$104,IF(B116='Données méteo'!$G$107,'Données méteo'!$AH$104,IF(B116='Données méteo'!$H$107,'Données méteo'!$AI$104,IF(B116='Données méteo'!$I$107,'Données méteo'!$AJ$104,IF(B116='Données méteo'!$J$107,'Données méteo'!$AK$104,IF(B116='Données méteo'!$K$107,'Données méteo'!$AL$104,IF(B116='Données méteo'!$L$107,'Données méteo'!$AM$104,IF(B116='Données méteo'!$M$107,'Données méteo'!$AN$104,IF(B116='Données méteo'!$N$107,'Données méteo'!$AO$104,IF(B116='Données méteo'!$O$107,'Données méteo'!$AP$104,'Données méteo'!$AQ$104))))))))))) -> 116.6045175 | BT116: =BS116/31*VLOOKUP(F116,'Données méteo'!$C$108:$P$131,3,FALSE) -> 0 | BU116: 0 | BV116: 0 | BX116: 0.075 | BY116: 0 | BZ116: 0
A117: 4 | B117: Janvier | C117: 4 Janvier | D117: 76 | E117: Jeudi | F117: 4 | H117: 1 | I117: 1 | J117: 0 | K117: 0 | L117: 0 | M117: 1 | N117: 0 | O117: 0 | P117: 1 | Q117: 1 | R117: 0 | S117: 0 | T117: 1 | U117: 1 | V117: 1 | W117: 0 | X117: 0 | Y117: 0 | Z117: 0 | AA117: 1 | AB117: 1 | AC117: 0 | AD117: 1 | AE117: 1 | AF117: 1 | AG117: 0 | AH117: 1 | AI117: 1 | AJ117: 1 | AK117: 75 | AL117: 1 | AM117: 1 | AN117: 1 | AO117: 0 | AP117: 1 | AQ117: 0 | AR117: 0 | AS117: 0 | AT117: 1 | AU117: 0 | AV117: 0 | AW117: 0 | AX117: 1 | AY117: 0 | AZ117: 0 | BA117: 0 | BB117: 1 | BC117: 1 | BD117: 0 | BE117: 0 | BF117: 1 | BG117: 0 | BH117: 0 | BI117: 0 | BJ117: 1 | BK117: 1 | BL117: 0 | BM117: 0 | BN117: 0 | BO117: 0 | BP117: 0 | BQ117: 0 | BR117: 0.075 | BS117: =IF(B117='Données méteo'!$E$107,'Données méteo'!$AF$104,IF(B117='Données méteo'!$F$107,'Données méteo'!$AG$104,IF(B117='Données méteo'!$G$107,'Données méteo'!$AH$104,IF(B117='Données méteo'!$H$107,'Données méteo'!$AI$104,IF(B117='Données méteo'!$I$107,'Données méteo'!$AJ$104,IF(B117='Données méteo'!$J$107,'Données méteo'!$AK$104,IF(B117='Données méteo'!$K$107,'Données méteo'!$AL$104,IF(B117='Données méteo'!$L$107,'Données méteo'!$AM$104,IF(B117='Données méteo'!$M$107,'Données méteo'!$AN$104,IF(B117='Données méteo'!$N$107,'Données méteo'!$AO$104,IF(B117='Données méteo'!$O$107,'Données méteo'!$AP$104,'Données méteo'!$AQ$104))))))))))) -> 116.6045175 | BT117: =BS117/31*VLOOKUP(F117,'Données méteo'!$C$108:$P$131,3,FALSE) -> 0 | BU117: 0 | BV117: 0 | BX117: 0.075 | BY117: 0 | BZ117: 0
A118: 4 | B118: Janvier | C118: 4 Janvier | D118: 77 | E118: Jeudi | F118: 5 | H118: 1 | I118: 1 | J118: 0 | K118: 0 | L118: 0 | M118: 1 | N118: 0 | O118: 0 | P118: 1 | Q118: 1 | R118: 0 | S118: 0 | T118: 1 | U118: 1 | V118: 1 | W118: 0 | X118: 0 | Y118: 0 | Z118: 0 | AA118: 1 | AB118: 1 | AC118: 0 | AD118: 1 | AE118: 1 | AF118: 1 | AG118: 0 | AH118: 1 | AI118: 1 | AJ118: 1 | AK118: 75 | AL118: 1 | AM118: 1 | AN118: 1 | AO118: 0 | AP118: 1 | AQ118: 0 | AR118: 0 | AS118: 0 | AT118: 1 | AU118: 0 | AV118: 0 | AW118: 0 | AX118: 1 | AY118: 0 | AZ118: 0 | BA118: 0 | BB118: 1 | BC118: 1 | BD118: 0 | BE118: 0 | BF118: 1 | BG118: 0 | BH118: 0 | BI118: 0 | BJ118: 1 | BK118: 1 | BL118: 0 | BM118: 0 | BN118: 0 | BO118: 0 | BP118: 0 | BQ118: 0 | BR118: 0.075 | BS118: =IF(B118='Données méteo'!$E$107,'Données méteo'!$AF$104,IF(B118='Données méteo'!$F$107,'Données méteo'!$AG$104,IF(B118='Données méteo'!$G$107,'Données méteo'!$AH$104,IF(B118='Données méteo'!$H$107,'Données méteo'!$AI$104,IF(B118='Données méteo'!$I$107,'Données méteo'!$AJ$104,IF(B118='Données méteo'!$J$107,'Données méteo'!$AK$104,IF(B118='Données méteo'!$K$107,'Données méteo'!$AL$104,IF(B118='Données méteo'!$L$107,'Données méteo'!$AM$104,IF(B118='Données méteo'!$M$107,'Données méteo'!$AN$104,IF(B118='Données méteo'!$N$107,'Données méteo'!$AO$104,IF(B118='Données méteo'!$O$107,'Données méteo'!$AP$104,'Données méteo'!$AQ$104))))))))))) -> 116.6045175 | BT118: =BS118/31*VLOOKUP(F118,'Données méteo'!$C$108:$P$131,3,FALSE) -> 0 | BU118: 0 | BV118: 0 | BX118: 0.075 | BY118: 0 | BZ118: 0
A119: 4 | B119: Janvier | C119: 4 Janvier | D119: 78 | E119: Jeudi | F119: 6 | H119: 1 | I119: 1 | J119: 1 | K119: 900 | L119: 0 | M119: 1 | N119: 0 | O119: 0 | P119: 1 | Q119: 1 | R119: 0 | S119: 0 | T119: 1 | U119: 1 | V119: 1 | W119: 0 | X119: 0 | Y119: 0 | Z119: 0 | AA119: 1 | AB119: 1 | AC119: 0 | AD119: 1 | AE119: 1 | AF119: 1 | AG119: 0 | AH119: 1 | AI119: 1 | AJ119: 1 | AK119: 75 | AL119: 1 | AM119: 1 | AN119: 1 | AO119: 0 | AP119: 1 | AQ119: 0 | AR119: 0 | AS119: 0 | AT119: 1 | AU119: 0 | AV119: 0 | AW119: 0 | AX119: 1 | AY119: 0 | AZ119: 0 | BA119: 0 | BB119: 1 | BC119: 1 | BD119: 0 | BE119: 0 | BF119: 1 | BG119: 0 | BH119: 0 | BI119: 0 | BJ119: 1 | BK119: 1 | BL119: 0 | BM119: 0 | BN119: 0 | BO119: 0 | BP119: 0 | BQ119: 0 | BR119: 0.975 | BS119: =IF(B119='Données méteo'!$E$107,'Données méteo'!$AF$104,IF(B119='Données méteo'!$F$107,'Données méteo'!$AG$104,IF(B119='Données méteo'!$G$107,'Données méteo'!$AH$104,IF(B119='Données méteo'!$H$107,'Données méteo'!$AI$104,IF(B119='Données méteo'!$I$107,'Données méteo'!$AJ$104,IF(B119='Données méteo'!$J$107,'Données méteo'!$AK$104,IF(B119='Données méteo'!$K$107,'Données méteo'!$AL$104,IF(B119='Données méteo'!$L$107,'Données méteo'!$AM$104,IF(B119='Données méteo'!$M$107,'Données méteo'!$AN$104,IF(B119='Données méteo'!$N$107,'Données méteo'!$AO$104,IF(B119='Données méteo'!$O$107,'Données méteo'!$AP$104,'Données méteo'!$AQ$104))))))))))) -> 116.6045175 | BT119: =BS119/31*VLOOKUP(F119,'Données méteo'!$C$108:$P$131,3,FALSE) -> 0 | BU119: 0 | BV119: 0 | BX119: 0.975 | BY119: 0 | BZ119: 0
A120: 4 | B120: Janvier | C120: 4 Janvier | D120: 79 | E120: Jeudi | F120: 7 | H120: 1 | I120: 1 | J120: 1 | K120: 900 | L120: 0 | M120: 1 | N120: 0 | O120: 0 | P120: 1 | Q120: 1 | R120: 0 | S120: 0 | T120: 1 | U120: 1 | V120: 1 | W120: 0 | X120: 0 | Y120: 0 | Z120: 0 | AA120: 1 | AB120: 1 | AC120: 0 | AD120: 1 | AE120: 1 | AF120: 1 | AG120: 0 | AH120: 1 | AI120: 1 | AJ120: 1 | AK120: 75 | AL120: 1 | AM120: 1 | AN120: 1 | AO120: 0 | AP120: 1 | AQ120: 0 | AR120: 0 | AS120: 0 | AT120: 1 | AU120: 0 | AV120: 0 | AW120: 0 | AX120: 1 | AY120: 0 | AZ120: 0 | BA120: 0 | BB120: 1 | BC120: 1 | BD120: 0 | BE120: 0 | BF120: 1 | BG120: 0 | BH120: 0 | BI120: 0 | BJ120: 1 | BK120: 1 | BL120: 0 | BM120: 0 | BN120: 0 | BO120: 0 | BP120: 0 | BQ120: 0 | BR120: 0.975 | BS120: =IF(B120='Données méteo'!$E$107,'Données méteo'!$AF$104,IF(B120='Données méteo'!$F$107,'Données méteo'!$AG$104,IF(B120='Données méteo'!$G$107,'Données méteo'!$AH$104,IF(B120='Données méteo'!$H$107,'Données méteo'!$AI$104,IF(B120='Données méteo'!$I$107,'Données méteo'!$AJ$104,IF(B120='Données méteo'!$J$107,'Données méteo'!$AK$104,IF(B120='Données méteo'!$K$107,'Données méteo'!$AL$104,IF(B120='Données méteo'!$L$107,'Données méteo'!$AM$104,IF(B120='Données méteo'!$M$107,'Données méteo'!$AN$104,IF(B120='Données méteo'!$N$107,'Données méteo'!$AO$104,IF(B120='Données méteo'!$O$107,'Données méteo'!$AP$104,'Données méteo'!$AQ$104))))))))))) -> 116.6045175 | BT120: =BS120/31*VLOOKUP(F120,'Données méteo'!$C$108:$P$131,3,FALSE) -> 0 | BU120: 0 | BV120: 0 | BX120: 0.975 | BY120: 0 | BZ120: 0
A121: 4 | B121: Janvier | C121: 4 Janvier | D121: 80 | E121: Jeudi | F121: 8 | H121: 1 | I121: 1 | J121: 0 | K121: 0 | L121: 0 | M121: 1 | N121: 0 | O121: 0 | P121: 1 | Q121: 1 | R121: 1 | S121: 580 | T121: 1 | U121: 1 | V121: 1 | W121: 0 | X121: 0 | Y121: 0 | Z121: 0 | AA121: 1 | AB121: 1 | AC121: 0 | AD121: 1 | AE121: 1 | AF121: 1 | AG121: 0 | AH121: 1 | AI121: 1 | AJ121: 1 | AK121: 75 | AL121: 1 | AM121: 1 | AN121: 1 | AO121: 0 | AP121: 1 | AQ121: 0 | AR121: 0 | AS121: 0 | AT121: 1 | AU121: 0 | AV121: 0 | AW121: 0 | AX121: 1 | AY121: 0 | AZ121: 0 | BA121: 0 | BB121: 1 | BC121: 1 | BD121: 0 | BE121: 0 | BF121: 1 | BG121: 0 | BH121: 0 | BI121: 0 | BJ121: 1 | BK121: 1 | BL121: 0 | BM121: 0 | BN121: 0 | BO121: 0 | BP121: 0 | BQ121: 0 | BR121: 0.655 | BS121: =IF(B121='Données méteo'!$E$107,'Données méteo'!$AF$104,IF(B121='Données méteo'!$F$107,'Données méteo'!$AG$104,IF(B121='Données méteo'!$G$107,'Données méteo'!$AH$104,IF(B121='Données méteo'!$H$107,'Données méteo'!$AI$104,IF(B121='Données méteo'!$I$107,'Données méteo'!$AJ$104,IF(B121='Données méteo'!$J$107,'Données méteo'!$AK$104,IF(B121='Données méteo'!$K$107,'Données méteo'!$AL$104,IF(B121='Données méteo'!$L$107,'Données méteo'!$AM$104,IF(B121='Données méteo'!$M$107,'Données méteo'!$AN$104,IF(B121='Données méteo'!$N$107,'Données méteo'!$AO$104,IF(B121='Données méteo'!$O$107,'Données méteo'!$AP$104,'Données méteo'!$AQ$104))))))))))) -> 116.6045175 | BT121: =BS121/31*VLOOKUP(F121,'Données méteo'!$C$108:$P$131,3,FALSE) -> 0 | BU121: 0 | BV121: 0 | BX121: 0.075 | BY121: 0 | BZ121: 0
A122: 4 | B122: Janvier | C122: 4 Janvier | D122: 81 | E122: Jeudi | F122: 9 | H122: 1 | I122: 1 | J122: 0 | K122: 0 | L122: 0 | M122: 1 | N122: 0 | O122: 0 | P122: 1 | Q122: 1 | R122: 1 | S122: 580 | T122: 1 | U122: 1 | V122: 1 | W122: 0 | X122: 0 | Y122: 0 | Z122: 0 | AA122: 1 | AB122: 1 | AC122: 0 | AD122: 1 | AE122: 1 | AF122: 1 | AG122: 0 | AH122: 1 | AI122: 1 | AJ122: 1 | AK122: 75 | AL122: 1 | AM122: 1 | AN122: 1 | AO122: 0 | AP122: 1 | AQ122: 0 | AR122: 0 | AS122: 0 | AT122: 1 | AU122: 0 | AV122: 0 | AW122: 0 | AX122: 1 | AY122: 0 | AZ122: 0 | BA122: 0 | BB122: 1 | BC122: 1 | BD122: 0 | BE122: 0 | BF122: 1 | BG122: 0 | BH122: 0 | BI122: 0 | BJ122: 1 | BK122: 1 | BL122: 0 | BM122: 0 | BN122: 0 | BO122: 0 | BP122: 0 | BQ122: 0 | BR122: 0.655 | BS122: =IF(B122='Données méteo'!$E$107,'Données méteo'!$AF$104,IF(B122='Données méteo'!$F$107,'Données méteo'!$AG$104,IF(B122='Données méteo'!$G$107,'Données méteo'!$AH$104,IF(B122='Données méteo'!$H$107,'Données méteo'!$AI$104,IF(B122='Données méteo'!$I$107,'Données méteo'!$AJ$104,IF(B122='Données méteo'!$J$107,'Données méteo'!$AK$104,IF(B122='Données méteo'!$K$107,'Données méteo'!$AL$104,IF(B122='Données méteo'!$L$107,'Données méteo'!$AM$104,IF(B122='Données méteo'!$M$107,'Données méteo'!$AN$104,IF(B122='Données méteo'!$N$107,'Données méteo'!$AO$104,IF(B122='Données méteo'!$O$107,'Données méteo'!$AP$104,'Données méteo'!$AQ$104))))))))))) -> 116.6045175 | BT122: =BS122/31*VLOOKUP(F122,'Données méteo'!$C$108:$P$131,3,FALSE) -> 0.1504574419 | BU122: 0.1504574419 | BV122: 0 | BX122: 0.075 | BY122: 0.07545744188 | BZ122: 0.07545744188
A123: 4 | B123: Janvier | C123: 4 Janvier | D123: 82 | E123: Jeudi | F123: 10 | H123: 1 | I123: 1 | J123: 0 | K123: 0 | L123: 0 | M123: 1 | N123: 0 | O123: 0 | P123: 1 | Q123: 1 | R123: 1 | S123: 580 | T123: 1 | U123: 1 | V123: 1 | W123: 0 | X123: 0 | Y123: 0 | Z123: 0 | AA123: 1 | AB123: 1 | AC123: 0 | AD123: 1 | AE123: 1 | AF123: 1 | AG123: 0 | AH123: 1 | AI123: 1 | AJ123: 1 | AK123: 75 | AL123: 1 | AM123: 1 | AN123: 1 | AO123: 0 | AP123: 1 | AQ123: 0 | AR123: 0 | AS123: 0 | AT123: 1 | AU123: 0 | AV123: 0 | AW123: 0 | AX123: 1 | AY123: 0 | AZ123: 0 | BA123: 0 | BB123: 1 | BC123: 1 | BD123: 0 | BE123: 0 | BF123: 1 | BG123: 0 | BH123: 0 | BI123: 0 | BJ123: 1 | BK123: 1 | BL123: 0 | BM123: 0 | BN123: 0 | BO123: 0 | BP123: 0 | BQ123: 0 | BR123: 0.655 | BS123: =IF(B123='Données méteo'!$E$107,'Données méteo'!$AF$104,IF(B123='Données méteo'!$F$107,'Données méteo'!$AG$104,IF(B123='Données méteo'!$G$107,'Données méteo'!$AH$104,IF(B123='Données méteo'!$H$107,'Données méteo'!$AI$104,IF(B123='Données méteo'!$I$107,'Données méteo'!$AJ$104,IF(B123='Données méteo'!$J$107,'Données méteo'!$AK$104,IF(B123='Données méteo'!$K$107,'Données méteo'!$AL$104,IF(B123='Données méteo'!$L$107,'Données méteo'!$AM$104,IF(B123='Données méteo'!$M$107,'Données méteo'!$AN$104,IF(B123='Données méteo'!$N$107,'Données méteo'!$AO$104,IF(B123='Données méteo'!$O$107,'Données méteo'!$AP$104,'Données méteo'!$AQ$104))))))))))) -> 116.6045175 | BT123: =BS123/31*VLOOKUP(F123,'Données méteo'!$C$108:$P$131,3,FALSE) -> 0.3761436047 | BU123: 0.3761436047 | BV123: 0 | BX123: 0.075 | BY123: 0.3011436047 | BZ123: 0.3011436047
A124: 4 | B124: Janvier | C124: 4 Janvier | D124: 83 | E124: Jeudi | F124: 11 | H124: 1 | I124: 1 | J124: 0 | K124: 0 | L124: 0 | M124: 1 | N124: 0 | O124: 0 | P124: 1 | Q124: 1 | R124: 1 | S124: 580 | T124: 1 | U124: 1 | V124: 1 | W124: 0 | X124: 0 | Y124: 0 | Z124: 0 | AA124: 1 | AB124: 1 | AC124: 0 | AD124: 1 | AE124: 1 | AF124: 1 | AG124: 0 | AH124: 1 | AI124: 1 | AJ124: 1 | AK124: 75 | AL124: 1 | AM124: 1 | AN124: 1 | AO124: 0 | AP124: 1 | AQ124: 0 | AR124: 0 | AS124: 0 | AT124: 1 | AU124: 0 | AV124: 0 | AW124: 0 | AX124: 1 | AY124: 0 | AZ124: 0 | BA124: 0 | BB124: 1 | BC124: 1 | BD124: 0 | BE124: 0 | BF124: 1 | BG124: 0 | BH124: 0 | BI124: 0 | BJ124: 1 | BK124: 1 | BL124: 0 | BM124: 0 | BN124: 0 | BO124: 0 | BP124: 0 | BQ124: 0 | BR124: 0.655 | BS124: =IF(B124='Données méteo'!$E$107,'Données méteo'!$AF$104,IF(B124='Données méteo'!$F$107,'Données méteo'!$AG$104,IF(B124='Données méteo'!$G$107,'Données méteo'!$AH$104,IF(B124='Données méteo'!$H$107,'Données méteo'!$AI$104,IF(B124='Données méteo'!$I$107,'Données méteo'!$AJ$104,IF(B124='Données méteo'!$J$107,'Données méteo'!$AK$104,IF(B124='Données méteo'!$K$107,'Données méteo'!$AL$104,IF(B124='Données méteo'!$L$107,'Données méteo'!$AM$104,IF(B124='Données méteo'!$M$107,'Données méteo'!$AN$104,IF(B124='Données méteo'!$N$107,'Données méteo'!$AO$104,IF(B124='Données méteo'!$O$107,'Données méteo'!$AP$104,'Données méteo'!$AQ$104))))))))))) -> 116.6045175 | BT124: =BS124/31*VLOOKUP(F124,'Données méteo'!$C$108:$P$131,3,FALSE) -> 0.7522872094 | BU124: 0.655 | BV124: 0.09728720938 | BX124: 0.075 | BY124: 0.6772872094 | BZ124: 0.58
A125: 4 | B125: Janvier | C125: 4 Janvier | D125: 84 | E125: Jeudi | F125: 12 | H125: 1 | I125: 1 | J125: 0 | K125: 0 | L125: 0 | M125: 1 | N125: 0 | O125: 0 | P125: 1 | Q125: 1 | R125: 1 | S125: 580 | T125: 1 | U125: 1 | V125: 1 | W125: 0 | X125: 0 | Y125: 0 | Z125: 0 | AA125: 1 | AB125: 1 | AC125: 0 | AD125: 1 | AE125: 1 | AF125: 1 | AG125: 0 | AH125: 1 | AI125: 1 | AJ125: 1 | AK125: 75 | AL125: 1 | AM125: 1 | AN125: 1 | AO125: 0 | AP125: 1 | AQ125: 0 | AR125: 0 | AS125: 0 | AT125: 1 | AU125: 0 | AV125: 0 | AW125: 0 | AX125: 1 | AY125: 0 | AZ125: 0 | BA125: 0 | BB125: 1 | BC125: 1 | BD125: 0 | BE125: 0 | BF125: 1 | BG125: 0 | BH125: 1 | BI125: 0 | BJ125: 1 | BK125: 1 | BL125: 0 | BM125: 0 | BN125: 0 | BO125: 0 | BP125: 0 | BQ125: 0 | BR125: 0.655 | BS125: =IF(B125='Données méteo'!$E$107,'Données méteo'!$AF$104,IF(B125='Données méteo'!$F$107,'Données méteo'!$AG$104,IF(B125='Données méteo'!$G$107,'Données méteo'!$AH$104,IF(B125='Données méteo'!$H$107,'Données méteo'!$AI$104,IF(B125='Données méteo'!$I$107,'Données méteo'!$AJ$104,IF(B125='Données méteo'!$J$107,'Données méteo'!$AK$104,IF(B125='Données méteo'!$K$107,'Données méteo'!$AL$104,IF(B125='Données méteo'!$L$107,'Données méteo'!$AM$104,IF(B125='Données méteo'!$M$107,'Données méteo'!$AN$104,IF(B125='Données méteo'!$N$107,'Données méteo'!$AO$104,IF(B125='Données méteo'!$O$107,'Données méteo'!$AP$104,'Données méteo'!$AQ$104))))))))))) -> 116.6045175 | BT125: =BS125/31*VLOOKUP(F125,'Données méteo'!$C$108:$P$131,3,FALSE) -> 0.9403590117 | BU125: 0.655 | BV125: 0.2853590117 | BX125: 0.075 | BY125: 0.8653590117 | BZ125: 0.58
A126: 4 | B126: Janvier | C126: 4 Janvier | D126: 85 | E126: Jeudi | F126: 13 | H126: 1 | I126: 1 | J126: 0 | K126: 0 | L126: 0 | M126: 1 | N126: 0 | O126: 0 | P126: 1 | Q126: 1 | R126: 1 | S126: 580 | T126: 1 | U126: 1 | V126: 1 | W126: 0 | X126: 0 | Y126: 0 | Z126: 0 | AA126: 1 | AB126: 1 | AC126: 0 | AD126: 1 | AE126: 1 | AF126: 1 | AG126: 0 | AH126: 1 | AI126: 1 | AJ126: 1 | AK126: 75 | AL126: 1 | AM126: 1 | AN126: 1 | AO126: 0 | AP126: 1 | AQ126: 0 | AR126: 0 | AS126: 0 | AT126: 1 | AU126: 0 | AV126: 0 | AW126: 0 | AX126: 1 | AY126: 0 | AZ126: 0 | BA126: 0 | BB126: 1 | BC126: 1 | BD126: 0 | BE126: 0 | BF126: 1 | BG126: 0 | BH126: 1 | BI126: 0 | BJ126: 1 | BK126: 1 | BL126: 0 | BM126: 0 | BN126: 0 | BO126: 0 | BP126: 0 | BQ126: 0 | BR126: 0.655 | BS126: =IF(B126='Données méteo'!$E$107,'Données méteo'!$AF$104,IF(B126='Données méteo'!$F$107,'Données méteo'!$AG$104,IF(B126='Données méteo'!$G$107,'Données méteo'!$AH$104,IF(B126='Données méteo'!$H$107,'Données méteo'!$AI$104,IF(B126='Données méteo'!$I$107,'Données méteo'!$AJ$104,IF(B126='Données méteo'!$J$107,'Données méteo'!$AK$104,IF(B126='Données méteo'!$K$107,'Données méteo'!$AL$104,IF(B126='Données méteo'!$L$107,'Données méteo'!$AM$104,IF(B126='Données méteo'!$M$107,'Données méteo'!$AN$104,IF(B126='Données méteo'!$N$107,'Données méteo'!$AO$104,IF(B126='Données méteo'!$O$107,'Données méteo'!$AP$104,'Données méteo'!$AQ$104))))))))))) -> 116.6045175 | BT126: =BS126/31*VLOOKUP(F126,'Données méteo'!$C$108:$P$131,3,FALSE) -> 0.8275159303 | BU126: 0.655 | BV126: 0.1725159303 | BX126: 0.075 | BY126: 0.7525159303 | BZ126: 0.58
A127: 4 | B127: Janvier | C127: 4 Janvier | D127: 86 | E127: Jeudi | F127: 14 | H127: 1 | I127: 1 | J127: 0 | K127: 0 | L127: 0 | M127: 1 | N127: 1 | O127: 0 | P127: 1 | Q127: 1 | R127: 1 | S127: 580 | T127: 1 | U127: 1 | V127: 1 | W127: 0 | X127: 0 | Y127: 0 | Z127: 0 | AA127: 1 | AB127: 1 | AC127: 0 | AD127: 1 | AE127: 1 | AF127: 1 | AG127: 0 | AH127: 1 | AI127: 1 | AJ127: 1 | AK127: 75 | AL127: 1 | AM127: 1 | AN127: 1 | AO127: 0 | AP127: 1 | AQ127: 0 | AR127: 1 | AS127: 0 | AT127: 1 | AU127: 0 | AV127: 0 | AW127: 0 | AX127: 1 | AY127: 0 | AZ127: 0 | BA127: 0 | BB127: 1 | BC127: 1 | BD127: 0 | BE127: 0 | BF127: 1 | BG127: 0 | BH127: 0 | BI127: 0 | BJ127: 1 | BK127: 1 | BL127: 0 | BM127: 0 | BN127: 0 | BO127: 0 | BP127: 0 | BQ127: 0 | BR127: 0.655 | BS127: =IF(B127='Données méteo'!$E$107,'Données méteo'!$AF$104,IF(B127='Données méteo'!$F$107,'Données méteo'!$AG$104,IF(B127='Données méteo'!$G$107,'Données méteo'!$AH$104,IF(B127='Données méteo'!$H$107,'Données méteo'!$AI$104,IF(B127='Données méteo'!$I$107,'Données méteo'!$AJ$104,IF(B127='Données méteo'!$J$107,'Données méteo'!$AK$104,IF(B127='Données méteo'!$K$107,'Données méteo'!$AL$104,IF(B127='Données méteo'!$L$107,'Données méteo'!$AM$104,IF(B127='Données méteo'!$M$107,'Données méteo'!$AN$104,IF(B127='Données méteo'!$N$107,'Données méteo'!$AO$104,IF(B127='Données méteo'!$O$107,'Données méteo'!$AP$104,'Données méteo'!$AQ$104))))))))))) -> 116.6045175 | BT127: =BS127/31*VLOOKUP(F127,'Données méteo'!$C$108:$P$131,3,FALSE) -> 0.3761436047 | BU127: 0.3761436047 | BV127: 0 | BX127: 0.075 | BY127: 0.3011436047 | BZ127: 0.3011436047
A128: 4 | B128: Janvier | C128: 4 Janvier | D128: 87 | E128: Jeudi | F128: 15 | H128: 1 | I128: 1 | J128: 0 | K128: 0 | L128: 0 | M128: 1 | N128: 1 | O128: 0 | P128: 1 | Q128: 1 | R128: 1 | S128: 580 | T128: 1 | U128: 1 | V128: 1 | W128: 0 | X128: 0 | Y128: 0 | Z128: 0 | AA128: 1 | AB128: 1 | AC128: 0 | AD128: 1 | AE128: 1 | AF128: 1 | AG128: 0 | AH128: 1 | AI128: 1 | AJ128: 1 | AK128: 75 | AL128: 1 | AM128: 1 | AN128: 1 | AO128: 0 | AP128: 1 | AQ128: 0 | AR128: 1 | AS128: 0 | AT128: 1 | AU128: 0 | AV128: 0 | AW128: 0 | AX128: 1 | AY128: 0 | AZ128: 0 | BA128: 0 | BB128: 1 | BC128: 1 | BD128: 0 | BE128: 0 | BF128: 1 | BG128: 0 | BH128: 0 | BI128: 0 | BJ128: 1 | BK128: 1 | BL128: 0 | BM128: 0 | BN128: 0 | BO128: 0 | BP128: 0 | BQ128: 0 | BR128: 0.655 | BS128: =IF(B128='Données méteo'!$E$107,'Données méteo'!$AF$104,IF(B128='Données méteo'!$F$107,'Données méteo'!$AG$104,IF(B128='Données méteo'!$G$107,'Données méteo'!$AH$104,IF(B128='Données méteo'!$H$107,'Données méteo'!$AI$104,IF(B128='Données méteo'!$I$107,'Données méteo'!$AJ$104,IF(B128='Données méteo'!$J$107,'Données méteo'!$AK$104,IF(B128='Données méteo'!$K$107,'Données méteo'!$AL$104,IF(B128='Données méteo'!$L$107,'Données méteo'!$AM$104,IF(B128='Données méteo'!$M$107,'Données méteo'!$AN$104,IF(B128='Données méteo'!$N$107,'Données méteo'!$AO$104,IF(B128='Données méteo'!$O$107,'Données méteo'!$AP$104,'Données méteo'!$AQ$104))))))))))) -> 116.6045175 | BT128: =BS128/31*VLOOKUP(F128,'Données méteo'!$C$108:$P$131,3,FALSE) -> 0.1880718023 | BU128: 0.1880718023 | BV128: 0 | BX128: 0.075 | BY128: 0.1130718023 | BZ128: 0.1130718023
A129: 4 | B129: Janvier | C129: 4 Janvier | D129: 88 | E129: Jeudi | F129: 16 | H129: 1 | I129: 1 | J129: 1 | K129: 900 | L129: 0 | M129: 1 | N129: 1 | O129: 0 | P129: 1 | Q129: 1 | R129: 1 | S129: 580 | T129: 1 | U129: 1 | V129: 1 | W129: 0 | X129: 0 | Y129: 0 | Z129: 0 | AA129: 1 | AB129: 1 | AC129: 0 | AD129: 1 | AE129: 1 | AF129: 1 | AG129: 0 | AH129: 1 | AI129: 1 | AJ129: 1 | AK129: 75 | AL129: 1 | AM129: 1 | AN129: 1 | AO129: 0 | AP129: 1 | AQ129: 0 | AR129: 0 | AS129: 0 | AT129: 1 | AU129: 0 | AV129: 1 | AW129: 0 | AX129: 1 | AY129: 0 | AZ129: 1 | BA129: 0 | BB129: 1 | BC129: 1 | BD129: 0 | BE129: 0 | BF129: 1 | BG129: 0 | BH129: 0 | BI129: 0 | BJ129: 1 | BK129: 1 | BL129: 0 | BM129: 0 | BN129: 0 | BO129: 0 | BP129: 0 | BQ129: 0 | BR129: 1.555 | BS129: =IF(B129='Données méteo'!$E$107,'Données méteo'!$AF$104,IF(B129='Données méteo'!$F$107,'Données méteo'!$AG$104,IF(B129='Données méteo'!$G$107,'Données méteo'!$AH$104,IF(B129='Données méteo'!$H$107,'Données méteo'!$AI$104,IF(B129='Données méteo'!$I$107,'Données méteo'!$AJ$104,IF(B129='Données méteo'!$J$107,'Données méteo'!$AK$104,IF(B129='Données méteo'!$K$107,'Données méteo'!$AL$104,IF(B129='Données méteo'!$L$107,'Données méteo'!$AM$104,IF(B129='Données méteo'!$M$107,'Données méteo'!$AN$104,IF(B129='Données méteo'!$N$107,'Données méteo'!$AO$104,IF(B129='Données méteo'!$O$107,'Données méteo'!$AP$104,'Données méteo'!$AQ$104))))))))))) -> 116.6045175 | BT129: =BS129/31*VLOOKUP(F129,'Données méteo'!$C$108:$P$131,3,FALSE) -> 0.1128430814 | BU129: 0.1128430814 | BV129: 0 | BX129: 0.975 | BY129: 0 | BZ129: 0
A130: 4 | B130: Janvier | C130: 4 Janvier | D130: 89 | E130: Jeudi | F130: 17 | H130: 1 | I130: 1 | J130: 1 | K130: 900 | L130: 0 | M130: 1 | N130: 1 | O130: 0 | P130: 1 | Q130: 1 | R130: 1 | S130: 580 | T130: 1 | U130: 1 | V130: 1 | W130: 0 | X130: 0 | Y130: 0 | Z130: 0 | AA130: 1 | AB130: 1 | AC130: 0 | AD130: 1 | AE130: 1 | AF130: 1 | AG130: 0 | AH130: 1 | AI130: 1 | AJ130: 1 | AK130: 75 | AL130: 1 | AM130: 1 | AN130: 1 | AO130: 0 | AP130: 1 | AQ130: 0 | AR130: 0 | AS130: 0 | AT130: 1 | AU130: 0 | AV130: 1 | AW130: 0 | AX130: 1 | AY130: 0 | AZ130: 1 | BA130: 0 | BB130: 1 | BC130: 1 | BD130: 0 | BE130: 0 | BF130: 1 | BG130: 0 | BH130: 0 | BI130: 0 | BJ130: 1 | BK130: 1 | BL130: 0 | BM130: 0 | BN130: 0 | BO130: 0 | BP130: 0 | BQ130: 0 | BR130: 1.555 | BS130: =IF(B130='Données méteo'!$E$107,'Données méteo'!$AF$104,IF(B130='Données méteo'!$F$107,'Données méteo'!$AG$104,IF(B130='Données méteo'!$G$107,'Données méteo'!$AH$104,IF(B130='Données méteo'!$H$107,'Données méteo'!$AI$104,IF(B130='Données méteo'!$I$107,'Données méteo'!$AJ$104,IF(B130='Données méteo'!$J$107,'Données méteo'!$AK$104,IF(B130='Données méteo'!$K$107,'Données méteo'!$AL$104,IF(B130='Données méteo'!$L$107,'Données méteo'!$AM$104,IF(B130='Données méteo'!$M$107,'Données méteo'!$AN$104,IF(B130='Données méteo'!$N$107,'Données méteo'!$AO$104,IF(B130='Données méteo'!$O$107,'Données méteo'!$AP$104,'Données méteo'!$AQ$104))))))))))) -> 116.6045175 | BT130: =BS130/31*VLOOKUP(F130,'Données méteo'!$C$108:$P$131,3,FALSE) -> 0.03761436047 | BU130: 0.03761436047 | BV130: 0 | BX130: 0.975 | BY130: 0 | BZ130: 0
A131: 4 | B131: Janvier | C131: 4 Janvier | D131: 90 | E131: Jeudi | F131: 18 | H131: 1 | I131: 1 | J131: 1 | K131: 900 | L131: 0 | M131: 1 | N131: 1 | O131: 0 | P131: 1 | Q131: 1 | R131: 1 | S131: 580 | T131: 1 | U131: 1 | V131: 1 | W131: 0 | X131: 0 | Y131: 0 | Z131: 0 | AA131: 1 | AB131: 1 | AC131: 0 | AD131: 1 | AE131: 1 | AF131: 1 | AG131: 0 | AH131: 1 | AI131: 1 | AJ131: 1 | AK131: 75 | AL131: 1 | AM131: 1 | AN131: 1 | AO131: 0 | AP131: 1 | AQ131: 0 | AR131: 0 | AS131: 0 | AT131: 1 | AU131: 0 | AV131: 0 | AW131: 0 | AX131: 1 | AY131: 0 | AZ131: 0 | BA131: 0 | BB131: 1 | BC131: 1 | BD131: 1 | BE131: 1500 | BF131: 1 | BG131: 0 | BH131: 0 | BI131: 0 | BJ131: 1 | BK131: 1 | BL131: 0 | BM131: 0 | BN131: 0 | BO131: 0 | BP131: 0 | BQ131: 0 | BR131: 3.055 | BS131: =IF(B131='Données méteo'!$E$107,'Données méteo'!$AF$104,IF(B131='Données méteo'!$F$107,'Données méteo'!$AG$104,IF(B131='Données méteo'!$G$107,'Données méteo'!$AH$104,IF(B131='Données méteo'!$H$107,'Données méteo'!$AI$104,IF(B131='Données méteo'!$I$107,'Données méteo'!$AJ$104,IF(B131='Données méteo'!$J$107,'Données méteo'!$AK$104,IF(B131='Données méteo'!$K$107,'Données méteo'!$AL$104,IF(B131='Données méteo'!$L$107,'Données méteo'!$AM$104,IF(B131='Données méteo'!$M$107,'Données méteo'!$AN$104,IF(B131='Données méteo'!$N$107,'Données méteo'!$AO$104,IF(B131='Données méteo'!$O$107,'Données méteo'!$AP$104,'Données méteo'!$AQ$104))))))))))) -> 116.6045175 | BT131: =BS131/31*VLOOKUP(F131,'Données méteo'!$C$108:$P$131,3,FALSE) -> 0 | BU131: 0 | BV131: 0 | BX131: 2.475 | BY131: 0 | BZ131: 0
A132: 4 | B132: Janvier | C132: 4 Janvier | D132: 91 | E132: Jeudi | F132: 19 | H132: 1 | I132: 1 | J132: 1 | K132: 900 | L132: 0 | M132: 1 | N132: 1 | O132: 0 | P132: 1 | Q132: 1 | R132: 1 | S132: 580 | T132: 1 | U132: 1 | V132: 1 | W132: 0 | X132: 0 | Y132: 0 | Z132: 0 | AA132: 1 | AB132: 1 | AC132: 0 | AD132: 1 | AE132: 1 | AF132: 1 | AG132: 0 | AH132: 1 | AI132: 1 | AJ132: 1 | AK132: 75 | AL132: 1 | AM132: 1 | AN132: 1 | AO132: 0 | AP132: 1 | AQ132: 0 | AR132: 0 | AS132: 0 | AT132: 1 | AU132: 0 | AV132: 0 | AW132: 0 | AX132: 1 | AY132: 0 | AZ132: 0 | BA132: 0 | BB132: 1 | BC132: 1 | BD132: 1 | BE132: 1500 | BF132: 1 | BG132: 0 | BH132: 0 | BI132: 0 | BJ132: 1 | BK132: 1 | BL132: 0 | BM132: 0 | BN132: 0 | BO132: 0 | BP132: 0 | BQ132: 0 | BR132: 3.055 | BS132: =IF(B132='Données méteo'!$E$107,'Données méteo'!$AF$104,IF(B132='Données méteo'!$F$107,'Données méteo'!$AG$104,IF(B132='Données méteo'!$G$107,'Données méteo'!$AH$104,IF(B132='Données méteo'!$H$107,'Données méteo'!$AI$104,IF(B132='Données méteo'!$I$107,'Données méteo'!$AJ$104,IF(B132='Données méteo'!$J$107,'Données méteo'!$AK$104,IF(B132='Données méteo'!$K$107,'Données méteo'!$AL$104,IF(B132='Données méteo'!$L$107,'Données méteo'!$AM$104,IF(B132='Données méteo'!$M$107,'Données méteo'!$AN$104,IF(B132='Données méteo'!$N$107,'Données méteo'!$AO$104,IF(B132='Données méteo'!$O$107,'Données méteo'!$AP$104,'Données méteo'!$AQ$104))))))))))) -> 116.6045175 | BT132: =BS132/31*VLOOKUP(F132,'Données méteo'!$C$108:$P$131,3,FALSE) -> 0 | BU132: 0 | BV132: 0 | BX132: 2.475 | BY132: 0 | BZ132: 0
A133: 4 | B133: Janvier | C133: 4 Janvier | D133: 92 | E133: Jeudi | F133: 20 | H133: 1 | I133: 1 | J133: 1 | K133: 900 | L133: 0 | M133: 1 | N133: 1 | O133: 0 | P133: 1 | Q133: 1 | R133: 0 | S133: 0 | T133: 1 | U133: 1 | V133: 1 | W133: 0 | X133: 0 | Y133: 0 | Z133: 0 | AA133: 1 | AB133: 1 | AC133: 0 | AD133: 1 | AE133: 1 | AF133: 1 | AG133: 0 | AH133: 1 | AI133: 1 | AJ133: 1 | AK133: 75 | AL133: 1 | AM133: 1 | AN133: 1 | AO133: 0 | AP133: 1 | AQ133: 0 | AR133: 0 | AS133: 0 | AT133: 1 | AU133: 0 | AV133: 0 | AW133: 0 | AX133: 1 | AY133: 0 | AZ133: 0 | BA133: 0 | BB133: 1 | BC133: 1 | BD133: 0 | BE133: 0 | BF133: 1 | BG133: 0 | BH133: 0 | BI133: 0 | BJ133: 1 | BK133: 1 | BL133: 1 | BM133: 100 | BN133: 0 | BO133: 0 | BP133: 0 | BQ133: 0 | BR133: 1.075 | BS133: =IF(B133='Données méteo'!$E$107,'Données méteo'!$AF$104,IF(B133='Données méteo'!$F$107,'Données méteo'!$AG$104,IF(B133='Données méteo'!$G$107,'Données méteo'!$AH$104,IF(B133='Données méteo'!$H$107,'Données méteo'!$AI$104,IF(B133='Données méteo'!$I$107,'Données méteo'!$AJ$104,IF(B133='Données méteo'!$J$107,'Données méteo'!$AK$104,IF(B133='Données méteo'!$K$107,'Données méteo'!$AL$104,IF(B133='Données méteo'!$L$107,'Données méteo'!$AM$104,IF(B133='Données méteo'!$M$107,'Données méteo'!$AN$104,IF(B133='Données méteo'!$N$107,'Données méteo'!$AO$104,IF(B133='Données méteo'!$O$107,'Données méteo'!$AP$104,'Données méteo'!$AQ$104))))))))))) -> 116.6045175 | BT133: =BS133/31*VLOOKUP(F133,'Données méteo'!$C$108:$P$131,3,FALSE) -> 0 | BU133: 0 | BV133: 0 | BX133: 1.075 | BY133: 0 | BZ133: 0
A134: 4 | B134: Janvier | C134: 4 Janvier | D134: 93 | E134: Jeudi | F134: 21 | H134: 1 | I134: 1 | J134: 1 | K134: 900 | L134: 0 | M134: 1 | N134: 1 | O134: 0 | P134: 1 | Q134: 1 | R134: 0 | S134: 0 | T134: 1 | U134: 1 | V134: 1 | W134: 0 | X134: 0 | Y134: 0 | Z134: 0 | AA134: 1 | AB134: 1 | AC134: 0 | AD134: 1 | AE134: 1 | AF134: 1 | AG134: 0 | AH134: 1 | AI134: 1 | AJ134: 1 | AK134: 75 | AL134: 1 | AM134: 1 | AN134: 1 | AO134: 0 | AP134: 1 | AQ134: 0 | AR134: 0 | AS134: 0 | AT134: 1 | AU134: 0 | AV134: 0 | AW134: 0 | AX134: 1 | AY134: 0 | AZ134: 0 | BA134: 0 | BB134: 1 | BC134: 1 | BD134: 0 | BE134: 0 | BF134: 1 | BG134: 0 | BH134: 0 | BI134: 0 | BJ134: 1 | BK134: 1 | BL134: 1 | BM134: 100 | BN134: 0 | BO134: 0 | BP134: 0 | BQ134: 0 | BR134: 1.075 | BS134: =IF(B134='Données méteo'!$E$107,'Données méteo'!$AF$104,IF(B134='Données méteo'!$F$107,'Données méteo'!$AG$104,IF(B134='Données méteo'!$G$107,'Données méteo'!$AH$104,IF(B134='Données méteo'!$H$107,'Données méteo'!$AI$104,IF(B134='Données méteo'!$I$107,'Données méteo'!$AJ$104,IF(B134='Données méteo'!$J$107,'Données méteo'!$AK$104,IF(B134='Données méteo'!$K$107,'Données méteo'!$AL$104,IF(B134='Données méteo'!$L$107,'Données méteo'!$AM$104,IF(B134='Données méteo'!$M$107,'Données méteo'!$AN$104,IF(B134='Données méteo'!$N$107,'Données méteo'!$AO$104,IF(B134='Données méteo'!$O$107,'Données méteo'!$AP$104,'Données méteo'!$AQ$104))))))))))) -> 116.6045175 | BT134: =BS134/31*VLOOKUP(F134,'Données méteo'!$C$108:$P$131,3,FALSE) -> 0 | BU134: 0 | BV134: 0 | BX134: 1.075 | BY134: 0 | BZ134: 0
A135: 4 | B135: Janvier | C135: 4 Janvier | D135: 94 | E135: Jeudi | F135: 22 | H135: 1 | I135: 1 | J135: 0 | K135: 0 | L135: 0 | M135: 1 | N135: 0 | O135: 0 | P135: 1 | Q135: 1 | R135: 0 | S135: 0 | T135: 1 | U135: 1 | V135: 1 | W135: 0 | X135: 0 | Y135: 0 | Z135: 0 | AA135: 1 | AB135: 1 | AC135: 0 | AD135: 1 | AE135: 1 | AF135: 1 | AG135: 0 | AH135: 1 | AI135: 1 | AJ135: 1 | AK135: 75 | AL135: 1 | AM135: 1 | AN135: 1 | AO135: 0 | AP135: 1 | AQ135: 0 | AR135: 0 | AS135: 0 | AT135: 1 | AU135: 0 | AV135: 0 | AW135: 0 | AX135: 1 | AY135: 0 | AZ135: 0 | BA135: 0 | BB135: 1 | BC135: 1 | BD135: 0 | BE135: 0 | BF135: 1 | BG135: 0 | BH135: 0 | BI135: 0 | BJ135: 1 | BK135: 1 | BL135: 1 | BM135: 100 | BN135: 0 | BO135: 0 | BP135: 0 | BQ135: 0 | BR135: 0.175 | BS135: =IF(B135='Données méteo'!$E$107,'Données méteo'!$AF$104,IF(B135='Données méteo'!$F$107,'Données méteo'!$AG$104,IF(B135='Données méteo'!$G$107,'Données méteo'!$AH$104,IF(B135='Données méteo'!$H$107,'Données méteo'!$AI$104,IF(B135='Données méteo'!$I$107,'Données méteo'!$AJ$104,IF(B135='Données méteo'!$J$107,'Données méteo'!$AK$104,IF(B135='Données méteo'!$K$107,'Données méteo'!$AL$104,IF(B135='Données méteo'!$L$107,'Données méteo'!$AM$104,IF(B135='Données méteo'!$M$107,'Données méteo'!$AN$104,IF(B135='Données méteo'!$N$107,'Données méteo'!$AO$104,IF(B135='Données méteo'!$O$107,'Données méteo'!$AP$104,'Données méteo'!$AQ$104))))))))))) -> 116.6045175 | BT135: =BS135/31*VLOOKUP(F135,'Données méteo'!$C$108:$P$131,3,FALSE) -> 0 | BU135: 0 | BV135: 0 | BX135: 0.175 | BY135: 0 | BZ135: 0
A136: 4 | B136: Janvier | C136: 4 Janvier | D136: 95 | E136: Jeudi | F136: 23 | H136: 1 | I136: 1 | J136: 0 | K136: 0 | L136: 0 | M136: 1 | N136: 0 | O136: 0 | P136: 1 | Q136: 1 | R136: 0 | S136: 0 | T136: 1 | U136: 1 | V136: 1 | W136: 0 | X136: 0 | Y136: 0 | Z136: 0 | AA136: 1 | AB136: 1 | AC136: 0 | AD136: 1 | AE136: 1 | AF136: 1 | AG136: 0 | AH136: 1 | AI136: 1 | AJ136: 1 | AK136: 75 | AL136: 1 | AM136: 1 | AN136: 1 | AO136: 0 | AP136: 1 | AQ136: 0 | AR136: 0 | AS136: 0 | AT136: 1 | AU136: 0 | AV136: 0 | AW136: 0 | AX136: 1 | AY136: 0 | AZ136: 0 | BA136: 0 | BB136: 1 | BC136: 1 | BD136: 0 | BE136: 0 | BF136: 1 | BG136: 0 | BH136: 0 | BI136: 0 | BJ136: 1 | BK136: 1 | BL136: 1 | BM136: 100 | BN136: 0 | BO136: 0 | BP136: 0 | BQ136: 0 | BR136: 0.175 | BS136: =IF(B136='Données méteo'!$E$107,'Données méteo'!$AF$104,IF(B136='Données méteo'!$F$107,'Données méteo'!$AG$104,IF(B136='Données méteo'!$G$107,'Données méteo'!$AH$104,IF(B136='Données méteo'!$H$107,'Données méteo'!$AI$104,IF(B136='Données méteo'!$I$107,'Données méteo'!$AJ$104,IF(B136='Données méteo'!$J$107,'Données méteo'!$AK$104,IF(B136='Données méteo'!$K$107,'Données méteo'!$AL$104,IF(B136='Données méteo'!$L$107,'Données méteo'!$AM$104,IF(B136='Données méteo'!$M$107,'Données méteo'!$AN$104,IF(B136='Données méteo'!$N$107,'Données méteo'!$AO$104,IF(B136='Données méteo'!$O$107,'Données méteo'!$AP$104,'Données méteo'!$AQ$104))))))))))) -> 116.6045175 | BT136: =BS136/31*VLOOKUP(F136,'Données méteo'!$C$108:$P$131,3,FALSE) -> 0 | BU136: 0 | BV136: 0 | BX136: 0.175 | BY136: 0 | BZ136: 0
A137: 5 | B137: Janvier | C137: 5 Janvier | D137: 96 | E137: Vendredi | F137: 0 | H137: 1 | I137: 1 | J137: 0 | K137: 0 | L137: 0 | M137: 1 | N137: 0 | O137: 0 | P137: 1 | Q137: 1 | R137: 0 | S137: 0 | T137: 1 | U137: 1 | V137: 1 | W137: 0 | X137: 0 | Y137: 0 | Z137: 0 | AA137: 1 | AB137: 1 | AC137: 0 | AD137: 1 | AE137: 1 | AF137: 1 | AG137: 0 | AH137: 1 | AI137: 1 | AJ137: 1 | AK137: 75 | AL137: 1 | AM137: 1 | AN137: 1 | AO137: 0 | AP137: 1 | AQ137: 0 | AR137: 0 | AS137: 0 | AT137: 1 | AU137: 0 | AV137: 0 | AW137: 0 | AX137: 1 | AY137: 0 | AZ137: 0 | BA137: 0 | BB137: 1 | BC137: 1 | BD137: 0 | BE137: 0 | BF137: 1 | BG137: 1 | BH137: 0 | BI137: 0 | BJ137: 1 | BK137: 1 | BL137: 0 | BM137: 0 | BN137: 0 | BO137: 0 | BP137: 0 | BQ137: 0 | BR137: 0.075 | BS137: =IF(B137='Données méteo'!$E$107,'Données méteo'!$AF$104,IF(B137='Données méteo'!$F$107,'Données méteo'!$AG$104,IF(B137='Données méteo'!$G$107,'Données méteo'!$AH$104,IF(B137='Données méteo'!$H$107,'Données méteo'!$AI$104,IF(B137='Données méteo'!$I$107,'Données méteo'!$AJ$104,IF(B137='Données méteo'!$J$107,'Données méteo'!$AK$104,IF(B137='Données méteo'!$K$107,'Données méteo'!$AL$104,IF(B137='Données méteo'!$L$107,'Données méteo'!$AM$104,IF(B137='Données méteo'!$M$107,'Données méteo'!$AN$104,IF(B137='Données méteo'!$N$107,'Données méteo'!$AO$104,IF(B137='Données méteo'!$O$107,'Données méteo'!$AP$104,'Données méteo'!$AQ$104))))))))))) -> 116.6045175 | BT137: =BS137/31*VLOOKUP(F137,'Données méteo'!$C$108:$P$131,3,FALSE) -> 0 | BU137: 0 | BV137: 0 | BX137: 0.075 | BY137: 0 | BZ137: 0
A138: 5 | B138: Janvier | C138: 5 Janvier | D138: 97 | E138: Vendredi | F138: 1 | H138: 1 | I138: 1 | J138: 0 | K138: 0 | L138: 0 | M138: 1 | N138: 0 | O138: 0 | P138: 1 | Q138: 1 | R138: 0 | S138: 0 | T138: 1 | U138: 1 | V138: 1 | W138: 0 | X138: 0 | Y138: 0 | Z138: 0 | AA138: 1 | AB138: 1 | AC138: 0 | AD138: 1 | AE138: 1 | AF138: 1 | AG138: 0 | AH138: 1 | AI138: 1 | AJ138: 1 | AK138: 75 | AL138: 1 | AM138: 1 | AN138: 1 | AO138: 0 | AP138: 1 | AQ138: 0 | AR138: 0 | AS138: 0 | AT138: 1 | AU138: 0 | AV138: 0 | AW138: 0 | AX138: 1 | AY138: 0 | AZ138: 0 | BA138: 0 | BB138: 1 | BC138: 1 | BD138: 0 | BE138: 0 | BF138: 1 | BG138: 1 | BH138: 0 | BI138: 0 | BJ138: 1 | BK138: 1 | BL138: 0 | BM138: 0 | BN138: 0 | BO138: 0 | BP138: 0 | BQ138: 0 | BR138: 0.075 | BS138: =IF(B138='Données méteo'!$E$107,'Données méteo'!$AF$104,IF(B138='Données méteo'!$F$107,'Données méteo'!$AG$104,IF(B138='Données méteo'!$G$107,'Données méteo'!$AH$104,IF(B138='Données méteo'!$H$107,'Données méteo'!$AI$104,IF(B138='Données méteo'!$I$107,'Données méteo'!$AJ$104,IF(B138='Données méteo'!$J$107,'Données méteo'!$AK$104,IF(B138='Données méteo'!$K$107,'Données méteo'!$AL$104,IF(B138='Données méteo'!$L$107,'Données méteo'!$AM$104,IF(B138='Données méteo'!$M$107,'Données méteo'!$AN$104,IF(B138='Données méteo'!$N$107,'Données méteo'!$AO$104,IF(B138='Données méteo'!$O$107,'Données méteo'!$AP$104,'Données méteo'!$AQ$104))))))))))) -> 116.6045175 | BT138: =BS138/31*VLOOKUP(F138,'Données méteo'!$C$108:$P$131,3,FALSE) -> 0 | BU138: 0 | BV138: 0 | BX138: 0.075 | BY138: 0 | BZ138: 0
A139: 5 | B139: Janvier | C139: 5 Janvier | D139: 98 | E139: Vendredi | F139: 2 | H139: 1 | I139: 1 | J139: 0 | K139: 0 | L139: 0 | M139: 1 | N139: 0 | O139: 0 | P139: 1 | Q139: 1 | R139: 0 | S139: 0 | T139: 1 | U139: 1 | V139: 1 | W139: 0 | X139: 0 | Y139: 0 | Z139: 0 | AA139: 1 | AB139: 1 | AC139: 0 | AD139: 1 | AE139: 1 | AF139: 1 | AG139: 0 | AH139: 1 | AI139: 1 | AJ139: 1 | AK139: 75 | AL139: 1 | AM139: 1 | AN139: 1 | AO139: 0 | AP139: 1 | AQ139: 0 | AR139: 0 | AS139: 0 | AT139: 1 | AU139: 0 | AV139: 0 | AW139: 0 | AX139: 1 | AY139: 0 | AZ139: 0 | BA139: 0 | BB139: 1 | BC139: 1 | BD139: 0 | BE139: 0 | BF139: 1 | BG139: 1 | BH139: 0 | BI139: 0 | BJ139: 1 | BK139: 1 | BL139: 0 | BM139: 0 | BN139: 0 | BO139: 0 | BP139: 0 | BQ139: 0 | BR139: 0.075 | BS139: =IF(B139='Données méteo'!$E$107,'Données méteo'!$AF$104,IF(B139='Données méteo'!$F$107,'Données méteo'!$AG$104,IF(B139='Données méteo'!$G$107,'Données méteo'!$AH$104,IF(B139='Données méteo'!$H$107,'Données méteo'!$AI$104,IF(B139='Données méteo'!$I$107,'Données méteo'!$AJ$104,IF(B139='Données méteo'!$J$107,'Données méteo'!$AK$104,IF(B139='Données méteo'!$K$107,'Données méteo'!$AL$104,IF(B139='Données méteo'!$L$107,'Données méteo'!$AM$104,IF(B139='Données méteo'!$M$107,'Données méteo'!$AN$104,IF(B139='Données méteo'!$N$107,'Données méteo'!$AO$104,IF(B139='Données méteo'!$O$107,'Données méteo'!$AP$104,'Données méteo'!$AQ$104))))))))))) -> 116.6045175 | BT139: =BS139/31*VLOOKUP(F139,'Données méteo'!$C$108:$P$131,3,FALSE) -> 0 | BU139: 0 | BV139: 0 | BX139: 0.075 | BY139: 0 | BZ139: 0
A140: 5 | B140: Janvier | C140: 5 Janvier | D140: 99 | E140: Vendredi | F140: 3 | H140: 1 | I140: 1 | J140: 0 | K140: 0 | L140: 0 | M140: 1 | N140: 0 | O140: 0 | P140: 1 | Q140: 1 | R140: 0 | S140: 0 | T140: 1 | U140: 1 | V140: 1 | W140: 0 | X140: 0 | Y140: 0 | Z140: 0 | AA140: 1 | AB140: 1 | AC140: 0 | AD140: 1 | AE140: 1 | AF140: 1 | AG140: 0 | AH140: 1 | AI140: 1 | AJ140: 1 | AK140: 75 | AL140: 1 | AM140: 1 | AN140: 1 | AO140: 0 | AP140: 1 | AQ140: 0 | AR140: 0 | AS140: 0 | AT140: 1 | AU140: 0 | AV140: 0 | AW140: 0 | AX140: 1 | AY140: 0 | AZ140: 0 | BA140: 0 | BB140: 1 | BC140: 1 | BD140: 0 | BE140: 0 | BF140: 1 | BG140: 1 | BH140: 0 | BI140: 0 | BJ140: 1 | BK140: 1 | BL140: 0 | BM140: 0 | BN140: 0 | BO140: 0 | BP140: 0 | BQ140: 0 | BR140: 0.075 | BS140: =IF(B140='Données méteo'!$E$107,'Données méteo'!$AF$104,IF(B140='Données méteo'!$F$107,'Données méteo'!$AG$104,IF(B140='Données méteo'!$G$107,'Données méteo'!$AH$104,IF(B140='Données méteo'!$H$107,'Données méteo'!$AI$104,IF(B140='Données méteo'!$I$107,'Données méteo'!$AJ$104,IF(B140='Données méteo'!$J$107,'Données méteo'!$AK$104,IF(B140='Données méteo'!$K$107,'Données méteo'!$AL$104,IF(B140='Données méteo'!$L$107,'Données méteo'!$AM$104,IF(B140='Données méteo'!$M$107,'Données méteo'!$AN$104,IF(B140='Données méteo'!$N$107,'Données méteo'!$AO$104,IF(B140='Données méteo'!$O$107,'Données méteo'!$AP$104,'Données méteo'!$AQ$104))))))))))) -> 116.6045175 | BT140: =BS140/31*VLOOKUP(F140,'Données méteo'!$C$108:$P$131,3,FALSE) -> 0 | BU140: 0 | BV140: 0 | BX140: 0.075 | BY140: 0 | BZ140: 0
A141: 5 | B141: Janvier | C141: 5 Janvier | D141: 100 | E141: Vendredi | F141: 4 | H141: 1 | I141: 1 | J141: 0 | K141: 0 | L141: 0 | M141: 1 | N141: 0 | O141: 0 | P141: 1 | Q141: 1 | R141: 0 | S141: 0 | T141: 1 | U141: 1 | V141: 1 | W141: 0 | X141: 0 | Y141: 0 | Z141: 0 | AA141: 1 | AB141: 1 | AC141: 0 | AD141: 1 | AE141: 1 | AF141: 1 | AG141: 0 | AH141: 1 | AI141: 1 | AJ141: 1 | AK141: 75 | AL141: 1 | AM141: 1 | AN141: 1 | AO141: 0 | AP141: 1 | AQ141: 0 | AR141: 0 | AS141: 0 | AT141: 1 | AU141: 0 | AV141: 0 | AW141: 0 | AX141: 1 | AY141: 0 | AZ141: 0 | BA141: 0 | BB141: 1 | BC141: 1 | BD141: 0 | BE141: 0 | BF141: 1 | BG141: 1 | BH141: 0 | BI141: 0 | BJ141: 1 | BK141: 1 | BL141: 0 | BM141: 0 | BN141: 0 | BO141: 0 | BP141: 0 | BQ141: 0 | BR141: 0.075 | BS141: =IF(B141='Données méteo'!$E$107,'Données méteo'!$AF$104,IF(B141='Données méteo'!$F$107,'Données méteo'!$AG$104,IF(B141='Données méteo'!$G$107,'Données méteo'!$AH$104,IF(B141='Données méteo'!$H$107,'Données méteo'!$AI$104,IF(B141='Données méteo'!$I$107,'Données méteo'!$AJ$104,IF(B141='Données méteo'!$J$107,'Données méteo'!$AK$104,IF(B141='Données méteo'!$K$107,'Données méteo'!$AL$104,IF(B141='Données méteo'!$L$107,'Données méteo'!$AM$104,IF(B141='Données méteo'!$M$107,'Données méteo'!$AN$104,IF(B141='Données méteo'!$N$107,'Données méteo'!$AO$104,IF(B141='Données méteo'!$O$107,'Données méteo'!$AP$104,'Données méteo'!$AQ$104))))))))))) -> 116.6045175 | BT141: =BS141/31*VLOOKUP(F141,'Données méteo'!$C$108:$P$131,3,FALSE) -> 0 | BU141: 0 | BV141: 0 | BX141: 0.075 | BY141: 0 | BZ141: 0
A142: 5 | B142: Janvier | C142: 5 Janvier | D142: 101 | E142: Vendredi | F142: 5 | H142: 1 | I142: 1 | J142: 0 | K142: 0 | L142: 0 | M142: 1 | N142: 0 | O142: 0 | P142: 1 | Q142: 1 | R142: 0 | S142: 0 | T142: 1 | U142: 1 | V142: 1 | W142: 0 | X142: 0 | Y142: 0 | Z142: 0 | AA142: 1 | AB142: 1 | AC142: 0 | AD142: 1 | AE142: 1 | AF142: 1 | AG142: 0 | AH142: 1 | AI142: 1 | AJ142: 1 | AK142: 75 | AL142: 1 | AM142: 1 | AN142: 1 | AO142: 0 | AP142: 1 | AQ142: 0 | AR142: 0 | AS142: 0 | AT142: 1 | AU142: 0 | AV142: 0 | AW142: 0 | AX142: 1 | AY142: 0 | AZ142: 0 | BA142: 0 | BB142: 1 | BC142: 1 | BD142: 0 | BE142: 0 | BF142: 1 | BG142: 1 | BH142: 0 | BI142: 0 | BJ142: 1 | BK142: 1 | BL142: 0 | BM142: 0 | BN142: 0 | BO142: 0 | BP142: 0 | BQ142: 0 | BR142: 0.075 | BS142: =IF(B142='Données méteo'!$E$107,'Données méteo'!$AF$104,IF(B142='Données méteo'!$F$107,'Données méteo'!$AG$104,IF(B142='Données méteo'!$G$107,'Données méteo'!$AH$104,IF(B142='Données méteo'!$H$107,'Données méteo'!$AI$104,IF(B142='Données méteo'!$I$107,'Données méteo'!$AJ$104,IF(B142='Données méteo'!$J$107,'Données méteo'!$AK$104,IF(B142='Données méteo'!$K$107,'Données méteo'!$AL$104,IF(B142='Données méteo'!$L$107,'Données méteo'!$AM$104,IF(B142='Données méteo'!$M$107,'Données méteo'!$AN$104,IF(B142='Données méteo'!$N$107,'Données méteo'!$AO$104,IF(B142='Données méteo'!$O$107,'Données méteo'!$AP$104,'Données méteo'!$AQ$104))))))))))) -> 116.6045175 | BT142: =BS142/31*VLOOKUP(F142,'Données méteo'!$C$108:$P$131,3,FALSE) -> 0 | BU142: 0 | BV142: 0 | BX142: 0.075 | BY142: 0 | BZ142: 0
A143: 5 | B143: Janvier | C143: 5 Janvier | D143: 102 | E143: Vendredi | F143: 6 | H143: 1 | I143: 1 | J143: 1 | K143: 900 | L143: 0 | M143: 1 | N143: 0 | O143: 0 | P143: 1 | Q143: 1 | R143: 0 | S143: 0 | T143: 1 | U143: 1 | V143: 1 | W143: 0 | X143: 0 | Y143: 0 | Z143: 0 | AA143: 1 | AB143: 1 | AC143: 0 | AD143: 1 | AE143: 1 | AF143: 1 | AG143: 0 | AH143: 1 | AI143: 1 | AJ143: 1 | AK143: 75 | AL143: 1 | AM143: 1 | AN143: 1 | AO143: 0 | AP143: 1 | AQ143: 0 | AR143: 0 | AS143: 0 | AT143: 1 | AU143: 0 | AV143: 0 | AW143: 0 | AX143: 1 | AY143: 0 | AZ143: 0 | BA143: 0 | BB143: 1 | BC143: 1 | BD143: 0 | BE143: 0 | BF143: 1 | BG143: 1 | BH143: 0 | BI143: 0 | BJ143: 1 | BK143: 1 | BL143: 0 | BM143: 0 | BN143: 0 | BO143: 0 | BP143: 0 | BQ143: 0 | BR143: 0.975 | BS143: =IF(B143='Données méteo'!$E$107,'Données méteo'!$AF$104,IF(B143='Données méteo'!$F$107,'Données méteo'!$AG$104,IF(B143='Données méteo'!$G$107,'Données méteo'!$AH$104,IF(B143='Données méteo'!$H$107,'Données méteo'!$AI$104,IF(B143='Données méteo'!$I$107,'Données méteo'!$AJ$104,IF(B143='Données méteo'!$J$107,'Données méteo'!$AK$104,IF(B143='Données méteo'!$K$107,'Données méteo'!$AL$104,IF(B143='Données méteo'!$L$107,'Données méteo'!$AM$104,IF(B143='Données méteo'!$M$107,'Données méteo'!$AN$104,IF(B143='Données méteo'!$N$107,'Données méteo'!$AO$104,IF(B143='Données méteo'!$O$107,'Données méteo'!$AP$104,'Données méteo'!$AQ$104))))))))))) -> 116.6045175 | BT143: =BS143/31*VLOOKUP(F143,'Données méteo'!$C$108:$P$131,3,FALSE) -> 0 | BU143: 0 | BV143: 0 | BX143: 0.975 | BY143: 0 | BZ143: 0
A144: 5 | B144: Janvier | C144: 5 Janvier | D144: 103 | E144: Vendredi | F144: 7 | H144: 1 | I144: 1 | J144: 1 | K144: 900 | L144: 0 | M144: 1 | N144: 0 | O144: 0 | P144: 1 | Q144: 1 | R144: 0 | S144: 0 | T144: 1 | U144: 1 | V144: 1 | W144: 0 | X144: 0 | Y144: 0 | Z144: 0 | AA144: 1 | AB144: 1 | AC144: 0 | AD144: 1 | AE144: 1 | AF144: 1 | AG144: 0 | AH144: 1 | AI144: 1 | AJ144: 1 | AK144: 75 | AL144: 1 | AM144: 1 | AN144: 1 | AO144: 0 | AP144: 1 | AQ144: 0 | AR144: 0 | AS144: 0 | AT144: 1 | AU144: 0 | AV144: 0 | AW144: 0 | AX144: 1 | AY144: 0 | AZ144: 0 | BA144: 0 | BB144: 1 | BC144: 1 | BD144: 0 | BE144: 0 | BF144: 1 | BG144: 1 | BH144: 0 | BI144: 0 | BJ144: 1 | BK144: 1 | BL144: 0 | BM144: 0 | BN144: 0 | BO144: 0 | BP144: 0 | BQ144: 0 | BR144: 0.975 | BS144: =IF(B144='Données méteo'!$E$107,'Données méteo'!$AF$104,IF(B144='Données méteo'!$F$107,'Données méteo'!$AG$104,IF(B144='Données méteo'!$G$107,'Données méteo'!$AH$104,IF(B144='Données méteo'!$H$107,'Données méteo'!$AI$104,IF(B144='Données méteo'!$I$107,'Données méteo'!$AJ$104,IF(B144='Données méteo'!$J$107,'Données méteo'!$AK$104,IF(B144='Données méteo'!$K$107,'Données méteo'!$AL$104,IF(B144='Données méteo'!$L$107,'Données méteo'!$AM$104,IF(B144='Données méteo'!$M$107,'Données méteo'!$AN$104,IF(B144='Données méteo'!$N$107,'Données méteo'!$AO$104,IF(B144='Données méteo'!$O$107,'Données méteo'!$AP$104,'Données méteo'!$AQ$104))))))))))) -> 116.6045175 | BT144: =BS144/31*VLOOKUP(F144,'Données méteo'!$C$108:$P$131,3,FALSE) -> 0 | BU144: 0 | BV144: 0 | BX144: 0.975 | BY144: 0 | BZ144: 0
A145: 5 | B145: Janvier | C145: 5 Janvier | D145: 104 | E145: Vendredi | F145: 8 | H145: 1 | I145: 1 | J145: 0 | K145: 0 | L145: 0 | M145: 1 | N145: 0 | O145: 0 | P145: 1 | Q145: 1 | R145: 1 | S145: 580 | T145: 1 | U145: 1 | V145: 1 | W145: 0 | X145: 0 | Y145: 0 | Z145: 0 | AA145: 1 | AB145: 1 | AC145: 0 | AD145: 1 | AE145: 1 | AF145: 1 | AG145: 0 | AH145: 1 | AI145: 1 | AJ145: 1 | AK145: 75 | AL145: 1 | AM145: 1 | AN145: 1 | AO145: 0 | AP145: 1 | AQ145: 0 | AR145: 0 | AS145: 0 | AT145: 1 | AU145: 0 | AV145: 0 | AW145: 0 | AX145: 1 | AY145: 0 | AZ145: 0 | BA145: 0 | BB145: 1 | BC145: 1 | BD145: 0 | BE145: 0 | BF145: 1 | BG145: 1 | BH145: 0 | BI145: 0 | BJ145: 1 | BK145: 1 | BL145: 0 | BM145: 0 | BN145: 0 | BO145: 0 | BP145: 0 | BQ145: 0 | BR145: 0.655 | BS145: =IF(B145='Données méteo'!$E$107,'Données méteo'!$AF$104,IF(B145='Données méteo'!$F$107,'Données méteo'!$AG$104,IF(B145='Données méteo'!$G$107,'Données méteo'!$AH$104,IF(B145='Données méteo'!$H$107,'Données méteo'!$AI$104,IF(B145='Données méteo'!$I$107,'Données méteo'!$AJ$104,IF(B145='Données méteo'!$J$107,'Données méteo'!$AK$104,IF(B145='Données méteo'!$K$107,'Données méteo'!$AL$104,IF(B145='Données méteo'!$L$107,'Données méteo'!$AM$104,IF(B145='Données méteo'!$M$107,'Données méteo'!$AN$104,IF(B145='Données méteo'!$N$107,'Données méteo'!$AO$104,IF(B145='Données méteo'!$O$107,'Données méteo'!$AP$104,'Données méteo'!$AQ$104))))))))))) -> 116.6045175 | BT145: =BS145/31*VLOOKUP(F145,'Données méteo'!$C$108:$P$131,3,FALSE) -> 0 | BU145: 0 | BV145: 0 | BX145: 0.075 | BY145: 0 | BZ145: 0
A146: 5 | B146: Janvier | C146: 5 Janvier | D146: 105 | E146: Vendredi | F146: 9 | H146: 1 | I146: 1 | J146: 0 | K146: 0 | L146: 0 | M146: 1 | N146: 0 | O146: 0 | P146: 1 | Q146: 1 | R146: 1 | S146: 580 | T146: 1 | U146: 1 | V146: 1 | W146: 0 | X146: 0 | Y146: 0 | Z146: 0 | AA146: 1 | AB146: 1 | AC146: 0 | AD146: 1 | AE146: 1 | AF146: 1 | AG146: 0 | AH146: 1 | AI146: 1 | AJ146: 1 | AK146: 75 | AL146: 1 | AM146: 1 | AN146: 1 | AO146: 0 | AP146: 1 | AQ146: 0 | AR146: 0 | AS146: 0 | AT146: 1 | AU146: 0 | AV146: 0 | AW146: 0 | AX146: 1 | AY146: 0 | AZ146: 0 | BA146: 0 | BB146: 1 | BC146: 1 | BD146: 0 | BE146: 0 | BF146: 1 | BG146: 1 | BH146: 0 | BI146: 0 | BJ146: 1 | BK146: 1 | BL146: 0 | BM146: 0 | BN146: 0 | BO146: 0 | BP146: 0 | BQ146: 0 | BR146: 0.655 | BS146: =IF(B146='Données méteo'!$E$107,'Données méteo'!$AF$104,IF(B146='Données méteo'!$F$107,'Données méteo'!$AG$104,IF(B146='Données méteo'!$G$107,'Données méteo'!$AH$104,IF(B146='Données méteo'!$H$107,'Données méteo'!$AI$104,IF(B146='Données méteo'!$I$107,'Données méteo'!$AJ$104,IF(B146='Données méteo'!$J$107,'Données méteo'!$AK$104,IF(B146='Données méteo'!$K$107,'Données méteo'!$AL$104,IF(B146='Données méteo'!$L$107,'Données méteo'!$AM$104,IF(B146='Données méteo'!$M$107,'Données méteo'!$AN$104,IF(B146='Données méteo'!$N$107,'Données méteo'!$AO$104,IF(B146='Données méteo'!$O$107,'Données méteo'!$AP$104,'Données méteo'!$AQ$104))))))))))) -> 116.6045175 | BT146: =BS146/31*VLOOKUP(F146,'Données méteo'!$C$108:$P$131,3,FALSE) -> 0.1504574419 | BU146: 0.1504574419 | BV146: 0 | BX146: 0.075 | BY146: 0.07545744188 | BZ146: 0.07545744188
A147: 5 | B147: Janvier | C147: 5 Janvier | D147: 106 | E147: Vendredi | F147: 10 | H147: 1 | I147: 1 | J147: 0 | K147: 0 | L147: 0 | M147: 1 | N147: 0 | O147: 0 | P147: 1 | Q147: 1 | R147: 1 | S147: 580 | T147: 1 | U147: 1 | V147: 1 | W147: 0 | X147: 0 | Y147: 0 | Z147: 0 | AA147: 1 | AB147: 1 | AC147: 0 | AD147: 1 | AE147: 1 | AF147: 1 | AG147: 0 | AH147: 1 | AI147: 1 | AJ147: 1 | AK147: 75 | AL147: 1 | AM147: 1 | AN147: 1 | AO147: 0 | AP147: 1 | AQ147: 0 | AR147: 0 | AS147: 0 | AT147: 1 | AU147: 0 | AV147: 0 | AW147: 0 | AX147: 1 | AY147: 0 | AZ147: 0 | BA147: 0 | BB147: 1 | BC147: 1 | BD147: 0 | BE147: 0 | BF147: 1 | BG147: 1 | BH147: 0 | BI147: 0 | BJ147: 1 | BK147: 1 | BL147: 0 | BM147: 0 | BN147: 0 | BO147: 0 | BP147: 0 | BQ147: 0 | BR147: 0.655 | BS147: =IF(B147='Données méteo'!$E$107,'Données méteo'!$AF$104,IF(B147='Données méteo'!$F$107,'Données méteo'!$AG$104,IF(B147='Données méteo'!$G$107,'Données méteo'!$AH$104,IF(B147='Données méteo'!$H$107,'Données méteo'!$AI$104,IF(B147='Données méteo'!$I$107,'Données méteo'!$AJ$104,IF(B147='Données méteo'!$J$107,'Données méteo'!$AK$104,IF(B147='Données méteo'!$K$107,'Données méteo'!$AL$104,IF(B147='Données méteo'!$L$107,'Données méteo'!$AM$104,IF(B147='Données méteo'!$M$107,'Données méteo'!$AN$104,IF(B147='Données méteo'!$N$107,'Données méteo'!$AO$104,IF(B147='Données méteo'!$O$107,'Données méteo'!$AP$104,'Données méteo'!$AQ$104))))))))))) -> 116.6045175 | BT147: =BS147/31*VLOOKUP(F147,'Données méteo'!$C$108:$P$131,3,FALSE) -> 0.3761436047 | BU147: 0.3761436047 | BV147: 0 | BX147: 0.075 | BY147: 0.3011436047 | BZ147: 0.3011436047
A148: 5 | B148: Janvier | C148: 5 Janvier | D148: 107 | E148: Vendredi | F148: 11 | H148: 1 | I148: 1 | J148: 0 | K148: 0 | L148: 0 | M148: 1 | N148: 0 | O148: 0 | P148: 1 | Q148: 1 | R148: 1 | S148: 580 | T148: 1 | U148: 1 | V148: 1 | W148: 0 | X148: 0 | Y148: 0 | Z148: 0 | AA148: 1 | AB148: 1 | AC148: 0 | AD148: 1 | AE148: 1 | AF148: 1 | AG148: 0 | AH148: 1 | AI148: 1 | AJ148: 1 | AK148: 75 | AL148: 1 | AM148: 1 | AN148: 1 | AO148: 0 | AP148: 1 | AQ148: 0 | AR148: 0 | AS148: 0 | AT148: 1 | AU148: 0 | AV148: 0 | AW148: 0 | AX148: 1 | AY148: 0 | AZ148: 0 | BA148: 0 | BB148: 1 | BC148: 1 | BD148: 0 | BE148: 0 | BF148: 1 | BG148: 1 | BH148: 0 | BI148: 0 | BJ148: 1 | BK148: 1 | BL148: 0 | BM148: 0 | BN148: 0 | BO148: 0 | BP148: 0 | BQ148: 0 | BR148: 0.655 | BS148: =IF(B148='Données méteo'!$E$107,'Données méteo'!$AF$104,IF(B148='Données méteo'!$F$107,'Données méteo'!$AG$104,IF(B148='Données méteo'!$G$107,'Données méteo'!$AH$104,IF(B148='Données méteo'!$H$107,'Données méteo'!$AI$104,IF(B148='Données méteo'!$I$107,'Données méteo'!$AJ$104,IF(B148='Données méteo'!$J$107,'Données méteo'!$AK$104,IF(B148='Données méteo'!$K$107,'Données méteo'!$AL$104,IF(B148='Données méteo'!$L$107,'Données méteo'!$AM$104,IF(B148='Données méteo'!$M$107,'Données méteo'!$AN$104,IF(B148='Données méteo'!$N$107,'Données méteo'!$AO$104,IF(B148='Données méteo'!$O$107,'Données méteo'!$AP$104,'Données méteo'!$AQ$104))))))))))) -> 116.6045175 | BT148: =BS148/31*VLOOKUP(F148,'Données méteo'!$C$108:$P$131,3,FALSE) -> 0.7522872094 | BU148: 0.655 | BV148: 0.09728720938 | BX148: 0.075 | BY148: 0.6772872094 | BZ148: 0.58
A149: 5 | B149: Janvier | C149: 5 Janvier | D149: 108 | E149: Vendredi | F149: 12 | H149: 1 | I149: 1 | J149: 0 | K149: 0 | L149: 0 | M149: 1 | N149: 0 | O149: 0 | P149: 1 | Q149: 1 | R149: 1 | S149: 580 | T149: 1 | U149: 1 | V149: 1 | W149: 0 | X149: 0 | Y149: 0 | Z149: 0 | AA149: 1 | AB149: 1 | AC149: 0 | AD149: 1 | AE149: 1 | AF149: 1 | AG149: 0 | AH149: 1 | AI149: 1 | AJ149: 1 | AK149: 75 | AL149: 1 | AM149: 1 | AN149: 1 | AO149: 0 | AP149: 1 | AQ149: 0 | AR149: 0 | AS149: 0 | AT149: 1 | AU149: 0 | AV149: 0 | AW149: 0 | AX149: 1 | AY149: 0 | AZ149: 0 | BA149: 0 | BB149: 1 | BC149: 1 | BD149: 0 | BE149: 0 | BF149: 1 | BG149: 1 | BH149: 1 | BI149: 850 | BJ149: 1 | BK149: 1 | BL149: 0 | BM149: 0 | BN149: 0 | BO149: 0 | BP149: 0 | BQ149: 0 | BR149: 1.505 | BS149: =IF(B149='Données méteo'!$E$107,'Données méteo'!$AF$104,IF(B149='Données méteo'!$F$107,'Données méteo'!$AG$104,IF(B149='Données méteo'!$G$107,'Données méteo'!$AH$104,IF(B149='Données méteo'!$H$107,'Données méteo'!$AI$104,IF(B149='Données méteo'!$I$107,'Données méteo'!$AJ$104,IF(B149='Données méteo'!$J$107,'Données méteo'!$AK$104,IF(B149='Données méteo'!$K$107,'Données méteo'!$AL$104,IF(B149='Données méteo'!$L$107,'Données méteo'!$AM$104,IF(B149='Données méteo'!$M$107,'Données méteo'!$AN$104,IF(B149='Données méteo'!$N$107,'Données méteo'!$AO$104,IF(B149='Données méteo'!$O$107,'Données méteo'!$AP$104,'Données méteo'!$AQ$104))))))))))) -> 116.6045175 | BT149: =BS149/31*VLOOKUP(F149,'Données méteo'!$C$108:$P$131,3,FALSE) -> 0.9403590117 | BU149: 0.9403590117 | BV149: 0 | BX149: 0.925 | BY149: 0.01535901172 | BZ149: 0.01535901172
A150: 5 | B150: Janvier | C150: 5 Janvier | D150: 109 | E150: Vendredi | F150: 13 | H150: 1 | I150: 1 | J150: 0 | K150: 0 | L150: 0 | M150: 1 | N150: 0 | O150: 0 | P150: 1 | Q150: 1 | R150: 1 | S150: 580 | T150: 1 | U150: 1 | V150: 1 | W150: 0 | X150: 0 | Y150: 0 | Z150: 0 | AA150: 1 | AB150: 1 | AC150: 0 | AD150: 1 | AE150: 1 | AF150: 1 | AG150: 0 | AH150: 1 | AI150: 1 | AJ150: 1 | AK150: 75 | AL150: 1 | AM150: 1 | AN150: 1 | AO150: 0 | AP150: 1 | AQ150: 0 | AR150: 0 | AS150: 0 | AT150: 1 | AU150: 0 | AV150: 0 | AW150: 0 | AX150: 1 | AY150: 0 | AZ150: 0 | BA150: 0 | BB150: 1 | BC150: 1 | BD150: 0 | BE150: 0 | BF150: 1 | BG150: 1 | BH150: 1 | BI150: 850 | BJ150: 1 | BK150: 1 | BL150: 0 | BM150: 0 | BN150: 0 | BO150: 0 | BP150: 0 | BQ150: 0 | BR150: 1.505 | BS150: =IF(B150='Données méteo'!$E$107,'Données méteo'!$AF$104,IF(B150='Données méteo'!$F$107,'Données méteo'!$AG$104,IF(B150='Données méteo'!$G$107,'Données méteo'!$AH$104,IF(B150='Données méteo'!$H$107,'Données méteo'!$AI$104,IF(B150='Données méteo'!$I$107,'Données méteo'!$AJ$104,IF(B150='Données méteo'!$J$107,'Données méteo'!$AK$104,IF(B150='Données méteo'!$K$107,'Données méteo'!$AL$104,IF(B150='Données méteo'!$L$107,'Données méteo'!$AM$104,IF(B150='Données méteo'!$M$107,'Données méteo'!$AN$104,IF(B150='Données méteo'!$N$107,'Données méteo'!$AO$104,IF(B150='Données méteo'!$O$107,'Données méteo'!$AP$104,'Données méteo'!$AQ$104))))))))))) -> 116.6045175 | BT150: =BS150/31*VLOOKUP(F150,'Données méteo'!$C$108:$P$131,3,FALSE) -> 0.8275159303 | BU150: 0.8275159303 | BV150: 0 | BX150: 0.925 | BY150: 0 | BZ150: 0
A151: 5 | B151: Janvier | C151: 5 Janvier | D151: 110 | E151: Vendredi | F151: 14 | H151: 1 | I151: 1 | J151: 0 | K151: 0 | L151: 0 | M151: 1 | N151: 1 | O151: 0 | P151: 1 | Q151: 1 | R151: 1 | S151: 580 | T151: 1 | U151: 1 | V151: 1 | W151: 0 | X151: 0 | Y151: 0 | Z151: 0 | AA151: 1 | AB151: 1 | AC151: 0 | AD151: 1 | AE151: 1 | AF151: 1 | AG151: 0 | AH151: 1 | AI151: 1 | AJ151: 1 | AK151: 75 | AL151: 1 | AM151: 1 | AN151: 1 | AO151: 0 | AP151: 1 | AQ151: 0 | AR151: 1 | AS151: 0 | AT151: 1 | AU151: 0 | AV151: 0 | AW151: 0 | AX151: 1 | AY151: 0 | AZ151: 0 | BA151: 0 | BB151: 1 | BC151: 1 | BD151: 0 | BE151: 0 | BF151: 1 | BG151: 1 | BH151: 0 | BI151: 0 | BJ151: 1 | BK151: 1 | BL151: 0 | BM151: 0 | BN151: 0 | BO151: 0 | BP151: 0 | BQ151: 0 | BR151: 0.655 | BS151: =IF(B151='Données méteo'!$E$107,'Données méteo'!$AF$104,IF(B151='Données méteo'!$F$107,'Données méteo'!$AG$104,IF(B151='Données méteo'!$G$107,'Données méteo'!$AH$104,IF(B151='Données méteo'!$H$107,'Données méteo'!$AI$104,IF(B151='Données méteo'!$I$107,'Données méteo'!$AJ$104,IF(B151='Données méteo'!$J$107,'Données méteo'!$AK$104,IF(B151='Données méteo'!$K$107,'Données méteo'!$AL$104,IF(B151='Données méteo'!$L$107,'Données méteo'!$AM$104,IF(B151='Données méteo'!$M$107,'Données méteo'!$AN$104,IF(B151='Données méteo'!$N$107,'Données méteo'!$AO$104,IF(B151='Données méteo'!$O$107,'Données méteo'!$AP$104,'Données méteo'!$AQ$104))))))))))) -> 116.6045175 | BT151: =BS151/31*VLOOKUP(F151,'Données méteo'!$C$108:$P$131,3,FALSE) -> 0.3761436047 | BU151: 0.3761436047 | BV151: 0 | BX151: 0.075 | BY151: 0.3011436047 | BZ151: 0.3011436047
A152: 5 | B152: Janvier | C152: 5 Janvier | D152: 111 | E152: Vendredi | F152: 15 | H152: 1 | I152: 1 | J152: 0 | K152: 0 | L152: 0 | M152: 1 | N152: 1 | O152: 0 | P152: 1 | Q152: 1 | R152: 1 | S152: 580 | T152: 1 | U152: 1 | V152: 1 | W152: 0 | X152: 0 | Y152: 0 | Z152: 0 | AA152: 1 | AB152: 1 | AC152: 0 | AD152: 1 | AE152: 1 | AF152: 1 | AG152: 0 | AH152: 1 | AI152: 1 | AJ152: 1 | AK152: 75 | AL152: 1 | AM152: 1 | AN152: 1 | AO152: 0 | AP152: 1 | AQ152: 0 | AR152: 1 | AS152: 0 | AT152: 1 | AU152: 0 | AV152: 0 | AW152: 0 | AX152: 1 | AY152: 0 | AZ152: 0 | BA152: 0 | BB152: 1 | BC152: 1 | BD152: 0 | BE152: 0 | BF152: 1 | BG152: 1 | BH152: 0 | BI152: 0 | BJ152: 1 | BK152: 1 | BL152: 0 | BM152: 0 | BN152: 0 | BO152: 0 | BP152: 0 | BQ152: 0 | BR152: 0.655 | BS152: =IF(B152='Données méteo'!$E$107,'Données méteo'!$AF$104,IF(B152='Données méteo'!$F$107,'Données méteo'!$AG$104,IF(B152='Données méteo'!$G$107,'Données méteo'!$AH$104,IF(B152='Données méteo'!$H$107,'Données méteo'!$AI$104,IF(B152='Données méteo'!$I$107,'Données méteo'!$AJ$104,IF(B152='Données méteo'!$J$107,'Données méteo'!$AK$104,IF(B152='Données méteo'!$K$107,'Données méteo'!$AL$104,IF(B152='Données méteo'!$L$107,'Données méteo'!$AM$104,IF(B152='Données méteo'!$M$107,'Données méteo'!$AN$104,IF(B152='Données méteo'!$N$107,'Données méteo'!$AO$104,IF(B152='Données méteo'!$O$107,'Données méteo'!$AP$104,'Données méteo'!$AQ$104))))))))))) -> 116.6045175 | BT152: =BS152/31*VLOOKUP(F152,'Données méteo'!$C$108:$P$131,3,FALSE) -> 0.1880718023 | BU152: 0.1880718023 | BV152: 0 | BX152: 0.075 | BY152: 0.1130718023 | BZ152: 0.1130718023
A153: 5 | B153: Janvier | C153: 5 Janvier | D153: 112 | E153: Vendredi | F153: 16 | H153: 1 | I153: 1 | J153: 1 | K153: 900 | L153: 0 | M153: 1 | N153: 1 | O153: 0 | P153: 1 | Q153: 1 | R153: 1 | S153: 580 | T153: 1 | U153: 1 | V153: 1 | W153: 0 | X153: 0 | Y153: 0 | Z153: 0 | AA153: 1 | AB153: 1 | AC153: 0 | AD153: 1 | AE153: 1 | AF153: 1 | AG153: 0 | AH153: 1 | AI153: 1 | AJ153: 1 | AK153: 75 | AL153: 1 | AM153: 1 | AN153: 1 | AO153: 0 | AP153: 1 | AQ153: 0 | AR153: 0 | AS153: 0 | AT153: 1 | AU153: 0 | AV153: 1 | AW153: 0 | AX153: 1 | AY153: 0 | AZ153: 1 | BA153: 0 | BB153: 1 | BC153: 1 | BD153: 0 | BE153: 0 | BF153: 1 | BG153: 1 | BH153: 0 | BI153: 0 | BJ153: 1 | BK153: 1 | BL153: 0 | BM153: 0 | BN153: 0 | BO153: 0 | BP153: 0 | BQ153: 0 | BR153: 1.555 | BS153: =IF(B153='Données méteo'!$E$107,'Données méteo'!$AF$104,IF(B153='Données méteo'!$F$107,'Données méteo'!$AG$104,IF(B153='Données méteo'!$G$107,'Données méteo'!$AH$104,IF(B153='Données méteo'!$H$107,'Données méteo'!$AI$104,IF(B153='Données méteo'!$I$107,'Données méteo'!$AJ$104,IF(B153='Données méteo'!$J$107,'Données méteo'!$AK$104,IF(B153='Données méteo'!$K$107,'Données méteo'!$AL$104,IF(B153='Données méteo'!$L$107,'Données méteo'!$AM$104,IF(B153='Données méteo'!$M$107,'Données méteo'!$AN$104,IF(B153='Données méteo'!$N$107,'Données méteo'!$AO$104,IF(B153='Données méteo'!$O$107,'Données méteo'!$AP$104,'Données méteo'!$AQ$104))))))))))) -> 116.6045175 | BT153: =BS153/31*VLOOKUP(F153,'Données méteo'!$C$108:$P$131,3,FALSE) -> 0.1128430814 | BU153: 0.1128430814 | BV153: 0 | BX153: 0.975 | BY153: 0 | BZ153: 0
A154: 5 | B154: Janvier | C154: 5 Janvier | D154: 113 | E154: Vendredi | F154: 17 | H154: 1 | I154: 1 | J154: 1 | K154: 900 | L154: 0 | M154: 1 | N154: 1 | O154: 0 | P154: 1 | Q154: 1 | R154: 1 | S154: 580 | T154: 1 | U154: 1 | V154: 1 | W154: 0 | X154: 0 | Y154: 0 | Z154: 0 | AA154: 1 | AB154: 1 | AC154: 0 | AD154: 1 | AE154: 1 | AF154: 1 | AG154: 0 | AH154: 1 | AI154: 1 | AJ154: 1 | AK154: 75 | AL154: 1 | AM154: 1 | AN154: 1 | AO154: 0 | AP154: 1 | AQ154: 0 | AR154: 0 | AS154: 0 | AT154: 1 | AU154: 0 | AV154: 1 | AW154: 0 | AX154: 1 | AY154: 0 | AZ154: 1 | BA154: 0 | BB154: 1 | BC154: 1 | BD154: 0 | BE154: 0 | BF154: 1 | BG154: 1 | BH154: 0 | BI154: 0 | BJ154: 1 | BK154: 1 | BL154: 0 | BM154: 0 | BN154: 0 | BO154: 0 | BP154: 0 | BQ154: 0 | BR154: 1.555 | BS154: =IF(B154='Données méteo'!$E$107,'Données méteo'!$AF$104,IF(B154='Données méteo'!$F$107,'Données méteo'!$AG$104,IF(B154='Données méteo'!$G$107,'Données méteo'!$AH$104,IF(B154='Données méteo'!$H$107,'Données méteo'!$AI$104,IF(B154='Données méteo'!$I$107,'Données méteo'!$AJ$104,IF(B154='Données méteo'!$J$107,'Données méteo'!$AK$104,IF(B154='Données méteo'!$K$107,'Données méteo'!$AL$104,IF(B154='Données méteo'!$L$107,'Données méteo'!$AM$104,IF(B154='Données méteo'!$M$107,'Données méteo'!$AN$104,IF(B154='Données méteo'!$N$107,'Données méteo'!$AO$104,IF(B154='Données méteo'!$O$107,'Données méteo'!$AP$104,'Données méteo'!$AQ$104))))))))))) -> 116.6045175 | BT154: =BS154/31*VLOOKUP(F154,'Données méteo'!$C$108:$P$131,3,FALSE) -> 0.03761436047 | BU154: 0.03761436047 | BV154: 0 | BX154: 0.975 | BY154: 0 | BZ154: 0
A155: 5 | B155: Janvier | C155: 5 Janvier | D155: 114 | E155: Vendredi | F155: 18 | H155: 1 | I155: 1 | J155: 1 | K155: 900 | L155: 0 | M155: 1 | N155: 1 | O155: 0 | P155: 1 | Q155: 1 | R155: 1 | S155: 580 | T155: 1 | U155: 1 | V155: 1 | W155: 0 | X155: 0 | Y155: 0 | Z155: 0 | AA155: 1 | AB155: 1 | AC155: 0 | AD155: 1 | AE155: 1 | AF155: 1 | AG155: 0 | AH155: 1 | AI155: 1 | AJ155: 1 | AK155: 75 | AL155: 1 | AM155: 1 | AN155: 1 | AO155: 0 | AP155: 1 | AQ155: 0 | AR155: 0 | AS155: 0 | AT155: 1 | AU155: 0 | AV155: 0 | AW155: 0 | AX155: 1 | AY155: 0 | AZ155: 0 | BA155: 0 | BB155: 1 | BC155: 1 | BD155: 1 | BE155: 1500 | BF155: 1 | BG155: 1 | BH155: 0 | BI155: 0 | BJ155: 1 | BK155: 1 | BL155: 0 | BM155: 0 | BN155: 0 | BO155: 0 | BP155: 0 | BQ155: 0 | BR155: 3.055 | BS155: =IF(B155='Données méteo'!$E$107,'Données méteo'!$AF$104,IF(B155='Données méteo'!$F$107,'Données méteo'!$AG$104,IF(B155='Données méteo'!$G$107,'Données méteo'!$AH$104,IF(B155='Données méteo'!$H$107,'Données méteo'!$AI$104,IF(B155='Données méteo'!$I$107,'Données méteo'!$AJ$104,IF(B155='Données méteo'!$J$107,'Données méteo'!$AK$104,IF(B155='Données méteo'!$K$107,'Données méteo'!$AL$104,IF(B155='Données méteo'!$L$107,'Données méteo'!$AM$104,IF(B155='Données méteo'!$M$107,'Données méteo'!$AN$104,IF(B155='Données méteo'!$N$107,'Données méteo'!$AO$104,IF(B155='Données méteo'!$O$107,'Données méteo'!$AP$104,'Données méteo'!$AQ$104))))))))))) -> 116.6045175 | BT155: =BS155/31*VLOOKUP(F155,'Données méteo'!$C$108:$P$131,3,FALSE) -> 0 | BU155: 0 | BV155: 0 | BX155: 2.475 | BY155: 0 | BZ155: 0
A156: 5 | B156: Janvier | C156: 5 Janvier | D156: 115 | E156: Vendredi | F156: 19 | H156: 1 | I156: 1 | J156: 1 | K156: 900 | L156: 0 | M156: 1 | N156: 1 | O156: 0 | P156: 1 | Q156: 1 | R156: 1 | S156: 580 | T156: 1 | U156: 1 | V156: 1 | W156: 0 | X156: 0 | Y156: 0 | Z156: 0 | AA156: 1 | AB156: 1 | AC156: 0 | AD156: 1 | AE156: 1 | AF156: 1 | AG156: 0 | AH156: 1 | AI156: 1 | AJ156: 1 | AK156: 75 | AL156: 1 | AM156: 1 | AN156: 1 | AO156: 0 | AP156: 1 | AQ156: 0 | AR156: 0 | AS156: 0 | AT156: 1 | AU156: 0 | AV156: 0 | AW156: 0 | AX156: 1 | AY156: 0 | AZ156: 0 | BA156: 0 | BB156: 1 | BC156: 1 | BD156: 1 | BE156: 1500 | BF156: 1 | BG156: 1 | BH156: 0 | BI156: 0 | BJ156: 1 | BK156: 1 | BL156: 0 | BM156: 0 | BN156: 0 | BO156: 0 | BP156: 0 | BQ156: 0 | BR156: 3.055 | BS156: =IF(B156='Données méteo'!$E$107,'Données méteo'!$AF$104,IF(B156='Données méteo'!$F$107,'Données méteo'!$AG$104,IF(B156='Données méteo'!$G$107,'Données méteo'!$AH$104,IF(B156='Données méteo'!$H$107,'Données méteo'!$AI$104,IF(B156='Données méteo'!$I$107,'Données méteo'!$AJ$104,IF(B156='Données méteo'!$J$107,'Données méteo'!$AK$104,IF(B156='Données méteo'!$K$107,'Données méteo'!$AL$104,IF(B156='Données méteo'!$L$107,'Données méteo'!$AM$104,IF(B156='Données méteo'!$M$107,'Données méteo'!$AN$104,IF(B156='Données méteo'!$N$107,'Données méteo'!$AO$104,IF(B156='Données méteo'!$O$107,'Données méteo'!$AP$104,'Données méteo'!$AQ$104))))))))))) -> 116.6045175 | BT156: =BS156/31*VLOOKUP(F156,'Données méteo'!$C$108:$P$131,3,FALSE) -> 0 | BU156: 0 | BV156: 0 | BX156: 2.475 | BY156: 0 | BZ156: 0
A157: 5 | B157: Janvier | C157: 5 Janvier | D157: 116 | E157: Vendredi | F157: 20 | H157: 1 | I157: 1 | J157: 1 | K157: 900 | L157: 0 | M157: 1 | N157: 1 | O157: 0 | P157: 1 | Q157: 1 | R157: 0 | S157: 0 | T157: 1 | U157: 1 | V157: 1 | W157: 0 | X157: 0 | Y157: 0 | Z157: 0 | AA157: 1 | AB157: 1 | AC157: 0 | AD157: 1 | AE157: 1 | AF157: 1 | AG157: 0 | AH157: 1 | AI157: 1 | AJ157: 1 | AK157: 75 | AL157: 1 | AM157: 1 | AN157: 1 | AO157: 0 | AP157: 1 | AQ157: 0 | AR157: 0 | AS157: 0 | AT157: 1 | AU157: 0 | AV157: 0 | AW157: 0 | AX157: 1 | AY157: 0 | AZ157: 0 | BA157: 0 | BB157: 1 | BC157: 1 | BD157: 0 | BE157: 0 | BF157: 1 | BG157: 1 | BH157: 0 | BI157: 0 | BJ157: 1 | BK157: 1 | BL157: 1 | BM157: 100 | BN157: 0 | BO157: 0 | BP157: 0 | BQ157: 0 | BR157: 1.075 | BS157: =IF(B157='Données méteo'!$E$107,'Données méteo'!$AF$104,IF(B157='Données méteo'!$F$107,'Données méteo'!$AG$104,IF(B157='Données méteo'!$G$107,'Données méteo'!$AH$104,IF(B157='Données méteo'!$H$107,'Données méteo'!$AI$104,IF(B157='Données méteo'!$I$107,'Données méteo'!$AJ$104,IF(B157='Données méteo'!$J$107,'Données méteo'!$AK$104,IF(B157='Données méteo'!$K$107,'Données méteo'!$AL$104,IF(B157='Données méteo'!$L$107,'Données méteo'!$AM$104,IF(B157='Données méteo'!$M$107,'Données méteo'!$AN$104,IF(B157='Données méteo'!$N$107,'Données méteo'!$AO$104,IF(B157='Données méteo'!$O$107,'Données méteo'!$AP$104,'Données méteo'!$AQ$104))))))))))) -> 116.6045175 | BT157: =BS157/31*VLOOKUP(F157,'Données méteo'!$C$108:$P$131,3,FALSE) -> 0 | BU157: 0 | BV157: 0 | BX157: 1.075 | BY157: 0 | BZ157: 0
A158: 5 | B158: Janvier | C158: 5 Janvier | D158: 117 | E158: Vendredi | F158: 21 | H158: 1 | I158: 1 | J158: 1 | K158: 900 | L158: 0 | M158: 1 | N158: 1 | O158: 0 | P158: 1 | Q158: 1 | R158: 0 | S158: 0 | T158: 1 | U158: 1 | V158: 1 | W158: 0 | X158: 0 | Y158: 0 | Z158: 0 | AA158: 1 | AB158: 1 | AC158: 0 | AD158: 1 | AE158: 1 | AF158: 1 | AG158: 0 | AH158: 1 | AI158: 1 | AJ158: 1 | AK158: 75 | AL158: 1 | AM158: 1 | AN158: 1 | AO158: 0 | AP158: 1 | AQ158: 0 | AR158: 0 | AS158: 0 | AT158: 1 | AU158: 0 | AV158: 0 | AW158: 0 | AX158: 1 | AY158: 0 | AZ158: 0 | BA158: 0 | BB158: 1 | BC158: 1 | BD158: 0 | BE158: 0 | BF158: 1 | BG158: 1 | BH158: 0 | BI158: 0 | BJ158: 1 | BK158: 1 | BL158: 1 | BM158: 100 | BN158: 0 | BO158: 0 | BP158: 0 | BQ158: 0 | BR158: 1.075 | BS158: =IF(B158='Données méteo'!$E$107,'Données méteo'!$AF$104,IF(B158='Données méteo'!$F$107,'Données méteo'!$AG$104,IF(B158='Données méteo'!$G$107,'Données méteo'!$AH$104,IF(B158='Données méteo'!$H$107,'Données méteo'!$AI$104,IF(B158='Données méteo'!$I$107,'Données méteo'!$AJ$104,IF(B158='Données méteo'!$J$107,'Données méteo'!$AK$104,IF(B158='Données méteo'!$K$107,'Données méteo'!$AL$104,IF(B158='Données méteo'!$L$107,'Données méteo'!$AM$104,IF(B158='Données méteo'!$M$107,'Données méteo'!$AN$104,IF(B158='Données méteo'!$N$107,'Données méteo'!$AO$104,IF(B158='Données méteo'!$O$107,'Données méteo'!$AP$104,'Données méteo'!$AQ$104))))))))))) -> 116.6045175 | BT158: =BS158/31*VLOOKUP(F158,'Données méteo'!$C$108:$P$131,3,FALSE) -> 0 | BU158: 0 | BV158: 0 | BX158: 1.075 | BY158: 0 | BZ158: 0
A159: 5 | B159: Janvier | C159: 5 Janvier | D159: 118 | E159: Vendredi | F159: 22 | H159: 1 | I159: 1 | J159: 0 | K159: 0 | L159: 0 | M159: 1 | N159: 0 | O159: 0 | P159: 1 | Q159: 1 | R159: 0 | S159: 0 | T159: 1 | U159: 1 | V159: 1 | W159: 0 | X159: 0 | Y159: 0 | Z159: 0 | AA159: 1 | AB159: 1 | AC159: 0 | AD159: 1 | AE159: 1 | AF159: 1 | AG159: 0 | AH159: 1 | AI159: 1 | AJ159: 1 | AK159: 75 | AL159: 1 | AM159: 1 | AN159: 1 | AO159: 0 | AP159: 1 | AQ159: 0 | AR159: 0 | AS159: 0 | AT159: 1 | AU159: 0 | AV159: 0 | AW159: 0 | AX159: 1 | AY159: 0 | AZ159: 0 | BA159: 0 | BB159: 1 | BC159: 1 | BD159: 0 | BE159: 0 | BF159: 1 | BG159: 1 | BH159: 0 | BI159: 0 | BJ159: 1 | BK159: 1 | BL159: 1 | BM159: 100 | BN159: 0 | BO159: 0 | BP159: 0 | BQ159: 0 | BR159: 0.175 | BS159: =IF(B159='Données méteo'!$E$107,'Données méteo'!$AF$104,IF(B159='Données méteo'!$F$107,'Données méteo'!$AG$104,IF(B159='Données méteo'!$G$107,'Données méteo'!$AH$104,IF(B159='Données méteo'!$H$107,'Données méteo'!$AI$104,IF(B159='Données méteo'!$I$107,'Données méteo'!$AJ$104,IF(B159='Données méteo'!$J$107,'Données méteo'!$AK$104,IF(B159='Données méteo'!$K$107,'Données méteo'!$AL$104,IF(B159='Données méteo'!$L$107,'Données méteo'!$AM$104,IF(B159='Données méteo'!$M$107,'Données méteo'!$AN$104,IF(B159='Données méteo'!$N$107,'Données méteo'!$AO$104,IF(B159='Données méteo'!$O$107,'Données méteo'!$AP$104,'Données méteo'!$AQ$104))))))))))) -> 116.6045175 | BT159: =BS159/31*VLOOKUP(F159,'Données méteo'!$C$108:$P$131,3,FALSE) -> 0 | BU159: 0 | BV159: 0 | BX159: 0.175 | BY159: 0 | BZ159: 0
A160: 5 | B160: Janvier | C160: 5 Janvier | D160: 119 | E160: Vendredi | F160: 23 | H160: 1 | I160: 1 | J160: 0 | K160: 0 | L160: 0 | M160: 1 | N160: 0 | O160: 0 | P160: 1 | Q160: 1 | R160: 0 | S160: 0 | T160: 1 | U160: 1 | V160: 1 | W160: 0 | X160: 0 | Y160: 0 | Z160: 0 | AA160: 1 | AB160: 1 | AC160: 0 | AD160: 1 | AE160: 1 | AF160: 1 | AG160: 0 | AH160: 1 | AI160: 1 | AJ160: 1 | AK160: 75 | AL160: 1 | AM160: 1 | AN160: 1 | AO160: 0 | AP160: 1 | AQ160: 0 | AR160: 0 | AS160: 0 | AT160: 1 | AU160: 0 | AV160: 0 | AW160: 0 | AX160: 1 | AY160: 0 | AZ160: 0 | BA160: 0 | BB160: 1 | BC160: 1 | BD160: 0 | BE160: 0 | BF160: 1 | BG160: 1 | BH160: 0 | BI160: 0 | BJ160: 1 | BK160: 1 | BL160: 1 | BM160: 100 | BN160: 0 | BO160: 0 | BP160: 0 | BQ160: 0 | BR160: 0.175 | BS160: =IF(B160='Données méteo'!$E$107,'Données méteo'!$AF$104,IF(B160='Données méteo'!$F$107,'Données méteo'!$AG$104,IF(B160='Données méteo'!$G$107,'Données méteo'!$AH$104,IF(B160='Données méteo'!$H$107,'Données méteo'!$AI$104,IF(B160='Données méteo'!$I$107,'Données méteo'!$AJ$104,IF(B160='Données méteo'!$J$107,'Données méteo'!$AK$104,IF(B160='Données méteo'!$K$107,'Données méteo'!$AL$104,IF(B160='Données méteo'!$L$107,'Données méteo'!$AM$104,IF(B160='Données méteo'!$M$107,'Données méteo'!$AN$104,IF(B160='Données méteo'!$N$107,'Données méteo'!$AO$104,IF(B160='Données méteo'!$O$107,'Données méteo'!$AP$104,'Données méteo'!$AQ$104))))))))))) -> 116.6045175 | BT160: =BS160/31*VLOOKUP(F160,'Données méteo'!$C$108:$P$131,3,FALSE) -> 0 | BU160: 0 | BV160: 0 | BX160: 0.175 | BY160: 0 | BZ160: 0
A161: 6 | B161: Janvier | C161: 6 Janvier | D161: 120 | E161: Samedi | F161: 0 | H161: 1 | I161: 1 | J161: 0 | K161: 0 | L161: 0 | M161: 1 | N161: 0 | O161: 0 | P161: 1 | Q161: 1 | R161: 0 | S161: 0 | T161: 1 | U161: 1 | V161: 1 | W161: 0 | X161: 0 | Y161: 0 | Z161: 0 | AA161: 1 | AB161: 1 | AC161: 0 | AD161: 1 | AE161: 1 | AF161: 1 | AG161: 0 | AH161: 1 | AI161: 1 | AJ161: 1 | AK161: 75 | AL161: 1 | AM161: 1 | AN161: 1 | AO161: 0 | AP161: 1 | AQ161: 0 | AR161: 0 | AS161: 0 | AT161: 1 | AU161: 0 | AV161: 0 | AW161: 0 | AX161: 1 | AY161: 0 | AZ161: 0 | BA161: 0 | BB161: 1 | BC161: 1 | BD161: 0 | BE161: 0 | BF161: 1 | BG161: 0 | BH161: 0 | BI161: 0 | BJ161: 1 | BK161: 1 | BL161: 0 | BM161: 0 | BN161: 0 | BO161: 0 | BP161: 0 | BQ161: 0 | BR161: 0.075 | BS161: =IF(B161='Données méteo'!$E$107,'Données méteo'!$AF$104,IF(B161='Données méteo'!$F$107,'Données méteo'!$AG$104,IF(B161='Données méteo'!$G$107,'Données méteo'!$AH$104,IF(B161='Données méteo'!$H$107,'Données méteo'!$AI$104,IF(B161='Données méteo'!$I$107,'Données méteo'!$AJ$104,IF(B161='Données méteo'!$J$107,'Données méteo'!$AK$104,IF(B161='Données méteo'!$K$107,'Données méteo'!$AL$104,IF(B161='Données méteo'!$L$107,'Données méteo'!$AM$104,IF(B161='Données méteo'!$M$107,'Données méteo'!$AN$104,IF(B161='Données méteo'!$N$107,'Données méteo'!$AO$104,IF(B161='Données méteo'!$O$107,'Données méteo'!$AP$104,'Données méteo'!$AQ$104))))))))))) -> 116.6045175 | BT161: =BS161/31*VLOOKUP(F161,'Données méteo'!$C$108:$P$131,3,FALSE) -> 0 | BU161: 0 | BV161: 0 | BX161: 0.075 | BY161: 0 | BZ161: 0
A162: 6 | B162: Janvier | C162: 6 Janvier | D162: 121 | E162: Samedi | F162: 1 | H162: 1 | I162: 1 | J162: 0 | K162: 0 | L162: 0 | M162: 1 | N162: 0 | O162: 0 | P162: 1 | Q162: 1 | R162: 0 | S162: 0 | T162: 1 | U162: 1 | V162: 1 | W162: 0 | X162: 0 | Y162: 0 | Z162: 0 | AA162: 1 | AB162: 1 | AC162: 0 | AD162: 1 | AE162: 1 | AF162: 1 | AG162: 0 | AH162: 1 | AI162: 1 | AJ162: 1 | AK162: 75 | AL162: 1 | AM162: 1 | AN162: 1 | AO162: 0 | AP162: 1 | AQ162: 0 | AR162: 0 | AS162: 0 | AT162: 1 | AU162: 0 | AV162: 0 | AW162: 0 | AX162: 1 | AY162: 0 | AZ162: 0 | BA162: 0 | BB162: 1 | BC162: 1 | BD162: 0 | BE162: 0 | BF162: 1 | BG162: 0 | BH162: 0 | BI162: 0 | BJ162: 1 | BK162: 1 | BL162: 0 | BM162: 0 | BN162: 0 | BO162: 0 | BP162: 0 | BQ162: 0 | BR162: 0.075 | BS162: =IF(B162='Données méteo'!$E$107,'Données méteo'!$AF$104,IF(B162='Données méteo'!$F$107,'Données méteo'!$AG$104,IF(B162='Données méteo'!$G$107,'Données méteo'!$AH$104,IF(B162='Données méteo'!$H$107,'Données méteo'!$AI$104,IF(B162='Données méteo'!$I$107,'Données méteo'!$AJ$104,IF(B162='Données méteo'!$J$107,'Données méteo'!$AK$104,IF(B162='Données méteo'!$K$107,'Données méteo'!$AL$104,IF(B162='Données méteo'!$L$107,'Données méteo'!$AM$104,IF(B162='Données méteo'!$M$107,'Données méteo'!$AN$104,IF(B162='Données méteo'!$N$107,'Données méteo'!$AO$104,IF(B162='Données méteo'!$O$107,'Données méteo'!$AP$104,'Données méteo'!$AQ$104))))))))))) -> 116.6045175 | BT162: =BS162/31*VLOOKUP(F162,'Données méteo'!$C$108:$P$131,3,FALSE) -> 0 | BU162: 0 | BV162: 0 | BX162: 0.075 | BY162: 0 | BZ162: 0
A163: 6 | B163: Janvier | C163: 6 Janvier | D163: 122 | E163: Samedi | F163: 2 | H163: 1 | I163: 1 | J163: 0 | K163: 0 | L163: 0 | M163: 1 | N163: 0 | O163: 0 | P163: 1 | Q163: 1 | R163: 0 | S163: 0 | T163: 1 | U163: 1 | V163: 1 | W163: 0 | X163: 0 | Y163: 0 | Z163: 0 | AA163: 1 | AB163: 1 | AC163: 0 | AD163: 1 | AE163: 1 | AF163: 1 | AG163: 0 | AH163: 1 | AI163: 1 | AJ163: 1 | AK163: 75 | AL163: 1 | AM163: 1 | AN163: 1 | AO163: 0 | AP163: 1 | AQ163: 0 | AR163: 0 | AS163: 0 | AT163: 1 | AU163: 0 | AV163: 0 | AW163: 0 | AX163: 1 | AY163: 0 | AZ163: 0 | BA163: 0 | BB163: 1 | BC163: 1 | BD163: 0 | BE163: 0 | BF163: 1 | BG163: 0 | BH163: 0 | BI163: 0 | BJ163: 1 | BK163: 1 | BL163: 0 | BM163: 0 | BN163: 0 | BO163: 0 | BP163: 0 | BQ163: 0 | BR163: 0.075 | BS163: =IF(B163='Données méteo'!$E$107,'Données méteo'!$AF$104,IF(B163='Données méteo'!$F$107,'Données méteo'!$AG$104,IF(B163='Données méteo'!$G$107,'Données méteo'!$AH$104,IF(B163='Données méteo'!$H$107,'Données méteo'!$AI$104,IF(B163='Données méteo'!$I$107,'Données méteo'!$AJ$104,IF(B163='Données méteo'!$J$107,'Données méteo'!$AK$104,IF(B163='Données méteo'!$K$107,'Données méteo'!$AL$104,IF(B163='Données méteo'!$L$107,'Données méteo'!$AM$104,IF(B163='Données méteo'!$M$107,'Données méteo'!$AN$104,IF(B163='Données méteo'!$N$107,'Données méteo'!$AO$104,IF(B163='Données méteo'!$O$107,'Données méteo'!$AP$104,'Données méteo'!$AQ$104))))))))))) -> 116.6045175 | BT163: =BS163/31*VLOOKUP(F163,'Données méteo'!$C$108:$P$131,3,FALSE) -> 0 | BU163: 0 | BV163: 0 | BX163: 0.075 | BY163: 0 | BZ163: 0
A164: 6 | B164: Janvier | C164: 6 Janvier | D164: 123 | E164: Samedi | F164: 3 | H164: 1 | I164: 1 | J164: 0 | K164: 0 | L164: 0 | M164: 1 | N164: 0 | O164: 0 | P164: 1 | Q164: 1 | R164: 0 | S164: 0 | T164: 1 | U164: 1 | V164: 1 | W164: 0 | X164: 0 | Y164: 0 | Z164: 0 | AA164: 1 | AB164: 1 | AC164: 0 | AD164: 1 | AE164: 1 | AF164: 1 | AG164: 0 | AH164: 1 | AI164: 1 | AJ164: 1 | AK164: 75 | AL164: 1 | AM164: 1 | AN164: 1 | AO164: 0 | AP164: 1 | AQ164: 0 | AR164: 0 | AS164: 0 | AT164: 1 | AU164: 0 | AV164: 0 | AW164: 0 | AX164: 1 | AY164: 0 | AZ164: 0 | BA164: 0 | BB164: 1 | BC164: 1 | BD164: 0 | BE164: 0 | BF164: 1 | BG164: 0 | BH164: 0 | BI164: 0 | BJ164: 1 | BK164: 1 | BL164: 0 | BM164: 0 | BN164: 0 | BO164: 0 | BP164: 0 | BQ164: 0 | BR164: 0.075 | BS164: =IF(B164='Données méteo'!$E$107,'Données méteo'!$AF$104,IF(B164='Données méteo'!$F$107,'Données méteo'!$AG$104,IF(B164='Données méteo'!$G$107,'Données méteo'!$AH$104,IF(B164='Données méteo'!$H$107,'Données méteo'!$AI$104,IF(B164='Données méteo'!$I$107,'Données méteo'!$AJ$104,IF(B164='Données méteo'!$J$107,'Données méteo'!$AK$104,IF(B164='Données méteo'!$K$107,'Données méteo'!$AL$104,IF(B164='Données méteo'!$L$107,'Données méteo'!$AM$104,IF(B164='Données méteo'!$M$107,'Données méteo'!$AN$104,IF(B164='Données méteo'!$N$107,'Données méteo'!$AO$104,IF(B164='Données méteo'!$O$107,'Données méteo'!$AP$104,'Données méteo'!$AQ$104))))))))))) -> 116.6045175 | BT164: =BS164/31*VLOOKUP(F164,'Données méteo'!$C$108:$P$131,3,FALSE) -> 0 | BU164: 0 | BV164: 0 | BX164: 0.075 | BY164: 0 | BZ164: 0
A165: 6 | B165: Janvier | C165: 6 Janvier | D165: 124 | E165: Samedi | F165: 4 | H165: 1 | I165: 1 | J165: 0 | K165: 0 | L165: 0 | M165: 1 | N165: 0 | O165: 0 | P165: 1 | Q165: 1 | R165: 0 | S165: 0 | T165: 1 | U165: 1 | V165: 1 | W165: 0 | X165: 0 | Y165: 0 | Z165: 0 | AA165: 1 | AB165: 1 | AC165: 0 | AD165: 1 | AE165: 1 | AF165: 1 | AG165: 0 | AH165: 1 | AI165: 1 | AJ165: 1 | AK165: 75 | AL165: 1 | AM165: 1 | AN165: 1 | AO165: 0 | AP165: 1 | AQ165: 0 | AR165: 0 | AS165: 0 | AT165: 1 | AU165: 0 | AV165: 0 | AW165: 0 | AX165: 1 | AY165: 0 | AZ165: 0 | BA165: 0 | BB165: 1 | BC165: 1 | BD165: 0 | BE165: 0 | BF165: 1 | BG165: 0 | BH165: 0 | BI165: 0 | BJ165: 1 | BK165: 1 | BL165: 0 | BM165: 0 | BN165: 0 | BO165: 0 | BP165: 0 | BQ165: 0 | BR165: 0.075 | BS165: =IF(B165='Données méteo'!$E$107,'Données méteo'!$AF$104,IF(B165='Données méteo'!$F$107,'Données méteo'!$AG$104,IF(B165='Données méteo'!$G$107,'Données méteo'!$AH$104,IF(B165='Données méteo'!$H$107,'Données méteo'!$AI$104,IF(B165='Données méteo'!$I$107,'Données méteo'!$AJ$104,IF(B165='Données méteo'!$J$107,'Données méteo'!$AK$104,IF(B165='Données méteo'!$K$107,'Données méteo'!$AL$104,IF(B165='Données méteo'!$L$107,'Données méteo'!$AM$104,IF(B165='Données méteo'!$M$107,'Données méteo'!$AN$104,IF(B165='Données méteo'!$N$107,'Données méteo'!$AO$104,IF(B165='Données méteo'!$O$107,'Données méteo'!$AP$104,'Données méteo'!$AQ$104))))))))))) -> 116.6045175 | BT165: =BS165/31*VLOOKUP(F165,'Données méteo'!$C$108:$P$131,3,FALSE) -> 0 | BU165: 0 | BV165: 0 | BX165: 0.075 | BY165: 0 | BZ165: 0
A166: 6 | B166: Janvier | C166: 6 Janvier | D166: 125 | E166: Samedi | F166: 5 | H166: 1 | I166: 1 | J166: 0 | K166: 0 | L166: 0 | M166: 1 | N166: 0 | O166: 0 | P166: 1 | Q166: 1 | R166: 0 | S166: 0 | T166: 1 | U166: 1 | V166: 1 | W166: 0 | X166: 0 | Y166: 0 | Z166: 0 | AA166: 1 | AB166: 1 | AC166: 0 | AD166: 1 | AE166: 1 | AF166: 1 | AG166: 0 | AH166: 1 | AI166: 1 | AJ166: 1 | AK166: 75 | AL166: 1 | AM166: 1 | AN166: 1 | AO166: 0 | AP166: 1 | AQ166: 0 | AR166: 0 | AS166: 0 | AT166: 1 | AU166: 0 | AV166: 0 | AW166: 0 | AX166: 1 | AY166: 0 | AZ166: 0 | BA166: 0 | BB166: 1 | BC166: 1 | BD166: 0 | BE166: 0 | BF166: 1 | BG166: 0 | BH166: 0 | BI166: 0 | BJ166: 1 | BK166: 1 | BL166: 0 | BM166: 0 | BN166: 0 | BO166: 0 | BP166: 0 | BQ166: 0 | BR166: 0.075 | BS166: =IF(B166='Données méteo'!$E$107,'Données méteo'!$AF$104,IF(B166='Données méteo'!$F$107,'Données méteo'!$AG$104,IF(B166='Données méteo'!$G$107,'Données méteo'!$AH$104,IF(B166='Données méteo'!$H$107,'Données méteo'!$AI$104,IF(B166='Données méteo'!$I$107,'Données méteo'!$AJ$104,IF(B166='Données méteo'!$J$107,'Données méteo'!$AK$104,IF(B166='Données méteo'!$K$107,'Données méteo'!$AL$104,IF(B166='Données méteo'!$L$107,'Données méteo'!$AM$104,IF(B166='Données méteo'!$M$107,'Données méteo'!$AN$104,IF(B166='Données méteo'!$N$107,'Données méteo'!$AO$104,IF(B166='Données méteo'!$O$107,'Données méteo'!$AP$104,'Données méteo'!$AQ$104))))))))))) -> 116.6045175 | BT166: =BS166/31*VLOOKUP(F166,'Données méteo'!$C$108:$P$131,3,FALSE) -> 0 | BU166: 0 | BV166: 0 | BX166: 0.075 | BY166: 0 | BZ166: 0
A167: 6 | B167: Janvier | C167: 6 Janvier | D167: 126 | E167: Samedi | F167: 6 | H167: 1 | I167: 1 | J167: 1 | K167: 900 | L167: 0 | M167: 1 | N167: 0 | O167: 0 | P167: 1 | Q167: 1 | R167: 0 | S167: 0 | T167: 1 | U167: 1 | V167: 1 | W167: 0 | X167: 0 | Y167: 0 | Z167: 0 | AA167: 1 | AB167: 1 | AC167: 0 | AD167: 1 | AE167: 1 | AF167: 1 | AG167: 0 | AH167: 1 | AI167: 1 | AJ167: 1 | AK167: 75 | AL167: 1 | AM167: 1 | AN167: 1 | AO167: 0 | AP167: 1 | AQ167: 0 | AR167: 0 | AS167: 0 | AT167: 1 | AU167: 0 | AV167: 0 | AW167: 0 | AX167: 1 | AY167: 0 | AZ167: 0 | BA167: 0 | BB167: 1 | BC167: 1 | BD167: 0 | BE167: 0 | BF167: 1 | BG167: 0 | BH167: 0 | BI167: 0 | BJ167: 1 | BK167: 1 | BL167: 0 | BM167: 0 | BN167: 0 | BO167: 0 | BP167: 0 | BQ167: 0 | BR167: 0.975 | BS167: =IF(B167='Données méteo'!$E$107,'Données méteo'!$AF$104,IF(B167='Données méteo'!$F$107,'Données méteo'!$AG$104,IF(B167='Données méteo'!$G$107,'Données méteo'!$AH$104,IF(B167='Données méteo'!$H$107,'Données méteo'!$AI$104,IF(B167='Données méteo'!$I$107,'Données méteo'!$AJ$104,IF(B167='Données méteo'!$J$107,'Données méteo'!$AK$104,IF(B167='Données méteo'!$K$107,'Données méteo'!$AL$104,IF(B167='Données méteo'!$L$107,'Données méteo'!$AM$104,IF(B167='Données méteo'!$M$107,'Données méteo'!$AN$104,IF(B167='Données méteo'!$N$107,'Données méteo'!$AO$104,IF(B167='Données méteo'!$O$107,'Données méteo'!$AP$104,'Données méteo'!$AQ$104))))))))))) -> 116.6045175 | BT167: =BS167/31*VLOOKUP(F167,'Données méteo'!$C$108:$P$131,3,FALSE) -> 0 | BU167: 0 | BV167: 0 | BX167: 0.975 | BY167: 0 | BZ167: 0
A168: 6 | B168: Janvier | C168: 6 Janvier | D168: 127 | E168: Samedi | F168: 7 | H168: 1 | I168: 1 | J168: 1 | K168: 900 | L168: 0 | M168: 1 | N168: 0 | O168: 0 | P168: 1 | Q168: 1 | R168: 0 | S168: 0 | T168: 1 | U168: 1 | V168: 1 | W168: 0 | X168: 0 | Y168: 0 | Z168: 0 | AA168: 1 | AB168: 1 | AC168: 0 | AD168: 1 | AE168: 1 | AF168: 1 | AG168: 0 | AH168: 1 | AI168: 1 | AJ168: 1 | AK168: 75 | AL168: 1 | AM168: 1 | AN168: 1 | AO168: 0 | AP168: 1 | AQ168: 0 | AR168: 0 | AS168: 0 | AT168: 1 | AU168: 0 | AV168: 0 | AW168: 0 | AX168: 1 | AY168: 0 | AZ168: 0 | BA168: 0 | BB168: 1 | BC168: 1 | BD168: 0 | BE168: 0 | BF168: 1 | BG168: 0 | BH168: 0 | BI168: 0 | BJ168: 1 | BK168: 1 | BL168: 0 | BM168: 0 | BN168: 0 | BO168: 0 | BP168: 0 | BQ168: 0 | BR168: 0.975 | BS168: =IF(B168='Données méteo'!$E$107,'Données méteo'!$AF$104,IF(B168='Données méteo'!$F$107,'Données méteo'!$AG$104,IF(B168='Données méteo'!$G$107,'Données méteo'!$AH$104,IF(B168='Données méteo'!$H$107,'Données méteo'!$AI$104,IF(B168='Données méteo'!$I$107,'Données méteo'!$AJ$104,IF(B168='Données méteo'!$J$107,'Données méteo'!$AK$104,IF(B168='Données méteo'!$K$107,'Données méteo'!$AL$104,IF(B168='Données méteo'!$L$107,'Données méteo'!$AM$104,IF(B168='Données méteo'!$M$107,'Données méteo'!$AN$104,IF(B168='Données méteo'!$N$107,'Données méteo'!$AO$104,IF(B168='Données méteo'!$O$107,'Données méteo'!$AP$104,'Données méteo'!$AQ$104))))))))))) -> 116.6045175 | BT168: =BS168/31*VLOOKUP(F168,'Données méteo'!$C$108:$P$131,3,FALSE) -> 0 | BU168: 0 | BV168: 0 | BX168: 0.975 | BY168: 0 | BZ168: 0
A169: 6 | B169: Janvier | C169: 6 Janvier | D169: 128 | E169: Samedi | F169: 8 | H169: =IF($B169=$F$25,$H$25,IF($B169=$F$26,$H$26,IF($B169=$F$27,$H$27,IF($B169=$F$28,$H$28,IF($B169=$F$29,$H$29,IF($B169=$F$30,$H$30,IF($B169=$F$31,$H$31,IF($B169=$F$32,$H$32,IF($B169=$F$33,$H$33,IF($B169=$F$34,$H$34,IF($B169=$F$35,$H$35,IF($B169=$F$36,$H$36,0)))))))))))) -> 1 | I169: =IF($E169=$F$17,$H$17,IF($E169=$F$18,$H$18,IF($E169=$F$19,$H$19,IF($E169=$F$20,$H$20,IF($E169=$F$21,$H$21,IF($E169=$F$22,$H$22,IF($E169=$F$23,$H$23,0))))))) -> 1 | J169: 0 | K169: =IF($BY$13=$BX$33,0,IF(AND(H169=1,I169=1,J169=1),$BX$13*0.3,0)) -> 0 | L169: =IF($B169=$F$25,$I$25,IF($B169=$F$26,$I$26,IF($B169=$F$27,$I$27,IF($B169=$F$28,$I$28,IF($B169=$F$29,$I$29,IF($B169=$F$30,$I$30,IF($B169=$F$31,$I$31,IF($B169=$F$32,$I$32,IF($B169=$F$33,$I$33,IF($B169=$F$34,$I$34,IF($B169=$F$35,$I$35,IF($B169=$F$36,$I$36,0)))))))))))) -> 0 | M169: =IF($E169=$F$17,$I$17,IF($E169=$F$18,$I$18,IF($E169=$F$19,$I$19,IF($E169=$F$20,$I$20,IF($E169=$F$21,$I$21,IF($E169=$F$22,$I$22,IF($E169=$F$23,$I$23,0))))))) -> 1 | N169: 0 | O169: =IF($BY$14=$BX$33,0,IF(AND(L169=1,M169=1,N169=1),$BX$14*0.3,0)) -> 0 | P169: =IF($B169=$F$25,$J$25,IF($B169=$F$26,$J$26,IF($B169=$F$27,$J$27,IF($B169=$F$28,$J$28,IF($B169=$F$29,$J$29,IF($B169=$F$30,$J$30,IF($B169=$F$31,$J$31,IF($B169=$F$32,$J$32,IF($B169=$F$33,$J$33,IF($B169=$F$34,$J$34,IF($B169=$F$35,$J$35,IF($B169=$F$36,$J$36,0)))))))))))) -> 1 | Q169: =IF($E169=$F$17,$J$17,IF($E169=$F$18,$J$18,IF($E169=$F$19,$J$19,IF($E169=$F$20,$J$20,IF($E169=$F$21,$J$21,IF($E169=$F$22,$J$22,IF($E169=$F$23,$J$23,0))))))) -> 1 | R169: 1 | S169: =IF($BY$15=$BX$33,0,IF(AND(P169=1,Q169=1,R169=1),$BX$15*$AM$37,0)) -> 580 | T169: =IF($B169=$F$25,$K$25,IF($B169=$F$26,$K$26,IF($B169=$F$27,$K$27,IF($B169=$F$28,$K$28,IF($B169=$F$29,$K$29,IF($B169=$F$30,$K$30,IF($B169=$F$31,$K$31,IF($B169=$F$32,$K$32,IF($B169=$F$33,$K$33,IF($B169=$F$34,$K$34,IF($B169=$F$35,$K$35,IF($B169=$F$36,$K$36,0)))))))))))) -> 1 | U169: =IF($E169=$F$17,$K$17,IF($E169=$F$18,$K$18,IF($E169=$F$19,$K$19,IF($E169=$F$20,$K$20,IF($E169=$F$21,$K$21,IF($E169=$F$22,$K$22,IF($E169=$F$23,$K$23,0))))))) -> 1 | V169: 1 | W169: =IF($BY$16=$BX$33,0,IF(AND(T169=1,U169=1,V169=1),1,0)) -> 0 | X169: 0 | Y169: 0 | Z169: =IF($B169=$F$25,$L$25,IF($B169=$F$26,$L$26,IF($B169=$F$27,$L$27,IF($B169=$F$28,$L$28,IF($B169=$F$29,$L$29,IF($B169=$F$30,$L$30,IF($B169=$F$31,$L$31,IF($B169=$F$32,$L$32,IF($B169=$F$33,$L$33,IF($B169=$F$34,$L$34,IF($B169=$F$35,$L$35,IF($B169=$F$36,$L$36,0)))))))))))) -> 0 | AA169: =IF($E169=$F$17,$L$17,IF($E169=$F$18,$L$18,IF($E169=$F$19,$L$19,IF($E169=$F$20,$L$20,IF($E169=$F$21,$L$21,IF($E169=$F$22,$L$22,IF($E169=$F$23,$L$23,0))))))) -> 1 | AB169: 1 | AC169: 0 | AD169: =IF($B169=$F$25,$M$25,IF($B169=$F$26,$M$26,IF($B169=$F$27,$M$27,IF($B169=$F$28,$M$28,IF($B169=$F$29,$M$29,IF($B169=$F$30,$M$30,IF($B169=$F$31,$M$31,IF($B169=$F$32,$M$32,IF($B169=$F$33,$M$33,IF($B169=$F$34,$M$34,IF($B169=$F$35,$M$35,IF($B169=$F$36,$M$36,0)))))))))))) -> 1 | AE169: =IF($E169=$F$17,$M$17,IF($E169=$F$18,$M$18,IF($E169=$F$19,$M$19,IF($E169=$F$20,$M$20,IF($E169=$F$21,$M$21,IF($E169=$F$22,$M$22,IF($E169=$F$23,$M$23,0))))))) -> 1 | AF169: 1 | AG169: =IF($BY$19=$BX$33,0,IF(AND(AD169=1,AE169=1,AF169=1),$BX$19,0)) -> 0 | AH169: =IF($B169=$F$25,$N$25,IF($B169=$F$26,$N$26,IF($B169=$F$27,$N$27,IF($B169=$F$28,$N$28,IF($B169=$F$29,$N$29,IF($B169=$F$30,$N$30,IF($B169=$F$31,$N$31,IF($B169=$F$32,$N$32,IF($B169=$F$33,$N$33,IF($B169=$F$34,$N$34,IF($B169=$F$35,$N$35,IF($B169=$F$36,$N$36,0)))))))))))) -> 1 | AI169: =IF($E169=$F$17,$N$17,IF($E169=$F$18,$N$18,IF($E169=$F$19,$N$19,IF($E169=$F$20,$N$20,IF($E169=$F$21,$N$21,IF($E169=$F$22,$N$22,IF($E169=$F$23,$N$23,0))))))) -> 1 | AJ169: 1 | AK169: =IF($BY$21=$BX$33,0,IF(AND(AH169=1,AI169=1,AJ169=1),$BX$21*0.5,0)) -> 75 | AL169: =IF($B169=$F$25,$O$25,IF($B169=$F$26,$O$26,IF($B169=$F$27,$O$27,IF($B169=$F$28,$O$28,IF($B169=$F$29,$O$29,IF($B169=$F$30,$O$30,IF($B169=$F$31,$O$31,IF($B169=$F$32,$O$32,IF($B169=$F$33,$O$33,IF($B169=$F$34,$O$34,IF($B169=$F$35,$O$35,IF($B169=$F$36,$O$36,0)))))))))))) -> 1 | AM169: =IF($E169=$F$17,$O$17,IF($E169=$F$18,$O$18,IF($E169=$F$19,$O$19,IF($E169=$F$20,$O$20,IF($E169=$F$21,$O$21,IF($E169=$F$22,$O$22,IF($E169=$F$23,$O$23,0))))))) -> 1 | AN169: 1 | AO169: =IF($BY$22=$BX$33,0,IF(AND(AL169=1,AM169=1,AN169=1),$BX$22*0.5,0)) -> 0 | AP169: =IF($B169=$F$25,$P$25,IF($B169=$F$26,$P$26,IF($B169=$F$27,$P$27,IF($B169=$F$28,$P$28,IF($B169=$F$29,$P$29,IF($B169=$F$30,$P$30,IF($B169=$F$31,$P$31,IF($B169=$F$32,$P$32,IF($B169=$F$33,$P$33,IF($B169=$F$34,$P$34,IF($B169=$F$35,$P$35,IF($B169=$F$36,$P$36,0)))))))))))) -> 1 | AQ169: =IF($E169=$F$17,$P$17,IF($E169=$F$18,$P$18,IF($E169=$F$19,$P$19,IF($E169=$F$20,$P$20,IF($E169=$F$21,$P$21,IF($E169=$F$22,$P$22,IF($E169=$F$23,$P$23,0))))))) -> 0 | AR169: 0 | AS169: =IF($BY$23=$BX$33,0,IF(AND(AP169=1,AQ169=1,AR169=1),$BX$23,0)) -> 0 | AT169: =IF($B169=$F$25,$Q$25,IF($B169=$F$26,$Q$26,IF($B169=$F$27,$Q$27,IF($B169=$F$28,$Q$28,IF($B169=$F$29,$Q$29,IF($B169=$F$30,$Q$30,IF($B169=$F$31,$Q$31,IF($B169=$F$32,$Q$32,IF($B169=$F$33,$Q$33,IF($B169=$F$34,$Q$34,IF($B169=$F$35,$Q$35,IF($B169=$F$36,$Q$36,0)))))))))))) -> 1 | AU169: =IF($E169=$F$17,$Q$17,IF($E169=$F$18,$Q$18,IF($E169=$F$19,$Q$19,IF($E169=$F$20,$Q$20,IF($E169=$F$21,$Q$21,IF($E169=$F$22,$Q$22,IF($E169=$F$23,$Q$23,0))))))) -> 0 | AV169: 0 | AW169: =IF($BY$24=$BX$33,0,IF(AND(AT169=1,AU169=1,AV169=1),$BX$24,0)) -> 0 | AX169: =IF($B169=$F$25,$R$25,IF($B169=$F$26,$R$26,IF($B169=$F$27,$R$27,IF($B169=$F$28,$R$28,IF($B169=$F$29,$R$29,IF($B169=$F$30,$R$30,IF($B169=$F$31,$R$31,IF($B169=$F$32,$R$32,IF($B169=$F$33,$R$33,IF($B169=$F$34,$R$34,IF($B169=$F$35,$R$35,IF($B169=$F$36,$R$36,0)))))))))))) -> 1 | AY169: =IF($E169=$F$17,$R$17,IF($E169=$F$18,$R$18,IF($E169=$F$19,$R$19,IF($E169=$F$20,$R$20,IF($E169=$F$21,$R$21,IF($E169=$F$22,$R$22,IF($E169=$F$23,$R$23,0))))))) -> 0 | AZ169: 0 | BA169: =IF($BY$25=$BX$33,0,IF(AND(AX169=1,AY169=1,AZ169=1),$BX$25,0)) -> 0 | BB169: =IF($B169=$F$25,$S$25,IF($B169=$F$26,$S$26,IF($B169=$F$27,$S$27,IF($B169=$F$28,$S$28,IF($B169=$F$29,$S$29,IF($B169=$F$30,$S$30,IF($B169=$F$31,$S$31,IF($B169=$F$32,$S$32,IF($B169=$F$33,$S$33,IF($B169=$F$34,$S$34,IF($B169=$F$35,$S$35,IF($B169=$F$36,$S$36,0)))))))))))) -> 1 | BC169: =IF($E169=$F$17,$S$17,IF($E169=$F$18,$S$18,IF($E169=$F$19,$S$19,IF($E169=$F$20,$S$20,IF($E169=$F$21,$S$21,IF($E169=$F$22,$S$22,IF($E169=$F$23,$S$23,0))))))) -> 1 | BD169: 0 | BE169: =IF($BY$26=$BX$33,0,IF(AND(BB169=1,BC169=1,BD169=1),$BX$26,0)) -> 0 | BF169: =IF($B169=$F$25,$T$25,IF($B169=$F$26,$T$26,IF($B169=$F$27,$T$27,IF($B169=$F$28,$T$28,IF($B169=$F$29,$T$29,IF($B169=$F$30,$T$30,IF($B169=$F$31,$T$31,IF($B169=$F$32,$T$32,IF($B169=$F$33,$T$33,IF($B169=$F$34,$T$34,IF($B169=$F$35,$T$35,IF($B169=$F$36,$T$36,0)))))))))))) -> 1 | BG169: =IF($E169=$F$17,$T$17,IF($E169=$F$18,$T$18,IF($E169=$F$19,$T$19,IF($E169=$F$20,$T$20,IF($E169=$F$21,$T$21,IF($E169=$F$22,$T$22,IF($E169=$F$23,$T$23,0))))))) -> 0 | BH169: 0 | BI169: =IF($BY$27=$BX$33,0,IF(AND(BF169=1,BG169=1,BH169=1),$BX$27,0)) -> 0 | BJ169: =IF($B169=$F$25,$U$25,IF($B169=$F$26,$U$26,IF($B169=$F$27,$U$27,IF($B169=$F$28,$U$28,IF($B169=$F$29,$U$29,IF($B169=$F$30,$U$30,IF($B169=$F$31,$U$31,IF($B169=$F$32,$U$32,IF($B169=$F$33,$U$33,IF($B169=$F$34,$U$34,IF($B169=$F$35,$U$35,IF($B169=$F$36,$U$36,0)))))))))))) -> 1 | BK169: =IF($E169=$F$17,$U$17,IF($E169=$F$18,$U$18,IF($E169=$F$19,$U$19,IF($E169=$F$20,$U$20,IF($E169=$F$21,$U$21,IF($E169=$F$22,$U$22,IF($E169=$F$23,$U$23,0))))))) -> 1 | BL169: 0 | BM169: =IF($BY$28=$BX$33,0,IF(AND(BJ169=1,BK169=1,BL169=1),$BX$28,0)) -> 0 | BN169: =IF($B169=$F$25,$V$25,IF($B169=$F$26,$V$26,IF($B169=$F$27,$V$27,IF($B169=$F$28,$V$28,IF($B169=$F$29,$V$29,IF($B169=$F$30,$V$30,IF($B169=$F$31,$V$31,IF($B169=$F$32,$V$32,IF($B169=$F$33,$V$33,IF($B169=$F$34,$V$34,IF($B169=$F$35,$V$35,IF($B169=$F$36,$V$36,0)))))))))))) -> 0 | BO169: =IF($E169=$F$17,$V$17,IF($E169=$F$18,$V$18,IF($E169=$F$19,$V$19,IF($E169=$F$20,$V$20,IF($E169=$F$21,$V$21,IF($E169=$F$22,$V$22,IF($E169=$F$23,$V$23,0))))))) -> 0 | BP169: 0 | BQ169: =IF($BY$29=$BX$33,0,IF(AND(BN169=1,BO169=1,BP169=1),$BX$29,0)) -> 0 | BR169: 0.655 | BS169: =IF(B169='Données méteo'!$E$107,'Données méteo'!$AF$104,IF(B169='Données méteo'!$F$107,'Données méteo'!$AG$104,IF(B169='Données méteo'!$G$107,'Données méteo'!$AH$104,IF(B169='Données méteo'!$H$107,'Données méteo'!$AI$104,IF(B169='Données méteo'!$I$107,'Données méteo'!$AJ$104,IF(B169='Données méteo'!$J$107,'Données méteo'!$AK$104,IF(B169='Données méteo'!$K$107,'Données méteo'!$AL$104,IF(B169='Données méteo'!$L$107,'Données méteo'!$AM$104,IF(B169='Données méteo'!$M$107,'Données méteo'!$AN$104,IF(B169='Données méteo'!$N$107,'Données méteo'!$AO$104,IF(B169='Données méteo'!$O$107,'Données méteo'!$AP$104,'Données méteo'!$AQ$104))))))))))) -> 116.6045175 | BT169: =BS169/31*VLOOKUP(F169,'Données méteo'!$C$108:$P$131,3,FALSE) -> 0 | BU169: 0 | BV169: 0 | BX169: 0.075 | BY169: 0 | BZ169: 0
A170: 6 | B170: Janvier | C170: =CONCATENATE(A170," ", B170) -> 6 Janvier | D170: 129 | E170: Samedi | F170: 9 | H170: 1 | I170: 1 | J170: =VLOOKUP(F170,$Z$3:$AO$26,2,FALSE) -> 0 | K170: 0 | L170: 0 | M170: 1 | N170: =VLOOKUP(F170,$Z$3:$AO$26,3,FALSE) -> 0 | O170: 0 | P170: 1 | Q170: 1 | R170: =VLOOKUP(F170,$Z$3:$AO$26,4,FALSE) -> 1 | S170: 580 | T170: 1 | U170: 1 | V170: =IF(OR(F170=6,F170=7),$K$4,IF(OR(F170=8,F170=9),$K$5,IF(OR(F170=10,F170=11),$K$6,IF(OR(F170=12,F170=13),$K$7,IF(OR(F170=14,F170=15),$K$8,IF(OR(F170=16,F170=17),$K$9,IF(OR(F170=18,F170=19),$K$10,IF(OR(F170=20,F170=21),$K$11,IF(OR(F170=22,F170=23),$K$12,IF(OR(F170=0,F170=1),$K$13,IF(OR(F170=2,F170=3),$K$14,IF(OR(F170=4,F170=5),$K$15,0)))))))))))) -> 1 | W170: 0 | X170: 0 | Y170: =IF(OR(X170="",X170=0),0,IF(X170=$AM$32,$BX$16*(1-($AM$32-$AM$31)),$BX$16)) -> 0 | Z170: 0 | AA170: 1 | AB170: =VLOOKUP(F170,$Z$3:$AO$26,6,FALSE) -> 1 | AC170: =IF($BY$18=$BX$33,0,IF(AND(Z170=1,AA170=1,AB170=1),$BX$18,0)) -> 0 | AD170: 1 | AE170: 1 | AF170: =VLOOKUP(F170,$Z$3:$AO$26,7,FALSE) -> 1 | AG170: 0 | AH170: 1 | AI170: 1 | AJ170: =VLOOKUP(F170,$Z$3:$AO$26,8,FALSE) -> 1 | AK170: 75 | AL170: 1 | AM170: 1 | AN170: =VLOOKUP(F170,$Z$3:$AO$26,9,FALSE) -> 1 | AO170: 0 | AP170: 1 | AQ170: 0 | AR170: =VLOOKUP(F170,$Z$3:$AO$26,10,FALSE) -> 0 | AS170: 0 | AT170: 1 | AU170: 0 | AV170: =VLOOKUP(F170,$Z$3:$AO$26,11,FALSE) -> 0 | AW170: 0 | AX170: 1 | AY170: 0 | AZ170: =VLOOKUP(F170,$Z$3:$AO$26,12,FALSE) -> 0 | BA170: 0 | BB170: 1 | BC170: 1 | BD170: =VLOOKUP(F170,$Z$3:$AO$26,13,FALSE) -> 0 | BE170: 0 | BF170: 1 | BG170: 0 | BH170: =VLOOKUP(F170,$Z$3:$AO$26,14,FALSE) -> 0 | BI170: 0 | BJ170: 1 | BK170: 1 | BL170: =VLOOKUP(F170,$Z$3:$AO$26,15,FALSE) -> 0 | BM170: 0 | BN170: 0 | BO170: 0 | BP170: =VLOOKUP(F170,$Z$3:$AO$26,16,FALSE) -> 0 | BQ170: 0 | BR170: =(K170+O170+S170+Y170+AC170+AG170+AK170+AO170+AS170+AW170+BA170+BE170+BI170+BM170+BQ170)/1000 -> 0.655 | BS170: =IF(B170='Données méteo'!$E$107,'Données méteo'!$AF$104,IF(B170='Données méteo'!$F$107,'Données méteo'!$AG$104,IF(B170='Données méteo'!$G$107,'Données méteo'!$AH$104,IF(B170='Données méteo'!$H$107,'Données méteo'!$AI$104,IF(B170='Données méteo'!$I$107,'Données méteo'!$AJ$104,IF(B170='Données méteo'!$J$107,'Données méteo'!$AK$104,IF(B170='Données méteo'!$K$107,'Données méteo'!$AL$104,IF(B170='Données méteo'!$L$107,'Données méteo'!$AM$104,IF(B170='Données méteo'!$M$107,'Données méteo'!$AN$104,IF(B170='Données méteo'!$N$107,'Données méteo'!$AO$104,IF(B170='Données méteo'!$O$107,'Données méteo'!$AP$104,'Données méteo'!$AQ$104))))))))))) -> 116.6045175 | BT170: =BS170/31*VLOOKUP(F170,'Données méteo'!$C$108:$P$131,3,FALSE) -> 0.1504574419 | BU170: =IF(BT170>BR170,BR170,BT170) -> 0.1504574419 | BV170: =IF(BT170-BR170<0,0,BT170-BR170) -> 0 | BX170: =BR170-S170/1000 -> 0.075 | BY170: =IF(BT170-BX170<0,0,BT170-BX170) -> 0.07545744188 | BZ170: =IF(BY170>S170/1000,S170/1000,BY170) -> 0.07545744188
A171: =IF(F170=23,A170+1,A170) -> 6 | B171: Janvier | C171: 6 Janvier | D171: 130 | E171: Samedi | F171: 10 | H171: 1 | I171: 1 | J171: 0 | K171: 0 | L171: 0 | M171: 1 | N171: 0 | O171: 0 | P171: 1 | Q171: 1 | R171: 1 | S171: 580 | T171: 1 | U171: 1 | V171: 1 | W171: 0 | X171: =IFERROR(IF(E171<>E170,W171,IF(W171+X170>$AM$32,"",W171+X170)),"") -> 0 | Y171: 0 | Z171: 0 | AA171: 1 | AB171: 1 | AC171: 0 | AD171: 1 | AE171: 1 | AF171: 1 | AG171: 0 | AH171: 1 | AI171: 1 | AJ171: 1 | AK171: 75 | AL171: 1 | AM171: 1 | AN171: 1 | AO171: 0 | AP171: 1 | AQ171: 0 | AR171: 0 | AS171: 0 | AT171: 1 | AU171: 0 | AV171: 0 | AW171: 0 | AX171: 1 | AY171: 0 | AZ171: 0 | BA171: 0 | BB171: 1 | BC171: 1 | BD171: 0 | BE171: 0 | BF171: 1 | BG171: 0 | BH171: 0 | BI171: 0 | BJ171: 1 | BK171: 1 | BL171: 0 | BM171: 0 | BN171: 0 | BO171: 0 | BP171: 0 | BQ171: 0 | BR171: 0.655 | BS171: =IF(B171='Données méteo'!$E$107,'Données méteo'!$AF$104,IF(B171='Données méteo'!$F$107,'Données méteo'!$AG$104,IF(B171='Données méteo'!$G$107,'Données méteo'!$AH$104,IF(B171='Données méteo'!$H$107,'Données méteo'!$AI$104,IF(B171='Données méteo'!$I$107,'Données méteo'!$AJ$104,IF(B171='Données méteo'!$J$107,'Données méteo'!$AK$104,IF(B171='Données méteo'!$K$107,'Données méteo'!$AL$104,IF(B171='Données méteo'!$L$107,'Données méteo'!$AM$104,IF(B171='Données méteo'!$M$107,'Données méteo'!$AN$104,IF(B171='Données méteo'!$N$107,'Données méteo'!$AO$104,IF(B171='Données méteo'!$O$107,'Données méteo'!$AP$104,'Données méteo'!$AQ$104))))))))))) -> 116.6045175 | BT171: =BS171/31*VLOOKUP(F171,'Données méteo'!$C$108:$P$131,3,FALSE) -> 0.3761436047 | BU171: 0.3761436047 | BV171: 0 | BX171: 0.075 | BY171: 0.3011436047 | BZ171: 0.3011436047
A172: 6 | B172: Janvier | C172: 6 Janvier | D172: 131 | E172: Samedi | F172: 11 | H172: 1 | I172: 1 | J172: 0 | K172: 0 | L172: 0 | M172: 1 | N172: 0 | O172: 0 | P172: 1 | Q172: 1 | R172: 1 | S172: 580 | T172: 1 | U172: 1 | V172: 1 | W172: 0 | X172: 0 | Y172: 0 | Z172: 0 | AA172: 1 | AB172: 1 | AC172: 0 | AD172: 1 | AE172: 1 | AF172: 1 | AG172: 0 | AH172: 1 | AI172: 1 | AJ172: 1 | AK172: 75 | AL172: 1 | AM172: 1 | AN172: 1 | AO172: 0 | AP172: 1 | AQ172: 0 | AR172: 0 | AS172: 0 | AT172: 1 | AU172: 0 | AV172: 0 | AW172: 0 | AX172: 1 | AY172: 0 | AZ172: 0 | BA172: 0 | BB172: 1 | BC172: 1 | BD172: 0 | BE172: 0 | BF172: 1 | BG172: 0 | BH172: 0 | BI172: 0 | BJ172: 1 | BK172: 1 | BL172: 0 | BM172: 0 | BN172: 0 | BO172: 0 | BP172: 0 | BQ172: 0 | BR172: 0.655 | BS172: =IF(B172='Données méteo'!$E$107,'Données méteo'!$AF$104,IF(B172='Données méteo'!$F$107,'Données méteo'!$AG$104,IF(B172='Données méteo'!$G$107,'Données méteo'!$AH$104,IF(B172='Données méteo'!$H$107,'Données méteo'!$AI$104,IF(B172='Données méteo'!$I$107,'Données méteo'!$AJ$104,IF(B172='Données méteo'!$J$107,'Données méteo'!$AK$104,IF(B172='Données méteo'!$K$107,'Données méteo'!$AL$104,IF(B172='Données méteo'!$L$107,'Données méteo'!$AM$104,IF(B172='Données méteo'!$M$107,'Données méteo'!$AN$104,IF(B172='Données méteo'!$N$107,'Données méteo'!$AO$104,IF(B172='Données méteo'!$O$107,'Données méteo'!$AP$104,'Données méteo'!$AQ$104))))))))))) -> 116.6045175 | BT172: =BS172/31*VLOOKUP(F172,'Données méteo'!$C$108:$P$131,3,FALSE) -> 0.7522872094 | BU172: 0.655 | BV172: 0.09728720938 | BX172: 0.075 | BY172: 0.6772872094 | BZ172: 0.58
A173: 6 | B173: Janvier | C173: 6 Janvier | D173: 132 | E173: Samedi | F173: 12 | H173: 1 | I173: 1 | J173: 0 | K173: 0 | L173: 0 | M173: 1 | N173: 0 | O173: 0 | P173: 1 | Q173: 1 | R173: 1 | S173: 580 | T173: 1 | U173: 1 | V173: 1 | W173: 0 | X173: 0 | Y173: 0 | Z173: 0 | AA173: 1 | AB173: 1 | AC173: 0 | AD173: 1 | AE173: 1 | AF173: 1 | AG173: 0 | AH173: 1 | AI173: 1 | AJ173: 1 | AK173: 75 | AL173: 1 | AM173: 1 | AN173: 1 | AO173: 0 | AP173: 1 | AQ173: 0 | AR173: 0 | AS173: 0 | AT173: 1 | AU173: 0 | AV173: 0 | AW173: 0 | AX173: 1 | AY173: 0 | AZ173: 0 | BA173: 0 | BB173: 1 | BC173: 1 | BD173: 0 | BE173: 0 | BF173: 1 | BG173: 0 | BH173: 1 | BI173: 0 | BJ173: 1 | BK173: 1 | BL173: 0 | BM173: 0 | BN173: 0 | BO173: 0 | BP173: 0 | BQ173: 0 | BR173: 0.655 | BS173: =IF(B173='Données méteo'!$E$107,'Données méteo'!$AF$104,IF(B173='Données méteo'!$F$107,'Données méteo'!$AG$104,IF(B173='Données méteo'!$G$107,'Données méteo'!$AH$104,IF(B173='Données méteo'!$H$107,'Données méteo'!$AI$104,IF(B173='Données méteo'!$I$107,'Données méteo'!$AJ$104,IF(B173='Données méteo'!$J$107,'Données méteo'!$AK$104,IF(B173='Données méteo'!$K$107,'Données méteo'!$AL$104,IF(B173='Données méteo'!$L$107,'Données méteo'!$AM$104,IF(B173='Données méteo'!$M$107,'Données méteo'!$AN$104,IF(B173='Données méteo'!$N$107,'Données méteo'!$AO$104,IF(B173='Données méteo'!$O$107,'Données méteo'!$AP$104,'Données méteo'!$AQ$104))))))))))) -> 116.6045175 | BT173: =BS173/31*VLOOKUP(F173,'Données méteo'!$C$108:$P$131,3,FALSE) -> 0.9403590117 | BU173: 0.655 | BV173: 0.2853590117 | BX173: 0.075 | BY173: 0.8653590117 | BZ173: 0.58
A174: 6 | B174: Janvier | C174: 6 Janvier | D174: 133 | E174: Samedi | F174: 13 | H174: 1 | I174: 1 | J174: 0 | K174: 0 | L174: 0 | M174: 1 | N174: 0 | O174: 0 | P174: 1 | Q174: 1 | R174: 1 | S174: 580 | T174: 1 | U174: 1 | V174: 1 | W174: 0 | X174: 0 | Y174: 0 | Z174: 0 | AA174: 1 | AB174: 1 | AC174: 0 | AD174: 1 | AE174: 1 | AF174: 1 | AG174: 0 | AH174: 1 | AI174: 1 | AJ174: 1 | AK174: 75 | AL174: 1 | AM174: 1 | AN174: 1 | AO174: 0 | AP174: 1 | AQ174: 0 | AR174: 0 | AS174: 0 | AT174: 1 | AU174: 0 | AV174: 0 | AW174: 0 | AX174: 1 | AY174: 0 | AZ174: 0 | BA174: 0 | BB174: 1 | BC174: 1 | BD174: 0 | BE174: 0 | BF174: 1 | BG174: 0 | BH174: 1 | BI174: 0 | BJ174: 1 | BK174: 1 | BL174: 0 | BM174: 0 | BN174: 0 | BO174: 0 | BP174: 0 | BQ174: 0 | BR174: 0.655 | BS174: =IF(B174='Données méteo'!$E$107,'Données méteo'!$AF$104,IF(B174='Données méteo'!$F$107,'Données méteo'!$AG$104,IF(B174='Données méteo'!$G$107,'Données méteo'!$AH$104,IF(B174='Données méteo'!$H$107,'Données méteo'!$AI$104,IF(B174='Données méteo'!$I$107,'Données méteo'!$AJ$104,IF(B174='Données méteo'!$J$107,'Données méteo'!$AK$104,IF(B174='Données méteo'!$K$107,'Données méteo'!$AL$104,IF(B174='Données méteo'!$L$107,'Données méteo'!$AM$104,IF(B174='Données méteo'!$M$107,'Données méteo'!$AN$104,IF(B174='Données méteo'!$N$107,'Données méteo'!$AO$104,IF(B174='Données méteo'!$O$107,'Données méteo'!$AP$104,'Données méteo'!$AQ$104))))))))))) -> 116.6045175 | BT174: =BS174/31*VLOOKUP(F174,'Données méteo'!$C$108:$P$131,3,FALSE) -> 0.8275159303 | BU174: 0.655 | BV174: 0.1725159303 | BX174: 0.075 | BY174: 0.7525159303 | BZ174: 0.58
